Workbook

Sheet Cover page

Sheet Instructions business analyst (hidden)
A1: Instructions for business analysts
A2: Delete before publication
A3: To be updated when template finalised
A5: 1. Cover page
A6: Amend title and guidance number as required.
A8: 2. Guide
A9: Consider any areas where additional explanation specific to this guidance may be required, for example, specific population selections, sector breakdowns or unit cost calculations.
A10: Ensure all hyperlinks are correct.
A12: 3. Population and resource summary - the aim is to enable the bottom right cells of the top table to reflect users selection for the population specific to this template (in this case >55s)
A13: Column G - population specific to this guidance is the only column requiring modification. Change the header and sum so the appropriate population is chosen.
A14: If more than 1 population group is required, insert additional columns and ensure that the headers in rows 9 and 30 are updated and that the sum in column G and all new columns is correct for all regions.
A15: If additional data on another aspect of the population is required, such as ethnicity then this can be inserted after column G
A16: If additional columns are added then the formulas in cells 10 - 19 need to be copied from G10 - G19. The reference in the Vlookup (currently 6 in column G) needs to be changed to ensure the correct cell is picked up, it will be 7 for column H, 8 for column I and so on
A17: Where additional columns are added after G, corresponding columns may be required after "Percentage of population to be used". This is only required in the white section at the top of the sheet, this table should be extended rather than inserting additional columns. the formula in these cells would need to be added manually - this should be a simple formula.
A19: 4. Assumptions input - For most TAs it should be possible to use this format to map out the pathway.
A20: Link the pathway alongside the top line of the table to the 'Population selection' sheet so the selected population is the starting point for the pathway.
A21: List all the assumptions required to get from population selected to the patients who will require drug treatment, experience adverse events etc.
A22: Input your assumptions in column D.
A23: Copy the formulas in columns E, F & G to so they are in every column where a NICE assumption has been made. (column G may be hidden but is required for calculation of the pathway.
A24: Map the pathway alongside the assumptions, linking the calculations to column G, so that if the local assumptions are added, the pathway updates for these assumptions. (this may require several versions to arrive at the neatest way of mapping a potentially complex structure).
A25: Add any further assumptions which are not part of the pathway (e.g. unit costs, number of treatment cycles) below the pathway section.
A26: The pathway described above will show the local assumptions, however the costing template sheet has column showing the standard NICE assumptions. Therefore the pathway needs to be repeated (copy and paste) in the grey cells to the right of the original pathway, with calculations linked to column D instead of G.
A27: Hide column G and all columns on the right which show the copied pathway.
A28: Amend the key and colour coding as required.
A29: In column C reference assumptions and add hyperlinks to the 'Reference and data source' sheet for the explanations.
A31: 5. Unit costs
A32: There is no template provided for calculation of unit costs.
A34: 6. Resource impact template - No new information should appear on this sheet, it should simply link to the assumption input sheet and do the calculations required to show the resource impact.
A35: Link the first column for standard NICE assumptions to the hidden pathway and column D on 'Assumptions input sheet'.
A36: Produce a template which calculates total costs in as few rows as possible, ensuring that the content of the cells match the headers (unit costs, Units, total costs)
A37: Link the second column for local assumptions to the first pathway and column G on 'Assumptions input sheet'.
A38: If the breakdown of the different cost across the different sectors is known, complete the table at the bottom of the page. Users can input there own data into the second column.
A39: If a breakdown is not applicable then hide or delete this section.
A41: 7. Resource impact over time
A44: 8. Sensitivity analysis - this should be left until the pathway and template are finalised as any changes will need to be reflected in the sensitivity working sheet.
A45: Check the sensitivity ratio is reasonable for all the variables. If it doesn't add anything to the understanding of the variables then delete it.
A47: 9. References and data sources
A48: Add as required and ensure users will be able to find the source imformation if they want to

Sheet Guide
A1: Guide | B1: - | C1: - | D1: - | E1: -
A2: - | B2: - | C2: - | D2: - | E2: -
A3: A resource impact report (PDF document) that provides a summary of the guidance and some background on the assumptions used in the resource impact template is also available on the NICE website. The report also highlights further factors that should be considered when using this template. | B3: - | C3: - | D3: - | E3: -
A4: - | B4: - | C4: - | D4: - | E4: -
A5: Within this document, cells highlighted in light blue are unlocked to allow users to make adjustments to the model. Column headings for cells that can be amended are also marked as (local input) | B5: - | C5: - | D5: - | E5: -
A6: - | B6: - | C6: - | D6: - | E6: -
A7: The assumptions input worksheet allows users to select the population for the model. Select the population and appropriate proportion from the dropdown boxes on the worksheet. If no changes are made on this sheet, the template will default to the population of England. The worksheet also allows users to amend the assumptions in the template to take account of local circumstances. Assumptions have been made to produce this resource impact template, based on national data and the view of clinical experts advising NICE but they may not accurately reflect local circumstances. Therefore, users can input their own assumptions in the light blue cells. Any number and combination of the assumptions can be changed in columns B-E. Standard NICE assumptions are shown in columns G-J. If no assumptions are made, the standard assumptions will be used. The tables show how the assumptions affect the population and calculates the volume of activity to be used in the resource impact template. Column L lists references and sources used to inform the resource impact template. | B7: - | C7: - | D7: - | E7: -
A8: - | B8: - | C8: - | D8: - | E8: -
A9: The unit costs worksheet allows users to see how the unit costs used in this template have been calculated. | B9: - | C9: - | D9: - | E9: -
A10: - | B10: - | C10: - | D10: - | E10: -
A11: The resource impact template worksheet shows the financial impact of the guidance based on the population selected and the assumptions made. Columns C-E show the change in activity from current practice to future practice in year 5, using any local assumptions made. Columns G-I show how this change in activity affects costs. The resource impact for year 5 is shown at the bottom of the table. | B11: - | C11: - | D11: - | E11: -
A12: - | B12: - | C12: - | D12: - | E12: -
A13: The resource impact over time worksheet includes (when used) estimates of uptake and resource impact over a number of years. | B13: - | C13: - | D13: - | E13: -
A14: - | B14: - | C14: - | D14: - | E14: -
A15: The resource impact template was developed using a structured approach. This involved: | B15: - | C15: - | D15: - | E15: -
A16: • background research into the guidance content, current practice, published information and available data | B16: - | C16: - | D16: - | E16: -
A17: • gathering expert opinion | B17: - | C17: - | D17: - | E17: -
A18: • developing a model to estimate the resource impact of implementation | B18: - | C18: - | D18: - | E18: -
A19: • testing the model, including the assumptions and outcomes | B19: - | C19: - | D19: - | E19: -
A20: • developing the template and report based on the resource impact model. | B20: - | C20: - | D20: - | E20: -
A21: - | B21: - | C21: - | D21: - | E21: -
A22: © NICE 2021. All rights reserved. Subject to Notice of rights. | B22: - | C22: - | D22: - | E22: -

Sheet Population & resource summary (hidden)
A1: <Guidance title> | E1: Analyst to complete cell B5 with Guidance title
A3: Population and resource impact summary
A5: Organisation type | B5: Organisation | C5: Proportion | D5: Total population (all ages)
A6: National | B6: England | C6: 1 | D6: =IFERROR(IF((OR(B6="More selections if required",B6="")),"-",'Population selection'!G13),"-") -> 56286961
D7: =IFERROR(IF((OR(B7="More selections if required",B7="")),"-",'Population selection'!G14),"-") -> -
D8: =IFERROR(IF((OR(B8="More selections if required",B8="")),"-",'Population selection'!G15),"-") -> -
D9: =IFERROR(IF((OR(B9="More selections if required",B9="")),"-",'Population selection'!G16),"-") -> -
D10: =IFERROR(IF((OR(B10="More selections if required",B10="")),"-",'Population selection'!G17),"-") -> -
D11: =IFERROR(IF((OR(B11="More selections if required",B11="")),"-",'Population selection'!G18),"-") -> -
D12: =IFERROR(IF((OR(B12="More selections if required",B12="")),"-",'Population selection'!G19),"-") -> -
D13: =IFERROR(IF((OR(B13="More selections if required",B13="")),"-",'Population selection'!G20),"-") -> -
D14: =IFERROR(IF((OR(B14="More selections if required",B14="")),"-",'Population selection'!G21),"-") -> -
B15: <manual input> | D15: -
A17: Total resource impact | D17: ='Resource impact template'!I17 -> -629975.9048

Sheet Population selection (hidden)
B1: Notes for analysts: how to complete this sheet | E1: Analyst please hide sheet once complete.
B3: The topic-specific sections where formulae may need to be changed are highlighted in yellow
B5: 1) Ensure the formulae in D13 to E18 and H13 to I18 are updated. The formula in D13 to be amended is below - amend the red '2' where necessary. Typically use 2 and 3 or 5 and 6.
B7: =IF(OR(C13="", C13="-"), "",VLOOKUP((CONCATENATE($N13," - ",$B13)),$C$27:$GL$662,2,FALSE))
B8: 2) Check that the formulae in the 'manual input' row refer to the correct 'topic-specific' column of data
K9: =I214+K214 -> 27827831 | L9: =K9-G171 -> 0
B10: Population data | K10: =J214+L214 -> 28459130 | L10: =K10-H171 -> 0
D11: Population specific to this guidance | E11: Population specific to this guidance | H11: Population specific to this guidance | I11: Population specific to this guidance | L11: Dropdowns | M11: Dropdowns | N11: Current selections | O11: Current selections | P11: Costing template
B12: Organisation | C12: Total population | D12: Males aged 18 and over | E12: Females aged 18 and over | F12: Percentage of population to be used | G12: Total population selected | H12: Males aged 18 and over | I12: Females aged 18 and over | J12: Topic-specific population selected | L12: Per 100,000 population | M12: PER100K | N12: Organisation type | O12: Dropdown code
B13: =IF((OR('Assumptions input'!$B5="<select>", 'Assumptions input'!$B5="")), "-", 'Assumptions input'!$B6) -> England | C13: =IF(OR(B13="", B13="-"), "",VLOOKUP((CONCATENATE($N13," - ",$B13)),$C$30:$GL$605,4,FALSE)) -> 56286961 | D13: =IF(OR(C13="", C13="-"), "",VLOOKUP((CONCATENATE($N13," - ",$B13)),$C$30:$GL$605,2,FALSE)) -> 21661879 | E13: =IF(OR(D13="", D13="-"), "",VLOOKUP((CONCATENATE($N13," - ",$B13)),$C$30:$GL$605,3,FALSE)) -> 22601514 | F13: =IF(B13="", "", 'Assumptions input'!B4) -> 1 | G13: =IFERROR(C13*$F13, "") -> 56286961 | H13: =IFERROR(D13*$F13, "") -> 21661879 | I13: 22601514 | J13: =IFERROR(H13+I13, "") -> 44263393 | L13: National | M13: NATIONAL | N13: ='Assumptions input'!$B$5 -> National | O13: =IFERROR(VLOOKUP('Assumptions input'!$B$5, $L$12:$M$22, 2, FALSE), "-") -> NATIONAL | P13: =ISTEXT('Assumptions input'!$B$6) -> TRUE
B14: ='Assumptions input'!A7 -> Manual input (total population, all ages) | C14: =IF(OR('Assumptions input'!B7="", 'Assumptions input'!B7="-"), "", 'Assumptions input'!B7) ->  | D14: =IFERROR(C14*($D$30/100000), "") ->  | E14: =IFERROR(C14*($E$30/100000), "") ->  | F14: =IF(B14="", "", 'Assumptions input'!B4) -> 1 | H14: =IFERROR(D14*$F14, "") ->  | I14: =IFERROR(E14*$F14, "") ->  | J14: =IFERROR(H14+I14, "") ->  | L14: England – CCGs | M14: ENGCCGS | N14: ='Assumptions input'!$B$5 -> National | O14: =IFERROR(VLOOKUP('Assumptions input'!$B$5, $L$12:$M$22, 2, FALSE), "-") -> NATIONAL | P14: =ISTEXT('Assumptions input'!$B$6) -> TRUE
L15: Wales – Health Boards | M15: WALESHB | N15: ='Assumptions input'!$B$5 -> National | O15: =IFERROR(VLOOKUP('Assumptions input'!$B$5, $L$12:$M$22, 2, FALSE), "-") -> NATIONAL | P15: =ISTEXT('Assumptions input'!$B$6) -> TRUE
L16: NI – Health and Social Care Trusts | M16: NI_HSCT | N16: ='Assumptions input'!$B$5 -> National | O16: =IFERROR(VLOOKUP('Assumptions input'!$B$5, $L$12:$M$22, 2, FALSE), "-") -> NATIONAL | P16: =ISTEXT('Assumptions input'!$B$6) -> TRUE
L17: England STPs | M17: ENGSTPS | N17: ='Assumptions input'!$B$5 -> National | O17: =IFERROR(VLOOKUP('Assumptions input'!$B$5, $L$12:$M$22, 2, FALSE), "-") -> NATIONAL | P17: =ISTEXT('Assumptions input'!$B$6) -> TRUE
L18: NHSE area teams | M18: NHSENGAREAS | N18: ='Assumptions input'!$B$5 -> National | O18: =IFERROR(VLOOKUP('Assumptions input'!$B$5, $L$12:$M$22, 2, FALSE), "-") -> NATIONAL | P18: =ISTEXT('Assumptions input'!$B$6) -> TRUE
L19: England ICS | M19: ENGLANDICS | N19: ='Assumptions input'!$B$5 -> National | O19: =IFERROR(VLOOKUP('Assumptions input'!$B$5, $L$12:$M$22, 2, FALSE), "-") -> NATIONAL | P19: =ISTEXT('Assumptions input'!$B$6) -> TRUE
L20: LA Wales | M20: LOCALAUTHWALES | N20: ='Assumptions input'!$B$5 -> National | O20: =IFERROR(VLOOKUP('Assumptions input'!$B$5, $L$12:$M$22, 2, FALSE), "-") -> NATIONAL | P20: =ISTEXT('Assumptions input'!$B$6) -> TRUE
L21: LA NI | M21: LOCALAUTHNORTHI | N21: ='Assumptions input'!$B$5 -> National | O21: =IFERROR(VLOOKUP('Assumptions input'!$B$5, $L$12:$M$22, 2, FALSE), "-") -> NATIONAL | P21: =ISTEXT('Assumptions input'!$B$6) -> TRUE
K22: =IFERROR(I22+J22, "") -> 0 | L22: LA England | M22: LOCALAUTHENG | N22: ='Assumptions input'!$B$5 -> National | O22: =IFERROR(VLOOKUP('Assumptions input'!$B$5, $L$12:$M$22, 2, FALSE), "-") -> NATIONAL | P22: =ISTEXT('Assumptions input'!$B$6) -> TRUE
B23: TOTAL | C23: =SUM(C13:C22) -> 56286961 | D23: =SUM(D13:D22) -> 21661879 | E23: =SUM(E13:E22) -> 22601514 | G23: =SUM(G13:G22) -> 56286961 | H23: =SUM(H13:H22) -> 21661879 | I23: =SUM(I13:I22) -> 22601514 | J23: =(SUM(J13:J22)) -> 44263393 | P23: =COUNTIF(P13:P22, TRUE) -> 10
D25: Population specific to this guidance | E25: Population specific to this guidance
D26: 2 | E26: 3 | F26: 4 | G26: 5 | H26: 6
A27: Organisation type | B27: Organisation name | C27: Concatenated field (for search) | D27: 18 years and over | E27: 19 years and over | F27: All | G27: All | H27: All | I27: 18 years and over | J27: 18 years and over | K27: 0–17 years | L27: 0–17 years | M27: Males | CZ27: Females
D28: Males aged 18 and over | E28: Females aged 18 and over | F28: Persons | G28: Males | H28: Females | I28: Males | J28: Females | K28: Males | L28: Females | M28: 0 | N28: 1 | O28: 2 | P28: 3 | Q28: 4 | R28: 5 | S28: 6 | T28: 7 | U28: 8 | V28: 9 | W28: 10 | X28: 11 | Y28: 12 | Z28: 13 | AA28: 14 | AB28: 15 | AC28: 16 | AD28: 17 | AE28: 18 | AF28: 19 | AG28: 20 | AH28: 21 | AI28: 22 | AJ28: 23 | AK28: 24 | AL28: 25 | AM28: 26 | AN28: 27 | AO28: 28 | AP28: 29 | AQ28: 30 | AR28: 31 | AS28: 32 | AT28: 33 | AU28: 34 | AV28: 35 | AW28: 36 | AX28: 37 | AY28: 38 | AZ28: 39 | BA28: 40 | BB28: 41 | BC28: 42 | BD28: 43 | BE28: 44 | BF28: 45 | BG28: 46 | BH28: 47 | BI28: 48 | BJ28: 49 | BK28: 50 | BL28: 51 | BM28: 52 | BN28: 53 | BO28: 54 | BP28: 55 | BQ28: 56 | BR28: 57 | BS28: 58 | BT28: 59 | BU28: 60 | BV28: 61 | BW28: 62 | BX28: 63 | BY28: 64 | BZ28: 65 | CA28: 66 | CB28: 67 | CC28: 68 | CD28: 69 | CE28: 70 | CF28: 71 | CG28: 72 | CH28: 73 | CI28: 74 | CJ28: 75 | CK28: 76 | CL28: 77 | CM28: 78 | CN28: 79 | CO28: 80 | CP28: 81 | CQ28: 82 | CR28: 83 | CS28: 84 | CT28: 85 | CU28: 86 | CV28: 87 | CW28: 88 | CX28: 89 | CY28: 90 and over | CZ28: 0 | DA28: 1 | DB28: 2 | DC28: 3 | DD28: 4 | DE28: 5 | DF28: 6 | DG28: 7 | DH28: 8 | DI28: 9 | DJ28: 10 | DK28: 11 | DL28: 12 | DM28: 13 | DN28: 14 | DO28: 15 | DP28: 16 | DQ28: 17 | DR28: 18 | DS28: 19 | DT28: 20 | DU28: 21 | DV28: 22 | DW28: 23 | DX28: 24 | DY28: 25 | DZ28: 26 | EA28: 27 | EB28: 28 | EC28: 29 | ED28: 30 | EE28: 31 | EF28: 32 | EG28: 33 | EH28: 34 | EI28: 35 | EJ28: 36 | EK28: 37 | EL28: 38 | EM28: 39 | EN28: 40 | EO28: 41 | EP28: 42 | EQ28: 43 | ER28: 44 | ES28: 45 | ET28: 46 | EU28: 47 | EV28: 48 | EW28: 49 | EX28: 50 | EY28: 51 | EZ28: 52 | FA28: 53 | FB28: 54 | FC28: 55 | FD28: 56 | FE28: 57 | FF28: 58 | FG28: 59 | FH28: 60 | FI28: 61 | FJ28: 62 | FK28: 63 | FL28: 64 | FM28: 65 | FN28: 66 | FO28: 67 | FP28: 68 | FQ28: 69 | FR28: 70 | FS28: 71 | FT28: 72 | FU28: 73 | FV28: 74 | FW28: 75 | FX28: 76 | FY28: 77 | FZ28: 78 | GA28: 79 | GB28: 80 | GC28: 81 | GD28: 82 | GE28: 83 | GF28: 84 | GG28: 85 | GH28: 86 | GI28: 87 | GJ28: 88 | GK28: 89 | GL28: 90 and over
A30: Per 100,000 population | B30: Per 100,000 population | C30: =CONCATENATE(A30, " - ", B30) -> Per 100,000 population - Per 100,000 population | D30: =ROUND((SUM(D32:D34)/SUM($F$32:$F$34))*100000,0) -> 38479 | E30: =(SUM(E32:E34)/SUM($F$32:$F$34))*100000 -> 40172.22429 | F30: =SUM(G30:H30) -> 100000 | G30: =ROUND((SUM(G32:G34)/SUM($F$32:$F$34))*100000,0) -> 49427 | H30: =ROUND((SUM(H32:H34)/SUM($F$32:$F$34))*100000,0) -> 50573 | I30: =ROUND((SUM(I32:I34)/SUM($F$32:$F$34))*100000,0) -> 38479 | J30: =(SUM(J32:J34)/SUM($F$32:$F$34))*100000 -> 40172.22429 | K30: 10948.2815 | L30: 10400.91675 | M30: 563.2125357 | N30: 585.3456252 | O30: 604.3156802 | P30: 623.8286684 | Q30: 622.9922577 | R30: 627.9438741 | S30: 641.9590518 | T30: 660.3356302 | U30: 648.4432726 | V30: 636.9748268 | W30: 628.8324586 | X30: 634.997115 | Y30: 615.4906485 | Z30: 601.7102528 | AA30: 577.5668429 | AB30: 569.2907793 | AC30: 555.6196224 | AD30: 549.4223573 | AE30: 565.8179631 | AF30: 588.7124635 | AG30: 613.7770664 | AH30: 625.4444247 | AI30: 647.1601241 | AJ30: 655.274775 | AK30: 652.3644572 | AL30: 674.0785261 | AM30: 670.6350576 | AN30: 684.2866494 | AO30: 703.9545285 | AP30: 692.5056479 | AQ30: 678.5736221 | AR30: 680.3165519 | AS30: 658.3236794 | AT30: 671.2464689 | AU30: 669.7481036 | AV30: 648.7008806 | AW30: 652.075871 | AX30: 649.0709882 | AY30: 655.7704258 | AZ30: 657.2965084 | BA30: 633.3194024 | BB30: 591.9341935 | BC30: 582.9782406 | BD30: 590.0363728 | BE30: 601.8472089 | BF30: 610.7118577 | BG30: 637.3025433 | BH30: 664.1100761 | BI30: 680.3491605 | BJ30: 664.3823579 | BK30: 679.4165545 | BL30: 678.4317747 | BM30: 690.0975025 | BN30: 685.3056682 | BO30: 688.6545718 | BP30: 682.0089384 | BQ30: 665.4062681 | BR30: 650.7878312 | BS30: 626.5465955 | BT30: 598.1722193 | BU30: 583.1510662 | BV30: =(SUM(BV32:BV34)/SUM($F$32:$F$34))*100000 -> 570.1190379 | BW30: 546.278888 | BX30: 525.2838387 | BY30: 503.34314 | BZ30: 501.0360813 | CA30: 493.0192562 | CB30: 474.181266 | CC30: 474.393222 | CD30: 479.6057072 | CE30: 490.069808 | CF30: 511.7463771 | CG30: 550.3892024 | CH30: 419.3678343 | CI30: 401.3564722 | CJ30: 393.9461671 | CK30: 357.4962704 | CL30: 311.7985737 | CM30: 272.6975974 | CN30: 275.9030231 | CO30: 265.4796831 | CP30: 249.1036425 | CQ30: 226.7797927 | CR30: 204.8521373 | CS30: 184.478282 | CT30: 159.4234616 | CU30: 140.9898182 | CV30: 125.0996458 | CW30: 107.688282 | CX30: 89.08018255 | CY30: 293.485582 | CZ30: 532.6142528 | DA30: 555.6620136 | DB30: 574.5554384 | DC30: 592.1379973 | DD30: 591.3211517 | DE30: 597.022766 | DF30: 610.402076 | DG30: 630.1482157 | DH30: 617.2140132 | DI30: 607.5863231 | DJ30: 598.318958 | DK30: 603.1662269 | DL30: 582.7010675 | DM30: 572.9869645 | DN30: 550.2864853 | DO30: 541.2979238 | DP30: 525.3620994 | DQ30: 518.132772 | DR30: 536.7327194 | DS30: 552.3294143 | DT30: 578.7342309 | DU30: 586.7608386 | DV30: 610.4412063 | DW30: 614.7993461 | DX30: 620.0477008 | DY30: 640.413404 | DZ30: 646.3595829 | EA30: 672.3600527 | EB30: 681.7138306 | EC30: 670.6203837 | ED30: 671.0866868 | EE30: 683.1420874 | EF30: 672.7366821 | EG30: 672.2883138 | EH30: =(SUM(EH32:EH34)/SUM($F$32:$F$34))*100000 -> 672.4138569 | EI30: 660.2378044 | EJ30: 666.1040922 | EK30: 665.0899646 | EL30: 668.4779985 | EM30: 669.2410398 | EN30: 640.0351442 | EO30: 595.7526609 | EP30: 587.2026851 | EQ30: 599.4455853 | ER30: 610.2145765 | ES30: 622.4639983 | ET30: 648.5101203 | EU30: 674.8366761 | EV30: 701.2757317 | EW30: 684.0779543 | EX30: 700.2322564 | EY30: 698.8692168 | EZ30: 705.4316982 | FA30: 707.9735388 | FB30: 711.097443 | FC30: 702.8034448 | FD30: 685.3399073 | FE30: 668.3426728 | FF30: 644.7699135 | FG30: 618.3879229 | FH30: 603.3390525 | FI30: 589.6727869 | FJ30: 567.2576329 | FK30: 545.5500857 | FL30: 526.573509 | FM30: 529.0289368 | FN30: 519.9963537 | FO30: 505.863785 | FP30: 508.0942135 | FQ30: 518.1719024 | FR30: 527.5436149 | FS30: 554.7946247 | FT30: 595.7445088 | FU30: 460.8215213 | FV30: 444.6916756 | FW30: 438.8531052 | FX30: 407.0515648 | FY30: 361.7370192 | FZ30: 322.8643032 | GA30: 329.4006977 | GB30: 322.3980002 | GC30: 307.5594552 | GD30: 287.894837 | GE30: 267.9139153 | GF30: 247.4259298 | GG30: 222.7754562 | GH30: 204.6059424 | GI30: 189.697289 | GJ30: 172.0837519 | GK30: 151.5859838 | GL30: 622.0384561
A32: National | B32: England | C32: National - England | D32: =I32 -> 21661879 | E32: 22601514 | F32: =G32+H32 -> 56286961 | G32: =SUM(M32:CY32) -> 27827831 | H32: =SUM(CZ32:GL32) -> 28459130 | I32: =SUM(AE32:CY32) -> 21661879 | J32: =SUM(DR32:GL32) -> 22601514 | K32: =SUM(M32:AD32) -> 6165952 | L32: =SUM(CZ32:DQ32) -> 5857616 | M32: 318032 | N32: 330498 | O32: 341237 | P32: 351961 | Q32: 351485 | R32: 354203 | S32: 362354 | T32: 372474 | U32: 364988 | V32: 358451 | W32: 353295 | X32: 356875 | Y32: 346084 | Z32: 338473 | AA32: 324729 | AB32: 320136 | AC32: 312196 | AD32: 308481 | AE32: 317299 | AF32: 329605 | AG32: 343299 | AH32: 350146 | AI32: 363299 | AJ32: 368538 | AK32: 367439 | AL32: 379476 | AM32: 378348 | AN32: 386287 | AO32: 397627 | AP32: 391384 | AQ32: 383561 | AR32: 385056 | AS32: 372291 | AT32: 380182 | AU32: 379462 | AV32: 367496 | AW32: 369690 | AX32: 368265 | AY32: 371334 | AZ32: 372326 | BA32: 359127 | BB32: 335868 | BC32: 330048 | BD32: 334463 | BE32: 340690 | BF32: 345438 | BG32: 360139 | BH32: 374925 | BI32: 383998 | BJ32: 374793 | BK32: 382825 | BL32: 382177 | BM32: 388890 | BN32: 385907 | BO32: 387129 | BP32: 383317 | BQ32: 373848 | BR32: 365399 | BS32: 351591 | BT32: 335458 | BU32: 326766 | BV32: 319229 | BW32: 305649 | BX32: 294176 | BY32: 281418 | BZ32: 279798 | CA32: 275399 | CB32: 264766 | CC32: 265055 | CD32: 267782 | CE32: 274011 | CF32: 286743 | CG32: 309763 | CH32: 235096 | CI32: 224537 | CJ32: 220465 | CK32: 199616 | CL32: 173892 | CM32: 152100 | CN32: 154637 | CO32: 148853 | CP32: 139989 | CQ32: 127560 | CR32: 115258 | CS32: 103797 | CT32: 89716 | CU32: 79284 | CV32: 70627 | CW32: 60819 | CX32: 50404 | CY32: 166234 | CZ32: 300826 | DA32: 313558 | DB32: 324359 | DC32: 334174 | DD32: 333507 | DE32: 336919 | DF32: 344388 | DG32: 355464 | DH32: 347216 | DI32: 341749 | DJ32: 336438 | DK32: 338878 | DL32: 327705 | DM32: 322455 | DN32: 309314 | DO32: 304454 | DP32: 295300 | DQ32: 290912 | DR32: 301574 | DS32: 310275 | DT32: 324830 | DU32: 329430 | DV32: 343669 | DW32: 346904 | DX32: 350309 | DY32: 361180 | DZ32: 364387 | EA32: 379124 | EB32: 384736 | EC32: 378860 | ED32: 379105 | EE32: 386611 | EF32: 380646 | EG32: 380499 | EH32: 380541 | EI32: 373947 | EJ32: 377262 | EK32: 376800 | EL32: 377977 | EM32: 378545 | EN32: 362127 | EO32: 336646 | EP32: 331751 | EQ32: 338783 | ER32: 344794 | ES32: 351131 | ET32: 365461 | EU32: 380281 | EV32: 394731 | EW32: 384915 | EX32: 393753 | EY32: 392996 | EZ32: 396581 | FA32: 398167 | FB32: 399036 | FC32: 394299 | FD32: 384817 | FE32: 374686 | FF32: 361033 | FG32: 346203 | FH32: 337691 | FI32: 329792 | FJ32: 317256 | FK32: 305076 | FL32: 294782 | FM32: 295946 | FN32: 290651 | FO32: 283061 | FP32: 284178 | FQ32: 290104 | FR32: 295606 | FS32: 311295 | FT32: 335315 | FU32: 258165 | FV32: 248795 | FW32: 245774 | FX32: 227591 | FY32: 201831 | FZ32: 179947 | GA32: 184833 | GB32: 180860 | GC32: 172748 | GD32: 161532 | GE32: 150373 | GF32: 138943 | GG32: 125011 | GH32: 114723 | GI32: 106772 | GJ32: 96951 | GK32: 85471 | GL32: 351039
A33: National | B33: Wales | C33: National - Wales | D33: 1231609 | E33: 1291331 | F33: =G33+H33 -> 3152879 | G33: =SUM(M33:CY33) -> 1554678 | H33: =SUM(CZ33:GL33) -> 1598201 | I33: =SUM(AE33:CY33) -> 1231609 | J33: =SUM(DR33:GL33) -> 1291331 | K33: =SUM(M33:AD33) -> 323069 | L33: =SUM(CZ33:DQ33) -> 306870 | M33: 15733 | N33: 16535 | O33: 16972 | P33: 17635 | Q33: 17824 | R33: 18122 | S33: 18471 | T33: 19072 | U33: 19468 | V33: 19075 | W33: 18972 | X33: 19207 | Y33: 18571 | Z33: 18378 | AA33: 17585 | AB33: 17228 | AC33: 17152 | AD33: 17069 | AE33: 18194 | AF33: 19657 | AG33: 21070 | AH33: 21480 | AI33: 21733 | AJ33: 21367 | AK33: 20693 | AL33: 22001 | AM33: 21112 | AN33: 20984 | AO33: 21629 | AP33: 20817 | AQ33: 20146 | AR33: 19604 | AS33: 18801 | AT33: 18895 | AU33: 18821 | AV33: 18121 | AW33: 18241 | AX33: 17864 | AY33: 18563 | AZ33: 18626 | BA33: 17813 | BB33: 16063 | BC33: 16432 | BD33: 16292 | BE33: 17062 | BF33: 17491 | BG33: 18556 | BH33: 19990 | BI33: 20796 | BJ33: 20147 | BK33: 21198 | BL33: 20920 | BM33: 21540 | BN33: 21452 | BO33: 22182 | BP33: 22083 | BQ33: 21524 | BR33: 21593 | BS33: 20669 | BT33: 19997 | BU33: 19755 | BV33: 19513 | BW33: 18999 | BX33: 17959 | BY33: 17674 | BZ33: 18032 | CA33: 17933 | CB33: 17379 | CC33: 17305 | CD33: 17915 | CE33: 18263 | CF33: 19056 | CG33: 19903 | CH33: 14845 | CI33: 14569 | CJ33: 14295 | CK33: 13224 | CL33: 11678 | CM33: 10279 | CN33: 10026 | CO33: 9497 | CP33: 8772 | CQ33: 7811 | CR33: 7164 | CS33: 6457 | CT33: 5565 | CU33: 4942 | CV33: 4212 | CW33: 3634 | CX33: 3043 | CY33: 9691 | CZ33: 14797 | DA33: 15821 | DB33: 16269 | DC33: 16951 | DD33: 17005 | DE33: 17073 | DF33: 17531 | DG33: 18215 | DH33: 18501 | DI33: 18256 | DJ33: 17823 | DK33: 18307 | DL33: 17598 | DM33: 17416 | DN33: 16962 | DO33: 16462 | DP33: 15960 | DQ33: 15923 | DR33: 16665 | DS33: 18071 | DT33: 19137 | DU33: 19642 | DV33: 19553 | DW33: 19017 | DX33: 18710 | DY33: 19941 | DZ33: 20243 | EA33: 20853 | EB33: 20768 | EC33: 19912 | ED33: 19997 | EE33: 19635 | EF33: 19094 | EG33: 18839 | EH33: 19122 | EI33: 18256 | EJ33: 18624 | EK33: 18496 | EL33: 19129 | EM33: 19000 | EN33: 17804 | EO33: 16864 | EP33: 16624 | EQ33: 17078 | ER33: 17524 | ES33: 18307 | ET33: 19532 | EU33: 20743 | EV33: 22105 | EW33: 21405 | EX33: 22347 | EY33: 22155 | EZ33: 22615 | FA33: 22677 | FB33: 23394 | FC33: 23400 | FD33: 22696 | FE33: 22441 | FF33: 21956 | FG33: 21121 | FH33: 20853 | FI33: 20541 | FJ33: 19798 | FK33: 19241 | FL33: 18520 | FM33: 19118 | FN33: 18914 | FO33: 18254 | FP33: 18547 | FQ33: 18745 | FR33: 19085 | FS33: 20112 | FT33: 21188 | FU33: 16300 | FV33: 15965 | FW33: 15596 | FX33: 14579 | FY33: 13417 | FZ33: 12115 | GA33: 11576 | GB33: 11245 | GC33: 10746 | GD33: 10080 | GE33: 9402 | GF33: 8595 | GG33: 7905 | GH33: 7228 | GI33: 6460 | GJ33: 5815 | GK33: 5074 | GL33: 20825
A34: National | B34: Northern Ireland | C34: National - Northern Ireland | D34: 706773 | E34: 746189 | F34: =G34+H34 -> 1893667 | G34: =SUM(M34:CY34) -> 932717 | H34: =SUM(CZ34:GL34) -> 960950 | I34: =SUM(AE34:CY34) -> 706773 | J34: =SUM(DR34:GL34) -> 746189 | K34: =SUM(M34:AD34) -> 225944 | L34: =SUM(CZ34:DQ34) -> 214761 | M34: 11673 | N34: 11980 | O34: 12439 | P34: 13020 | Q34: 12794 | R34: 12815 | S34: 12911 | T34: 13461 | U34: 13257 | V34: 13153 | W34: 13418 | X34: 13384 | Y34: 12847 | Z34: 12199 | AA34: 11928 | AB34: 11802 | AC34: 11433 | AD34: 11430 | AE34: 11543 | AF34: 11816 | AG34: 12082 | AH34: 11981 | AI34: 11894 | AJ34: 11998 | AK34: 11986 | AL34: 11959 | AM34: 11864 | AN34: 12426 | AO34: 12504 | AP34: 12537 | AQ34: 12486 | AR34: 12602 | AS34: 12681 | AT34: 12622 | AU34: 12497 | AV34: 12254 | AW34: 12010 | AX34: 11969 | AY34: 12310 | AZ34: 12191 | BA34: 11497 | BB34: 11123 | BC34: 11081 | BD34: 11135 | BE34: 11382 | BF34: 11642 | BG34: 12185 | BH34: 12407 | BI34: 12488 | BJ34: 12549 | BK34: 12687 | BL34: 13009 | BM34: 12831 | BN34: 12963 | BO34: 13065 | BP34: 12900 | BQ34: 12745 | BR34: 12159 | BS34: 12023 | BT34: 11425 | BU34: 11146 | BV34: 10932 | BW34: 10404 | BX34: 10040 | BY34: 9626 | BZ34: 9473 | CA34: 9054 | CB34: 8687 | CC34: 8602 | CD34: 8462 | CE34: 8303 | CF34: 8073 | CG34: 7907 | CH34: 7272 | CI34: 7060 | CJ34: 6861 | CK34: 6425 | CL34: 5667 | CM34: 4876 | CN34: 4558 | CO34: 4478 | CP34: 4023 | CQ34: 3721 | CR34: 3221 | CS34: 2893 | CT34: 2499 | CU34: 2248 | CV34: 1889 | CW34: 1596 | CX34: 1189 | CY34: 4080 | CZ34: 11048 | DA34: 11428 | DB34: 11767 | DC34: 12054 | DD34: 12166 | DE34: 12183 | DF34: 12462 | DG34: 12813 | DH34: 12842 | DI34: 12649 | DJ34: 12709 | DK34: 12758 | DL34: 12088 | DM34: 11562 | DN34: 11234 | DO34: 11081 | DP34: 10963 | DQ34: 10954 | DR34: 10958 | DS34: 10417 | DT34: 10991 | DU34: 10809 | DV34: 11183 | DW34: 11157 | DX34: 11278 | DY34: 11667 | DZ34: 11805 | EA34: 12405 | EB34: 12615 | EC34: 12543 | ED34: 12499 | EE34: 12749 | EF34: 12873 | EG34: 13000 | EH34: 12752 | EI34: 12744 | EJ34: 12659 | EK34: 12627 | EL34: 12895 | EM34: 12924 | EN34: 12625 | EO34: 11886 | EP34: 11777 | EQ34: 11800 | ER34: 11948 | ES34: 12341 | ET34: 12761 | EU34: 12877 | EV34: 13281 | EW34: 13249 | EX34: 13377 | EY34: 13490 | EZ34: 13470 | FA34: 13381 | FB34: 13711 | FC34: 13355 | FD34: 12830 | FE34: 12791 | FF34: 12471 | FG34: 11955 | FH34: 11505 | FI34: 11334 | FJ34: 10865 | FK34: 10288 | FL34: 9664 | FM34: 9408 | FN34: 9367 | FO34: 8949 | FP34: 8907 | FQ34: 8964 | FR34: 8870 | FS34: 8868 | FT34: 8888 | FU34: 8173 | FV34: 7985 | FW34: 7794 | FX34: 7489 | FY34: 6618 | FZ34: 5962 | GA34: 5624 | GB34: 5633 | GC34: 5143 | GD34: 4964 | GE34: 4546 | GF34: 4217 | GG34: 3720 | GH34: 3541 | GI34: 3116 | GJ34: 2779 | GK34: 2428 | GL34: 9654
A36: England – CCGs | B36: Barking and Dagenham | C36: =CONCATENATE(A36," - ",B36) -> England – CCGs - Barking and Dagenham | D36: =I36 -> 72974 | E36: =J36 -> 76385 | F36: =G36+H36 -> 212906 | G36: =SUM(M36:CY36) -> 105877 | H36: =SUM(CZ36:GL36) -> 107029 | I36: =SUM(AE36:CY36) -> 72974 | J36: =SUM(DR36:GL36) -> 76385 | K36: =SUM(M36:AD36) -> 32903 | L36: =SUM(CZ36:DQ36) -> 30644 | M36: 1876 | N36: 1967 | O36: 1971 | P36: 2040 | Q36: 1860 | R36: 1974 | S36: 2115 | T36: 2040 | U36: 1927 | V36: 1955 | W36: 1771 | X36: 1877 | Y36: 1911 | Z36: 1696 | AA36: 1561 | AB36: 1424 | AC36: 1515 | AD36: 1423 | AE36: 1444 | AF36: 1214 | AG36: 1136 | AH36: 1325 | AI36: 1391 | AJ36: 1494 | AK36: 1593 | AL36: 1620 | AM36: 1626 | AN36: 1587 | AO36: 1652 | AP36: 1762 | AQ36: 1608 | AR36: 1803 | AS36: 1740 | AT36: 1689 | AU36: 1899 | AV36: 1717 | AW36: 1659 | AX36: 1670 | AY36: 1686 | AZ36: 1582 | BA36: 1482 | BB36: 1405 | BC36: 1495 | BD36: 1329 | BE36: 1498 | BF36: 1459 | BG36: 1428 | BH36: 1412 | BI36: 1401 | BJ36: 1370 | BK36: 1212 | BL36: 1210 | BM36: 1252 | BN36: 1173 | BO36: 1151 | BP36: 1076 | BQ36: 1077 | BR36: 1093 | BS36: 934 | BT36: 960 | BU36: 917 | BV36: 880 | BW36: 783 | BX36: 768 | BY36: 682 | BZ36: 668 | CA36: 617 | CB36: 545 | CC36: 549 | CD36: 481 | CE36: 470 | CF36: 481 | CG36: 459 | CH36: 420 | CI36: 397 | CJ36: 344 | CK36: 327 | CL36: 265 | CM36: 255 | CN36: 258 | CO36: 253 | CP36: 247 | CQ36: 227 | CR36: 197 | CS36: 202 | CT36: 148 | CU36: 140 | CV36: 128 | CW36: 98 | CX36: 103 | CY36: 351 | CZ36: 1721 | DA36: 1851 | DB36: 1915 | DC36: 1980 | DD36: 1916 | DE36: 1855 | DF36: 1792 | DG36: 1861 | DH36: 1808 | DI36: 1810 | DJ36: 1752 | DK36: 1759 | DL36: 1653 | DM36: 1511 | DN36: 1512 | DO36: 1320 | DP36: 1268 | DQ36: 1360 | DR36: 1279 | DS36: 993 | DT36: 992 | DU36: 1202 | DV36: 1250 | DW36: 1202 | DX36: 1487 | DY36: 1454 | DZ36: 1469 | EA36: 1596 | EB36: 1610 | EC36: 1598 | ED36: 1776 | EE36: 1863 | EF36: 1890 | EG36: 1845 | EH36: 1912 | EI36: 1779 | EJ36: 1744 | EK36: 1835 | EL36: 1616 | EM36: 1775 | EN36: 1661 | EO36: 1665 | EP36: 1589 | EQ36: 1561 | ER36: 1551 | ES36: 1486 | ET36: 1432 | EU36: 1384 | EV36: 1449 | EW36: 1470 | EX36: 1360 | EY36: 1320 | EZ36: 1267 | FA36: 1283 | FB36: 1265 | FC36: 1243 | FD36: 1169 | FE36: 1048 | FF36: 1020 | FG36: 915 | FH36: 929 | FI36: 784 | FJ36: 793 | FK36: 717 | FL36: 707 | FM36: 644 | FN36: 665 | FO36: 586 | FP36: 598 | FQ36: 567 | FR36: 550 | FS36: 534 | FT36: 594 | FU36: 478 | FV36: 453 | FW36: 373 | FX36: 422 | FY36: 413 | FZ36: 315 | GA36: 367 | GB36: 358 | GC36: 397 | GD36: 311 | GE36: 287 | GF36: 286 | GG36: 244 | GH36: 238 | GI36: 211 | GJ36: 211 | GK36: 196 | GL36: 852
A37: England – CCGs | B37: Barnsley | C37: England – CCGs - Barnsley | D37: =I37 -> 95689 | E37: =J37 -> 100094 | F37: =G37+H37 -> 246866 | G37: =SUM(M37:CY37) -> 121801 | H37: =SUM(CZ37:GL37) -> 125065 | I37: =SUM(AE37:CY37) -> 95689 | J37: =SUM(DR37:GL37) -> 100094 | K37: =SUM(M37:AD37) -> 26112 | L37: =SUM(CZ37:DQ37) -> 24971 | M37: 1310 | N37: 1463 | O37: 1504 | P37: 1391 | Q37: 1497 | R37: 1435 | S37: 1560 | T37: 1560 | U37: 1582 | V37: 1531 | W37: 1458 | X37: 1525 | Y37: 1521 | Z37: 1454 | AA37: 1359 | AB37: 1401 | AC37: 1277 | AD37: 1284 | AE37: 1257 | AF37: 1123 | AG37: 1211 | AH37: 1230 | AI37: 1329 | AJ37: 1509 | AK37: 1456 | AL37: 1547 | AM37: 1615 | AN37: 1624 | AO37: 1706 | AP37: 1485 | AQ37: 1568 | AR37: 1603 | AS37: 1538 | AT37: 1564 | AU37: 1583 | AV37: 1564 | AW37: 1554 | AX37: 1605 | AY37: 1501 | AZ37: 1507 | BA37: 1355 | BB37: 1254 | BC37: 1201 | BD37: 1279 | BE37: 1403 | BF37: 1448 | BG37: 1624 | BH37: 1587 | BI37: 1897 | BJ37: 1760 | BK37: 1911 | BL37: 1918 | BM37: 1894 | BN37: 1859 | BO37: 1881 | BP37: 1833 | BQ37: 1723 | BR37: 1739 | BS37: 1734 | BT37: 1638 | BU37: 1689 | BV37: 1586 | BW37: 1546 | BX37: 1473 | BY37: 1367 | BZ37: 1442 | CA37: 1371 | CB37: 1321 | CC37: 1349 | CD37: 1301 | CE37: 1365 | CF37: 1358 | CG37: 1459 | CH37: 1161 | CI37: 1109 | CJ37: 1082 | CK37: 997 | CL37: 800 | CM37: 763 | CN37: 691 | CO37: 652 | CP37: 671 | CQ37: 546 | CR37: 501 | CS37: 451 | CT37: 393 | CU37: 358 | CV37: 240 | CW37: 248 | CX37: 204 | CY37: 578 | CZ37: 1321 | DA37: 1323 | DB37: 1426 | DC37: 1425 | DD37: 1482 | DE37: 1389 | DF37: 1515 | DG37: 1564 | DH37: 1421 | DI37: 1402 | DJ37: 1386 | DK37: 1429 | DL37: 1337 | DM37: 1417 | DN37: 1345 | DO37: 1287 | DP37: 1278 | DQ37: 1224 | DR37: 1216 | DS37: 989 | DT37: 1011 | DU37: 1230 | DV37: 1349 | DW37: 1446 | DX37: 1551 | DY37: 1542 | DZ37: 1654 | EA37: 1614 | EB37: 1679 | EC37: 1661 | ED37: 1541 | EE37: 1804 | EF37: 1698 | EG37: 1598 | EH37: 1663 | EI37: 1650 | EJ37: 1651 | EK37: 1500 | EL37: 1537 | EM37: 1556 | EN37: 1482 | EO37: 1357 | EP37: 1268 | EQ37: 1326 | ER37: 1427 | ES37: 1470 | ET37: 1623 | EU37: 1756 | EV37: 1896 | EW37: 1777 | EX37: 1784 | EY37: 1903 | EZ37: 1857 | FA37: 1860 | FB37: 1850 | FC37: 1819 | FD37: 1858 | FE37: 1746 | FF37: 1716 | FG37: 1648 | FH37: 1670 | FI37: 1609 | FJ37: 1645 | FK37: 1461 | FL37: 1395 | FM37: 1446 | FN37: 1383 | FO37: 1322 | FP37: 1320 | FQ37: 1323 | FR37: 1369 | FS37: 1464 | FT37: 1505 | FU37: 1255 | FV37: 1282 | FW37: 1178 | FX37: 1044 | FY37: 870 | FZ37: 880 | GA37: 829 | GB37: 807 | GC37: 762 | GD37: 711 | GE37: 689 | GF37: 582 | GG37: 523 | GH37: 543 | GI37: 425 | GJ37: 443 | GK37: 392 | GL37: 1404
A38: England – CCGs | B38: Basildon and Brentwood | C38: England – CCGs - Basildon and Brentwood | D38: =I38 -> 97496 | E38: 106744 | F38: =G38+H38 -> 264220 | G38: =SUM(M38:CY38) -> 128320 | H38: =SUM(CZ38:GL38) -> 135900 | I38: =SUM(AE38:CY38) -> 97496 | J38: =SUM(DR38:GL38) -> 106744 | K38: =SUM(M38:AD38) -> 30824 | L38: =SUM(CZ38:DQ38) -> 29156 | M38: 1721 | N38: 1744 | O38: 1800 | P38: 1813 | Q38: 1830 | R38: 1776 | S38: 1826 | T38: 1854 | U38: 1704 | V38: 1707 | W38: 1767 | X38: 1719 | Y38: 1632 | Z38: 1682 | AA38: 1574 | AB38: 1619 | AC38: 1537 | AD38: 1519 | AE38: 1451 | AF38: 1262 | AG38: 1251 | AH38: 1218 | AI38: 1357 | AJ38: 1486 | AK38: 1603 | AL38: 1636 | AM38: 1578 | AN38: 1588 | AO38: 1648 | AP38: 1588 | AQ38: 1733 | AR38: 1759 | AS38: 1645 | AT38: 1752 | AU38: 1682 | AV38: 1648 | AW38: 1545 | AX38: 1576 | AY38: 1651 | AZ38: 1729 | BA38: 1694 | BB38: 1702 | BC38: 1634 | BD38: 1592 | BE38: 1657 | BF38: 1536 | BG38: 1772 | BH38: 1759 | BI38: 1785 | BJ38: 1818 | BK38: 1860 | BL38: 1870 | BM38: 1894 | BN38: 1886 | BO38: 1843 | BP38: 1785 | BQ38: 1789 | BR38: 1702 | BS38: 1678 | BT38: 1586 | BU38: 1545 | BV38: 1445 | BW38: 1398 | BX38: 1325 | BY38: 1296 | BZ38: 1189 | CA38: 1103 | CB38: 1171 | CC38: 1168 | CD38: 1196 | CE38: 1190 | CF38: 1283 | CG38: 1483 | CH38: 1105 | CI38: 1000 | CJ38: 964 | CK38: 870 | CL38: 753 | CM38: 637 | CN38: 668 | CO38: 602 | CP38: 669 | CQ38: 604 | CR38: 566 | CS38: 500 | CT38: 440 | CU38: 360 | CV38: 353 | CW38: 335 | CX38: 249 | CY38: 801 | CZ38: 1673 | DA38: 1606 | DB38: 1688 | DC38: 1748 | DD38: 1630 | DE38: 1705 | DF38: 1754 | DG38: 1723 | DH38: 1639 | DI38: 1565 | DJ38: 1621 | DK38: 1658 | DL38: 1576 | DM38: 1571 | DN38: 1525 | DO38: 1525 | DP38: 1443 | DQ38: 1506 | DR38: 1393 | DS38: 1034 | DT38: 1120 | DU38: 1293 | DV38: 1320 | DW38: 1565 | DX38: 1390 | DY38: 1657 | DZ38: 1631 | EA38: 1714 | EB38: 1730 | EC38: 1818 | ED38: 1841 | EE38: 1938 | EF38: 1799 | EG38: 1850 | EH38: 1860 | EI38: 1804 | EJ38: 1877 | EK38: 1849 | EL38: 1865 | EM38: 1917 | EN38: 1743 | EO38: 1670 | EP38: 1700 | EQ38: 1733 | ER38: 1766 | ES38: 1708 | ET38: 1828 | EU38: 1797 | EV38: 1941 | EW38: 1887 | EX38: 1893 | EY38: 1927 | EZ38: 1981 | FA38: 1979 | FB38: 1959 | FC38: 1895 | FD38: 1855 | FE38: 1815 | FF38: 1813 | FG38: 1628 | FH38: 1514 | FI38: 1554 | FJ38: 1516 | FK38: 1381 | FL38: 1330 | FM38: 1374 | FN38: 1270 | FO38: 1278 | FP38: 1293 | FQ38: 1254 | FR38: 1318 | FS38: 1470 | FT38: 1672 | FU38: 1231 | FV38: 1164 | FW38: 1112 | FX38: 1103 | FY38: 914 | FZ38: 782 | GA38: 879 | GB38: 890 | GC38: 855 | GD38: 853 | GE38: 750 | GF38: 697 | GG38: 681 | GH38: 613 | GI38: 534 | GJ38: 489 | GK38: 443 | GL38: 1747
A39: England – CCGs | B39: Bassetlaw | C39: England – CCGs - Bassetlaw | D39: 46275 | E39: 47684 | F39: 117459 | G39: 58144 | H39: 59315 | I39: 46275 | J39: 47684 | K39: 11869 | L39: 11631 | M39: 544 | N39: 583 | O39: 701 | P39: 687 | Q39: 667 | R39: 699 | S39: 708 | T39: 702 | U39: 743 | V39: 653 | W39: 659 | X39: 673 | Y39: 646 | Z39: 681 | AA39: 678 | AB39: 671 | AC39: 614 | AD39: 560 | AE39: 632 | AF39: 578 | AG39: 556 | AH39: 585 | AI39: 614 | AJ39: 624 | AK39: 741 | AL39: 699 | AM39: 664 | AN39: 728 | AO39: 710 | AP39: 634 | AQ39: 615 | AR39: 619 | AS39: 583 | AT39: 693 | AU39: 614 | AV39: 606 | AW39: 653 | AX39: 666 | AY39: 652 | AZ39: 681 | BA39: 606 | BB39: 642 | BC39: 611 | BD39: 640 | BE39: 712 | BF39: 724 | BG39: 744 | BH39: 743 | BI39: 878 | BJ39: 843 | BK39: 828 | BL39: 919 | BM39: 901 | BN39: 919 | BO39: 936 | BP39: 956 | BQ39: 907 | BR39: 886 | BS39: 885 | BT39: 809 | BU39: 790 | BV39: 805 | BW39: 775 | BX39: 722 | BY39: 764 | BZ39: 730 | CA39: 713 | CB39: 679 | CC39: 686 | CD39: 662 | CE39: 735 | CF39: 799 | CG39: 804 | CH39: 614 | CI39: 632 | CJ39: 604 | CK39: 537 | CL39: 461 | CM39: 413 | CN39: 395 | CO39: 361 | CP39: 345 | CQ39: 323 | CR39: 248 | CS39: 258 | CT39: 224 | CU39: 151 | CV39: 191 | CW39: 139 | CX39: 109 | CY39: 370 | CZ39: 581 | DA39: 573 | DB39: 653 | DC39: 651 | DD39: 666 | DE39: 637 | DF39: 642 | DG39: 748 | DH39: 709 | DI39: 691 | DJ39: 663 | DK39: 662 | DL39: 658 | DM39: 631 | DN39: 582 | DO39: 629 | DP39: 639 | DQ39: 616 | DR39: 554 | DS39: 466 | DT39: 464 | DU39: 508 | DV39: 562 | DW39: 611 | DX39: 652 | DY39: 638 | DZ39: 599 | EA39: 642 | EB39: 649 | EC39: 625 | ED39: 663 | EE39: 624 | EF39: 659 | EG39: 628 | EH39: 675 | EI39: 668 | EJ39: 661 | EK39: 642 | EL39: 684 | EM39: 682 | EN39: 635 | EO39: 620 | EP39: 663 | EQ39: 663 | ER39: 674 | ES39: 715 | ET39: 812 | EU39: 852 | EV39: 917 | EW39: 838 | EX39: 902 | EY39: 911 | EZ39: 933 | FA39: 944 | FB39: 948 | FC39: 953 | FD39: 881 | FE39: 891 | FF39: 855 | FG39: 854 | FH39: 865 | FI39: 779 | FJ39: 787 | FK39: 686 | FL39: 698 | FM39: 747 | FN39: 734 | FO39: 681 | FP39: 683 | FQ39: 778 | FR39: 757 | FS39: 838 | FT39: 837 | FU39: 669 | FV39: 620 | FW39: 620 | FX39: 593 | FY39: 496 | FZ39: 464 | GA39: 449 | GB39: 456 | GC39: 402 | GD39: 381 | GE39: 348 | GF39: 328 | GG39: 310 | GH39: 250 | GI39: 246 | GJ39: 236 | GK39: 197 | GL39: 732
A40: England – CCGs | B40: Bath and North East Somerset, Swindon and Wiltshire | C40: England – CCGs - Bath and North East Somerset, Swindon and Wiltshire | D40: 357270 | E40: 370410 | F40: 921917 | G40: 456797 | H40: 465120 | I40: 357270 | J40: 370410 | K40: 99527 | L40: 94710 | M40: 4712 | N40: 5082 | O40: 5153 | P40: 5596 | Q40: 5589 | R40: 5661 | S40: 5791 | T40: 6168 | U40: 6023 | V40: 5936 | W40: 5796 | X40: 5778 | Y40: 5648 | Z40: 5621 | AA40: 5318 | AB40: 5268 | AC40: 5300 | AD40: 5087 | AE40: 5332 | AF40: 5801 | AG40: 5819 | AH40: 5442 | AI40: 5972 | AJ40: 5744 | AK40: 5328 | AL40: 5599 | AM40: 5446 | AN40: 5707 | AO40: 5809 | AP40: 5552 | AQ40: 5897 | AR40: 5707 | AS40: 5364 | AT40: 5526 | AU40: 5616 | AV40: 5380 | AW40: 5716 | AX40: 5416 | AY40: 5384 | AZ40: 5761 | BA40: 5694 | BB40: 5253 | BC40: 5067 | BD40: 5233 | BE40: 5579 | BF40: 5783 | BG40: 6448 | BH40: 6511 | BI40: 6543 | BJ40: 6525 | BK40: 6642 | BL40: 6632 | BM40: 6874 | BN40: 6657 | BO40: 6789 | BP40: 6705 | BQ40: 6548 | BR40: 6431 | BS40: 6137 | BT40: 6004 | BU40: 5745 | BV40: 5426 | BW40: 5259 | BX40: 4956 | BY40: 4827 | BZ40: 4936 | CA40: 4799 | CB40: 4638 | CC40: 4560 | CD40: 4645 | CE40: 4725 | CF40: 5079 | CG40: 5465 | CH40: 4208 | CI40: 4079 | CJ40: 3841 | CK40: 3490 | CL40: 3150 | CM40: 2705 | CN40: 2695 | CO40: 2625 | CP40: 2409 | CQ40: 2228 | CR40: 2094 | CS40: 1858 | CT40: 1635 | CU40: 1465 | CV40: 1241 | CW40: 1180 | CX40: 939 | CY40: 2995 | CZ40: 4462 | DA40: 4795 | DB40: 4983 | DC40: 5189 | DD40: 5157 | DE40: 5420 | DF40: 5557 | DG40: 5597 | DH40: 5715 | DI40: 5653 | DJ40: 5576 | DK40: 5697 | DL40: 5541 | DM40: 5324 | DN40: 5060 | DO40: 5163 | DP40: 4948 | DQ40: 4873 | DR40: 5202 | DS40: 5250 | DT40: 5277 | DU40: 4853 | DV40: 5457 | DW40: 4910 | DX40: 4998 | DY40: 5347 | DZ40: 5161 | EA40: 5219 | EB40: 5306 | EC40: 5054 | ED40: 5434 | EE40: 5552 | EF40: 5664 | EG40: 5306 | EH40: 5495 | EI40: 5691 | EJ40: 5662 | EK40: 5719 | EL40: 5750 | EM40: 5907 | EN40: 5444 | EO40: 5235 | EP40: 5291 | EQ40: 5679 | ER40: 5700 | ES40: 6134 | ET40: 6405 | EU40: 6874 | EV40: 6687 | EW40: 6664 | EX40: 6708 | EY40: 6619 | EZ40: 6987 | FA40: 6942 | FB40: 6789 | FC40: 6871 | FD40: 6611 | FE40: 6495 | FF40: 6265 | FG40: 5921 | FH40: 5821 | FI40: 5619 | FJ40: 5402 | FK40: 5248 | FL40: 5129 | FM40: 5134 | FN40: 5166 | FO40: 4920 | FP40: 4906 | FQ40: 5036 | FR40: 5140 | FS40: 5522 | FT40: 5743 | FU40: 4480 | FV40: 4561 | FW40: 4429 | FX40: 3992 | FY40: 3581 | FZ40: 3146 | GA40: 3243 | GB40: 3113 | GC40: 2980 | GD40: 2756 | GE40: 2580 | GF40: 2454 | GG40: 2127 | GH40: 2045 | GI40: 1886 | GJ40: 1807 | GK40: 1541 | GL40: 6368
A41: England – CCGs | B41: Bedfordshire | C41: England – CCGs - Bedfordshire | D41: 174141 | E41: 183445 | F41: 461940 | G41: 227724 | H41: 234216 | I41: 174141 | J41: 183445 | K41: 53583 | L41: 50771 | M41: 2901 | N41: 2980 | O41: 3057 | P41: 3179 | Q41: 3082 | R41: 3135 | S41: 3191 | T41: 3205 | U41: 3182 | V41: 2996 | W41: 3001 | X41: 3079 | Y41: 2913 | Z41: 2919 | AA41: 2664 | AB41: 2739 | AC41: 2728 | AD41: 2632 | AE41: 2586 | AF41: 2099 | AG41: 1994 | AH41: 2166 | AI41: 2375 | AJ41: 2568 | AK41: 2477 | AL41: 2644 | AM41: 2531 | AN41: 2645 | AO41: 2734 | AP41: 2730 | AQ41: 2903 | AR41: 3004 | AS41: 2933 | AT41: 3062 | AU41: 3081 | AV41: 2844 | AW41: 3014 | AX41: 3122 | AY41: 3077 | AZ41: 3214 | BA41: 3104 | BB41: 2793 | BC41: 2946 | BD41: 3022 | BE41: 2875 | BF41: 3099 | BG41: 3074 | BH41: 3312 | BI41: 3238 | BJ41: 3167 | BK41: 3314 | BL41: 3386 | BM41: 3398 | BN41: 3417 | BO41: 3369 | BP41: 3335 | BQ41: 3205 | BR41: 3162 | BS41: 3040 | BT41: 2786 | BU41: 2803 | BV41: 2700 | BW41: 2677 | BX41: 2448 | BY41: 2341 | BZ41: 2280 | CA41: 2203 | CB41: 2070 | CC41: 2116 | CD41: 2220 | CE41: 2191 | CF41: 2447 | CG41: 2596 | CH41: 1921 | CI41: 1700 | CJ41: 1905 | CK41: 1636 | CL41: 1335 | CM41: 1231 | CN41: 1144 | CO41: 1157 | CP41: 1164 | CQ41: 1037 | CR41: 948 | CS41: 844 | CT41: 725 | CU41: 610 | CV41: 582 | CW41: 521 | CX41: 409 | CY41: 1335 | CZ41: 2625 | DA41: 2784 | DB41: 2885 | DC41: 2917 | DD41: 3021 | DE41: 2992 | DF41: 3048 | DG41: 3046 | DH41: 2982 | DI41: 2991 | DJ41: 2949 | DK41: 2868 | DL41: 2701 | DM41: 2766 | DN41: 2648 | DO41: 2564 | DP41: 2535 | DQ41: 2449 | DR41: 2485 | DS41: 1760 | DT41: 1709 | DU41: 1837 | DV41: 2107 | DW41: 2460 | DX41: 2295 | DY41: 2462 | DZ41: 2535 | EA41: 2647 | EB41: 2754 | EC41: 3101 | ED41: 3021 | EE41: 3407 | EF41: 3267 | EG41: 3339 | EH41: 3319 | EI41: 3316 | EJ41: 3245 | EK41: 3363 | EL41: 3503 | EM41: 3451 | EN41: 3399 | EO41: 3111 | EP41: 2999 | EQ41: 2927 | ER41: 3190 | ES41: 3025 | ET41: 3267 | EU41: 3256 | EV41: 3345 | EW41: 3239 | EX41: 3425 | EY41: 3311 | EZ41: 3393 | FA41: 3516 | FB41: 3401 | FC41: 3344 | FD41: 3309 | FE41: 3224 | FF41: 3030 | FG41: 2902 | FH41: 2861 | FI41: 2737 | FJ41: 2556 | FK41: 2468 | FL41: 2456 | FM41: 2459 | FN41: 2345 | FO41: 2319 | FP41: 2332 | FQ41: 2356 | FR41: 2463 | FS41: 2500 | FT41: 2677 | FU41: 2009 | FV41: 2035 | FW41: 1968 | FX41: 1857 | FY41: 1522 | FZ41: 1304 | GA41: 1412 | GB41: 1338 | GC41: 1260 | GD41: 1209 | GE41: 1215 | GF41: 1197 | GG41: 977 | GH41: 853 | GI41: 781 | GJ41: 748 | GK41: 686 | GL41: 2549
A42: England – CCGs | B42: Berkshire West | C42: England – CCGs - Berkshire West | D42: 186734 | E42: 191594 | F42: 491349 | G42: 244616 | H42: 246733 | I42: 186734 | J42: 191594 | K42: 57882 | L42: 55139 | M42: 2858 | N42: 2944 | O42: 3115 | P42: 3334 | Q42: 3205 | R42: 3151 | S42: 3544 | T42: 3555 | U42: 3485 | V42: 3541 | W42: 3494 | X42: 3563 | Y42: 3249 | Z42: 3135 | AA42: 3060 | AB42: 2979 | AC42: 2893 | AD42: 2777 | AE42: 3023 | AF42: 2912 | AG42: 2838 | AH42: 2783 | AI42: 2834 | AJ42: 2935 | AK42: 3051 | AL42: 2997 | AM42: 3069 | AN42: 3179 | AO42: 2994 | AP42: 3138 | AQ42: 2906 | AR42: 3047 | AS42: 3043 | AT42: 3103 | AU42: 3215 | AV42: 3124 | AW42: 3310 | AX42: 3357 | AY42: 3429 | AZ42: 3568 | BA42: 3511 | BB42: 3399 | BC42: 3430 | BD42: 3299 | BE42: 3447 | BF42: 3365 | BG42: 3498 | BH42: 3725 | BI42: 3661 | BJ42: 3571 | BK42: 3693 | BL42: 3360 | BM42: 3558 | BN42: 3566 | BO42: 3493 | BP42: 3448 | BQ42: 3367 | BR42: 3197 | BS42: 3029 | BT42: 3052 | BU42: 2797 | BV42: 2830 | BW42: 2604 | BX42: 2550 | BY42: 2222 | BZ42: 2288 | CA42: 2189 | CB42: 2106 | CC42: 2071 | CD42: 1923 | CE42: 2063 | CF42: 2301 | CG42: 2462 | CH42: 1727 | CI42: 1737 | CJ42: 1740 | CK42: 1564 | CL42: 1393 | CM42: 1175 | CN42: 1304 | CO42: 1083 | CP42: 1099 | CQ42: 1069 | CR42: 891 | CS42: 820 | CT42: 702 | CU42: 585 | CV42: 610 | CW42: 492 | CX42: 421 | CY42: 1392 | CZ42: 2587 | DA42: 2811 | DB42: 2982 | DC42: 3106 | DD42: 3049 | DE42: 3214 | DF42: 3308 | DG42: 3275 | DH42: 3400 | DI42: 3267 | DJ42: 3161 | DK42: 3272 | DL42: 3254 | DM42: 3005 | DN42: 2837 | DO42: 2943 | DP42: 2919 | DQ42: 2749 | DR42: 2727 | DS42: 2830 | DT42: 2843 | DU42: 2790 | DV42: 2689 | DW42: 2906 | DX42: 2815 | DY42: 2836 | DZ42: 2768 | EA42: 2834 | EB42: 3011 | EC42: 3086 | ED42: 2898 | EE42: 3041 | EF42: 3155 | EG42: 3132 | EH42: 3287 | EI42: 3368 | EJ42: 3331 | EK42: 3420 | EL42: 3621 | EM42: 3792 | EN42: 3493 | EO42: 3496 | EP42: 3479 | EQ42: 3312 | ER42: 3434 | ES42: 3430 | ET42: 3449 | EU42: 3563 | EV42: 3627 | EW42: 3367 | EX42: 3535 | EY42: 3539 | EZ42: 3575 | FA42: 3383 | FB42: 3483 | FC42: 3386 | FD42: 3322 | FE42: 3099 | FF42: 3060 | FG42: 2756 | FH42: 2718 | FI42: 2719 | FJ42: 2602 | FK42: 2381 | FL42: 2428 | FM42: 2281 | FN42: 2135 | FO42: 2231 | FP42: 2234 | FQ42: 2304 | FR42: 2352 | FS42: 2439 | FT42: 2645 | FU42: 2013 | FV42: 1980 | FW42: 1998 | FX42: 1788 | FY42: 1591 | FZ42: 1439 | GA42: 1334 | GB42: 1434 | GC42: 1363 | GD42: 1151 | GE42: 1157 | GF42: 1091 | GG42: 981 | GH42: 901 | GI42: 825 | GJ42: 740 | GK42: 661 | GL42: 2710
A43: England – CCGs | B43: Birmingham and Solihull | C43: England – CCGs - Birmingham and Solihull | D43: 430801 | E43: 461391 | F43: 1180567 | G43: 579477 | H43: 601090 | I43: 430801 | J43: 461391 | K43: 148676 | L43: 139699 | M43: 7979 | N43: 8016 | O43: 8479 | P43: 8521 | Q43: 8497 | R43: 8779 | S43: 8710 | T43: 8958 | U43: 8507 | V43: 8220 | W43: 8410 | X43: 8479 | Y43: 8406 | Z43: 8040 | AA43: 7909 | AB43: 7777 | AC43: 7655 | AD43: 7334 | AE43: 7694 | AF43: 9444 | AG43: 10001 | AH43: 9937 | AI43: 9924 | AJ43: 9618 | AK43: 9323 | AL43: 9619 | AM43: 9259 | AN43: 9340 | AO43: 9432 | AP43: 8787 | AQ43: 8214 | AR43: 8083 | AS43: 7721 | AT43: 7736 | AU43: 7817 | AV43: 7320 | AW43: 7452 | AX43: 7190 | AY43: 7359 | AZ43: 7365 | BA43: 7000 | BB43: 6503 | BC43: 6511 | BD43: 6539 | BE43: 6525 | BF43: 6665 | BG43: 6864 | BH43: 7076 | BI43: 7045 | BJ43: 7050 | BK43: 7189 | BL43: 7084 | BM43: 6869 | BN43: 7002 | BO43: 6974 | BP43: 6710 | BQ43: 6796 | BR43: 6631 | BS43: 6150 | BT43: 5849 | BU43: 5644 | BV43: 5684 | BW43: 5321 | BX43: 5050 | BY43: 5033 | BZ43: 4972 | CA43: 4819 | CB43: 4615 | CC43: 4460 | CD43: 4415 | CE43: 4317 | CF43: 4458 | CG43: 4824 | CH43: 3716 | CI43: 3704 | CJ43: 3709 | CK43: 3357 | CL43: 2947 | CM43: 2544 | CN43: 2630 | CO43: 2667 | CP43: 2403 | CQ43: 2211 | CR43: 2058 | CS43: 1886 | CT43: 1573 | CU43: 1580 | CV43: 1308 | CW43: 1130 | CX43: 939 | CY43: 3160 | CZ43: 7409 | DA43: 7819 | DB43: 7991 | DC43: 8196 | DD43: 8132 | DE43: 8119 | DF43: 8313 | DG43: 8326 | DH43: 8065 | DI43: 7755 | DJ43: 7916 | DK43: 7889 | DL43: 7511 | DM43: 7800 | DN43: 7487 | DO43: 7224 | DP43: 6903 | DQ43: 6844 | DR43: 7560 | DS43: 10214 | DT43: 10847 | DU43: 10431 | DV43: 9587 | DW43: 9770 | DX43: 9491 | DY43: 9401 | DZ43: 9189 | EA43: 9283 | EB43: 9369 | EC43: 8513 | ED43: 8267 | EE43: 8236 | EF43: 8382 | EG43: 8007 | EH43: 7676 | EI43: 7632 | EJ43: 7821 | EK43: 7726 | EL43: 7853 | EM43: 8063 | EN43: 7406 | EO43: 6961 | EP43: 6849 | EQ43: 6960 | ER43: 6737 | ES43: 6704 | ET43: 7004 | EU43: 7389 | EV43: 7633 | EW43: 7539 | EX43: 7584 | EY43: 7472 | EZ43: 7356 | FA43: 7395 | FB43: 7343 | FC43: 7193 | FD43: 6886 | FE43: 7117 | FF43: 6498 | FG43: 6303 | FH43: 6072 | FI43: 5729 | FJ43: 5626 | FK43: 5136 | FL43: 5055 | FM43: 5063 | FN43: 5044 | FO43: 4826 | FP43: 4653 | FQ43: 4849 | FR43: 4911 | FS43: 5036 | FT43: 5302 | FU43: 4236 | FV43: 4239 | FW43: 4253 | FX43: 4025 | FY43: 3630 | FZ43: 3114 | GA43: 3185 | GB43: 3200 | GC43: 3177 | GD43: 3081 | GE43: 2862 | GF43: 2663 | GG43: 2264 | GH43: 2163 | GI43: 2096 | GJ43: 1857 | GK43: 1672 | GL43: 6725
A44: England – CCGs | B44: Blackburn with Darwen | C44: England – CCGs - Blackburn with Darwen | D44: 55405 | E44: 55549 | F44: 149696 | G44: 75080 | H44: 74616 | I44: 55405 | J44: 55549 | K44: 19675 | L44: 19067 | M44: 1028 | N44: 1007 | O44: 1063 | P44: 1107 | Q44: 1114 | R44: 1098 | S44: 1149 | T44: 1198 | U44: 1116 | V44: 1144 | W44: 1116 | X44: 1148 | Y44: 1075 | Z44: 1059 | AA44: 1095 | AB44: 1045 | AC44: 1072 | AD44: 1041 | AE44: 977 | AF44: 971 | AG44: 937 | AH44: 897 | AI44: 1004 | AJ44: 1040 | AK44: 1104 | AL44: 1034 | AM44: 977 | AN44: 1085 | AO44: 998 | AP44: 1009 | AQ44: 976 | AR44: 941 | AS44: 998 | AT44: 1028 | AU44: 1002 | AV44: 994 | AW44: 1096 | AX44: 1150 | AY44: 1032 | AZ44: 990 | BA44: 943 | BB44: 958 | BC44: 959 | BD44: 848 | BE44: 921 | BF44: 1026 | BG44: 928 | BH44: 1003 | BI44: 984 | BJ44: 1037 | BK44: 1051 | BL44: 1068 | BM44: 994 | BN44: 947 | BO44: 937 | BP44: 930 | BQ44: 904 | BR44: 922 | BS44: 899 | BT44: 890 | BU44: 858 | BV44: 731 | BW44: 776 | BX44: 752 | BY44: 695 | BZ44: 635 | CA44: 726 | CB44: 618 | CC44: 629 | CD44: 646 | CE44: 611 | CF44: 670 | CG44: 741 | CH44: 497 | CI44: 447 | CJ44: 438 | CK44: 380 | CL44: 370 | CM44: 315 | CN44: 327 | CO44: 328 | CP44: 298 | CQ44: 245 | CR44: 238 | CS44: 195 | CT44: 146 | CU44: 159 | CV44: 114 | CW44: 108 | CX44: 72 | CY44: 251 | CZ44: 1001 | DA44: 1034 | DB44: 1042 | DC44: 1101 | DD44: 1078 | DE44: 1047 | DF44: 1046 | DG44: 1144 | DH44: 1029 | DI44: 1067 | DJ44: 1158 | DK44: 1121 | DL44: 1100 | DM44: 1060 | DN44: 1027 | DO44: 970 | DP44: 1023 | DQ44: 1019 | DR44: 938 | DS44: 794 | DT44: 779 | DU44: 799 | DV44: 921 | DW44: 945 | DX44: 922 | DY44: 927 | DZ44: 878 | EA44: 952 | EB44: 947 | EC44: 938 | ED44: 965 | EE44: 1105 | EF44: 1029 | EG44: 1108 | EH44: 1070 | EI44: 1081 | EJ44: 1072 | EK44: 1095 | EL44: 1042 | EM44: 1033 | EN44: 981 | EO44: 836 | EP44: 827 | EQ44: 872 | ER44: 915 | ES44: 943 | ET44: 974 | EU44: 1029 | EV44: 1011 | EW44: 978 | EX44: 1005 | EY44: 1039 | EZ44: 963 | FA44: 982 | FB44: 952 | FC44: 923 | FD44: 971 | FE44: 898 | FF44: 871 | FG44: 852 | FH44: 762 | FI44: 782 | FJ44: 778 | FK44: 713 | FL44: 782 | FM44: 672 | FN44: 683 | FO44: 675 | FP44: 597 | FQ44: 662 | FR44: 681 | FS44: 652 | FT44: 722 | FU44: 526 | FV44: 467 | FW44: 476 | FX44: 476 | FY44: 411 | FZ44: 331 | GA44: 371 | GB44: 392 | GC44: 362 | GD44: 321 | GE44: 307 | GF44: 237 | GG44: 251 | GH44: 231 | GI44: 207 | GJ44: 178 | GK44: 147 | GL44: 535
A45: England – CCGs | B45: Blackpool | C45: England – CCGs - Blackpool | D45: 54195 | E45: 56036 | F45: 139446 | G45: 69128 | H45: 70318 | I45: 54195 | J45: 56036 | K45: 14933 | L45: 14282 | M45: 816 | N45: 816 | O45: 866 | P45: 838 | Q45: 870 | R45: 867 | S45: 925 | T45: 891 | U45: 768 | V45: 858 | W45: 852 | X45: 863 | Y45: 795 | Z45: 765 | AA45: 824 | AB45: 775 | AC45: 782 | AD45: 762 | AE45: 752 | AF45: 707 | AG45: 661 | AH45: 762 | AI45: 855 | AJ45: 875 | AK45: 807 | AL45: 874 | AM45: 835 | AN45: 868 | AO45: 896 | AP45: 895 | AQ45: 941 | AR45: 815 | AS45: 831 | AT45: 884 | AU45: 836 | AV45: 785 | AW45: 791 | AX45: 666 | AY45: 759 | AZ45: 796 | BA45: 767 | BB45: 669 | BC45: 700 | BD45: 727 | BE45: 693 | BF45: 774 | BG45: 927 | BH45: 939 | BI45: 983 | BJ45: 985 | BK45: 1022 | BL45: 1065 | BM45: 1043 | BN45: 1099 | BO45: 1109 | BP45: 1158 | BQ45: 1049 | BR45: 1104 | BS45: 950 | BT45: 952 | BU45: 970 | BV45: 929 | BW45: 891 | BX45: 881 | BY45: 781 | BZ45: 727 | CA45: 751 | CB45: 718 | CC45: 784 | CD45: 720 | CE45: 796 | CF45: 787 | CG45: 874 | CH45: 726 | CI45: 637 | CJ45: 594 | CK45: 589 | CL45: 478 | CM45: 459 | CN45: 432 | CO45: 428 | CP45: 407 | CQ45: 323 | CR45: 323 | CS45: 269 | CT45: 200 | CU45: 237 | CV45: 183 | CW45: 158 | CX45: 119 | CY45: 418 | CZ45: 781 | DA45: 785 | DB45: 837 | DC45: 812 | DD45: 841 | DE45: 829 | DF45: 843 | DG45: 892 | DH45: 827 | DI45: 759 | DJ45: 777 | DK45: 773 | DL45: 767 | DM45: 744 | DN45: 826 | DO45: 749 | DP45: 698 | DQ45: 742 | DR45: 699 | DS45: 690 | DT45: 690 | DU45: 754 | DV45: 786 | DW45: 865 | DX45: 790 | DY45: 882 | DZ45: 823 | EA45: 1007 | EB45: 909 | EC45: 807 | ED45: 770 | EE45: 865 | EF45: 861 | EG45: 797 | EH45: 789 | EI45: 814 | EJ45: 786 | EK45: 775 | EL45: 732 | EM45: 772 | EN45: 765 | EO45: 723 | EP45: 676 | EQ45: 748 | ER45: 747 | ES45: 812 | ET45: 894 | EU45: 948 | EV45: 1018 | EW45: 964 | EX45: 1089 | EY45: 1051 | EZ45: 1048 | FA45: 1104 | FB45: 1052 | FC45: 1060 | FD45: 1071 | FE45: 1025 | FF45: 969 | FG45: 922 | FH45: 931 | FI45: 891 | FJ45: 828 | FK45: 876 | FL45: 803 | FM45: 734 | FN45: 714 | FO45: 736 | FP45: 751 | FQ45: 763 | FR45: 852 | FS45: 847 | FT45: 921 | FU45: 716 | FV45: 701 | FW45: 647 | FX45: 645 | FY45: 561 | FZ45: 568 | GA45: 538 | GB45: 520 | GC45: 460 | GD45: 504 | GE45: 442 | GF45: 387 | GG45: 364 | GH45: 286 | GI45: 313 | GJ45: 230 | GK45: 224 | GL45: 934
A46: England – CCGs | B46: Bolton | C46: England – CCGs - Bolton | D46: 107722 | E46: 111443 | F46: 287550 | G46: 142817 | H46: 144733 | I46: 107722 | J46: 111443 | K46: 35095 | L46: 33290 | M46: 1883 | N46: 1842 | O46: 1987 | P46: 1963 | Q46: 2053 | R46: 2062 | S46: 2015 | T46: 2127 | U46: 1985 | V46: 2049 | W46: 1971 | X46: 2020 | Y46: 2002 | Z46: 2007 | AA46: 1741 | AB46: 1894 | AC46: 1732 | AD46: 1762 | AE46: 1763 | AF46: 1677 | AG46: 1646 | AH46: 1763 | AI46: 1776 | AJ46: 1807 | AK46: 1749 | AL46: 1878 | AM46: 1868 | AN46: 1886 | AO46: 1957 | AP46: 1939 | AQ46: 1829 | AR46: 1997 | AS46: 1863 | AT46: 1939 | AU46: 1997 | AV46: 1881 | AW46: 1799 | AX46: 1819 | AY46: 1765 | AZ46: 1828 | BA46: 1687 | BB46: 1653 | BC46: 1622 | BD46: 1723 | BE46: 1701 | BF46: 1766 | BG46: 1823 | BH46: 1902 | BI46: 2039 | BJ46: 1996 | BK46: 2042 | BL46: 1924 | BM46: 2009 | BN46: 2055 | BO46: 1927 | BP46: 1846 | BQ46: 1852 | BR46: 1805 | BS46: 1753 | BT46: 1679 | BU46: 1549 | BV46: 1606 | BW46: 1467 | BX46: 1380 | BY46: 1383 | BZ46: 1389 | CA46: 1397 | CB46: 1325 | CC46: 1285 | CD46: 1420 | CE46: 1398 | CF46: 1473 | CG46: 1524 | CH46: 1146 | CI46: 1094 | CJ46: 1112 | CK46: 1026 | CL46: 813 | CM46: 825 | CN46: 709 | CO46: 762 | CP46: 709 | CQ46: 580 | CR46: 487 | CS46: 452 | CT46: 372 | CU46: 352 | CV46: 287 | CW46: 243 | CX46: 219 | CY46: 708 | CZ46: 1757 | DA46: 1839 | DB46: 1924 | DC46: 1995 | DD46: 1919 | DE46: 1891 | DF46: 1955 | DG46: 2060 | DH46: 2036 | DI46: 2010 | DJ46: 1868 | DK46: 1839 | DL46: 1820 | DM46: 1770 | DN46: 1747 | DO46: 1656 | DP46: 1593 | DQ46: 1611 | DR46: 1569 | DS46: 1331 | DT46: 1447 | DU46: 1407 | DV46: 1605 | DW46: 1595 | DX46: 1789 | DY46: 1666 | DZ46: 1733 | EA46: 1856 | EB46: 1895 | EC46: 1896 | ED46: 1935 | EE46: 2125 | EF46: 2070 | EG46: 1944 | EH46: 1950 | EI46: 1959 | EJ46: 1830 | EK46: 1890 | EL46: 1811 | EM46: 1874 | EN46: 1690 | EO46: 1705 | EP46: 1599 | EQ46: 1732 | ER46: 1741 | ES46: 1787 | ET46: 1894 | EU46: 2003 | EV46: 2097 | EW46: 2015 | EX46: 2012 | EY46: 2022 | EZ46: 2031 | FA46: 2009 | FB46: 2028 | FC46: 2050 | FD46: 1836 | FE46: 1915 | FF46: 1783 | FG46: 1734 | FH46: 1731 | FI46: 1588 | FJ46: 1636 | FK46: 1464 | FL46: 1449 | FM46: 1441 | FN46: 1411 | FO46: 1373 | FP46: 1373 | FQ46: 1427 | FR46: 1480 | FS46: 1592 | FT46: 1728 | FU46: 1259 | FV46: 1168 | FW46: 1203 | FX46: 1117 | FY46: 994 | FZ46: 928 | GA46: 896 | GB46: 910 | GC46: 777 | GD46: 729 | GE46: 685 | GF46: 622 | GG46: 510 | GH46: 501 | GI46: 462 | GJ46: 412 | GK46: 377 | GL46: 1340
A47: England – CCGs | B47: Bradford District and Craven | C47: England – CCGs - Bradford District and Craven | D47: 214166 | E47: 225004 | F47: 590901 | G47: 291075 | H47: 299826 | I47: 214166 | J47: 225004 | K47: 76909 | L47: 74822 | M47: 3938 | N47: 3890 | O47: 4185 | P47: 4325 | Q47: 4304 | R47: 4389 | S47: 4336 | T47: 4603 | U47: 4404 | V47: 4595 | W47: 4436 | X47: 4600 | Y47: 4228 | Z47: 4326 | AA47: 4145 | AB47: 4062 | AC47: 4119 | AD47: 4024 | AE47: 3890 | AF47: 3541 | AG47: 3573 | AH47: 3571 | AI47: 3505 | AJ47: 3674 | AK47: 3538 | AL47: 3596 | AM47: 3499 | AN47: 3624 | AO47: 3698 | AP47: 3838 | AQ47: 3707 | AR47: 3685 | AS47: 3583 | AT47: 3763 | AU47: 3917 | AV47: 3889 | AW47: 3894 | AX47: 3741 | AY47: 4034 | AZ47: 4179 | BA47: 4015 | BB47: 3625 | BC47: 3540 | BD47: 3599 | BE47: 3862 | BF47: 3718 | BG47: 3749 | BH47: 4060 | BI47: 3953 | BJ47: 3816 | BK47: 3722 | BL47: 3756 | BM47: 3859 | BN47: 3543 | BO47: 3636 | BP47: 3591 | BQ47: 3469 | BR47: 3577 | BS47: 3330 | BT47: 3352 | BU47: 3179 | BV47: 3156 | BW47: 3153 | BX47: 3054 | BY47: 2929 | BZ47: 2933 | CA47: 2849 | CB47: 2699 | CC47: 2549 | CD47: 2514 | CE47: 2539 | CF47: 2643 | CG47: 2823 | CH47: 1942 | CI47: 1769 | CJ47: 1848 | CK47: 1649 | CL47: 1422 | CM47: 1328 | CN47: 1399 | CO47: 1280 | CP47: 1230 | CQ47: 1168 | CR47: 997 | CS47: 938 | CT47: 827 | CU47: 653 | CV47: 609 | CW47: 537 | CX47: 406 | CY47: 1433 | CZ47: 3932 | DA47: 3946 | DB47: 4096 | DC47: 4266 | DD47: 4290 | DE47: 4309 | DF47: 4365 | DG47: 4395 | DH47: 4257 | DI47: 4224 | DJ47: 4283 | DK47: 4249 | DL47: 4297 | DM47: 4362 | DN47: 4033 | DO47: 3870 | DP47: 3884 | DQ47: 3764 | DR47: 3767 | DS47: 3303 | DT47: 3236 | DU47: 3154 | DV47: 3418 | DW47: 3540 | DX47: 3355 | DY47: 3325 | DZ47: 3458 | EA47: 3547 | EB47: 3616 | EC47: 3577 | ED47: 3984 | EE47: 4081 | EF47: 4182 | EG47: 3917 | EH47: 4094 | EI47: 4178 | EJ47: 4096 | EK47: 4156 | EL47: 4167 | EM47: 3974 | EN47: 3793 | EO47: 3513 | EP47: 3487 | EQ47: 3450 | ER47: 3464 | ES47: 3662 | ET47: 3759 | EU47: 3925 | EV47: 4096 | EW47: 4003 | EX47: 3871 | EY47: 3788 | EZ47: 3834 | FA47: 3826 | FB47: 3844 | FC47: 3873 | FD47: 3753 | FE47: 3663 | FF47: 3685 | FG47: 3652 | FH47: 3389 | FI47: 3502 | FJ47: 3224 | FK47: 3120 | FL47: 2882 | FM47: 2917 | FN47: 2853 | FO47: 2748 | FP47: 2615 | FQ47: 2783 | FR47: 2692 | FS47: 2916 | FT47: 3033 | FU47: 2156 | FV47: 2090 | FW47: 2064 | FX47: 1943 | FY47: 1764 | FZ47: 1622 | GA47: 1711 | GB47: 1628 | GC47: 1640 | GD47: 1604 | GE47: 1460 | GF47: 1370 | GG47: 1251 | GH47: 1082 | GI47: 1049 | GJ47: 880 | GK47: 809 | GL47: 3141
A48: England – CCGs | B48: Brent | C48: England – CCGs - Brent | D48: 128417 | E48: 123667 | F48: 329771 | G48: 168277 | H48: 161494 | I48: 128417 | J48: 123667 | K48: 39860 | L48: 37827 | M48: 2424 | N48: 2442 | O48: 2620 | P48: 2520 | Q48: 2394 | R48: 2438 | S48: 2444 | T48: 2395 | U48: 2071 | V48: 2205 | W48: 2042 | X48: 2118 | Y48: 2029 | Z48: 2023 | AA48: 1900 | AB48: 1962 | AC48: 1896 | AD48: 1937 | AE48: 2007 | AF48: 1947 | AG48: 2024 | AH48: 2215 | AI48: 2434 | AJ48: 2490 | AK48: 2607 | AL48: 2651 | AM48: 2550 | AN48: 2742 | AO48: 3014 | AP48: 2876 | AQ48: 2930 | AR48: 3062 | AS48: 3022 | AT48: 3199 | AU48: 3078 | AV48: 3033 | AW48: 3037 | AX48: 2944 | AY48: 2896 | AZ48: 2687 | BA48: 2628 | BB48: 2419 | BC48: 2252 | BD48: 2312 | BE48: 2091 | BF48: 2161 | BG48: 2242 | BH48: 2078 | BI48: 2143 | BJ48: 2026 | BK48: 2145 | BL48: 2071 | BM48: 1904 | BN48: 2095 | BO48: 2001 | BP48: 1936 | BQ48: 1939 | BR48: 1851 | BS48: 1836 | BT48: 1797 | BU48: 1743 | BV48: 1782 | BW48: 1570 | BX48: 1604 | BY48: 1472 | BZ48: 1350 | CA48: 1251 | CB48: 1222 | CC48: 1152 | CD48: 1160 | CE48: 1017 | CF48: 1007 | CG48: 1050 | CH48: 885 | CI48: 750 | CJ48: 722 | CK48: 662 | CL48: 656 | CM48: 574 | CN48: 681 | CO48: 592 | CP48: 520 | CQ48: 531 | CR48: 508 | CS48: 446 | CT48: 385 | CU48: 319 | CV48: 293 | CW48: 257 | CX48: 203 | CY48: 681 | CZ48: 2305 | DA48: 2254 | DB48: 2335 | DC48: 2409 | DD48: 2343 | DE48: 2313 | DF48: 2263 | DG48: 2429 | DH48: 2135 | DI48: 2048 | DJ48: 2028 | DK48: 1973 | DL48: 1904 | DM48: 1928 | DN48: 1791 | DO48: 1812 | DP48: 1818 | DQ48: 1739 | DR48: 1800 | DS48: 1723 | DT48: 1788 | DU48: 2049 | DV48: 1996 | DW48: 2254 | DX48: 2262 | DY48: 2272 | DZ48: 2392 | EA48: 2189 | EB48: 2431 | EC48: 2422 | ED48: 2527 | EE48: 2528 | EF48: 2534 | EG48: 2810 | EH48: 2667 | EI48: 2438 | EJ48: 2626 | EK48: 2548 | EL48: 2459 | EM48: 2485 | EN48: 2233 | EO48: 2278 | EP48: 2317 | EQ48: 2159 | ER48: 2175 | ES48: 2131 | ET48: 2119 | EU48: 2199 | EV48: 2015 | EW48: 2104 | EX48: 2057 | EY48: 2088 | EZ48: 2096 | FA48: 2048 | FB48: 2096 | FC48: 2090 | FD48: 2080 | FE48: 1922 | FF48: 1841 | FG48: 1951 | FH48: 1896 | FI48: 1726 | FJ48: 1573 | FK48: 1562 | FL48: 1497 | FM48: 1337 | FN48: 1343 | FO48: 1262 | FP48: 1224 | FQ48: 1296 | FR48: 1109 | FS48: 1081 | FT48: 1031 | FU48: 971 | FV48: 944 | FW48: 911 | FX48: 870 | FY48: 835 | FZ48: 673 | GA48: 755 | GB48: 704 | GC48: 665 | GD48: 670 | GE48: 579 | GF48: 577 | GG48: 481 | GH48: 472 | GI48: 388 | GJ48: 369 | GK48: 305 | GL48: 1362
A49: England – CCGs | B49: Brighton and Hove | C49: England – CCGs - Brighton and Hove | D49: 120344 | E49: 120274 | F49: 290885 | G49: 146153 | H49: 144732 | I49: 120344 | J49: 120274 | K49: 25809 | L49: 24458 | M49: 1239 | N49: 1334 | O49: 1446 | P49: 1399 | Q49: 1469 | R49: 1415 | S49: 1486 | T49: 1551 | U49: 1464 | V49: 1437 | W49: 1452 | X49: 1536 | Y49: 1504 | Z49: 1468 | AA49: 1380 | AB49: 1435 | AC49: 1401 | AD49: 1393 | AE49: 1773 | AF49: 2678 | AG49: 3362 | AH49: 3477 | AI49: 3459 | AJ49: 3366 | AK49: 2934 | AL49: 2989 | AM49: 2901 | AN49: 3046 | AO49: 3238 | AP49: 2854 | AQ49: 2551 | AR49: 2367 | AS49: 2198 | AT49: 2234 | AU49: 2206 | AV49: 2021 | AW49: 2157 | AX49: 2233 | AY49: 2102 | AZ49: 1893 | BA49: 2012 | BB49: 1894 | BC49: 1733 | BD49: 1876 | BE49: 1796 | BF49: 1961 | BG49: 2060 | BH49: 2104 | BI49: 2124 | BJ49: 1914 | BK49: 2062 | BL49: 2039 | BM49: 2066 | BN49: 2088 | BO49: 2012 | BP49: 1947 | BQ49: 1759 | BR49: 1680 | BS49: 1493 | BT49: 1493 | BU49: 1354 | BV49: 1327 | BW49: 1241 | BX49: 1154 | BY49: 1136 | BZ49: 1142 | CA49: 1019 | CB49: 969 | CC49: 1023 | CD49: 1000 | CE49: 1055 | CF49: 1169 | CG49: 1190 | CH49: 882 | CI49: 723 | CJ49: 847 | CK49: 716 | CL49: 589 | CM49: 526 | CN49: 576 | CO49: 492 | CP49: 530 | CQ49: 484 | CR49: 392 | CS49: 380 | CT49: 373 | CU49: 351 | CV49: 270 | CW49: 261 | CX49: 216 | CY49: 805 | CZ49: 1182 | DA49: 1243 | DB49: 1267 | DC49: 1389 | DD49: 1363 | DE49: 1318 | DF49: 1422 | DG49: 1529 | DH49: 1356 | DI49: 1460 | DJ49: 1404 | DK49: 1420 | DL49: 1391 | DM49: 1401 | DN49: 1328 | DO49: 1330 | DP49: 1310 | DQ49: 1345 | DR49: 1734 | DS49: 3270 | DT49: 4056 | DU49: 4097 | DV49: 3710 | DW49: 2935 | DX49: 2629 | DY49: 2769 | DZ49: 2649 | EA49: 2778 | EB49: 2895 | EC49: 2573 | ED49: 2190 | EE49: 2072 | EF49: 2036 | EG49: 2005 | EH49: 1826 | EI49: 1860 | EJ49: 1931 | EK49: 1822 | EL49: 1923 | EM49: 1978 | EN49: 1865 | EO49: 1772 | EP49: 1855 | EQ49: 1882 | ER49: 1730 | ES49: 1796 | ET49: 2050 | EU49: 2020 | EV49: 1952 | EW49: 1934 | EX49: 2020 | EY49: 1969 | EZ49: 1973 | FA49: 2044 | FB49: 2008 | FC49: 1947 | FD49: 1840 | FE49: 1699 | FF49: 1552 | FG49: 1521 | FH49: 1331 | FI49: 1351 | FJ49: 1236 | FK49: 1158 | FL49: 1172 | FM49: 1165 | FN49: 1091 | FO49: 1017 | FP49: 1023 | FQ49: 1038 | FR49: 1048 | FS49: 1057 | FT49: 1146 | FU49: 908 | FV49: 916 | FW49: 831 | FX49: 861 | FY49: 688 | FZ49: 687 | GA49: 650 | GB49: 648 | GC49: 632 | GD49: 575 | GE49: 609 | GF49: 507 | GG49: 465 | GH49: 487 | GI49: 419 | GJ49: 416 | GK49: 364 | GL49: 1611
A50: England – CCGs | B50: Bristol, North Somerset and South Gloucestershire | C50: England – CCGs - Bristol, North Somerset and South Gloucestershire | D50: 376968 | E50: 389464 | F50: 963522 | G50: 478006 | H50: 485516 | I50: 376968 | J50: 389464 | K50: 101038 | L50: 96052 | M50: 5593 | N50: 5679 | O50: 5912 | P50: 5858 | Q50: 5918 | R50: 5840 | S50: 6008 | T50: 6136 | U50: 5989 | V50: 6017 | W50: 5756 | X50: 5920 | Y50: 5450 | Z50: 5362 | AA50: 5025 | AB50: 5095 | AC50: 4866 | AD50: 4614 | AE50: 5038 | AF50: 6776 | AG50: 7954 | AH50: 7946 | AI50: 7950 | AJ50: 7673 | AK50: 7896 | AL50: 8134 | AM50: 8136 | AN50: 7832 | AO50: 8393 | AP50: 8077 | AQ50: 7871 | AR50: 7560 | AS50: 7346 | AT50: 7035 | AU50: 7180 | AV50: 6691 | AW50: 6627 | AX50: 6596 | AY50: 6419 | AZ50: 6506 | BA50: 6104 | BB50: 5828 | BC50: 5763 | BD50: 5687 | BE50: 5509 | BF50: 5652 | BG50: 5813 | BH50: 5872 | BI50: 6252 | BJ50: 5957 | BK50: 6030 | BL50: 5952 | BM50: 6266 | BN50: 6133 | BO50: 6132 | BP50: 5982 | BQ50: 5901 | BR50: 5759 | BS50: 5303 | BT50: 4982 | BU50: 4848 | BV50: 4763 | BW50: 4691 | BX50: 4372 | BY50: 4298 | BZ50: 4309 | CA50: 4198 | CB50: 3978 | CC50: 4096 | CD50: 4156 | CE50: 4163 | CF50: 4432 | CG50: 4883 | CH50: 3692 | CI50: 3744 | CJ50: 3639 | CK50: 3271 | CL50: 2841 | CM50: 2460 | CN50: 2540 | CO50: 2439 | CP50: 2255 | CQ50: 2026 | CR50: 1888 | CS50: 1715 | CT50: 1482 | CU50: 1355 | CV50: 1189 | CW50: 1008 | CX50: 877 | CY50: 2847 | CZ50: 5233 | DA50: 5194 | DB50: 5463 | DC50: 5653 | DD50: 5483 | DE50: 5626 | DF50: 5764 | DG50: 5880 | DH50: 5786 | DI50: 5584 | DJ50: 5441 | DK50: 5443 | DL50: 5318 | DM50: 5136 | DN50: 5043 | DO50: 4779 | DP50: 4581 | DQ50: 4645 | DR50: 5073 | DS50: 6941 | DT50: 8027 | DU50: 7790 | DV50: 7751 | DW50: 7539 | DX50: 7901 | DY50: 7864 | DZ50: 7656 | EA50: 7907 | EB50: 7911 | EC50: 7632 | ED50: 7557 | EE50: 7462 | EF50: 7159 | EG50: 6790 | EH50: 6664 | EI50: 6700 | EJ50: 6595 | EK50: 6439 | EL50: 6551 | EM50: 6418 | EN50: 5869 | EO50: 5523 | EP50: 5485 | EQ50: 5519 | ER50: 5624 | ES50: 5562 | ET50: 5806 | EU50: 5897 | EV50: 6135 | EW50: 6037 | EX50: 6081 | EY50: 5957 | EZ50: 6291 | FA50: 6433 | FB50: 6215 | FC50: 6165 | FD50: 5912 | FE50: 5606 | FF50: 5423 | FG50: 5307 | FH50: 5105 | FI50: 5170 | FJ50: 4700 | FK50: 4689 | FL50: 4426 | FM50: 4581 | FN50: 4624 | FO50: 4261 | FP50: 4365 | FQ50: 4488 | FR50: 4667 | FS50: 4877 | FT50: 5175 | FU50: 4022 | FV50: 4033 | FW50: 3937 | FX50: 3690 | FY50: 3298 | FZ50: 2946 | GA50: 2962 | GB50: 2927 | GC50: 2727 | GD50: 2624 | GE50: 2474 | GF50: 2355 | GG50: 2086 | GH50: 2006 | GI50: 1916 | GJ50: 1600 | GK50: 1323 | GL50: 6236
A51: England – CCGs | B51: Buckinghamshire | C51: England – CCGs - Buckinghamshire | D51: 203710 | E51: 216604 | F51: 546626 | G51: 268112 | H51: 278514 | I51: 203710 | J51: 216604 | K51: 64402 | L51: 61910 | M51: 2999 | N51: 3251 | O51: 3216 | P51: 3515 | Q51: 3586 | R51: 3590 | S51: 3609 | T51: 3874 | U51: 3960 | V51: 3941 | W51: 3863 | X51: 3816 | Y51: 3769 | Z51: 3635 | AA51: 3508 | AB51: 3488 | AC51: 3421 | AD51: 3361 | AE51: 3337 | AF51: 2459 | AG51: 2257 | AH51: 2301 | AI51: 2562 | AJ51: 2900 | AK51: 2977 | AL51: 2863 | AM51: 2871 | AN51: 2757 | AO51: 2780 | AP51: 2840 | AQ51: 2925 | AR51: 2985 | AS51: 2720 | AT51: 3094 | AU51: 3083 | AV51: 3063 | AW51: 3242 | AX51: 3381 | AY51: 3580 | AZ51: 3574 | BA51: 3661 | BB51: 3517 | BC51: 3558 | BD51: 3592 | BE51: 3697 | BF51: 3873 | BG51: 3895 | BH51: 3951 | BI51: 4091 | BJ51: 4045 | BK51: 3871 | BL51: 4071 | BM51: 4104 | BN51: 4057 | BO51: 4192 | BP51: 4189 | BQ51: 3786 | BR51: 3733 | BS51: 3598 | BT51: 3427 | BU51: 3314 | BV51: 3300 | BW51: 3058 | BX51: 2941 | BY51: 2824 | BZ51: 2722 | CA51: 2710 | CB51: 2509 | CC51: 2395 | CD51: 2526 | CE51: 2596 | CF51: 2756 | CG51: 2997 | CH51: 2194 | CI51: 2245 | CJ51: 2193 | CK51: 1987 | CL51: 1792 | CM51: 1486 | CN51: 1523 | CO51: 1508 | CP51: 1436 | CQ51: 1359 | CR51: 1291 | CS51: 1058 | CT51: 898 | CU51: 905 | CV51: 830 | CW51: 609 | CX51: 528 | CY51: 1761 | CZ51: 2873 | DA51: 3050 | DB51: 3197 | DC51: 3316 | DD51: 3435 | DE51: 3430 | DF51: 3596 | DG51: 3707 | DH51: 3794 | DI51: 3629 | DJ51: 3740 | DK51: 3779 | DL51: 3705 | DM51: 3476 | DN51: 3419 | DO51: 3385 | DP51: 3159 | DQ51: 3220 | DR51: 3035 | DS51: 1987 | DT51: 1816 | DU51: 2040 | DV51: 2449 | DW51: 2798 | DX51: 2929 | DY51: 2664 | DZ51: 2714 | EA51: 2801 | EB51: 2933 | EC51: 3105 | ED51: 3196 | EE51: 3215 | EF51: 3194 | EG51: 3368 | EH51: 3446 | EI51: 3497 | EJ51: 3568 | EK51: 3839 | EL51: 3862 | EM51: 3870 | EN51: 3930 | EO51: 3700 | EP51: 3735 | EQ51: 3670 | ER51: 3680 | ES51: 3755 | ET51: 3996 | EU51: 3929 | EV51: 4241 | EW51: 4030 | EX51: 4170 | EY51: 4155 | EZ51: 4251 | FA51: 4030 | FB51: 3978 | FC51: 3984 | FD51: 3949 | FE51: 3681 | FF51: 3670 | FG51: 3492 | FH51: 3382 | FI51: 3197 | FJ51: 3182 | FK51: 2906 | FL51: 2912 | FM51: 2806 | FN51: 2821 | FO51: 2673 | FP51: 2742 | FQ51: 2825 | FR51: 2885 | FS51: 2968 | FT51: 3245 | FU51: 2543 | FV51: 2475 | FW51: 2512 | FX51: 2373 | FY51: 2036 | FZ51: 1808 | GA51: 1955 | GB51: 1867 | GC51: 1803 | GD51: 1671 | GE51: 1573 | GF51: 1554 | GG51: 1322 | GH51: 1210 | GI51: 1092 | GJ51: 1033 | GK51: 892 | GL51: 3989
A52: England – CCGs | B52: Bury | C52: England – CCGs - Bury | D52: 71379 | E52: 76322 | F52: 190990 | G52: 93732 | H52: 97258 | I52: 71379 | J52: 76322 | K52: 22353 | L52: 20936 | M52: 1219 | N52: 1137 | O52: 1210 | P52: 1269 | Q52: 1221 | R52: 1284 | S52: 1283 | T52: 1359 | U52: 1292 | V52: 1329 | W52: 1307 | X52: 1288 | Y52: 1185 | Z52: 1279 | AA52: 1222 | AB52: 1177 | AC52: 1176 | AD52: 1116 | AE52: 1069 | AF52: 932 | AG52: 904 | AH52: 1004 | AI52: 1002 | AJ52: 1206 | AK52: 1177 | AL52: 1220 | AM52: 1120 | AN52: 1219 | AO52: 1223 | AP52: 1325 | AQ52: 1304 | AR52: 1168 | AS52: 1238 | AT52: 1167 | AU52: 1178 | AV52: 1294 | AW52: 1194 | AX52: 1245 | AY52: 1273 | AZ52: 1165 | BA52: 1158 | BB52: 1117 | BC52: 989 | BD52: 1097 | BE52: 1135 | BF52: 1090 | BG52: 1251 | BH52: 1266 | BI52: 1333 | BJ52: 1228 | BK52: 1373 | BL52: 1353 | BM52: 1365 | BN52: 1334 | BO52: 1360 | BP52: 1352 | BQ52: 1306 | BR52: 1311 | BS52: 1125 | BT52: 1194 | BU52: 1121 | BV52: 1080 | BW52: 1015 | BX52: 987 | BY52: 894 | BZ52: 885 | CA52: 968 | CB52: 875 | CC52: 900 | CD52: 949 | CE52: 946 | CF52: 1008 | CG52: 1125 | CH52: 820 | CI52: 739 | CJ52: 775 | CK52: 625 | CL52: 617 | CM52: 499 | CN52: 549 | CO52: 512 | CP52: 437 | CQ52: 420 | CR52: 369 | CS52: 341 | CT52: 253 | CU52: 235 | CV52: 183 | CW52: 177 | CX52: 168 | CY52: 543 | CZ52: 1068 | DA52: 1067 | DB52: 1113 | DC52: 1208 | DD52: 1176 | DE52: 1185 | DF52: 1254 | DG52: 1264 | DH52: 1289 | DI52: 1213 | DJ52: 1153 | DK52: 1294 | DL52: 1217 | DM52: 1108 | DN52: 1137 | DO52: 1081 | DP52: 1058 | DQ52: 1051 | DR52: 998 | DS52: 767 | DT52: 858 | DU52: 880 | DV52: 1032 | DW52: 987 | DX52: 1033 | DY52: 1179 | DZ52: 1134 | EA52: 1245 | EB52: 1329 | EC52: 1265 | ED52: 1306 | EE52: 1311 | EF52: 1413 | EG52: 1396 | EH52: 1349 | EI52: 1266 | EJ52: 1230 | EK52: 1374 | EL52: 1284 | EM52: 1221 | EN52: 1247 | EO52: 1157 | EP52: 1104 | EQ52: 1136 | ER52: 1228 | ES52: 1255 | ET52: 1248 | EU52: 1360 | EV52: 1415 | EW52: 1382 | EX52: 1382 | EY52: 1391 | EZ52: 1451 | FA52: 1392 | FB52: 1384 | FC52: 1363 | FD52: 1352 | FE52: 1317 | FF52: 1284 | FG52: 1241 | FH52: 1180 | FI52: 1084 | FJ52: 1026 | FK52: 1061 | FL52: 918 | FM52: 1012 | FN52: 1021 | FO52: 974 | FP52: 921 | FQ52: 977 | FR52: 1086 | FS52: 1094 | FT52: 1226 | FU52: 869 | FV52: 857 | FW52: 893 | FX52: 772 | FY52: 676 | FZ52: 663 | GA52: 638 | GB52: 588 | GC52: 598 | GD52: 577 | GE52: 509 | GF52: 477 | GG52: 424 | GH52: 343 | GI52: 340 | GJ52: 274 | GK52: 251 | GL52: 1047
A53: England – CCGs | B53: Calderdale | C53: England – CCGs - Calderdale | D53: 80433 | E53: 84904 | F53: 211455 | G53: 103861 | H53: 107594 | I53: 80433 | J53: 84904 | K53: 23428 | L53: 22690 | M53: 1143 | N53: 1209 | O53: 1238 | P53: 1306 | Q53: 1382 | R53: 1347 | S53: 1410 | T53: 1423 | U53: 1377 | V53: 1407 | W53: 1299 | X53: 1353 | Y53: 1292 | Z53: 1237 | AA53: 1308 | AB53: 1289 | AC53: 1226 | AD53: 1182 | AE53: 1209 | AF53: 1029 | AG53: 1043 | AH53: 1046 | AI53: 1109 | AJ53: 1208 | AK53: 1258 | AL53: 1188 | AM53: 1203 | AN53: 1237 | AO53: 1251 | AP53: 1252 | AQ53: 1158 | AR53: 1303 | AS53: 1224 | AT53: 1155 | AU53: 1305 | AV53: 1250 | AW53: 1324 | AX53: 1206 | AY53: 1267 | AZ53: 1453 | BA53: 1333 | BB53: 1208 | BC53: 1193 | BD53: 1304 | BE53: 1194 | BF53: 1311 | BG53: 1502 | BH53: 1518 | BI53: 1684 | BJ53: 1546 | BK53: 1601 | BL53: 1651 | BM53: 1534 | BN53: 1595 | BO53: 1633 | BP53: 1626 | BQ53: 1550 | BR53: 1523 | BS53: 1383 | BT53: 1360 | BU53: 1337 | BV53: 1310 | BW53: 1298 | BX53: 1278 | BY53: 1124 | BZ53: 1215 | CA53: 1156 | CB53: 1071 | CC53: 1108 | CD53: 1096 | CE53: 1159 | CF53: 1193 | CG53: 1221 | CH53: 891 | CI53: 855 | CJ53: 907 | CK53: 811 | CL53: 614 | CM53: 602 | CN53: 570 | CO53: 492 | CP53: 505 | CQ53: 443 | CR53: 397 | CS53: 328 | CT53: 282 | CU53: 235 | CV53: 227 | CW53: 181 | CX53: 126 | CY53: 474 | CZ53: 1047 | DA53: 1163 | DB53: 1210 | DC53: 1216 | DD53: 1276 | DE53: 1210 | DF53: 1367 | DG53: 1353 | DH53: 1329 | DI53: 1365 | DJ53: 1327 | DK53: 1346 | DL53: 1325 | DM53: 1359 | DN53: 1248 | DO53: 1233 | DP53: 1142 | DQ53: 1174 | DR53: 1140 | DS53: 966 | DT53: 894 | DU53: 924 | DV53: 1130 | DW53: 1182 | DX53: 1121 | DY53: 1208 | DZ53: 1252 | EA53: 1277 | EB53: 1240 | EC53: 1266 | ED53: 1310 | EE53: 1303 | EF53: 1460 | EG53: 1277 | EH53: 1394 | EI53: 1312 | EJ53: 1337 | EK53: 1417 | EL53: 1345 | EM53: 1437 | EN53: 1400 | EO53: 1221 | EP53: 1256 | EQ53: 1240 | ER53: 1301 | ES53: 1445 | ET53: 1442 | EU53: 1476 | EV53: 1638 | EW53: 1655 | EX53: 1558 | EY53: 1620 | EZ53: 1610 | FA53: 1554 | FB53: 1591 | FC53: 1689 | FD53: 1553 | FE53: 1508 | FF53: 1478 | FG53: 1423 | FH53: 1381 | FI53: 1330 | FJ53: 1295 | FK53: 1287 | FL53: 1165 | FM53: 1174 | FN53: 1118 | FO53: 1083 | FP53: 1161 | FQ53: 1188 | FR53: 1158 | FS53: 1286 | FT53: 1345 | FU53: 998 | FV53: 986 | FW53: 916 | FX53: 850 | FY53: 765 | FZ53: 661 | GA53: 688 | GB53: 665 | GC53: 617 | GD53: 619 | GE53: 542 | GF53: 490 | GG53: 446 | GH53: 444 | GI53: 391 | GJ53: 380 | GK53: 312 | GL53: 1313
A54: England – CCGs | B54: Cambridgeshire and Peterborough | C54: England – CCGs - Cambridgeshire and Peterborough | D54: 345095 | E54: 351225 | F54: 892627 | G54: 446414 | H54: 446213 | I54: 345095 | J54: 351225 | K54: 101319 | L54: 94988 | M54: 5049 | N54: 5520 | O54: 5464 | P54: 5976 | Q54: 5823 | R54: 5982 | S54: 6119 | T54: 6252 | U54: 6025 | V54: 5927 | W54: 5854 | X54: 5777 | Y54: 5545 | Z54: 5396 | AA54: 5300 | AB54: 5164 | AC54: 5030 | AD54: 5116 | AE54: 5112 | AF54: 5298 | AG54: 5421 | AH54: 5763 | AI54: 6027 | AJ54: 5827 | AK54: 5877 | AL54: 6055 | AM54: 5705 | AN54: 5655 | AO54: 5824 | AP54: 6005 | AQ54: 6005 | AR54: 6076 | AS54: 5830 | AT54: 5944 | AU54: 5716 | AV54: 5540 | AW54: 5577 | AX54: 5763 | AY54: 6056 | AZ54: 5874 | BA54: 5938 | BB54: 5588 | BC54: 5514 | BD54: 5659 | BE54: 5787 | BF54: 5776 | BG54: 6101 | BH54: 6127 | BI54: 6157 | BJ54: 6091 | BK54: 6240 | BL54: 6163 | BM54: 6310 | BN54: 6392 | BO54: 6121 | BP54: 6118 | BQ54: 5913 | BR54: 5692 | BS54: 5589 | BT54: 5317 | BU54: 4995 | BV54: 5147 | BW54: 4739 | BX54: 4538 | BY54: 4403 | BZ54: 4270 | CA54: 4188 | CB54: 4212 | CC54: 4210 | CD54: 4351 | CE54: 4465 | CF54: 4604 | CG54: 4887 | CH54: 4023 | CI54: 3714 | CJ54: 3485 | CK54: 3161 | CL54: 2816 | CM54: 2372 | CN54: 2438 | CO54: 2245 | CP54: 2209 | CQ54: 2128 | CR54: 1811 | CS54: 1695 | CT54: 1492 | CU54: 1272 | CV54: 1198 | CW54: 980 | CX54: 790 | CY54: 2714 | CZ54: 4740 | DA54: 4994 | DB54: 5344 | DC54: 5577 | DD54: 5611 | DE54: 5640 | DF54: 5816 | DG54: 5989 | DH54: 5583 | DI54: 5490 | DJ54: 5574 | DK54: 5314 | DL54: 5223 | DM54: 5021 | DN54: 4833 | DO54: 4971 | DP54: 4653 | DQ54: 4615 | DR54: 4848 | DS54: 4996 | DT54: 5075 | DU54: 5156 | DV54: 5274 | DW54: 5560 | DX54: 5284 | DY54: 5278 | DZ54: 5117 | EA54: 5233 | EB54: 5259 | EC54: 5115 | ED54: 5259 | EE54: 5666 | EF54: 5689 | EG54: 5650 | EH54: 5904 | EI54: 5840 | EJ54: 6053 | EK54: 6019 | EL54: 6115 | EM54: 6179 | EN54: 5970 | EO54: 5549 | EP54: 5584 | EQ54: 5435 | ER54: 5511 | ES54: 5745 | ET54: 5922 | EU54: 6281 | EV54: 6416 | EW54: 6047 | EX54: 6244 | EY54: 6241 | EZ54: 6292 | FA54: 6216 | FB54: 6236 | FC54: 6201 | FD54: 5980 | FE54: 5785 | FF54: 5535 | FG54: 5213 | FH54: 5134 | FI54: 5052 | FJ54: 4816 | FK54: 4705 | FL54: 4708 | FM54: 4872 | FN54: 4585 | FO54: 4650 | FP54: 4499 | FQ54: 4445 | FR54: 4622 | FS54: 4777 | FT54: 5427 | FU54: 4010 | FV54: 3865 | FW54: 3772 | FX54: 3558 | FY54: 3021 | FZ54: 2665 | GA54: 2799 | GB54: 2819 | GC54: 2557 | GD54: 2416 | GE54: 2256 | GF54: 2089 | GG54: 1918 | GH54: 1752 | GI54: 1645 | GJ54: 1540 | GK54: 1349 | GL54: 5930
A55: England – CCGs | B55: Cannock Chase | C55: England – CCGs - Cannock Chase | D55: 54009 | E55: 56310 | F55: 137595 | G55: 67968 | H55: 69627 | I55: 54009 | J55: 56310 | K55: 13959 | L55: 13317 | M55: 744 | N55: 795 | O55: 750 | P55: 770 | Q55: 768 | R55: 775 | S55: 809 | T55: 795 | U55: 799 | V55: 823 | W55: 808 | X55: 789 | Y55: 747 | Z55: 816 | AA55: 705 | AB55: 808 | AC55: 736 | AD55: 722 | AE55: 735 | AF55: 636 | AG55: 704 | AH55: 690 | AI55: 774 | AJ55: 819 | AK55: 848 | AL55: 865 | AM55: 822 | AN55: 881 | AO55: 926 | AP55: 933 | AQ55: 860 | AR55: 896 | AS55: 896 | AT55: 894 | AU55: 856 | AV55: 869 | AW55: 812 | AX55: 873 | AY55: 829 | AZ55: 813 | BA55: 777 | BB55: 670 | BC55: 700 | BD55: 815 | BE55: 793 | BF55: 821 | BG55: 949 | BH55: 1027 | BI55: 1027 | BJ55: 1029 | BK55: 1121 | BL55: 1073 | BM55: 1077 | BN55: 1116 | BO55: 1056 | BP55: 1124 | BQ55: 1036 | BR55: 1024 | BS55: 968 | BT55: 827 | BU55: 911 | BV55: 839 | BW55: 821 | BX55: 755 | BY55: 720 | BZ55: 796 | CA55: 714 | CB55: 669 | CC55: 707 | CD55: 735 | CE55: 745 | CF55: 749 | CG55: 839 | CH55: 664 | CI55: 721 | CJ55: 627 | CK55: 591 | CL55: 513 | CM55: 422 | CN55: 441 | CO55: 419 | CP55: 353 | CQ55: 335 | CR55: 275 | CS55: 249 | CT55: 201 | CU55: 176 | CV55: 155 | CW55: 139 | CX55: 110 | CY55: 357 | CZ55: 699 | DA55: 741 | DB55: 697 | DC55: 702 | DD55: 712 | DE55: 750 | DF55: 828 | DG55: 750 | DH55: 806 | DI55: 730 | DJ55: 759 | DK55: 777 | DL55: 814 | DM55: 756 | DN55: 722 | DO55: 719 | DP55: 694 | DQ55: 661 | DR55: 702 | DS55: 566 | DT55: 570 | DU55: 639 | DV55: 774 | DW55: 746 | DX55: 780 | DY55: 862 | DZ55: 865 | EA55: 961 | EB55: 983 | EC55: 910 | ED55: 922 | EE55: 905 | EF55: 964 | EG55: 931 | EH55: 878 | EI55: 925 | EJ55: 884 | EK55: 861 | EL55: 895 | EM55: 874 | EN55: 815 | EO55: 694 | EP55: 691 | EQ55: 765 | ER55: 794 | ES55: 903 | ET55: 951 | EU55: 1013 | EV55: 1050 | EW55: 1048 | EX55: 1075 | EY55: 1095 | EZ55: 1021 | FA55: 1081 | FB55: 1078 | FC55: 1042 | FD55: 1064 | FE55: 1031 | FF55: 971 | FG55: 844 | FH55: 880 | FI55: 828 | FJ55: 825 | FK55: 809 | FL55: 791 | FM55: 774 | FN55: 816 | FO55: 739 | FP55: 758 | FQ55: 825 | FR55: 723 | FS55: 835 | FT55: 914 | FU55: 701 | FV55: 693 | FW55: 663 | FX55: 625 | FY55: 622 | FZ55: 477 | GA55: 487 | GB55: 491 | GC55: 446 | GD55: 453 | GE55: 360 | GF55: 305 | GG55: 282 | GH55: 252 | GI55: 267 | GJ55: 227 | GK55: 189 | GL55: 830
A56: England – CCGs | B56: Castle Point and Rochford | C56: England – CCGs - Castle Point and Rochford | D56: 69237 | E56: 74185 | F56: 177744 | G56: 86791 | H56: 90953 | I56: 69237 | J56: 74185 | K56: 17554 | L56: 16768 | M56: 792 | N56: 868 | O56: 903 | P56: 917 | Q56: 946 | R56: 925 | S56: 1045 | T56: 1013 | U56: 1033 | V56: 998 | W56: 1053 | X56: 1074 | Y56: 1039 | Z56: 1055 | AA56: 939 | AB56: 1057 | AC56: 1007 | AD56: 890 | AE56: 998 | AF56: 813 | AG56: 814 | AH56: 959 | AI56: 996 | AJ56: 1003 | AK56: 1023 | AL56: 1030 | AM56: 966 | AN56: 972 | AO56: 1010 | AP56: 980 | AQ56: 1010 | AR56: 965 | AS56: 898 | AT56: 956 | AU56: 937 | AV56: 853 | AW56: 857 | AX56: 935 | AY56: 950 | AZ56: 944 | BA56: 967 | BB56: 879 | BC56: 961 | BD56: 910 | BE56: 1068 | BF56: 1105 | BG56: 1096 | BH56: 1140 | BI56: 1254 | BJ56: 1220 | BK56: 1326 | BL56: 1273 | BM56: 1344 | BN56: 1355 | BO56: 1302 | BP56: 1272 | BQ56: 1280 | BR56: 1268 | BS56: 1233 | BT56: 1140 | BU56: 1207 | BV56: 1128 | BW56: 1163 | BX56: 1007 | BY56: 965 | BZ56: 1016 | CA56: 1110 | CB56: 971 | CC56: 981 | CD56: 1000 | CE56: 1104 | CF56: 1249 | CG56: 1476 | CH56: 1029 | CI56: 988 | CJ56: 928 | CK56: 878 | CL56: 708 | CM56: 654 | CN56: 639 | CO56: 606 | CP56: 582 | CQ56: 552 | CR56: 535 | CS56: 417 | CT56: 400 | CU56: 364 | CV56: 316 | CW56: 241 | CX56: 193 | CY56: 568 | CZ56: 785 | DA56: 800 | DB56: 840 | DC56: 837 | DD56: 935 | DE56: 942 | DF56: 886 | DG56: 873 | DH56: 1037 | DI56: 1075 | DJ56: 1029 | DK56: 996 | DL56: 951 | DM56: 989 | DN56: 947 | DO56: 974 | DP56: 943 | DQ56: 929 | DR56: 925 | DS56: 785 | DT56: 776 | DU56: 812 | DV56: 857 | DW56: 920 | DX56: 905 | DY56: 922 | DZ56: 932 | EA56: 1008 | EB56: 918 | EC56: 918 | ED56: 992 | EE56: 1008 | EF56: 945 | EG56: 895 | EH56: 904 | EI56: 949 | EJ56: 950 | EK56: 1030 | EL56: 1038 | EM56: 1115 | EN56: 1031 | EO56: 921 | EP56: 989 | EQ56: 1063 | ER56: 1079 | ES56: 1076 | ET56: 1170 | EU56: 1260 | EV56: 1323 | EW56: 1328 | EX56: 1398 | EY56: 1341 | EZ56: 1418 | FA56: 1292 | FB56: 1339 | FC56: 1308 | FD56: 1341 | FE56: 1279 | FF56: 1260 | FG56: 1166 | FH56: 1134 | FI56: 1175 | FJ56: 1103 | FK56: 1113 | FL56: 1082 | FM56: 1134 | FN56: 1151 | FO56: 1094 | FP56: 1180 | FQ56: 1209 | FR56: 1231 | FS56: 1408 | FT56: 1606 | FU56: 1187 | FV56: 1095 | FW56: 1064 | FX56: 1038 | FY56: 944 | FZ56: 762 | GA56: 787 | GB56: 849 | GC56: 741 | GD56: 698 | GE56: 677 | GF56: 555 | GG56: 507 | GH56: 473 | GI56: 430 | GJ56: 365 | GK56: 316 | GL56: 1191
A57: England – CCGs | B57: Central London (Westminster) | C57: England – CCGs - Central London (Westminster) | D57: 81785 | E57: 73879 | F57: 190034 | G57: 99479 | H57: 90555 | I57: 81785 | J57: 73879 | K57: 17694 | L57: 16676 | M57: 828 | N57: 966 | O57: 1010 | P57: 1075 | Q57: 982 | R57: 1051 | S57: 1096 | T57: 1107 | U57: 1187 | V57: 1056 | W57: 1046 | X57: 983 | Y57: 961 | Z57: 909 | AA57: 882 | AB57: 897 | AC57: 788 | AD57: 870 | AE57: 1043 | AF57: 1341 | AG57: 1202 | AH57: 1245 | AI57: 1454 | AJ57: 1564 | AK57: 1636 | AL57: 1963 | AM57: 2009 | AN57: 1913 | AO57: 1722 | AP57: 1895 | AQ57: 1823 | AR57: 1835 | AS57: 2041 | AT57: 2194 | AU57: 1992 | AV57: 2055 | AW57: 2021 | AX57: 2019 | AY57: 2010 | AZ57: 1966 | BA57: 1842 | BB57: 1601 | BC57: 1653 | BD57: 1446 | BE57: 1533 | BF57: 1457 | BG57: 1447 | BH57: 1388 | BI57: 1270 | BJ57: 1398 | BK57: 1349 | BL57: 1359 | BM57: 1369 | BN57: 1269 | BO57: 1248 | BP57: 1157 | BQ57: 1131 | BR57: 1056 | BS57: 1004 | BT57: 965 | BU57: 848 | BV57: 806 | BW57: 760 | BX57: 866 | BY57: 793 | BZ57: 717 | CA57: 715 | CB57: 723 | CC57: 651 | CD57: 679 | CE57: 627 | CF57: 650 | CG57: 703 | CH57: 543 | CI57: 560 | CJ57: 477 | CK57: 455 | CL57: 382 | CM57: 387 | CN57: 361 | CO57: 398 | CP57: 367 | CQ57: 309 | CR57: 259 | CS57: 285 | CT57: 225 | CU57: 221 | CV57: 198 | CW57: 156 | CX57: 154 | CY57: 625 | CZ57: 776 | DA57: 832 | DB57: 938 | DC57: 977 | DD57: 942 | DE57: 1003 | DF57: 1073 | DG57: 1190 | DH57: 1008 | DI57: 1068 | DJ57: 987 | DK57: 920 | DL57: 837 | DM57: 811 | DN57: 821 | DO57: 792 | DP57: 839 | DQ57: 862 | DR57: 998 | DS57: 1106 | DT57: 958 | DU57: 1107 | DV57: 1333 | DW57: 1574 | DX57: 1747 | DY57: 1732 | DZ57: 1859 | EA57: 1471 | EB57: 1462 | EC57: 1628 | ED57: 1621 | EE57: 1562 | EF57: 1699 | EG57: 1765 | EH57: 1682 | EI57: 1401 | EJ57: 1621 | EK57: 1535 | EL57: 1479 | EM57: 1417 | EN57: 1320 | EO57: 1261 | EP57: 1271 | EQ57: 1302 | ER57: 1281 | ES57: 1251 | ET57: 1249 | EU57: 1136 | EV57: 1088 | EW57: 1201 | EX57: 1191 | EY57: 1210 | EZ57: 1131 | FA57: 1092 | FB57: 1139 | FC57: 1083 | FD57: 1032 | FE57: 950 | FF57: 1014 | FG57: 969 | FH57: 961 | FI57: 999 | FJ57: 845 | FK57: 862 | FL57: 864 | FM57: 850 | FN57: 809 | FO57: 778 | FP57: 768 | FQ57: 692 | FR57: 715 | FS57: 669 | FT57: 674 | FU57: 613 | FV57: 569 | FW57: 512 | FX57: 476 | FY57: 434 | FZ57: 422 | GA57: 397 | GB57: 461 | GC57: 414 | GD57: 414 | GE57: 391 | GF57: 324 | GG57: 269 | GH57: 301 | GI57: 214 | GJ57: 234 | GK57: 180 | GL57: 840
A58: England – CCGs | B58: Cheshire | C58: England – CCGs - Cheshire | D58: 280314 | E58: 300963 | F58: 727223 | G58: 355364 | H58: 371859 | I58: 280314 | J58: 300963 | K58: 75050 | L58: 70896 | M58: 3571 | N58: 4031 | O58: 4009 | P58: 4209 | Q58: 4169 | R58: 4196 | S58: 4451 | T58: 4532 | U58: 4363 | V58: 4174 | W58: 4284 | X58: 4508 | Y58: 4387 | Z58: 4309 | AA58: 4096 | AB58: 4035 | AC58: 3887 | AD58: 3839 | AE58: 3843 | AF58: 3103 | AG58: 3347 | AH58: 3531 | AI58: 3703 | AJ58: 3689 | AK58: 4076 | AL58: 4017 | AM58: 4085 | AN58: 4116 | AO58: 3859 | AP58: 3989 | AQ58: 3639 | AR58: 3890 | AS58: 3478 | AT58: 3946 | AU58: 3947 | AV58: 3780 | AW58: 3944 | AX58: 3953 | AY58: 4118 | AZ58: 4226 | BA58: 4201 | BB58: 3835 | BC58: 3734 | BD58: 4144 | BE58: 4371 | BF58: 4484 | BG58: 4886 | BH58: 5148 | BI58: 5218 | BJ58: 5075 | BK58: 5340 | BL58: 5440 | BM58: 5428 | BN58: 5448 | BO58: 5364 | BP58: 5571 | BQ58: 5604 | BR58: 5369 | BS58: 5179 | BT58: 4905 | BU58: 4639 | BV58: 4696 | BW58: 4368 | BX58: 4353 | BY58: 4101 | BZ58: 4154 | CA58: 4249 | CB58: 3969 | CC58: 4182 | CD58: 4235 | CE58: 4422 | CF58: 4608 | CG58: 5029 | CH58: 3686 | CI58: 3745 | CJ58: 3610 | CK58: 3207 | CL58: 2730 | CM58: 2532 | CN58: 2485 | CO58: 2460 | CP58: 2260 | CQ58: 2001 | CR58: 1837 | CS58: 1645 | CT58: 1346 | CU58: 1208 | CV58: 1015 | CW58: 992 | CX58: 830 | CY58: 2697 | CZ58: 3423 | DA58: 3576 | DB58: 3821 | DC58: 3926 | DD58: 3856 | DE58: 3979 | DF58: 4097 | DG58: 4269 | DH58: 4286 | DI58: 3946 | DJ58: 4064 | DK58: 4162 | DL58: 4057 | DM58: 4068 | DN58: 3991 | DO58: 3932 | DP58: 3791 | DQ58: 3652 | DR58: 3733 | DS58: 3215 | DT58: 3355 | DU58: 3434 | DV58: 3583 | DW58: 3801 | DX58: 3532 | DY58: 3614 | DZ58: 3720 | EA58: 4105 | EB58: 3912 | EC58: 3824 | ED58: 4023 | EE58: 4247 | EF58: 3922 | EG58: 4152 | EH58: 4289 | EI58: 4253 | EJ58: 4406 | EK58: 4406 | EL58: 4342 | EM58: 4598 | EN58: 4351 | EO58: 4077 | EP58: 4159 | EQ58: 4212 | ER58: 4624 | ES58: 4812 | ET58: 5010 | EU58: 5404 | EV58: 5514 | EW58: 5436 | EX58: 5812 | EY58: 5687 | EZ58: 5654 | FA58: 5754 | FB58: 5847 | FC58: 5803 | FD58: 5636 | FE58: 5556 | FF58: 5491 | FG58: 5016 | FH58: 4946 | FI58: 4828 | FJ58: 4701 | FK58: 4483 | FL58: 4346 | FM58: 4355 | FN58: 4275 | FO58: 4259 | FP58: 4487 | FQ58: 4534 | FR58: 4565 | FS58: 5092 | FT58: 5383 | FU58: 3993 | FV58: 3848 | FW58: 3844 | FX58: 3540 | FY58: 3149 | FZ58: 2933 | GA58: 2996 | GB58: 2672 | GC58: 2755 | GD58: 2540 | GE58: 2387 | GF58: 2110 | GG58: 1899 | GH58: 1711 | GI58: 1652 | GJ58: 1539 | GK58: 1279 | GL58: 5541
A59: England – CCGs | B59: Chorley and South Ribble | C59: England – CCGs - Chorley and South Ribble | D59: 69655 | E59: 71817 | F59: 178547 | G59: 88658 | H59: 89889 | I59: 69655 | J59: 71817 | K59: 19003 | L59: 18072 | M59: 896 | N59: 900 | O59: 995 | P59: 1059 | Q59: 1062 | R59: 1098 | S59: 1139 | T59: 1164 | U59: 1160 | V59: 1113 | W59: 1172 | X59: 1103 | Y59: 1085 | Z59: 1152 | AA59: 1032 | AB59: 995 | AC59: 936 | AD59: 942 | AE59: 998 | AF59: 784 | AG59: 782 | AH59: 841 | AI59: 940 | AJ59: 972 | AK59: 965 | AL59: 980 | AM59: 1022 | AN59: 1135 | AO59: 1159 | AP59: 1133 | AQ59: 1095 | AR59: 1158 | AS59: 1129 | AT59: 1170 | AU59: 1136 | AV59: 1217 | AW59: 1152 | AX59: 1063 | AY59: 1191 | AZ59: 1105 | BA59: 1081 | BB59: 1009 | BC59: 1047 | BD59: 1114 | BE59: 1233 | BF59: 1225 | BG59: 1243 | BH59: 1370 | BI59: 1411 | BJ59: 1287 | BK59: 1320 | BL59: 1344 | BM59: 1310 | BN59: 1288 | BO59: 1384 | BP59: 1367 | BQ59: 1276 | BR59: 1282 | BS59: 1258 | BT59: 1107 | BU59: 1102 | BV59: 1070 | BW59: 1012 | BX59: 992 | BY59: 912 | BZ59: 1016 | CA59: 972 | CB59: 968 | CC59: 958 | CD59: 998 | CE59: 986 | CF59: 1086 | CG59: 1194 | CH59: 858 | CI59: 838 | CJ59: 794 | CK59: 729 | CL59: 603 | CM59: 550 | CN59: 540 | CO59: 492 | CP59: 481 | CQ59: 419 | CR59: 345 | CS59: 304 | CT59: 260 | CU59: 198 | CV59: 194 | CW59: 162 | CX59: 135 | CY59: 404 | CZ59: 876 | DA59: 850 | DB59: 975 | DC59: 1005 | DD59: 1043 | DE59: 1065 | DF59: 1037 | DG59: 1078 | DH59: 1090 | DI59: 1082 | DJ59: 1069 | DK59: 1052 | DL59: 1022 | DM59: 1005 | DN59: 984 | DO59: 1054 | DP59: 886 | DQ59: 899 | DR59: 869 | DS59: 676 | DT59: 703 | DU59: 761 | DV59: 864 | DW59: 937 | DX59: 1009 | DY59: 931 | DZ59: 1014 | EA59: 1092 | EB59: 1104 | EC59: 1050 | ED59: 1197 | EE59: 1249 | EF59: 1221 | EG59: 1203 | EH59: 1230 | EI59: 1115 | EJ59: 1136 | EK59: 1174 | EL59: 1090 | EM59: 1160 | EN59: 1136 | EO59: 989 | EP59: 1062 | EQ59: 1150 | ER59: 1098 | ES59: 1206 | ET59: 1266 | EU59: 1347 | EV59: 1455 | EW59: 1289 | EX59: 1329 | EY59: 1409 | EZ59: 1315 | FA59: 1327 | FB59: 1331 | FC59: 1321 | FD59: 1331 | FE59: 1250 | FF59: 1167 | FG59: 1109 | FH59: 1090 | FI59: 1058 | FJ59: 1132 | FK59: 1015 | FL59: 1017 | FM59: 1049 | FN59: 969 | FO59: 984 | FP59: 990 | FQ59: 1055 | FR59: 1041 | FS59: 1184 | FT59: 1228 | FU59: 859 | FV59: 865 | FW59: 844 | FX59: 780 | FY59: 692 | FZ59: 667 | GA59: 654 | GB59: 583 | GC59: 548 | GD59: 504 | GE59: 442 | GF59: 422 | GG59: 369 | GH59: 336 | GI59: 307 | GJ59: 269 | GK59: 237 | GL59: 955
A60: England – CCGs | B60: City and Hackney | C60: England – CCGs - City and Hackney | D60: 112103 | E60: 113251 | F60: 290841 | G60: 145343 | H60: 145498 | I60: 112103 | J60: 113251 | K60: 33240 | L60: 32247 | M60: 2215 | N60: 2148 | O60: 2043 | P60: 2009 | Q60: 2043 | R60: 1974 | S60: 2024 | T60: 1986 | U60: 1860 | V60: 1825 | W60: 1703 | X60: 1688 | Y60: 1697 | Z60: 1767 | AA60: 1671 | AB60: 1575 | AC60: 1615 | AD60: 1397 | AE60: 1415 | AF60: 1433 | AG60: 1287 | AH60: 1454 | AI60: 1676 | AJ60: 1961 | AK60: 2167 | AL60: 2320 | AM60: 2444 | AN60: 2660 | AO60: 3070 | AP60: 3376 | AQ60: 3552 | AR60: 3780 | AS60: 3731 | AT60: 3916 | AU60: 3952 | AV60: 3972 | AW60: 3684 | AX60: 3540 | AY60: 3548 | AZ60: 3126 | BA60: 2823 | BB60: 2519 | BC60: 2256 | BD60: 1985 | BE60: 1976 | BF60: 1814 | BG60: 1805 | BH60: 1916 | BI60: 1636 | BJ60: 1607 | BK60: 1548 | BL60: 1642 | BM60: 1664 | BN60: 1437 | BO60: 1479 | BP60: 1431 | BQ60: 1319 | BR60: 1231 | BS60: 1138 | BT60: 1168 | BU60: 1132 | BV60: 977 | BW60: 934 | BX60: 991 | BY60: 931 | BZ60: 761 | CA60: 772 | CB60: 707 | CC60: 698 | CD60: 626 | CE60: 552 | CF60: 574 | CG60: 588 | CH60: 471 | CI60: 440 | CJ60: 431 | CK60: 378 | CL60: 350 | CM60: 336 | CN60: 360 | CO60: 334 | CP60: 305 | CQ60: 274 | CR60: 245 | CS60: 269 | CT60: 194 | CU60: 165 | CV60: 160 | CW60: 115 | CX60: 115 | CY60: 460 | CZ60: 2108 | DA60: 2027 | DB60: 2124 | DC60: 2040 | DD60: 1944 | DE60: 1831 | DF60: 2022 | DG60: 1924 | DH60: 1858 | DI60: 1712 | DJ60: 1697 | DK60: 1688 | DL60: 1686 | DM60: 1717 | DN60: 1519 | DO60: 1464 | DP60: 1419 | DQ60: 1467 | DR60: 1452 | DS60: 1270 | DT60: 1381 | DU60: 1427 | DV60: 1753 | DW60: 2110 | DX60: 2339 | DY60: 2848 | DZ60: 2947 | EA60: 3474 | EB60: 3606 | EC60: 3756 | ED60: 3721 | EE60: 4067 | EF60: 4273 | EG60: 3950 | EH60: 3452 | EI60: 3163 | EJ60: 3059 | EK60: 2696 | EL60: 2529 | EM60: 2632 | EN60: 2443 | EO60: 2131 | EP60: 1924 | EQ60: 1940 | ER60: 1845 | ES60: 1808 | ET60: 1750 | EU60: 1695 | EV60: 1657 | EW60: 1656 | EX60: 1536 | EY60: 1711 | EZ60: 1593 | FA60: 1674 | FB60: 1517 | FC60: 1381 | FD60: 1440 | FE60: 1393 | FF60: 1291 | FG60: 1189 | FH60: 1128 | FI60: 1052 | FJ60: 1032 | FK60: 984 | FL60: 922 | FM60: 868 | FN60: 861 | FO60: 747 | FP60: 726 | FQ60: 761 | FR60: 754 | FS60: 715 | FT60: 717 | FU60: 514 | FV60: 551 | FW60: 494 | FX60: 486 | FY60: 407 | FZ60: 373 | GA60: 366 | GB60: 353 | GC60: 332 | GD60: 342 | GE60: 318 | GF60: 302 | GG60: 234 | GH60: 220 | GI60: 160 | GJ60: 182 | GK60: 167 | GL60: 704
A61: England – CCGs | B61: County Durham | C61: England – CCGs - County Durham | D61: 208739 | E61: 219887 | F61: 530094 | G61: 260881 | H61: 269213 | I61: 208739 | J61: 219887 | K61: 52142 | L61: 49326 | M61: 2557 | N61: 2587 | O61: 2714 | P61: 2853 | Q61: 2845 | R61: 3018 | S61: 3134 | T61: 3097 | U61: 3218 | V61: 3129 | W61: 2962 | X61: 3072 | Y61: 3078 | Z61: 2968 | AA61: 2851 | AB61: 2711 | AC61: 2733 | AD61: 2615 | AE61: 2913 | AF61: 3903 | AG61: 4344 | AH61: 4196 | AI61: 3677 | AJ61: 3330 | AK61: 3355 | AL61: 3436 | AM61: 3314 | AN61: 3487 | AO61: 3535 | AP61: 3323 | AQ61: 2847 | AR61: 2810 | AS61: 2816 | AT61: 2991 | AU61: 3077 | AV61: 2950 | AW61: 3287 | AX61: 3082 | AY61: 2980 | AZ61: 2988 | BA61: 2888 | BB61: 2651 | BC61: 2475 | BD61: 2655 | BE61: 2781 | BF61: 2869 | BG61: 3139 | BH61: 3368 | BI61: 3710 | BJ61: 3498 | BK61: 3723 | BL61: 3726 | BM61: 3915 | BN61: 3965 | BO61: 3992 | BP61: 3942 | BQ61: 3883 | BR61: 3911 | BS61: 3611 | BT61: 3409 | BU61: 3493 | BV61: 3383 | BW61: 3369 | BX61: 3210 | BY61: 3206 | BZ61: 3023 | CA61: 3099 | CB61: 2987 | CC61: 3030 | CD61: 3023 | CE61: 3107 | CF61: 3107 | CG61: 3529 | CH61: 2621 | CI61: 2587 | CJ61: 2478 | CK61: 2085 | CL61: 1848 | CM61: 1703 | CN61: 1679 | CO61: 1584 | CP61: 1467 | CQ61: 1389 | CR61: 1140 | CS61: 1032 | CT61: 924 | CU61: 783 | CV61: 662 | CW61: 578 | CX61: 451 | CY61: 1410 | CZ61: 2333 | DA61: 2498 | DB61: 2578 | DC61: 2630 | DD61: 2752 | DE61: 2808 | DF61: 2859 | DG61: 2881 | DH61: 3060 | DI61: 3068 | DJ61: 2819 | DK61: 3015 | DL61: 2835 | DM61: 2893 | DN61: 2716 | DO61: 2607 | DP61: 2558 | DQ61: 2416 | DR61: 2736 | DS61: 3753 | DT61: 4144 | DU61: 3906 | DV61: 3392 | DW61: 3080 | DX61: 3064 | DY61: 3097 | DZ61: 3321 | EA61: 3606 | EB61: 3517 | EC61: 3191 | ED61: 3165 | EE61: 3113 | EF61: 2998 | EG61: 3305 | EH61: 3210 | EI61: 3013 | EJ61: 3105 | EK61: 3101 | EL61: 3141 | EM61: 3177 | EN61: 2981 | EO61: 2815 | EP61: 2779 | EQ61: 2840 | ER61: 2874 | ES61: 2979 | ET61: 3332 | EU61: 3493 | EV61: 3816 | EW61: 3629 | EX61: 3801 | EY61: 4004 | EZ61: 3932 | FA61: 4009 | FB61: 4118 | FC61: 4161 | FD61: 3999 | FE61: 3893 | FF61: 3803 | FG61: 3614 | FH61: 3807 | FI61: 3734 | FJ61: 3480 | FK61: 3428 | FL61: 3305 | FM61: 3222 | FN61: 3265 | FO61: 3095 | FP61: 3163 | FQ61: 3231 | FR61: 3299 | FS61: 3384 | FT61: 3637 | FU61: 2781 | FV61: 2708 | FW61: 2651 | FX61: 2327 | FY61: 2126 | FZ61: 1958 | GA61: 1950 | GB61: 1932 | GC61: 1841 | GD61: 1729 | GE61: 1508 | GF61: 1452 | GG61: 1235 | GH61: 1095 | GI61: 976 | GJ61: 952 | GK61: 778 | GL61: 2831
A62: England – CCGs | B62: Coventry and Rugby | C62: England – CCGs - Coventry and Rugby | D62: 189361 | E62: 186762 | F62: 480456 | G62: 243030 | H62: 237426 | I62: 189361 | J62: 186762 | K62: 53669 | L62: 50664 | M62: 2909 | N62: 2907 | O62: 2992 | P62: 3072 | Q62: 3101 | R62: 3172 | S62: 3200 | T62: 3424 | U62: 3356 | V62: 3174 | W62: 3083 | X62: 3036 | Y62: 2989 | Z62: 2848 | AA62: 2601 | AB62: 2664 | AC62: 2601 | AD62: 2540 | AE62: 2924 | AF62: 4706 | AG62: 4810 | AH62: 4831 | AI62: 4958 | AJ62: 5269 | AK62: 4912 | AL62: 4768 | AM62: 4745 | AN62: 4602 | AO62: 4618 | AP62: 4524 | AQ62: 4393 | AR62: 4060 | AS62: 3802 | AT62: 3732 | AU62: 3666 | AV62: 3448 | AW62: 3314 | AX62: 3173 | AY62: 3160 | AZ62: 3104 | BA62: 2993 | BB62: 2766 | BC62: 2609 | BD62: 2690 | BE62: 2762 | BF62: 2792 | BG62: 2786 | BH62: 2803 | BI62: 2832 | BJ62: 2855 | BK62: 2834 | BL62: 2844 | BM62: 2798 | BN62: 2709 | BO62: 2662 | BP62: 2686 | BQ62: 2802 | BR62: 2579 | BS62: 2509 | BT62: 2370 | BU62: 2392 | BV62: 2237 | BW62: 2011 | BX62: 1981 | BY62: 1900 | BZ62: 1947 | CA62: 1859 | CB62: 1758 | CC62: 1752 | CD62: 1757 | CE62: 1814 | CF62: 1817 | CG62: 1913 | CH62: 1643 | CI62: 1603 | CJ62: 1570 | CK62: 1443 | CL62: 1236 | CM62: 1125 | CN62: 1113 | CO62: 1121 | CP62: 1007 | CQ62: 898 | CR62: 849 | CS62: 735 | CT62: 602 | CU62: 566 | CV62: 473 | CW62: 433 | CX62: 330 | CY62: 1276 | CZ62: 2665 | DA62: 2790 | DB62: 2983 | DC62: 2955 | DD62: 2957 | DE62: 2904 | DF62: 3130 | DG62: 3140 | DH62: 2988 | DI62: 2930 | DJ62: 2916 | DK62: 2870 | DL62: 2770 | DM62: 2654 | DN62: 2561 | DO62: 2579 | DP62: 2439 | DQ62: 2433 | DR62: 2869 | DS62: 4051 | DT62: 3893 | DU62: 3929 | DV62: 4296 | DW62: 4710 | DX62: 4302 | DY62: 4412 | DZ62: 4314 | EA62: 4360 | EB62: 4218 | EC62: 4195 | ED62: 3974 | EE62: 3735 | EF62: 3698 | EG62: 3642 | EH62: 3318 | EI62: 3220 | EJ62: 3267 | EK62: 3058 | EL62: 2981 | EM62: 3191 | EN62: 2801 | EO62: 2666 | EP62: 2574 | EQ62: 2641 | ER62: 2585 | ES62: 2734 | ET62: 2816 | EU62: 2835 | EV62: 2785 | EW62: 2844 | EX62: 2879 | EY62: 2800 | EZ62: 2809 | FA62: 2829 | FB62: 2792 | FC62: 2708 | FD62: 2650 | FE62: 2564 | FF62: 2534 | FG62: 2339 | FH62: 2238 | FI62: 2169 | FJ62: 2170 | FK62: 2042 | FL62: 1999 | FM62: 1927 | FN62: 1939 | FO62: 1853 | FP62: 1824 | FQ62: 1925 | FR62: 1911 | FS62: 2049 | FT62: 2094 | FU62: 1695 | FV62: 1807 | FW62: 1827 | FX62: 1734 | FY62: 1344 | FZ62: 1336 | GA62: 1282 | GB62: 1284 | GC62: 1209 | GD62: 1142 | GE62: 1152 | GF62: 953 | GG62: 887 | GH62: 754 | GI62: 700 | GJ62: 642 | GK62: 602 | GL62: 2454
A63: England – CCGs | B63: Derby and Derbyshire | C63: England – CCGs - Derby and Derbyshire | D63: 399469 | E63: 419506 | F63: 1026426 | G63: 505515 | H63: 520911 | I63: 399469 | J63: 419506 | K63: 106046 | L63: 101405 | M63: 5174 | N63: 5391 | O63: 5639 | P63: 5730 | Q63: 5956 | R63: 5888 | S63: 6118 | T63: 6238 | U63: 6187 | V63: 6323 | W63: 6171 | X63: 6271 | Y63: 6089 | Z63: 5951 | AA63: 5860 | AB63: 5877 | AC63: 5657 | AD63: 5526 | AE63: 5627 | AF63: 5409 | AG63: 5649 | AH63: 5709 | AI63: 5884 | AJ63: 6204 | AK63: 6197 | AL63: 6245 | AM63: 6395 | AN63: 6442 | AO63: 6720 | AP63: 6378 | AQ63: 6474 | AR63: 6110 | AS63: 6142 | AT63: 6029 | AU63: 5876 | AV63: 5942 | AW63: 5940 | AX63: 5927 | AY63: 6123 | AZ63: 5985 | BA63: 5682 | BB63: 5326 | BC63: 5315 | BD63: 5666 | BE63: 6150 | BF63: 6287 | BG63: 6559 | BH63: 7269 | BI63: 7570 | BJ63: 7116 | BK63: 7720 | BL63: 7836 | BM63: 7965 | BN63: 7819 | BO63: 7824 | BP63: 7584 | BQ63: 7536 | BR63: 7230 | BS63: 7035 | BT63: 6655 | BU63: 6570 | BV63: 6439 | BW63: 6171 | BX63: 6094 | BY63: 5590 | BZ63: 5692 | CA63: 5745 | CB63: 5421 | CC63: 5611 | CD63: 5670 | CE63: 5625 | CF63: 5923 | CG63: 6505 | CH63: 4898 | CI63: 4886 | CJ63: 4759 | CK63: 4218 | CL63: 3589 | CM63: 3148 | CN63: 3110 | CO63: 3103 | CP63: 2862 | CQ63: 2421 | CR63: 2218 | CS63: 1963 | CT63: 1751 | CU63: 1514 | CV63: 1375 | CW63: 1174 | CX63: 956 | CY63: 2917 | CZ63: 5055 | DA63: 5176 | DB63: 5364 | DC63: 5605 | DD63: 5418 | DE63: 5728 | DF63: 5895 | DG63: 6175 | DH63: 6070 | DI63: 5975 | DJ63: 5780 | DK63: 6111 | DL63: 5706 | DM63: 5742 | DN63: 5550 | DO63: 5458 | DP63: 5331 | DQ63: 5266 | DR63: 5236 | DS63: 4790 | DT63: 5086 | DU63: 5098 | DV63: 5732 | DW63: 5733 | DX63: 5863 | DY63: 6183 | DZ63: 6144 | EA63: 6494 | EB63: 6523 | EC63: 6479 | ED63: 6467 | EE63: 6471 | EF63: 6402 | EG63: 6405 | EH63: 6495 | EI63: 6113 | EJ63: 6237 | EK63: 6131 | EL63: 6378 | EM63: 6374 | EN63: 6243 | EO63: 5697 | EP63: 5637 | EQ63: 6002 | ER63: 6129 | ES63: 6410 | ET63: 6913 | EU63: 7287 | EV63: 7716 | EW63: 7686 | EX63: 7908 | EY63: 7738 | EZ63: 7999 | FA63: 8105 | FB63: 7965 | FC63: 7860 | FD63: 7538 | FE63: 7344 | FF63: 6916 | FG63: 6699 | FH63: 6688 | FI63: 6482 | FJ63: 6174 | FK63: 6066 | FL63: 5777 | FM63: 6035 | FN63: 5709 | FO63: 5709 | FP63: 5641 | FQ63: 5836 | FR63: 6078 | FS63: 6574 | FT63: 6897 | FU63: 5291 | FV63: 5104 | FW63: 5420 | FX63: 4720 | FY63: 4112 | FZ63: 3568 | GA63: 3665 | GB63: 3587 | GC63: 3487 | GD63: 3182 | GE63: 2973 | GF63: 2821 | GG63: 2454 | GH63: 2327 | GI63: 2109 | GJ63: 1891 | GK63: 1624 | GL63: 6879
A64: England – CCGs | B64: Devon | C64: England – CCGs - Devon | D64: 472824 | E64: 502584 | F64: 1200739 | G64: 588651 | H64: 612088 | I64: 472824 | J64: 502584 | K64: 115827 | L64: 109504 | M64: 5519 | N64: 5712 | O64: 5902 | P64: 6350 | Q64: 6360 | R64: 6602 | S64: 6816 | T64: 7123 | U64: 6985 | V64: 6854 | W64: 6684 | X64: 6919 | Y64: 6774 | Z64: 6502 | AA64: 6332 | AB64: 6206 | AC64: 6205 | AD64: 5982 | AE64: 6465 | AF64: 7602 | AG64: 8122 | AH64: 7750 | AI64: 7873 | AJ64: 7516 | AK64: 6738 | AL64: 7068 | AM64: 7045 | AN64: 7327 | AO64: 7701 | AP64: 7423 | AQ64: 7069 | AR64: 6808 | AS64: 6448 | AT64: 6451 | AU64: 6366 | AV64: 6412 | AW64: 6440 | AX64: 6490 | AY64: 6340 | AZ64: 6381 | BA64: 6246 | BB64: 5797 | BC64: 5769 | BD64: 5897 | BE64: 6291 | BF64: 6567 | BG64: 6857 | BH64: 7272 | BI64: 7608 | BJ64: 7617 | BK64: 8007 | BL64: 7949 | BM64: 8199 | BN64: 8284 | BO64: 8620 | BP64: 8713 | BQ64: 8376 | BR64: 8322 | BS64: 8025 | BT64: 8022 | BU64: 7928 | BV64: 7924 | BW64: 7686 | BX64: 7399 | BY64: 7132 | BZ64: 7176 | CA64: 7282 | CB64: 7086 | CC64: 7055 | CD64: 7528 | CE64: 7711 | CF64: 8096 | CG64: 8894 | CH64: 6850 | CI64: 6547 | CJ64: 6437 | CK64: 5923 | CL64: 4995 | CM64: 4290 | CN64: 4293 | CO64: 4007 | CP64: 3825 | CQ64: 3526 | CR64: 3236 | CS64: 2881 | CT64: 2504 | CU64: 2263 | CV64: 2026 | CW64: 1773 | CX64: 1435 | CY64: 4843 | CZ64: 5162 | DA64: 5357 | DB64: 5652 | DC64: 6023 | DD64: 6100 | DE64: 6211 | DF64: 6322 | DG64: 6793 | DH64: 6655 | DI64: 6669 | DJ64: 6305 | DK64: 6486 | DL64: 6292 | DM64: 6213 | DN64: 6024 | DO64: 5786 | DP64: 5805 | DQ64: 5649 | DR64: 6010 | DS64: 7776 | DT64: 7999 | DU64: 7534 | DV64: 6817 | DW64: 6074 | DX64: 6130 | DY64: 6286 | DZ64: 6170 | EA64: 6751 | EB64: 6752 | EC64: 6781 | ED64: 6406 | EE64: 6763 | EF64: 6653 | EG64: 6489 | EH64: 6507 | EI64: 6744 | EJ64: 6693 | EK64: 6744 | EL64: 6554 | EM64: 6758 | EN64: 6618 | EO64: 6086 | EP64: 6115 | EQ64: 6359 | ER64: 6560 | ES64: 6708 | ET64: 7293 | EU64: 7672 | EV64: 8231 | EW64: 8336 | EX64: 8593 | EY64: 8465 | EZ64: 8898 | FA64: 8894 | FB64: 9106 | FC64: 9127 | FD64: 8895 | FE64: 8935 | FF64: 8717 | FG64: 8422 | FH64: 8378 | FI64: 8126 | FJ64: 8289 | FK64: 7804 | FL64: 7705 | FM64: 7933 | FN64: 7830 | FO64: 7752 | FP64: 7874 | FQ64: 7892 | FR64: 8277 | FS64: 8910 | FT64: 9546 | FU64: 7411 | FV64: 7147 | FW64: 6959 | FX64: 6397 | FY64: 5663 | FZ64: 5009 | GA64: 5055 | GB64: 4924 | GC64: 4638 | GD64: 4384 | GE64: 4022 | GF64: 3709 | GG64: 3485 | GH64: 3231 | GI64: 3018 | GJ64: 2694 | GK64: 2507 | GL64: 10594
A65: England – CCGs | B65: Doncaster | C65: England – CCGs - Doncaster | D65: 120905 | E65: 124067 | F65: 311890 | G65: 155108 | H65: 156782 | I65: 120905 | J65: 124067 | K65: 34203 | L65: 32715 | M65: 1772 | N65: 1818 | O65: 1859 | P65: 1948 | Q65: 1895 | R65: 1972 | S65: 2009 | T65: 2028 | U65: 2025 | V65: 1967 | W65: 2113 | X65: 2036 | Y65: 1868 | Z65: 1867 | AA65: 1868 | AB65: 1753 | AC65: 1663 | AD65: 1742 | AE65: 1712 | AF65: 1481 | AG65: 1491 | AH65: 1571 | AI65: 1773 | AJ65: 1787 | AK65: 1853 | AL65: 2004 | AM65: 2059 | AN65: 2049 | AO65: 2244 | AP65: 2195 | AQ65: 2029 | AR65: 2096 | AS65: 2110 | AT65: 2174 | AU65: 2214 | AV65: 2080 | AW65: 2107 | AX65: 2023 | AY65: 2105 | AZ65: 2029 | BA65: 1877 | BB65: 1796 | BC65: 1624 | BD65: 1859 | BE65: 1888 | BF65: 1843 | BG65: 2018 | BH65: 2000 | BI65: 2188 | BJ65: 2111 | BK65: 2094 | BL65: 2168 | BM65: 2088 | BN65: 2232 | BO65: 2152 | BP65: 2285 | BQ65: 2303 | BR65: 2177 | BS65: 2174 | BT65: 2046 | BU65: 2011 | BV65: 1962 | BW65: 1880 | BX65: 1877 | BY65: 1737 | BZ65: 1681 | CA65: 1655 | CB65: 1640 | CC65: 1652 | CD65: 1496 | CE65: 1702 | CF65: 1644 | CG65: 1757 | CH65: 1353 | CI65: 1335 | CJ65: 1292 | CK65: 1111 | CL65: 1033 | CM65: 914 | CN65: 883 | CO65: 798 | CP65: 755 | CQ65: 711 | CR65: 652 | CS65: 554 | CT65: 473 | CU65: 466 | CV65: 412 | CW65: 286 | CX65: 265 | CY65: 809 | CZ65: 1646 | DA65: 1772 | DB65: 1762 | DC65: 1756 | DD65: 1839 | DE65: 1836 | DF65: 1914 | DG65: 1872 | DH65: 1941 | DI65: 1927 | DJ65: 2020 | DK65: 1980 | DL65: 1863 | DM65: 1858 | DN65: 1761 | DO65: 1710 | DP65: 1640 | DQ65: 1618 | DR65: 1572 | DS65: 1221 | DT65: 1269 | DU65: 1403 | DV65: 1657 | DW65: 1757 | DX65: 1870 | DY65: 1866 | DZ65: 1914 | EA65: 1993 | EB65: 2149 | EC65: 2058 | ED65: 2172 | EE65: 2161 | EF65: 2202 | EG65: 2125 | EH65: 2140 | EI65: 2034 | EJ65: 1962 | EK65: 1967 | EL65: 1936 | EM65: 2041 | EN65: 1670 | EO65: 1610 | EP65: 1657 | EQ65: 1655 | ER65: 1762 | ES65: 1805 | ET65: 1981 | EU65: 1980 | EV65: 2228 | EW65: 2074 | EX65: 2264 | EY65: 2207 | EZ65: 2280 | FA65: 2274 | FB65: 2295 | FC65: 2268 | FD65: 2197 | FE65: 2159 | FF65: 2065 | FG65: 2106 | FH65: 2019 | FI65: 2060 | FJ65: 1943 | FK65: 1836 | FL65: 1787 | FM65: 1807 | FN65: 1752 | FO65: 1685 | FP65: 1727 | FQ65: 1686 | FR65: 1729 | FS65: 1857 | FT65: 1914 | FU65: 1460 | FV65: 1430 | FW65: 1419 | FX65: 1209 | FY65: 1089 | FZ65: 1062 | GA65: 1075 | GB65: 1103 | GC65: 986 | GD65: 975 | GE65: 925 | GF65: 835 | GG65: 729 | GH65: 664 | GI65: 608 | GJ65: 515 | GK65: 424 | GL65: 1751
A66: England – CCGs | B66: Dorset | C66: England – CCGs - Dorset | D66: 308305 | E66: 322098 | F66: 773839 | G66: 382000 | H66: 391839 | I66: 308305 | J66: 322098 | K66: 73695 | L66: 69741 | M66: 3349 | N66: 3502 | O66: 3751 | P66: 3911 | Q66: 3907 | R66: 4138 | S66: 4204 | T66: 4578 | U66: 4402 | V66: 4303 | W66: 4269 | X66: 4490 | Y66: 4352 | Z66: 4158 | AA66: 4213 | AB66: 4098 | AC66: 4031 | AD66: 4039 | AE66: 4159 | AF66: 4526 | AG66: 4629 | AH66: 4506 | AI66: 4583 | AJ66: 4180 | AK66: 3924 | AL66: 4015 | AM66: 4075 | AN66: 4116 | AO66: 4382 | AP66: 4306 | AQ66: 4074 | AR66: 4183 | AS66: 4323 | AT66: 4149 | AU66: 4155 | AV66: 3904 | AW66: 4062 | AX66: 4325 | AY66: 4753 | AZ66: 4653 | BA66: 4564 | BB66: 4049 | BC66: 4164 | BD66: 4238 | BE66: 4481 | BF66: 4486 | BG66: 4629 | BH66: 5014 | BI66: 5203 | BJ66: 5177 | BK66: 5204 | BL66: 5300 | BM66: 5480 | BN66: 5576 | BO66: 5599 | BP66: 5649 | BQ66: 5562 | BR66: 5593 | BS66: 5169 | BT66: 4997 | BU66: 4995 | BV66: 5025 | BW66: 4832 | BX66: 4691 | BY66: 4623 | BZ66: 4535 | CA66: 4582 | CB66: 4602 | CC66: 4687 | CD66: 4857 | CE66: 4832 | CF66: 5458 | CG66: 6088 | CH66: 4602 | CI66: 4311 | CJ66: 4219 | CK66: 3989 | CL66: 3444 | CM66: 2928 | CN66: 2884 | CO66: 2864 | CP66: 2856 | CQ66: 2571 | CR66: 2257 | CS66: 2174 | CT66: 1842 | CU66: 1614 | CV66: 1473 | CW66: 1317 | CX66: 1163 | CY66: 3874 | CZ66: 3140 | DA66: 3387 | DB66: 3549 | DC66: 3816 | DD66: 3838 | DE66: 3870 | DF66: 3903 | DG66: 4217 | DH66: 4177 | DI66: 4179 | DJ66: 4157 | DK66: 4230 | DL66: 4028 | DM66: 3902 | DN66: 3936 | DO66: 3900 | DP66: 3917 | DQ66: 3595 | DR66: 3897 | DS66: 3901 | DT66: 4248 | DU66: 4247 | DV66: 4016 | DW66: 3680 | DX66: 3494 | DY66: 3654 | DZ66: 3508 | EA66: 3810 | EB66: 3905 | EC66: 3745 | ED66: 3884 | EE66: 4109 | EF66: 4122 | EG66: 4086 | EH66: 4356 | EI66: 4266 | EJ66: 4222 | EK66: 4533 | EL66: 4649 | EM66: 4580 | EN66: 4407 | EO66: 4039 | EP66: 4132 | EQ66: 4103 | ER66: 4367 | ES66: 4506 | ET66: 4682 | EU66: 5005 | EV66: 5281 | EW66: 5237 | EX66: 5268 | EY66: 5359 | EZ66: 5567 | FA66: 5577 | FB66: 5690 | FC66: 5868 | FD66: 5711 | FE66: 5706 | FF66: 5448 | FG66: 5283 | FH66: 5285 | FI66: 5380 | FJ66: 5214 | FK66: 4866 | FL66: 4882 | FM66: 5213 | FN66: 4992 | FO66: 4970 | FP66: 5148 | FQ66: 5504 | FR66: 5409 | FS66: 5884 | FT66: 6496 | FU66: 4937 | FV66: 4742 | FW66: 4689 | FX66: 4281 | FY66: 3836 | FZ66: 3245 | GA66: 3403 | GB66: 3353 | GC66: 3309 | GD66: 3002 | GE66: 2798 | GF66: 2683 | GG66: 2477 | GH66: 2393 | GI66: 2200 | GJ66: 2088 | GK66: 1805 | GL66: 7466
A67: England – CCGs | B67: Dudley | C67: England – CCGs - Dudley | D67: 122274 | E67: 129778 | F67: 321596 | G67: 157717 | H67: 163879 | I67: 122274 | J67: 129778 | K67: 35443 | L67: 34101 | M67: 1845 | N67: 1939 | O67: 1985 | P67: 1928 | Q67: 1941 | R67: 2023 | S67: 2100 | T67: 2079 | U67: 2051 | V67: 2066 | W67: 2005 | X67: 2032 | Y67: 1863 | Z67: 2007 | AA67: 1975 | AB67: 1976 | AC67: 1767 | AD67: 1861 | AE67: 1835 | AF67: 1606 | AG67: 1608 | AH67: 1617 | AI67: 1798 | AJ67: 1827 | AK67: 1868 | AL67: 1988 | AM67: 1879 | AN67: 2021 | AO67: 1979 | AP67: 1873 | AQ67: 1999 | AR67: 1938 | AS67: 2011 | AT67: 2002 | AU67: 1899 | AV67: 1886 | AW67: 1985 | AX67: 1925 | AY67: 1926 | AZ67: 1931 | BA67: 1824 | BB67: 1789 | BC67: 1633 | BD67: 1815 | BE67: 1870 | BF67: 1884 | BG67: 1995 | BH67: 2225 | BI67: 2333 | BJ67: 2391 | BK67: 2364 | BL67: 2355 | BM67: 2308 | BN67: 2258 | BO67: 2303 | BP67: 2304 | BQ67: 2143 | BR67: 2208 | BS67: 2032 | BT67: 1889 | BU67: 1853 | BV67: 1841 | BW67: 1807 | BX67: 1713 | BY67: 1668 | BZ67: 1644 | CA67: 1756 | CB67: 1600 | CC67: 1612 | CD67: 1606 | CE67: 1654 | CF67: 1720 | CG67: 1899 | CH67: 1470 | CI67: 1491 | CJ67: 1544 | CK67: 1412 | CL67: 1205 | CM67: 1033 | CN67: 1097 | CO67: 981 | CP67: 983 | CQ67: 873 | CR67: 777 | CS67: 685 | CT67: 522 | CU67: 524 | CV67: 405 | CW67: 386 | CX67: 316 | CY67: 873 | CZ67: 1683 | DA67: 1814 | DB67: 1860 | DC67: 1908 | DD67: 1865 | DE67: 1995 | DF67: 1977 | DG67: 2027 | DH67: 1982 | DI67: 1948 | DJ67: 1901 | DK67: 1957 | DL67: 1902 | DM67: 1964 | DN67: 1938 | DO67: 1821 | DP67: 1784 | DQ67: 1775 | DR67: 1732 | DS67: 1470 | DT67: 1443 | DU67: 1579 | DV67: 1748 | DW67: 1892 | DX67: 1858 | DY67: 1943 | DZ67: 2000 | EA67: 2022 | EB67: 2065 | EC67: 2073 | ED67: 2094 | EE67: 2071 | EF67: 2123 | EG67: 2109 | EH67: 2129 | EI67: 2003 | EJ67: 2072 | EK67: 2066 | EL67: 1963 | EM67: 2120 | EN67: 1992 | EO67: 1763 | EP67: 1814 | EQ67: 1726 | ER67: 1813 | ES67: 1923 | ET67: 2047 | EU67: 2280 | EV67: 2435 | EW67: 2372 | EX67: 2347 | EY67: 2371 | EZ67: 2392 | FA67: 2264 | FB67: 2444 | FC67: 2317 | FD67: 2217 | FE67: 2242 | FF67: 1994 | FG67: 1929 | FH67: 1879 | FI67: 1818 | FJ67: 1799 | FK67: 1833 | FL67: 1658 | FM67: 1709 | FN67: 1725 | FO67: 1767 | FP67: 1747 | FQ67: 1754 | FR67: 1815 | FS67: 1787 | FT67: 1961 | FU67: 1555 | FV67: 1662 | FW67: 1735 | FX67: 1556 | FY67: 1418 | FZ67: 1206 | GA67: 1200 | GB67: 1249 | GC67: 1223 | GD67: 1090 | GE67: 1045 | GF67: 988 | GG67: 796 | GH67: 751 | GI67: 660 | GJ67: 634 | GK67: 544 | GL67: 1957
A68: England – CCGs | B68: Ealing | C68: England – CCGs - Ealing | D68: 129916 | E68: 129718 | F68: 341806 | G68: 172025 | H68: 169781 | I68: 129916 | J68: 129718 | K68: 42109 | L68: 40063 | M68: 2411 | N68: 2467 | O68: 2495 | P68: 2491 | Q68: 2560 | R68: 2576 | S68: 2540 | T68: 2643 | U68: 2532 | V68: 2500 | W68: 2265 | X68: 2371 | Y68: 2227 | Z68: 2194 | AA68: 2029 | AB68: 1962 | AC68: 1937 | AD68: 1909 | AE68: 2043 | AF68: 1833 | AG68: 1600 | AH68: 1688 | AI68: 1804 | AJ68: 2285 | AK68: 2280 | AL68: 2544 | AM68: 2335 | AN68: 2549 | AO68: 2685 | AP68: 2702 | AQ68: 2889 | AR68: 2666 | AS68: 2727 | AT68: 3044 | AU68: 2884 | AV68: 2719 | AW68: 2716 | AX68: 2863 | AY68: 2859 | AZ68: 2944 | BA68: 2958 | BB68: 2521 | BC68: 2671 | BD68: 2601 | BE68: 2498 | BF68: 2445 | BG68: 2320 | BH68: 2485 | BI68: 2499 | BJ68: 2483 | BK68: 2421 | BL68: 2368 | BM68: 2323 | BN68: 2155 | BO68: 2193 | BP68: 2168 | BQ68: 2003 | BR68: 2006 | BS68: 1838 | BT68: 1739 | BU68: 1764 | BV68: 1634 | BW68: 1541 | BX68: 1564 | BY68: 1463 | BZ68: 1471 | CA68: 1357 | CB68: 1281 | CC68: 1276 | CD68: 1233 | CE68: 1161 | CF68: 1141 | CG68: 1078 | CH68: 862 | CI68: 841 | CJ68: 799 | CK68: 782 | CL68: 700 | CM68: 664 | CN68: 697 | CO68: 704 | CP68: 641 | CQ68: 542 | CR68: 495 | CS68: 465 | CT68: 391 | CU68: 364 | CV68: 299 | CW68: 280 | CX68: 223 | CY68: 849 | CZ68: 2410 | DA68: 2346 | DB68: 2419 | DC68: 2367 | DD68: 2338 | DE68: 2376 | DF68: 2567 | DG68: 2436 | DH68: 2368 | DI68: 2198 | DJ68: 2131 | DK68: 2295 | DL68: 2141 | DM68: 2070 | DN68: 1919 | DO68: 1853 | DP68: 1919 | DQ68: 1910 | DR68: 1749 | DS68: 1546 | DT68: 1501 | DU68: 1574 | DV68: 1708 | DW68: 2106 | DX68: 2175 | DY68: 2109 | DZ68: 2197 | EA68: 2201 | EB68: 2356 | EC68: 2462 | ED68: 2468 | EE68: 2708 | EF68: 2648 | EG68: 2788 | EH68: 2699 | EI68: 2625 | EJ68: 2695 | EK68: 2708 | EL68: 2918 | EM68: 2748 | EN68: 2698 | EO68: 2425 | EP68: 2471 | EQ68: 2529 | ER68: 2445 | ES68: 2671 | ET68: 2493 | EU68: 2453 | EV68: 2358 | EW68: 2343 | EX68: 2384 | EY68: 2314 | EZ68: 2249 | FA68: 2339 | FB68: 2218 | FC68: 2080 | FD68: 2070 | FE68: 2040 | FF68: 1913 | FG68: 1848 | FH68: 1766 | FI68: 1713 | FJ68: 1715 | FK68: 1600 | FL68: 1644 | FM68: 1522 | FN68: 1573 | FO68: 1438 | FP68: 1261 | FQ68: 1267 | FR68: 1320 | FS68: 1226 | FT68: 1225 | FU68: 1076 | FV68: 925 | FW68: 944 | FX68: 911 | FY68: 870 | FZ68: 761 | GA68: 779 | GB68: 760 | GC68: 773 | GD68: 655 | GE68: 693 | GF68: 620 | GG68: 572 | GH68: 458 | GI68: 459 | GJ68: 416 | GK68: 359 | GL68: 1387
A69: England – CCGs | B69: East and North Hertfordshire | C69: England – CCGs - East and North Hertfordshire | D69: 215442 | E69: 230147 | F69: 571713 | G69: 280099 | H69: 291614 | I69: 215442 | J69: 230147 | K69: 64657 | L69: 61467 | M69: 3291 | N69: 3511 | O69: 3612 | P69: 3583 | Q69: 3588 | R69: 3693 | S69: 3835 | T69: 3914 | U69: 3834 | V69: 3909 | W69: 3683 | X69: 3785 | Y69: 3610 | Z69: 3485 | AA69: 3389 | AB69: 3410 | AC69: 3224 | AD69: 3301 | AE69: 3239 | AF69: 3090 | AG69: 3164 | AH69: 3319 | AI69: 3582 | AJ69: 3510 | AK69: 3594 | AL69: 3733 | AM69: 3703 | AN69: 3615 | AO69: 3651 | AP69: 3666 | AQ69: 3601 | AR69: 3632 | AS69: 3595 | AT69: 3740 | AU69: 3601 | AV69: 3590 | AW69: 3565 | AX69: 3749 | AY69: 3884 | AZ69: 4059 | BA69: 3923 | BB69: 3608 | BC69: 3526 | BD69: 3584 | BE69: 3593 | BF69: 3767 | BG69: 3783 | BH69: 3833 | BI69: 3950 | BJ69: 3858 | BK69: 4011 | BL69: 3987 | BM69: 4038 | BN69: 4114 | BO69: 4196 | BP69: 4049 | BQ69: 3906 | BR69: 3816 | BS69: 3621 | BT69: 3420 | BU69: 3365 | BV69: 3257 | BW69: 3161 | BX69: 2927 | BY69: 2679 | BZ69: 2636 | CA69: 2559 | CB69: 2415 | CC69: 2384 | CD69: 2419 | CE69: 2419 | CF69: 2638 | CG69: 2892 | CH69: 2055 | CI69: 2081 | CJ69: 1996 | CK69: 1874 | CL69: 1588 | CM69: 1406 | CN69: 1429 | CO69: 1426 | CP69: 1378 | CQ69: 1273 | CR69: 1151 | CS69: 1085 | CT69: 947 | CU69: 808 | CV69: 772 | CW69: 654 | CX69: 597 | CY69: 1706 | CZ69: 3089 | DA69: 3261 | DB69: 3292 | DC69: 3510 | DD69: 3485 | DE69: 3520 | DF69: 3502 | DG69: 3825 | DH69: 3706 | DI69: 3703 | DJ69: 3556 | DK69: 3532 | DL69: 3463 | DM69: 3353 | DN69: 3245 | DO69: 3230 | DP69: 3115 | DQ69: 3080 | DR69: 3100 | DS69: 2901 | DT69: 3067 | DU69: 3160 | DV69: 3448 | DW69: 3517 | DX69: 3553 | DY69: 3578 | DZ69: 3526 | EA69: 3494 | EB69: 3580 | EC69: 3630 | ED69: 3865 | EE69: 3872 | EF69: 3935 | EG69: 4029 | EH69: 3882 | EI69: 4069 | EJ69: 4029 | EK69: 3937 | EL69: 4290 | EM69: 4335 | EN69: 3999 | EO69: 3688 | EP69: 3748 | EQ69: 3773 | ER69: 3873 | ES69: 3852 | ET69: 3977 | EU69: 4141 | EV69: 4291 | EW69: 3965 | EX69: 4150 | EY69: 4127 | EZ69: 4312 | FA69: 4353 | FB69: 4291 | FC69: 4181 | FD69: 4031 | FE69: 3886 | FF69: 3620 | FG69: 3515 | FH69: 3430 | FI69: 3202 | FJ69: 3051 | FK69: 2912 | FL69: 2800 | FM69: 2731 | FN69: 2616 | FO69: 2512 | FP69: 2553 | FQ69: 2605 | FR69: 2698 | FS69: 2797 | FT69: 3273 | FU69: 2371 | FV69: 2301 | FW69: 2279 | FX69: 2166 | FY69: 1904 | FZ69: 1677 | GA69: 1873 | GB69: 1774 | GC69: 1743 | GD69: 1675 | GE69: 1580 | GF69: 1591 | GG69: 1389 | GH69: 1173 | GI69: 1203 | GJ69: 1057 | GK69: 902 | GL69: 3739
A70: England – CCGs | B70: East Berkshire | C70: England – CCGs - East Berkshire | D70: 162167 | E70: 166627 | F70: 436701 | G70: 217892 | H70: 218809 | I70: 162167 | J70: 166627 | K70: 55725 | L70: 52182 | M70: 2738 | N70: 2907 | O70: 3031 | P70: 3151 | Q70: 3176 | R70: 3129 | S70: 3132 | T70: 3272 | U70: 3291 | V70: 3237 | W70: 3259 | X70: 3180 | Y70: 3197 | Z70: 3028 | AA70: 3154 | AB70: 3050 | AC70: 2979 | AD70: 2814 | AE70: 2821 | AF70: 2442 | AG70: 2344 | AH70: 2355 | AI70: 2467 | AJ70: 2686 | AK70: 2661 | AL70: 2517 | AM70: 2371 | AN70: 2442 | AO70: 2515 | AP70: 2632 | AQ70: 2711 | AR70: 2830 | AS70: 2897 | AT70: 2973 | AU70: 2915 | AV70: 3045 | AW70: 3312 | AX70: 3358 | AY70: 3434 | AZ70: 3661 | BA70: 3354 | BB70: 3344 | BC70: 3171 | BD70: 3336 | BE70: 3176 | BF70: 3305 | BG70: 3241 | BH70: 3237 | BI70: 3233 | BJ70: 3028 | BK70: 3108 | BL70: 3081 | BM70: 3118 | BN70: 2928 | BO70: 3132 | BP70: 2802 | BQ70: 2771 | BR70: 2832 | BS70: 2627 | BT70: 2332 | BU70: 2339 | BV70: 2241 | BW70: 2071 | BX70: 2026 | BY70: 2042 | BZ70: 1875 | CA70: 1762 | CB70: 1733 | CC70: 1756 | CD70: 1651 | CE70: 1580 | CF70: 1652 | CG70: 1746 | CH70: 1321 | CI70: 1321 | CJ70: 1280 | CK70: 1178 | CL70: 990 | CM70: 897 | CN70: 912 | CO70: 892 | CP70: 840 | CQ70: 805 | CR70: 706 | CS70: 649 | CT70: 582 | CU70: 505 | CV70: 423 | CW70: 406 | CX70: 271 | CY70: 1170 | CZ70: 2637 | DA70: 2802 | DB70: 2825 | DC70: 2918 | DD70: 2771 | DE70: 2961 | DF70: 2985 | DG70: 3168 | DH70: 3092 | DI70: 3225 | DJ70: 3105 | DK70: 2991 | DL70: 3090 | DM70: 2998 | DN70: 2744 | DO70: 2750 | DP70: 2599 | DQ70: 2521 | DR70: 2601 | DS70: 2483 | DT70: 2178 | DU70: 2339 | DV70: 2379 | DW70: 2509 | DX70: 2459 | DY70: 2480 | DZ70: 2342 | EA70: 2393 | EB70: 2571 | EC70: 2607 | ED70: 2713 | EE70: 2919 | EF70: 3062 | EG70: 3215 | EH70: 3371 | EI70: 3308 | EJ70: 3572 | EK70: 3495 | EL70: 3702 | EM70: 3576 | EN70: 3468 | EO70: 3373 | EP70: 3138 | EQ70: 2978 | ER70: 3128 | ES70: 2875 | ET70: 3118 | EU70: 3079 | EV70: 3187 | EW70: 2998 | EX70: 3098 | EY70: 3099 | EZ70: 2973 | FA70: 2904 | FB70: 2960 | FC70: 2777 | FD70: 2742 | FE70: 2612 | FF70: 2589 | FG70: 2517 | FH70: 2311 | FI70: 2276 | FJ70: 2104 | FK70: 1981 | FL70: 1901 | FM70: 1880 | FN70: 1806 | FO70: 1793 | FP70: 1732 | FQ70: 1674 | FR70: 1778 | FS70: 1827 | FT70: 1950 | FU70: 1559 | FV70: 1490 | FW70: 1436 | FX70: 1330 | FY70: 1185 | FZ70: 1055 | GA70: 1152 | GB70: 1066 | GC70: 1054 | GD70: 981 | GE70: 929 | GF70: 903 | GG70: 793 | GH70: 725 | GI70: 654 | GJ70: 591 | GK70: 516 | GL70: 2308
A71: England – CCGs | B71: East Lancashire | C71: England – CCGs - East Lancashire | D71: 144848 | E71: 151823 | F71: 382746 | G71: 189092 | H71: 193654 | I71: 144848 | J71: 151823 | K71: 44244 | L71: 41831 | M71: 2247 | N71: 2338 | O71: 2486 | P71: 2425 | Q71: 2477 | R71: 2440 | S71: 2589 | T71: 2562 | U71: 2616 | V71: 2641 | W71: 2589 | X71: 2563 | Y71: 2490 | Z71: 2439 | AA71: 2445 | AB71: 2319 | AC71: 2326 | AD71: 2252 | AE71: 2235 | AF71: 1926 | AG71: 1870 | AH71: 1868 | AI71: 2130 | AJ71: 2177 | AK71: 2145 | AL71: 2222 | AM71: 2263 | AN71: 2251 | AO71: 2486 | AP71: 2384 | AQ71: 2328 | AR71: 2405 | AS71: 2259 | AT71: 2354 | AU71: 2409 | AV71: 2316 | AW71: 2297 | AX71: 2335 | AY71: 2256 | AZ71: 2330 | BA71: 2198 | BB71: 2107 | BC71: 2098 | BD71: 2247 | BE71: 2207 | BF71: 2336 | BG71: 2390 | BH71: 2511 | BI71: 2594 | BJ71: 2645 | BK71: 2824 | BL71: 2882 | BM71: 2724 | BN71: 2618 | BO71: 2670 | BP71: 2691 | BQ71: 2621 | BR71: 2638 | BS71: 2514 | BT71: 2342 | BU71: 2400 | BV71: 2327 | BW71: 2279 | BX71: 2167 | BY71: 2037 | BZ71: 2073 | CA71: 2111 | CB71: 2032 | CC71: 1999 | CD71: 2036 | CE71: 2186 | CF71: 2300 | CG71: 2400 | CH71: 1778 | CI71: 1635 | CJ71: 1582 | CK71: 1461 | CL71: 1246 | CM71: 1204 | CN71: 1071 | CO71: 941 | CP71: 942 | CQ71: 866 | CR71: 756 | CS71: 684 | CT71: 583 | CU71: 489 | CV71: 417 | CW71: 373 | CX71: 353 | CY71: 1017 | CZ71: 2142 | DA71: 2155 | DB71: 2229 | DC71: 2387 | DD71: 2376 | DE71: 2443 | DF71: 2465 | DG71: 2475 | DH71: 2388 | DI71: 2497 | DJ71: 2516 | DK71: 2501 | DL71: 2343 | DM71: 2371 | DN71: 2237 | DO71: 2138 | DP71: 2080 | DQ71: 2088 | DR71: 2151 | DS71: 1630 | DT71: 1600 | DU71: 1809 | DV71: 1888 | DW71: 2048 | DX71: 2043 | DY71: 2153 | DZ71: 2138 | EA71: 2390 | EB71: 2457 | EC71: 2437 | ED71: 2492 | EE71: 2634 | EF71: 2493 | EG71: 2563 | EH71: 2422 | EI71: 2400 | EJ71: 2423 | EK71: 2511 | EL71: 2474 | EM71: 2387 | EN71: 2313 | EO71: 2170 | EP71: 2119 | EQ71: 2323 | ER71: 2317 | ES71: 2290 | ET71: 2494 | EU71: 2579 | EV71: 2788 | EW71: 2772 | EX71: 2863 | EY71: 2784 | EZ71: 2740 | FA71: 2651 | FB71: 2722 | FC71: 2726 | FD71: 2795 | FE71: 2704 | FF71: 2632 | FG71: 2514 | FH71: 2330 | FI71: 2411 | FJ71: 2384 | FK71: 2222 | FL71: 2210 | FM71: 2119 | FN71: 2108 | FO71: 1959 | FP71: 2110 | FQ71: 2123 | FR71: 2298 | FS71: 2394 | FT71: 2489 | FU71: 1809 | FV71: 1841 | FW71: 1810 | FX71: 1538 | FY71: 1387 | FZ71: 1275 | GA71: 1178 | GB71: 1202 | GC71: 1102 | GD71: 1045 | GE71: 1040 | GF71: 872 | GG71: 851 | GH71: 734 | GI71: 706 | GJ71: 601 | GK71: 571 | GL71: 2265
A72: England – CCGs | B72: East Leicestershire and Rutland | C72: England – CCGs - East Leicestershire and Rutland | D72: 130811 | E72: 138603 | F72: 338592 | G72: 166403 | H72: 172189 | I72: 130811 | J72: 138603 | K72: 35592 | L72: 33586 | M72: 1603 | N72: 1813 | O72: 1786 | P72: 1869 | Q72: 2014 | R72: 1883 | S72: 2043 | T72: 2017 | U72: 2097 | V72: 1991 | W72: 2103 | X72: 2170 | Y72: 2044 | Z72: 2102 | AA72: 2081 | AB72: 2090 | AC72: 1975 | AD72: 1911 | AE72: 2013 | AF72: 1933 | AG72: 1511 | AH72: 1553 | AI72: 1735 | AJ72: 2017 | AK72: 2080 | AL72: 1968 | AM72: 1923 | AN72: 1643 | AO72: 1710 | AP72: 1668 | AQ72: 1734 | AR72: 1822 | AS72: 1740 | AT72: 1791 | AU72: 1947 | AV72: 1790 | AW72: 1760 | AX72: 1867 | AY72: 2002 | AZ72: 1994 | BA72: 1905 | BB72: 1872 | BC72: 1824 | BD72: 1963 | BE72: 2044 | BF72: 2083 | BG72: 2230 | BH72: 2321 | BI72: 2538 | BJ72: 2255 | BK72: 2608 | BL72: 2553 | BM72: 2558 | BN72: 2509 | BO72: 2603 | BP72: 2574 | BQ72: 2518 | BR72: 2404 | BS72: 2479 | BT72: 2284 | BU72: 2162 | BV72: 2140 | BW72: 2015 | BX72: 2045 | BY72: 1887 | BZ72: 1839 | CA72: 1995 | CB72: 1889 | CC72: 1953 | CD72: 1907 | CE72: 2013 | CF72: 2011 | CG72: 2272 | CH72: 1690 | CI72: 1646 | CJ72: 1641 | CK72: 1527 | CL72: 1232 | CM72: 1094 | CN72: 1114 | CO72: 1103 | CP72: 1038 | CQ72: 941 | CR72: 844 | CS72: 788 | CT72: 698 | CU72: 610 | CV72: 482 | CW72: 430 | CX72: 397 | CY72: 1082 | CZ72: 1568 | DA72: 1603 | DB72: 1631 | DC72: 1835 | DD72: 1755 | DE72: 1816 | DF72: 1894 | DG72: 1971 | DH72: 1960 | DI72: 2082 | DJ72: 1906 | DK72: 1975 | DL72: 2025 | DM72: 1996 | DN72: 1936 | DO72: 1968 | DP72: 1890 | DQ72: 1775 | DR72: 1849 | DS72: 1686 | DT72: 1209 | DU72: 1242 | DV72: 1484 | DW72: 1702 | DX72: 1770 | DY72: 1854 | DZ72: 1706 | EA72: 1673 | EB72: 1804 | EC72: 1874 | ED72: 1921 | EE72: 2042 | EF72: 1874 | EG72: 2032 | EH72: 1976 | EI72: 2049 | EJ72: 2079 | EK72: 2078 | EL72: 2105 | EM72: 2165 | EN72: 2010 | EO72: 1941 | EP72: 1934 | EQ72: 1969 | ER72: 2163 | ES72: 2233 | ET72: 2321 | EU72: 2415 | EV72: 2535 | EW72: 2541 | EX72: 2623 | EY72: 2662 | EZ72: 2621 | FA72: 2698 | FB72: 2701 | FC72: 2634 | FD72: 2595 | FE72: 2507 | FF72: 2397 | FG72: 2223 | FH72: 2228 | FI72: 2182 | FJ72: 2110 | FK72: 2028 | FL72: 1914 | FM72: 1968 | FN72: 2026 | FO72: 1926 | FP72: 1938 | FQ72: 2072 | FR72: 2171 | FS72: 2271 | FT72: 2394 | FU72: 1811 | FV72: 1816 | FW72: 1867 | FX72: 1709 | FY72: 1378 | FZ72: 1259 | GA72: 1242 | GB72: 1298 | GC72: 1283 | GD72: 1160 | GE72: 1103 | GF72: 1013 | GG72: 934 | GH72: 821 | GI72: 788 | GJ72: 687 | GK72: 640 | GL72: 2669
A73: England – CCGs | B73: East Riding of Yorkshire | C73: England – CCGs - East Riding of Yorkshire | D73: 125629 | E73: 133955 | F73: 318400 | G73: 155931 | H73: 162469 | I73: 125629 | J73: 133955 | K73: 30302 | L73: 28514 | M73: 1328 | N73: 1461 | O73: 1544 | P73: 1591 | Q73: 1649 | R73: 1667 | S73: 1709 | T73: 1899 | U73: 1798 | V73: 1718 | W73: 1707 | X73: 1886 | Y73: 1832 | Z73: 1748 | AA73: 1699 | AB73: 1698 | AC73: 1693 | AD73: 1675 | AE73: 1718 | AF73: 1429 | AG73: 1359 | AH73: 1308 | AI73: 1449 | AJ73: 1542 | AK73: 1551 | AL73: 1585 | AM73: 1549 | AN73: 1588 | AO73: 1327 | AP73: 1334 | AQ73: 1513 | AR73: 1442 | AS73: 1463 | AT73: 1460 | AU73: 1371 | AV73: 1569 | AW73: 1507 | AX73: 1618 | AY73: 1531 | AZ73: 1579 | BA73: 1673 | BB73: 1592 | BC73: 1571 | BD73: 1648 | BE73: 1805 | BF73: 1868 | BG73: 1981 | BH73: 2176 | BI73: 2321 | BJ73: 2248 | BK73: 2311 | BL73: 2288 | BM73: 2357 | BN73: 2442 | BO73: 2511 | BP73: 2550 | BQ73: 2521 | BR73: 2532 | BS73: 2413 | BT73: 2325 | BU73: 2240 | BV73: 2335 | BW73: 2264 | BX73: 2183 | BY73: 2105 | BZ73: 2141 | CA73: 2102 | CB73: 2095 | CC73: 2216 | CD73: 2281 | CE73: 2349 | CF73: 2353 | CG73: 2823 | CH73: 2019 | CI73: 1838 | CJ73: 1741 | CK73: 1606 | CL73: 1375 | CM73: 1227 | CN73: 1254 | CO73: 1304 | CP73: 1196 | CQ73: 1055 | CR73: 907 | CS73: 832 | CT73: 719 | CU73: 658 | CV73: 560 | CW73: 467 | CX73: 372 | CY73: 1087 | CZ73: 1187 | DA73: 1308 | DB73: 1382 | DC73: 1457 | DD73: 1501 | DE73: 1556 | DF73: 1587 | DG73: 1679 | DH73: 1717 | DI73: 1714 | DJ73: 1710 | DK73: 1779 | DL73: 1676 | DM73: 1648 | DN73: 1716 | DO73: 1699 | DP73: 1574 | DQ73: 1624 | DR73: 1640 | DS73: 1136 | DT73: 1098 | DU73: 1142 | DV73: 1206 | DW73: 1240 | DX73: 1341 | DY73: 1294 | DZ73: 1385 | EA73: 1432 | EB73: 1473 | EC73: 1358 | ED73: 1560 | EE73: 1648 | EF73: 1557 | EG73: 1618 | EH73: 1670 | EI73: 1633 | EJ73: 1655 | EK73: 1557 | EL73: 1791 | EM73: 1774 | EN73: 1840 | EO73: 1668 | EP73: 1508 | EQ73: 1824 | ER73: 1948 | ES73: 1936 | ET73: 2204 | EU73: 2265 | EV73: 2341 | EW73: 2302 | EX73: 2565 | EY73: 2512 | EZ73: 2417 | FA73: 2599 | FB73: 2529 | FC73: 2589 | FD73: 2653 | FE73: 2521 | FF73: 2477 | FG73: 2377 | FH73: 2329 | FI73: 2398 | FJ73: 2293 | FK73: 2324 | FL73: 2255 | FM73: 2210 | FN73: 2288 | FO73: 2234 | FP73: 2276 | FQ73: 2469 | FR73: 2391 | FS73: 2718 | FT73: 2923 | FU73: 2152 | FV73: 1976 | FW73: 1914 | FX73: 1856 | FY73: 1604 | FZ73: 1484 | GA73: 1540 | GB73: 1426 | GC73: 1382 | GD73: 1404 | GE73: 1216 | GF73: 1135 | GG73: 994 | GH73: 876 | GI73: 820 | GJ73: 747 | GK73: 615 | GL73: 2423
A74: England – CCGs | B74: East Staffordshire | C74: England – CCGs - East Staffordshire | D74: 50633 | E74: 51229 | F74: 129944 | G74: 65102 | H74: 64842 | I74: 50633 | J74: 51229 | K74: 14469 | L74: 13613 | M74: 754 | N74: 758 | O74: 823 | P74: 855 | Q74: 800 | R74: 843 | S74: 843 | T74: 864 | U74: 856 | V74: 818 | W74: 849 | X74: 777 | Y74: 742 | Z74: 793 | AA74: 754 | AB74: 797 | AC74: 759 | AD74: 784 | AE74: 720 | AF74: 600 | AG74: 582 | AH74: 627 | AI74: 655 | AJ74: 821 | AK74: 840 | AL74: 813 | AM74: 795 | AN74: 814 | AO74: 898 | AP74: 826 | AQ74: 768 | AR74: 852 | AS74: 784 | AT74: 730 | AU74: 842 | AV74: 801 | AW74: 757 | AX74: 855 | AY74: 898 | AZ74: 953 | BA74: 824 | BB74: 731 | BC74: 678 | BD74: 726 | BE74: 783 | BF74: 805 | BG74: 887 | BH74: 933 | BI74: 970 | BJ74: 947 | BK74: 892 | BL74: 938 | BM74: 1019 | BN74: 963 | BO74: 991 | BP74: 942 | BQ74: 905 | BR74: 976 | BS74: 912 | BT74: 851 | BU74: 875 | BV74: 787 | BW74: 793 | BX74: 726 | BY74: 756 | BZ74: 657 | CA74: 709 | CB74: 647 | CC74: 743 | CD74: 669 | CE74: 706 | CF74: 727 | CG74: 731 | CH74: 570 | CI74: 580 | CJ74: 619 | CK74: 528 | CL74: 468 | CM74: 380 | CN74: 382 | CO74: 381 | CP74: 327 | CQ74: 323 | CR74: 272 | CS74: 237 | CT74: 203 | CU74: 183 | CV74: 149 | CW74: 132 | CX74: 109 | CY74: 360 | CZ74: 679 | DA74: 700 | DB74: 755 | DC74: 730 | DD74: 768 | DE74: 826 | DF74: 757 | DG74: 826 | DH74: 772 | DI74: 810 | DJ74: 742 | DK74: 810 | DL74: 781 | DM74: 755 | DN74: 747 | DO74: 743 | DP74: 700 | DQ74: 712 | DR74: 695 | DS74: 516 | DT74: 479 | DU74: 528 | DV74: 635 | DW74: 719 | DX74: 696 | DY74: 766 | DZ74: 736 | EA74: 760 | EB74: 731 | EC74: 798 | ED74: 753 | EE74: 759 | EF74: 813 | EG74: 779 | EH74: 794 | EI74: 752 | EJ74: 866 | EK74: 808 | EL74: 765 | EM74: 833 | EN74: 750 | EO74: 719 | EP74: 715 | EQ74: 749 | ER74: 778 | ES74: 783 | ET74: 855 | EU74: 914 | EV74: 941 | EW74: 912 | EX74: 986 | EY74: 992 | EZ74: 1016 | FA74: 1004 | FB74: 979 | FC74: 990 | FD74: 908 | FE74: 933 | FF74: 917 | FG74: 855 | FH74: 846 | FI74: 780 | FJ74: 788 | FK74: 701 | FL74: 714 | FM74: 739 | FN74: 714 | FO74: 631 | FP74: 655 | FQ74: 737 | FR74: 674 | FS74: 729 | FT74: 855 | FU74: 632 | FV74: 625 | FW74: 649 | FX74: 596 | FY74: 517 | FZ74: 462 | GA74: 492 | GB74: 438 | GC74: 396 | GD74: 411 | GE74: 370 | GF74: 325 | GG74: 301 | GH74: 293 | GI74: 263 | GJ74: 245 | GK74: 196 | GL74: 778
A75: England – CCGs | B75: East Sussex | C75: England – CCGs - East Sussex | D75: 215122 | E75: 235769 | F75: 557229 | G75: 270057 | H75: 287172 | I75: 215122 | J75: 235769 | K75: 54935 | L75: 51403 | M75: 2441 | N75: 2681 | O75: 2821 | P75: 2821 | Q75: 2914 | R75: 2918 | S75: 3197 | T75: 3258 | U75: 3351 | V75: 3228 | W75: 3331 | X75: 3305 | Y75: 3350 | Z75: 3190 | AA75: 3026 | AB75: 3129 | AC75: 3027 | AD75: 2947 | AE75: 3004 | AF75: 2621 | AG75: 2496 | AH75: 2640 | AI75: 2597 | AJ75: 2892 | AK75: 2808 | AL75: 2844 | AM75: 2710 | AN75: 2632 | AO75: 2837 | AP75: 2534 | AQ75: 2640 | AR75: 2777 | AS75: 2716 | AT75: 2644 | AU75: 2713 | AV75: 2695 | AW75: 2982 | AX75: 2934 | AY75: 2914 | AZ75: 2929 | BA75: 2905 | BB75: 2521 | BC75: 2648 | BD75: 2749 | BE75: 3040 | BF75: 3090 | BG75: 3368 | BH75: 3585 | BI75: 3794 | BJ75: 3670 | BK75: 3925 | BL75: 3940 | BM75: 4176 | BN75: 4107 | BO75: 4266 | BP75: 4229 | BQ75: 4157 | BR75: 4038 | BS75: 3907 | BT75: 3772 | BU75: 3745 | BV75: 3589 | BW75: 3484 | BX75: 3526 | BY75: 3200 | BZ75: 3433 | CA75: 3345 | CB75: 3320 | CC75: 3447 | CD75: 3516 | CE75: 3686 | CF75: 4078 | CG75: 4356 | CH75: 3402 | CI75: 3146 | CJ75: 3155 | CK75: 2776 | CL75: 2430 | CM75: 2025 | CN75: 2069 | CO75: 2025 | CP75: 1976 | CQ75: 1757 | CR75: 1666 | CS75: 1421 | CT75: 1276 | CU75: 1167 | CV75: 1018 | CW75: 934 | CX75: 753 | CY75: 2955 | CZ75: 2323 | DA75: 2424 | DB75: 2543 | DC75: 2745 | DD75: 2878 | DE75: 2839 | DF75: 2923 | DG75: 3041 | DH75: 3116 | DI75: 3175 | DJ75: 2982 | DK75: 3028 | DL75: 2924 | DM75: 3103 | DN75: 2890 | DO75: 2881 | DP75: 2823 | DQ75: 2765 | DR75: 2971 | DS75: 2231 | DT75: 2172 | DU75: 2324 | DV75: 2630 | DW75: 2583 | DX75: 2663 | DY75: 2566 | DZ75: 2490 | EA75: 2707 | EB75: 2799 | EC75: 2811 | ED75: 2768 | EE75: 2813 | EF75: 2882 | EG75: 2795 | EH75: 2992 | EI75: 2854 | EJ75: 2983 | EK75: 3174 | EL75: 3125 | EM75: 3212 | EN75: 3129 | EO75: 3023 | EP75: 2949 | EQ75: 3140 | ER75: 3214 | ES75: 3423 | ET75: 3563 | EU75: 3819 | EV75: 4038 | EW75: 3972 | EX75: 3990 | EY75: 4135 | EZ75: 4361 | FA75: 4378 | FB75: 4400 | FC75: 4400 | FD75: 4374 | FE75: 4124 | FF75: 4038 | FG75: 3940 | FH75: 4020 | FI75: 3909 | FJ75: 3867 | FK75: 3784 | FL75: 3774 | FM75: 3763 | FN75: 3785 | FO75: 3687 | FP75: 3735 | FQ75: 3929 | FR75: 4038 | FS75: 4447 | FT75: 5161 | FU75: 3693 | FV75: 3533 | FW75: 3435 | FX75: 3167 | FY75: 2870 | FZ75: 2359 | GA75: 2479 | GB75: 2553 | GC75: 2391 | GD75: 2294 | GE75: 2089 | GF75: 2022 | GG75: 1749 | GH75: 1658 | GI75: 1600 | GJ75: 1497 | GK75: 1315 | GL75: 6211
A76: England – CCGs | B76: Fareham and Gosport | C76: England – CCGs - Fareham and Gosport | D76: 78654 | E76: 83002 | F76: 201071 | G76: 98970 | H76: 102101 | I76: 78654 | J76: 83002 | K76: 20316 | L76: 19099 | M76: 897 | N76: 982 | O76: 1048 | P76: 1070 | Q76: 1145 | R76: 1055 | S76: 1145 | T76: 1176 | U76: 1232 | V76: 1255 | W76: 1182 | X76: 1167 | Y76: 1222 | Z76: 1205 | AA76: 1157 | AB76: 1181 | AC76: 1066 | AD76: 1131 | AE76: 1141 | AF76: 1063 | AG76: 1111 | AH76: 994 | AI76: 1094 | AJ76: 1197 | AK76: 1205 | AL76: 1220 | AM76: 1135 | AN76: 1082 | AO76: 1137 | AP76: 1216 | AQ76: 1201 | AR76: 1261 | AS76: 1111 | AT76: 1163 | AU76: 1138 | AV76: 1100 | AW76: 1225 | AX76: 1109 | AY76: 1231 | AZ76: 1277 | BA76: 1093 | BB76: 1075 | BC76: 1108 | BD76: 1071 | BE76: 1123 | BF76: 1153 | BG76: 1312 | BH76: 1338 | BI76: 1452 | BJ76: 1389 | BK76: 1358 | BL76: 1395 | BM76: 1458 | BN76: 1456 | BO76: 1468 | BP76: 1529 | BQ76: 1529 | BR76: 1426 | BS76: 1429 | BT76: 1383 | BU76: 1407 | BV76: 1330 | BW76: 1258 | BX76: 1293 | BY76: 1071 | BZ76: 1023 | CA76: 1083 | CB76: 1032 | CC76: 1091 | CD76: 1063 | CE76: 1194 | CF76: 1289 | CG76: 1418 | CH76: 1053 | CI76: 1019 | CJ76: 989 | CK76: 842 | CL76: 705 | CM76: 600 | CN76: 691 | CO76: 658 | CP76: 610 | CQ76: 595 | CR76: 514 | CS76: 456 | CT76: 432 | CU76: 363 | CV76: 346 | CW76: 277 | CX76: 258 | CY76: 738 | CZ76: 844 | DA76: 896 | DB76: 971 | DC76: 1100 | DD76: 984 | DE76: 1092 | DF76: 1058 | DG76: 1168 | DH76: 1133 | DI76: 1182 | DJ76: 1094 | DK76: 1196 | DL76: 1113 | DM76: 1076 | DN76: 1049 | DO76: 1071 | DP76: 1026 | DQ76: 1046 | DR76: 1122 | DS76: 896 | DT76: 809 | DU76: 834 | DV76: 921 | DW76: 975 | DX76: 1087 | DY76: 1042 | DZ76: 1030 | EA76: 1105 | EB76: 1072 | EC76: 1126 | ED76: 1253 | EE76: 1141 | EF76: 1228 | EG76: 1171 | EH76: 1234 | EI76: 1198 | EJ76: 1170 | EK76: 1261 | EL76: 1171 | EM76: 1187 | EN76: 1116 | EO76: 1134 | EP76: 1072 | EQ76: 1197 | ER76: 1282 | ES76: 1292 | ET76: 1409 | EU76: 1418 | EV76: 1563 | EW76: 1387 | EX76: 1556 | EY76: 1548 | EZ76: 1528 | FA76: 1548 | FB76: 1625 | FC76: 1528 | FD76: 1501 | FE76: 1524 | FF76: 1487 | FG76: 1376 | FH76: 1394 | FI76: 1328 | FJ76: 1247 | FK76: 1195 | FL76: 1196 | FM76: 1172 | FN76: 1172 | FO76: 1210 | FP76: 1178 | FQ76: 1218 | FR76: 1349 | FS76: 1247 | FT76: 1516 | FU76: 1192 | FV76: 1134 | FW76: 1082 | FX76: 1013 | FY76: 927 | FZ76: 761 | GA76: 783 | GB76: 790 | GC76: 755 | GD76: 694 | GE76: 671 | GF76: 628 | GG76: 596 | GH76: 534 | GI76: 516 | GJ76: 462 | GK76: 368 | GL76: 1550
A77: England – CCGs | B77: Fylde and Wyre | C77: England – CCGs - Fylde and Wyre | D77: 77286 | E77: 82667 | F77: 194337 | G77: 94928 | H77: 99409 | I77: 77286 | J77: 82667 | K77: 17642 | L77: 16742 | M77: 773 | N77: 797 | O77: 849 | P77: 891 | Q77: 947 | R77: 965 | S77: 960 | T77: 994 | U77: 1051 | V77: 1073 | W77: 1015 | X77: 1091 | Y77: 1072 | Z77: 1038 | AA77: 1113 | AB77: 986 | AC77: 1029 | AD77: 998 | AE77: 1049 | AF77: 817 | AG77: 840 | AH77: 835 | AI77: 956 | AJ77: 883 | AK77: 873 | AL77: 1018 | AM77: 963 | AN77: 1049 | AO77: 949 | AP77: 941 | AQ77: 910 | AR77: 995 | AS77: 919 | AT77: 868 | AU77: 1010 | AV77: 942 | AW77: 915 | AX77: 966 | AY77: 975 | AZ77: 1059 | BA77: 1002 | BB77: 913 | BC77: 805 | BD77: 898 | BE77: 972 | BF77: 1053 | BG77: 1059 | BH77: 1217 | BI77: 1242 | BJ77: 1293 | BK77: 1395 | BL77: 1380 | BM77: 1540 | BN77: 1434 | BO77: 1475 | BP77: 1554 | BQ77: 1473 | BR77: 1500 | BS77: 1440 | BT77: 1492 | BU77: 1330 | BV77: 1289 | BW77: 1406 | BX77: 1305 | BY77: 1328 | BZ77: 1357 | CA77: 1303 | CB77: 1241 | CC77: 1340 | CD77: 1318 | CE77: 1405 | CF77: 1517 | CG77: 1644 | CH77: 1253 | CI77: 1224 | CJ77: 1225 | CK77: 1112 | CL77: 985 | CM77: 835 | CN77: 858 | CO77: 781 | CP77: 741 | CQ77: 722 | CR77: 649 | CS77: 549 | CT77: 534 | CU77: 380 | CV77: 382 | CW77: 323 | CX77: 260 | CY77: 821 | CZ77: 746 | DA77: 765 | DB77: 804 | DC77: 856 | DD77: 817 | DE77: 870 | DF77: 954 | DG77: 919 | DH77: 1025 | DI77: 1030 | DJ77: 997 | DK77: 1027 | DL77: 1066 | DM77: 1035 | DN77: 1034 | DO77: 973 | DP77: 906 | DQ77: 918 | DR77: 933 | DS77: 647 | DT77: 620 | DU77: 673 | DV77: 787 | DW77: 866 | DX77: 851 | DY77: 918 | DZ77: 892 | EA77: 1001 | EB77: 967 | EC77: 888 | ED77: 937 | EE77: 942 | EF77: 948 | EG77: 1047 | EH77: 991 | EI77: 905 | EJ77: 1072 | EK77: 928 | EL77: 1096 | EM77: 1057 | EN77: 963 | EO77: 923 | EP77: 895 | EQ77: 1016 | ER77: 995 | ES77: 1143 | ET77: 1179 | EU77: 1331 | EV77: 1403 | EW77: 1389 | EX77: 1382 | EY77: 1453 | EZ77: 1529 | FA77: 1592 | FB77: 1602 | FC77: 1461 | FD77: 1636 | FE77: 1602 | FF77: 1623 | FG77: 1570 | FH77: 1448 | FI77: 1487 | FJ77: 1425 | FK77: 1342 | FL77: 1315 | FM77: 1352 | FN77: 1442 | FO77: 1313 | FP77: 1322 | FQ77: 1440 | FR77: 1508 | FS77: 1611 | FT77: 1781 | FU77: 1332 | FV77: 1273 | FW77: 1251 | FX77: 1196 | FY77: 1139 | FZ77: 994 | GA77: 1045 | GB77: 1019 | GC77: 890 | GD77: 847 | GE77: 819 | GF77: 730 | GG77: 677 | GH77: 599 | GI77: 534 | GJ77: 569 | GK77: 470 | GL77: 1844
A78: England – CCGs | B78: Gloucestershire | C78: England – CCGs - Gloucestershire | D78: 246841 | E78: 261319 | F78: 637070 | G78: 312572 | H78: 324498 | I78: 246841 | J78: 261319 | K78: 65731 | L78: 63179 | M78: 3263 | N78: 3429 | O78: 3544 | P78: 3696 | Q78: 3661 | R78: 3740 | S78: 3760 | T78: 4028 | U78: 3871 | V78: 3748 | W78: 3789 | X78: 3768 | Y78: 3771 | Z78: 3706 | AA78: 3508 | AB78: 3466 | AC78: 3478 | AD78: 3505 | AE78: 3625 | AF78: 3337 | AG78: 3447 | AH78: 3477 | AI78: 3431 | AJ78: 3440 | AK78: 3388 | AL78: 3441 | AM78: 3546 | AN78: 3340 | AO78: 3560 | AP78: 3607 | AQ78: 3780 | AR78: 3444 | AS78: 3378 | AT78: 3537 | AU78: 3664 | AV78: 3600 | AW78: 3678 | AX78: 3840 | AY78: 3795 | AZ78: 3967 | BA78: 3932 | BB78: 3548 | BC78: 3379 | BD78: 3686 | BE78: 3806 | BF78: 3963 | BG78: 4268 | BH78: 4481 | BI78: 4548 | BJ78: 4370 | BK78: 4756 | BL78: 4766 | BM78: 4917 | BN78: 4755 | BO78: 4656 | BP78: 4666 | BQ78: 4627 | BR78: 4529 | BS78: 4436 | BT78: 4209 | BU78: 4186 | BV78: 3975 | BW78: 3790 | BX78: 3762 | BY78: 3692 | BZ78: 3652 | CA78: 3586 | CB78: 3591 | CC78: 3354 | CD78: 3567 | CE78: 3707 | CF78: 3798 | CG78: 4047 | CH78: 3037 | CI78: 2931 | CJ78: 2916 | CK78: 2857 | CL78: 2442 | CM78: 2074 | CN78: 2062 | CO78: 2087 | CP78: 1810 | CQ78: 1786 | CR78: 1508 | CS78: 1387 | CT78: 1158 | CU78: 1092 | CV78: 912 | CW78: 729 | CX78: 689 | CY78: 2037 | CZ78: 3026 | DA78: 3312 | DB78: 3207 | DC78: 3499 | DD78: 3512 | DE78: 3618 | DF78: 3618 | DG78: 3720 | DH78: 3703 | DI78: 3700 | DJ78: 3614 | DK78: 3799 | DL78: 3504 | DM78: 3465 | DN78: 3374 | DO78: 3601 | DP78: 3446 | DQ78: 3461 | DR78: 3533 | DS78: 3101 | DT78: 3177 | DU78: 3152 | DV78: 3333 | DW78: 3267 | DX78: 3253 | DY78: 3452 | DZ78: 3155 | EA78: 3341 | EB78: 3642 | EC78: 3721 | ED78: 3758 | EE78: 3958 | EF78: 3746 | EG78: 3869 | EH78: 3725 | EI78: 3803 | EJ78: 3890 | EK78: 3825 | EL78: 4098 | EM78: 3865 | EN78: 3895 | EO78: 3607 | EP78: 3452 | EQ78: 3634 | ER78: 3867 | ES78: 4005 | ET78: 4202 | EU78: 4513 | EV78: 4581 | EW78: 4579 | EX78: 4647 | EY78: 4668 | EZ78: 4887 | FA78: 4918 | FB78: 4997 | FC78: 5004 | FD78: 4689 | FE78: 4758 | FF78: 4525 | FG78: 4478 | FH78: 4252 | FI78: 4175 | FJ78: 3987 | FK78: 3828 | FL78: 3813 | FM78: 3807 | FN78: 3863 | FO78: 3848 | FP78: 3822 | FQ78: 3895 | FR78: 3950 | FS78: 4128 | FT78: 4473 | FU78: 3442 | FV78: 3302 | FW78: 3427 | FX78: 3057 | FY78: 2734 | FZ78: 2344 | GA78: 2408 | GB78: 2420 | GC78: 2262 | GD78: 2046 | GE78: 1897 | GF78: 1854 | GG78: 1710 | GH78: 1536 | GI78: 1448 | GJ78: 1252 | GK78: 1141 | GL78: 4628
A79: England – CCGs | B79: Greater Huddersfield | C79: England – CCGs - Greater Huddersfield | D79: 95311 | E79: 98481 | F79: 246604 | G79: 122173 | H79: 124431 | I79: 95311 | J79: 98481 | K79: 26862 | L79: 25950 | M79: 1299 | N79: 1302 | O79: 1449 | P79: 1528 | Q79: 1494 | R79: 1566 | S79: 1550 | T79: 1605 | U79: 1602 | V79: 1548 | W79: 1592 | X79: 1500 | Y79: 1540 | Z79: 1527 | AA79: 1438 | AB79: 1429 | AC79: 1433 | AD79: 1460 | AE79: 1466 | AF79: 1447 | AG79: 1622 | AH79: 1663 | AI79: 1777 | AJ79: 1838 | AK79: 1733 | AL79: 1662 | AM79: 1565 | AN79: 1552 | AO79: 1730 | AP79: 1696 | AQ79: 1400 | AR79: 1503 | AS79: 1439 | AT79: 1476 | AU79: 1426 | AV79: 1535 | AW79: 1506 | AX79: 1536 | AY79: 1511 | AZ79: 1530 | BA79: 1516 | BB79: 1397 | BC79: 1358 | BD79: 1452 | BE79: 1433 | BF79: 1523 | BG79: 1551 | BH79: 1806 | BI79: 1820 | BJ79: 1801 | BK79: 1805 | BL79: 1847 | BM79: 1811 | BN79: 1801 | BO79: 1743 | BP79: 1728 | BQ79: 1671 | BR79: 1607 | BS79: 1616 | BT79: 1563 | BU79: 1450 | BV79: 1492 | BW79: 1444 | BX79: 1306 | BY79: 1286 | BZ79: 1275 | CA79: 1250 | CB79: 1289 | CC79: 1273 | CD79: 1276 | CE79: 1234 | CF79: 1280 | CG79: 1433 | CH79: 1016 | CI79: 1033 | CJ79: 896 | CK79: 889 | CL79: 720 | CM79: 654 | CN79: 660 | CO79: 662 | CP79: 631 | CQ79: 522 | CR79: 474 | CS79: 398 | CT79: 352 | CU79: 301 | CV79: 279 | CW79: 238 | CX79: 201 | CY79: 635 | CZ79: 1246 | DA79: 1319 | DB79: 1464 | DC79: 1424 | DD79: 1486 | DE79: 1422 | DF79: 1488 | DG79: 1578 | DH79: 1583 | DI79: 1474 | DJ79: 1522 | DK79: 1560 | DL79: 1477 | DM79: 1442 | DN79: 1416 | DO79: 1389 | DP79: 1357 | DQ79: 1303 | DR79: 1332 | DS79: 1419 | DT79: 1506 | DU79: 1595 | DV79: 1673 | DW79: 1613 | DX79: 1509 | DY79: 1492 | DZ79: 1431 | EA79: 1549 | EB79: 1481 | EC79: 1459 | ED79: 1517 | EE79: 1611 | EF79: 1470 | EG79: 1468 | EH79: 1470 | EI79: 1441 | EJ79: 1537 | EK79: 1645 | EL79: 1614 | EM79: 1595 | EN79: 1582 | EO79: 1512 | EP79: 1393 | EQ79: 1457 | ER79: 1559 | ES79: 1542 | ET79: 1602 | EU79: 1780 | EV79: 1847 | EW79: 1786 | EX79: 1815 | EY79: 1765 | EZ79: 1719 | FA79: 1784 | FB79: 1757 | FC79: 1751 | FD79: 1768 | FE79: 1641 | FF79: 1540 | FG79: 1632 | FH79: 1555 | FI79: 1524 | FJ79: 1425 | FK79: 1317 | FL79: 1300 | FM79: 1311 | FN79: 1280 | FO79: 1273 | FP79: 1290 | FQ79: 1313 | FR79: 1387 | FS79: 1413 | FT79: 1601 | FU79: 1134 | FV79: 1084 | FW79: 1128 | FX79: 971 | FY79: 920 | FZ79: 762 | GA79: 825 | GB79: 736 | GC79: 796 | GD79: 713 | GE79: 643 | GF79: 575 | GG79: 561 | GH79: 425 | GI79: 406 | GJ79: 407 | GK79: 345 | GL79: 1402
A80: England – CCGs | B80: Greater Preston | C80: England – CCGs - Greater Preston | D80: 79711 | E80: 80121 | F80: 203825 | G80: 102211 | H80: 101614 | I80: 79711 | J80: 80121 | K80: 22500 | L80: 21493 | M80: 1126 | N80: 1210 | O80: 1221 | P80: 1383 | Q80: 1323 | R80: 1271 | S80: 1208 | T80: 1270 | U80: 1400 | V80: 1336 | W80: 1270 | X80: 1335 | Y80: 1317 | Z80: 1226 | AA80: 1174 | AB80: 1246 | AC80: 1105 | AD80: 1079 | AE80: 1124 | AF80: 1412 | AG80: 1612 | AH80: 1611 | AI80: 1802 | AJ80: 1717 | AK80: 1585 | AL80: 1545 | AM80: 1580 | AN80: 1567 | AO80: 1551 | AP80: 1506 | AQ80: 1379 | AR80: 1454 | AS80: 1269 | AT80: 1197 | AU80: 1309 | AV80: 1248 | AW80: 1319 | AX80: 1159 | AY80: 1199 | AZ80: 1249 | BA80: 1311 | BB80: 1116 | BC80: 1059 | BD80: 1122 | BE80: 1133 | BF80: 1233 | BG80: 1303 | BH80: 1388 | BI80: 1340 | BJ80: 1430 | BK80: 1296 | BL80: 1390 | BM80: 1440 | BN80: 1381 | BO80: 1435 | BP80: 1478 | BQ80: 1377 | BR80: 1428 | BS80: 1298 | BT80: 1215 | BU80: 1198 | BV80: 1190 | BW80: 1108 | BX80: 1166 | BY80: 962 | BZ80: 980 | CA80: 1024 | CB80: 926 | CC80: 947 | CD80: 946 | CE80: 1009 | CF80: 989 | CG80: 1015 | CH80: 822 | CI80: 720 | CJ80: 748 | CK80: 652 | CL80: 597 | CM80: 557 | CN80: 561 | CO80: 513 | CP80: 524 | CQ80: 421 | CR80: 406 | CS80: 375 | CT80: 321 | CU80: 310 | CV80: 240 | CW80: 208 | CX80: 167 | CY80: 542 | CZ80: 1184 | DA80: 1155 | DB80: 1217 | DC80: 1200 | DD80: 1246 | DE80: 1241 | DF80: 1299 | DG80: 1190 | DH80: 1244 | DI80: 1236 | DJ80: 1277 | DK80: 1201 | DL80: 1226 | DM80: 1221 | DN80: 1085 | DO80: 1121 | DP80: 1062 | DQ80: 1088 | DR80: 1124 | DS80: 1376 | DT80: 1532 | DU80: 1656 | DV80: 1726 | DW80: 1552 | DX80: 1325 | DY80: 1352 | DZ80: 1501 | EA80: 1478 | EB80: 1397 | EC80: 1357 | ED80: 1377 | EE80: 1296 | EF80: 1212 | EG80: 1197 | EH80: 1229 | EI80: 1242 | EJ80: 1237 | EK80: 1142 | EL80: 1220 | EM80: 1297 | EN80: 1166 | EO80: 1006 | EP80: 1140 | EQ80: 1175 | ER80: 1126 | ES80: 1150 | ET80: 1273 | EU80: 1306 | EV80: 1409 | EW80: 1313 | EX80: 1451 | EY80: 1417 | EZ80: 1350 | FA80: 1311 | FB80: 1395 | FC80: 1363 | FD80: 1390 | FE80: 1382 | FF80: 1306 | FG80: 1268 | FH80: 1146 | FI80: 1134 | FJ80: 1177 | FK80: 1071 | FL80: 1018 | FM80: 995 | FN80: 988 | FO80: 1017 | FP80: 996 | FQ80: 1007 | FR80: 1007 | FS80: 1037 | FT80: 1165 | FU80: 811 | FV80: 832 | FW80: 814 | FX80: 756 | FY80: 659 | FZ80: 621 | GA80: 664 | GB80: 653 | GC80: 601 | GD80: 540 | GE80: 537 | GF80: 553 | GG80: 411 | GH80: 382 | GI80: 365 | GJ80: 349 | GK80: 284 | GL80: 1009
A81: England – CCGs | B81: Halton | C81: England – CCGs - Halton | D81: 48379 | E81: 52261 | F81: 129410 | G81: 63082 | H81: 66328 | I81: 48379 | J81: 52261 | K81: 14703 | L81: 14067 | M81: 718 | N81: 782 | O81: 777 | P81: 789 | Q81: 828 | R81: 831 | S81: 862 | T81: 901 | U81: 885 | V81: 864 | W81: 851 | X81: 878 | Y81: 856 | Z81: 893 | AA81: 801 | AB81: 769 | AC81: 707 | AD81: 711 | AE81: 697 | AF81: 669 | AG81: 690 | AH81: 654 | AI81: 671 | AJ81: 757 | AK81: 773 | AL81: 801 | AM81: 764 | AN81: 798 | AO81: 836 | AP81: 742 | AQ81: 781 | AR81: 812 | AS81: 836 | AT81: 790 | AU81: 773 | AV81: 834 | AW81: 803 | AX81: 869 | AY81: 741 | AZ81: 731 | BA81: 813 | BB81: 656 | BC81: 750 | BD81: 756 | BE81: 715 | BF81: 707 | BG81: 816 | BH81: 905 | BI81: 932 | BJ81: 886 | BK81: 905 | BL81: 824 | BM81: 896 | BN81: 887 | BO81: 918 | BP81: 855 | BQ81: 852 | BR81: 932 | BS81: 857 | BT81: 786 | BU81: 843 | BV81: 792 | BW81: 731 | BX81: 778 | BY81: 693 | BZ81: 754 | CA81: 685 | CB81: 723 | CC81: 782 | CD81: 694 | CE81: 740 | CF81: 753 | CG81: 797 | CH81: 565 | CI81: 459 | CJ81: 497 | CK81: 406 | CL81: 392 | CM81: 336 | CN81: 320 | CO81: 294 | CP81: 287 | CQ81: 269 | CR81: 197 | CS81: 233 | CT81: 141 | CU81: 145 | CV81: 128 | CW81: 114 | CX81: 110 | CY81: 251 | CZ81: 679 | DA81: 703 | DB81: 740 | DC81: 782 | DD81: 782 | DE81: 767 | DF81: 849 | DG81: 789 | DH81: 813 | DI81: 922 | DJ81: 844 | DK81: 860 | DL81: 811 | DM81: 828 | DN81: 757 | DO81: 719 | DP81: 701 | DQ81: 721 | DR81: 759 | DS81: 587 | DT81: 586 | DU81: 601 | DV81: 703 | DW81: 755 | DX81: 737 | DY81: 847 | DZ81: 813 | EA81: 845 | EB81: 840 | EC81: 847 | ED81: 834 | EE81: 869 | EF81: 954 | EG81: 843 | EH81: 855 | EI81: 912 | EJ81: 862 | EK81: 819 | EL81: 874 | EM81: 857 | EN81: 822 | EO81: 739 | EP81: 728 | EQ81: 802 | ER81: 827 | ES81: 815 | ET81: 944 | EU81: 939 | EV81: 988 | EW81: 879 | EX81: 837 | EY81: 906 | EZ81: 957 | FA81: 872 | FB81: 953 | FC81: 884 | FD81: 939 | FE81: 1009 | FF81: 923 | FG81: 875 | FH81: 897 | FI81: 884 | FJ81: 809 | FK81: 871 | FL81: 823 | FM81: 783 | FN81: 764 | FO81: 770 | FP81: 785 | FQ81: 771 | FR81: 752 | FS81: 789 | FT81: 842 | FU81: 550 | FV81: 482 | FW81: 527 | FX81: 491 | FY81: 456 | FZ81: 367 | GA81: 393 | GB81: 371 | GC81: 345 | GD81: 318 | GE81: 318 | GF81: 304 | GG81: 290 | GH81: 243 | GI81: 191 | GJ81: 148 | GK81: 160 | GL81: 530
A82: England – CCGs | B82: Hammersmith and Fulham | C82: England – CCGs - Hammersmith and Fulham | D82: 72070 | E82: 76041 | F82: 185143 | G82: 90740 | H82: 94403 | I82: 72070 | J82: 76041 | K82: 18670 | L82: 18362 | M82: 1126 | N82: 1126 | O82: 1197 | P82: 1193 | Q82: 988 | R82: 1155 | S82: 1169 | T82: 1180 | U82: 1112 | V82: 1123 | W82: 1094 | X82: 1016 | Y82: 1141 | Z82: 926 | AA82: 804 | AB82: 739 | AC82: 759 | AD82: 822 | AE82: 796 | AF82: 825 | AG82: 1204 | AH82: 1321 | AI82: 1574 | AJ82: 1403 | AK82: 1661 | AL82: 1725 | AM82: 1668 | AN82: 1886 | AO82: 1978 | AP82: 1772 | AQ82: 1784 | AR82: 1905 | AS82: 2045 | AT82: 1917 | AU82: 1947 | AV82: 1744 | AW82: 1770 | AX82: 1688 | AY82: 1534 | AZ82: 1718 | BA82: 1374 | BB82: 1436 | BC82: 1497 | BD82: 1453 | BE82: 1457 | BF82: 1383 | BG82: 1292 | BH82: 1389 | BI82: 1204 | BJ82: 1187 | BK82: 1130 | BL82: 1185 | BM82: 1195 | BN82: 1126 | BO82: 1087 | BP82: 1116 | BQ82: 1002 | BR82: 936 | BS82: 850 | BT82: 852 | BU82: 712 | BV82: 745 | BW82: 665 | BX82: 598 | BY82: 603 | BZ82: 544 | CA82: 539 | CB82: 509 | CC82: 528 | CD82: 470 | CE82: 515 | CF82: 493 | CG82: 496 | CH82: 433 | CI82: 396 | CJ82: 425 | CK82: 327 | CL82: 294 | CM82: 311 | CN82: 330 | CO82: 284 | CP82: 250 | CQ82: 211 | CR82: 191 | CS82: 168 | CT82: 154 | CU82: 140 | CV82: 173 | CW82: 107 | CX82: 102 | CY82: 341 | CZ82: 1088 | DA82: 1115 | DB82: 1100 | DC82: 1093 | DD82: 1135 | DE82: 1064 | DF82: 1098 | DG82: 1165 | DH82: 1149 | DI82: 1098 | DJ82: 1086 | DK82: 992 | DL82: 959 | DM82: 901 | DN82: 915 | DO82: 828 | DP82: 825 | DQ82: 751 | DR82: 853 | DS82: 724 | DT82: 980 | DU82: 1307 | DV82: 1736 | DW82: 1871 | DX82: 2123 | DY82: 2079 | DZ82: 2049 | EA82: 1875 | EB82: 1727 | EC82: 1855 | ED82: 1844 | EE82: 1782 | EF82: 1728 | EG82: 1919 | EH82: 1744 | EI82: 1510 | EJ82: 1483 | EK82: 1529 | EL82: 1421 | EM82: 1466 | EN82: 1491 | EO82: 1336 | EP82: 1303 | EQ82: 1259 | ER82: 1394 | ES82: 1464 | ET82: 1302 | EU82: 1329 | EV82: 1371 | EW82: 1294 | EX82: 1240 | EY82: 1228 | EZ82: 1258 | FA82: 1195 | FB82: 1169 | FC82: 1159 | FD82: 1083 | FE82: 1019 | FF82: 948 | FG82: 958 | FH82: 829 | FI82: 876 | FJ82: 747 | FK82: 798 | FL82: 748 | FM82: 778 | FN82: 675 | FO82: 673 | FP82: 649 | FQ82: 634 | FR82: 641 | FS82: 671 | FT82: 677 | FU82: 560 | FV82: 483 | FW82: 463 | FX82: 439 | FY82: 369 | FZ82: 398 | GA82: 375 | GB82: 393 | GC82: 332 | GD82: 317 | GE82: 282 | GF82: 251 | GG82: 240 | GH82: 200 | GI82: 186 | GJ82: 174 | GK82: 166 | GL82: 612
A83: England – CCGs | B83: Harrow | C83: England – CCGs - Harrow | D83: 95286 | E83: 96499 | F83: 251160 | G83: 125778 | H83: 125382 | I83: 95286 | J83: 96499 | K83: 30492 | L83: 28883 | M83: 1833 | N83: 1822 | O83: 1785 | P83: 1845 | Q83: 1728 | R83: 1834 | S83: 1804 | T83: 1861 | U83: 1625 | V83: 1601 | W83: 1635 | X83: 1599 | Y83: 1516 | Z83: 1541 | AA83: 1591 | AB83: 1651 | AC83: 1599 | AD83: 1622 | AE83: 1385 | AF83: 1042 | AG83: 1166 | AH83: 1268 | AI83: 1373 | AJ83: 1483 | AK83: 1660 | AL83: 1813 | AM83: 1668 | AN83: 1658 | AO83: 1934 | AP83: 1892 | AQ83: 1984 | AR83: 2099 | AS83: 1911 | AT83: 1967 | AU83: 2065 | AV83: 1906 | AW83: 1877 | AX83: 1877 | AY83: 1956 | AZ83: 1921 | BA83: 1998 | BB83: 1832 | BC83: 1915 | BD83: 1696 | BE83: 1713 | BF83: 1587 | BG83: 1808 | BH83: 1633 | BI83: 1566 | BJ83: 1550 | BK83: 1505 | BL83: 1479 | BM83: 1544 | BN83: 1441 | BO83: 1538 | BP83: 1583 | BQ83: 1509 | BR83: 1517 | BS83: 1444 | BT83: 1462 | BU83: 1377 | BV83: 1278 | BW83: 1363 | BX83: 1377 | BY83: 1212 | BZ83: 1144 | CA83: 1208 | CB83: 1067 | CC83: 1060 | CD83: 1031 | CE83: 981 | CF83: 990 | CG83: 968 | CH83: 858 | CI83: 768 | CJ83: 785 | CK83: 655 | CL83: 620 | CM83: 552 | CN83: 612 | CO83: 615 | CP83: 578 | CQ83: 514 | CR83: 530 | CS83: 440 | CT83: 440 | CU83: 360 | CV83: 297 | CW83: 251 | CX83: 244 | CY83: 886 | CZ83: 1712 | DA83: 1784 | DB83: 1802 | DC83: 1800 | DD83: 1731 | DE83: 1708 | DF83: 1779 | DG83: 1769 | DH83: 1598 | DI83: 1558 | DJ83: 1489 | DK83: 1625 | DL83: 1430 | DM83: 1474 | DN83: 1433 | DO83: 1447 | DP83: 1418 | DQ83: 1326 | DR83: 1273 | DS83: 881 | DT83: 845 | DU83: 1098 | DV83: 1244 | DW83: 1357 | DX83: 1545 | DY83: 1670 | DZ83: 1615 | EA83: 1562 | EB83: 1528 | EC83: 1622 | ED83: 1899 | EE83: 1791 | EF83: 1848 | EG83: 1783 | EH83: 1850 | EI83: 1931 | EJ83: 1782 | EK83: 2065 | EL83: 1901 | EM83: 1920 | EN83: 1918 | EO83: 1732 | EP83: 1636 | EQ83: 1655 | ER83: 1652 | ES83: 1630 | ET83: 1694 | EU83: 1584 | EV83: 1666 | EW83: 1641 | EX83: 1700 | EY83: 1604 | EZ83: 1692 | FA83: 1701 | FB83: 1548 | FC83: 1635 | FD83: 1624 | FE83: 1578 | FF83: 1526 | FG83: 1580 | FH83: 1496 | FI83: 1401 | FJ83: 1325 | FK83: 1367 | FL83: 1370 | FM83: 1179 | FN83: 1168 | FO83: 1141 | FP83: 1123 | FQ83: 1131 | FR83: 1109 | FS83: 1097 | FT83: 1119 | FU83: 999 | FV83: 903 | FW83: 919 | FX83: 837 | FY83: 739 | FZ83: 670 | GA83: 742 | GB83: 707 | GC83: 656 | GD83: 614 | GE83: 529 | GF83: 624 | GG83: 528 | GH83: 488 | GI83: 405 | GJ83: 376 | GK83: 337 | GL83: 1394
A84: England – CCGs | B84: Havering | C84: England – CCGs - Havering | D84: 95319 | E84: 105872 | F84: 259552 | G84: 124959 | H84: 134593 | I84: 95319 | J84: 105872 | K84: 29640 | L84: 28721 | M84: 1709 | N84: 1778 | O84: 1776 | P84: 1872 | Q84: 1765 | R84: 1737 | S84: 1675 | T84: 1860 | U84: 1676 | V84: 1605 | W84: 1650 | X84: 1626 | Y84: 1543 | Z84: 1532 | AA84: 1499 | AB84: 1450 | AC84: 1425 | AD84: 1462 | AE84: 1485 | AF84: 1250 | AG84: 1367 | AH84: 1401 | AI84: 1435 | AJ84: 1580 | AK84: 1651 | AL84: 1633 | AM84: 1638 | AN84: 1678 | AO84: 1796 | AP84: 1803 | AQ84: 1794 | AR84: 1773 | AS84: 1728 | AT84: 1714 | AU84: 1786 | AV84: 1678 | AW84: 1727 | AX84: 1860 | AY84: 1799 | AZ84: 1765 | BA84: 1618 | BB84: 1534 | BC84: 1519 | BD84: 1554 | BE84: 1525 | BF84: 1512 | BG84: 1444 | BH84: 1628 | BI84: 1553 | BJ84: 1581 | BK84: 1622 | BL84: 1679 | BM84: 1653 | BN84: 1727 | BO84: 1630 | BP84: 1689 | BQ84: 1601 | BR84: 1646 | BS84: 1533 | BT84: 1611 | BU84: 1554 | BV84: 1540 | BW84: 1350 | BX84: 1295 | BY84: 1222 | BZ84: 1237 | CA84: 1119 | CB84: 1062 | CC84: 1098 | CD84: 1119 | CE84: 1147 | CF84: 1172 | CG84: 1333 | CH84: 992 | CI84: 868 | CJ84: 878 | CK84: 783 | CL84: 730 | CM84: 640 | CN84: 643 | CO84: 621 | CP84: 599 | CQ84: 590 | CR84: 530 | CS84: 459 | CT84: 429 | CU84: 395 | CV84: 357 | CW84: 311 | CX84: 250 | CY84: 796 | CZ84: 1607 | DA84: 1638 | DB84: 1723 | DC84: 1794 | DD84: 1705 | DE84: 1727 | DF84: 1740 | DG84: 1722 | DH84: 1549 | DI84: 1533 | DJ84: 1588 | DK84: 1548 | DL84: 1539 | DM84: 1509 | DN84: 1536 | DO84: 1452 | DP84: 1429 | DQ84: 1382 | DR84: 1394 | DS84: 1135 | DT84: 1133 | DU84: 1187 | DV84: 1506 | DW84: 1584 | DX84: 1630 | DY84: 1620 | DZ84: 1777 | EA84: 1833 | EB84: 1923 | EC84: 1847 | ED84: 2032 | EE84: 2025 | EF84: 1991 | EG84: 1960 | EH84: 1999 | EI84: 1916 | EJ84: 1786 | EK84: 1907 | EL84: 1965 | EM84: 1886 | EN84: 1747 | EO84: 1648 | EP84: 1732 | EQ84: 1644 | ER84: 1568 | ES84: 1577 | ET84: 1564 | EU84: 1683 | EV84: 1791 | EW84: 1782 | EX84: 1818 | EY84: 1799 | EZ84: 1893 | FA84: 1852 | FB84: 1804 | FC84: 1834 | FD84: 1757 | FE84: 1571 | FF84: 1786 | FG84: 1549 | FH84: 1483 | FI84: 1510 | FJ84: 1427 | FK84: 1227 | FL84: 1239 | FM84: 1303 | FN84: 1190 | FO84: 1279 | FP84: 1198 | FQ84: 1221 | FR84: 1272 | FS84: 1375 | FT84: 1534 | FU84: 1180 | FV84: 1087 | FW84: 1059 | FX84: 1045 | FY84: 910 | FZ84: 815 | GA84: 950 | GB84: 887 | GC84: 855 | GD84: 858 | GE84: 756 | GF84: 792 | GG84: 675 | GH84: 622 | GI84: 602 | GJ84: 535 | GK84: 491 | GL84: 2060
A85: England – CCGs | B85: Herefordshire and Worcestershire | C85: England – CCGs - Herefordshire and Worcestershire | D85: 308958 | E85: 324721 | F85: 788587 | G85: 388325 | H85: 400262 | I85: 308958 | J85: 324721 | K85: 79367 | L85: 75541 | M85: 3749 | N85: 3957 | O85: 4175 | P85: 4317 | Q85: 4412 | R85: 4455 | S85: 4689 | T85: 4751 | U85: 4690 | V85: 4617 | W85: 4612 | X85: 4755 | Y85: 4627 | Z85: 4368 | AA85: 4467 | AB85: 4412 | AC85: 4165 | AD85: 4149 | AE85: 4023 | AF85: 3635 | AG85: 3420 | AH85: 3845 | AI85: 4109 | AJ85: 4360 | AK85: 4239 | AL85: 4503 | AM85: 4430 | AN85: 4480 | AO85: 4748 | AP85: 4729 | AQ85: 4541 | AR85: 4440 | AS85: 4434 | AT85: 4484 | AU85: 4391 | AV85: 4319 | AW85: 4347 | AX85: 4427 | AY85: 4512 | AZ85: 4523 | BA85: 4432 | BB85: 4221 | BC85: 4202 | BD85: 4332 | BE85: 4456 | BF85: 4711 | BG85: 4922 | BH85: 5288 | BI85: 5420 | BJ85: 5309 | BK85: 5564 | BL85: 5540 | BM85: 5899 | BN85: 5905 | BO85: 5921 | BP85: 5844 | BQ85: 5796 | BR85: 5634 | BS85: 5422 | BT85: 5232 | BU85: 5149 | BV85: 5103 | BW85: 4759 | BX85: 4760 | BY85: 4679 | BZ85: 4853 | CA85: 4799 | CB85: 4736 | CC85: 4734 | CD85: 4903 | CE85: 5186 | CF85: 5228 | CG85: 5478 | CH85: 4285 | CI85: 4128 | CJ85: 4276 | CK85: 3649 | CL85: 3327 | CM85: 2732 | CN85: 2750 | CO85: 2728 | CP85: 2422 | CQ85: 2347 | CR85: 2034 | CS85: 1886 | CT85: 1610 | CU85: 1356 | CV85: 1310 | CW85: 1016 | CX85: 896 | CY85: 2850 | CZ85: 3642 | DA85: 3829 | DB85: 3941 | DC85: 4092 | DD85: 4120 | DE85: 4253 | DF85: 4456 | DG85: 4580 | DH85: 4561 | DI85: 4356 | DJ85: 4412 | DK85: 4324 | DL85: 4379 | DM85: 4297 | DN85: 4230 | DO85: 4112 | DP85: 3910 | DQ85: 4047 | DR85: 3889 | DS85: 3394 | DT85: 3391 | DU85: 3618 | DV85: 3789 | DW85: 4034 | DX85: 4067 | DY85: 4145 | DZ85: 4087 | EA85: 4414 | EB85: 4541 | EC85: 4554 | ED85: 4573 | EE85: 4326 | EF85: 4441 | EG85: 4448 | EH85: 4488 | EI85: 4586 | EJ85: 4754 | EK85: 4529 | EL85: 4718 | EM85: 4909 | EN85: 4731 | EO85: 4148 | EP85: 4366 | EQ85: 4424 | ER85: 4653 | ES85: 4836 | ET85: 5045 | EU85: 5573 | EV85: 5709 | EW85: 5605 | EX85: 5875 | EY85: 5947 | EZ85: 6028 | FA85: 6060 | FB85: 6125 | FC85: 5937 | FD85: 5818 | FE85: 5774 | FF85: 5399 | FG85: 5251 | FH85: 5210 | FI85: 5277 | FJ85: 5116 | FK85: 5101 | FL85: 4965 | FM85: 5212 | FN85: 5201 | FO85: 4820 | FP85: 5006 | FQ85: 4988 | FR85: 5320 | FS85: 5281 | FT85: 5734 | FU85: 4649 | FV85: 4536 | FW85: 4552 | FX85: 4027 | FY85: 3534 | FZ85: 3154 | GA85: 3134 | GB85: 3037 | GC85: 2889 | GD85: 2813 | GE85: 2392 | GF85: 2272 | GG85: 2173 | GH85: 1946 | GI85: 1810 | GJ85: 1661 | GK85: 1439 | GL85: 6473
A86: England – CCGs | B86: Herts Valleys | C86: England – CCGs - Herts Valleys | D86: 219626 | E86: 236204 | F86: 598034 | G86: 292588 | H86: 305446 | I86: 219626 | J86: 236204 | K86: 72962 | L86: 69242 | M86: 3686 | N86: 3837 | O86: 4002 | P86: 4053 | Q86: 4091 | R86: 4174 | S86: 4100 | T86: 4278 | U86: 4466 | V86: 4371 | W86: 4451 | X86: 4363 | Y86: 4200 | Z86: 4001 | AA86: 3881 | AB86: 3769 | AC86: 3643 | AD86: 3596 | AE86: 3564 | AF86: 2359 | AG86: 2049 | AH86: 2466 | AI86: 2844 | AJ86: 3164 | AK86: 3266 | AL86: 3347 | AM86: 3087 | AN86: 3157 | AO86: 3370 | AP86: 3417 | AQ86: 3524 | AR86: 3803 | AS86: 3613 | AT86: 3720 | AU86: 3671 | AV86: 3784 | AW86: 4059 | AX86: 4255 | AY86: 4115 | AZ86: 4460 | BA86: 4313 | BB86: 4198 | BC86: 4404 | BD86: 4258 | BE86: 4381 | BF86: 4306 | BG86: 4219 | BH86: 4349 | BI86: 4398 | BJ86: 4191 | BK86: 4206 | BL86: 4284 | BM86: 4120 | BN86: 4365 | BO86: 4201 | BP86: 4108 | BQ86: 4137 | BR86: 3902 | BS86: 3728 | BT86: 3420 | BU86: 3430 | BV86: 3177 | BW86: 3162 | BX86: 2928 | BY86: 2796 | BZ86: 2793 | CA86: 2647 | CB86: 2536 | CC86: 2442 | CD86: 2420 | CE86: 2444 | CF86: 2591 | CG86: 2768 | CH86: 2234 | CI86: 2135 | CJ86: 2176 | CK86: 1871 | CL86: 1501 | CM86: 1285 | CN86: 1470 | CO86: 1508 | CP86: 1287 | CQ86: 1326 | CR86: 1161 | CS86: 1066 | CT86: 1021 | CU86: 899 | CV86: 793 | CW86: 685 | CX86: 572 | CY86: 1920 | CZ86: 3397 | DA86: 3546 | DB86: 3706 | DC86: 3959 | DD86: 3915 | DE86: 3998 | DF86: 4003 | DG86: 4157 | DH86: 4310 | DI86: 4242 | DJ86: 4094 | DK86: 4225 | DL86: 3842 | DM86: 3882 | DN86: 3501 | DO86: 3653 | DP86: 3443 | DQ86: 3369 | DR86: 3325 | DS86: 1924 | DT86: 1848 | DU86: 2172 | DV86: 2896 | DW86: 3145 | DX86: 3221 | DY86: 3276 | DZ86: 3319 | EA86: 3356 | EB86: 3579 | EC86: 3518 | ED86: 3795 | EE86: 4112 | EF86: 4079 | EG86: 4030 | EH86: 4108 | EI86: 4270 | EJ86: 4593 | EK86: 4872 | EL86: 4769 | EM86: 4760 | EN86: 4614 | EO86: 4495 | EP86: 4226 | EQ86: 4425 | ER86: 4371 | ES86: 4434 | ET86: 4367 | EU86: 4542 | EV86: 4485 | EW86: 4219 | EX86: 4236 | EY86: 4449 | EZ86: 4369 | FA86: 4335 | FB86: 4329 | FC86: 4145 | FD86: 4101 | FE86: 3913 | FF86: 3835 | FG86: 3504 | FH86: 3454 | FI86: 3390 | FJ86: 3096 | FK86: 3091 | FL86: 2963 | FM86: 2921 | FN86: 2699 | FO86: 2602 | FP86: 2756 | FQ86: 2768 | FR86: 2829 | FS86: 2925 | FT86: 3312 | FU86: 2520 | FV86: 2366 | FW86: 2291 | FX86: 2299 | FY86: 1905 | FZ86: 1701 | GA86: 1779 | GB86: 1773 | GC86: 1796 | GD86: 1724 | GE86: 1536 | GF86: 1411 | GG86: 1353 | GH86: 1264 | GI86: 1202 | GJ86: 1058 | GK86: 973 | GL86: 4086
A87: England – CCGs | B87: Heywood, Middleton and Rochdale | C87: England – CCGs - Heywood, Middleton and Rochdale | D87: 82510 | E87: 86603 | F87: 222412 | G87: 109996 | H87: 112416 | I87: 82510 | J87: 86603 | K87: 27486 | L87: 25813 | M87: 1521 | N87: 1486 | O87: 1624 | P87: 1608 | Q87: 1585 | R87: 1552 | S87: 1636 | T87: 1626 | U87: 1601 | V87: 1609 | W87: 1453 | X87: 1606 | Y87: 1585 | Z87: 1513 | AA87: 1413 | AB87: 1386 | AC87: 1314 | AD87: 1368 | AE87: 1401 | AF87: 1192 | AG87: 1290 | AH87: 1302 | AI87: 1348 | AJ87: 1429 | AK87: 1546 | AL87: 1463 | AM87: 1610 | AN87: 1484 | AO87: 1583 | AP87: 1624 | AQ87: 1558 | AR87: 1574 | AS87: 1494 | AT87: 1504 | AU87: 1433 | AV87: 1383 | AW87: 1454 | AX87: 1486 | AY87: 1386 | AZ87: 1436 | BA87: 1322 | BB87: 1285 | BC87: 1155 | BD87: 1166 | BE87: 1314 | BF87: 1304 | BG87: 1403 | BH87: 1444 | BI87: 1523 | BJ87: 1478 | BK87: 1491 | BL87: 1549 | BM87: 1510 | BN87: 1476 | BO87: 1476 | BP87: 1472 | BQ87: 1332 | BR87: 1414 | BS87: 1306 | BT87: 1301 | BU87: 1232 | BV87: 1275 | BW87: 1162 | BX87: 1141 | BY87: 1080 | BZ87: 1134 | CA87: 1126 | CB87: 1056 | CC87: 991 | CD87: 1047 | CE87: 1004 | CF87: 1058 | CG87: 1156 | CH87: 786 | CI87: 795 | CJ87: 751 | CK87: 682 | CL87: 611 | CM87: 492 | CN87: 553 | CO87: 501 | CP87: 483 | CQ87: 424 | CR87: 347 | CS87: 328 | CT87: 244 | CU87: 253 | CV87: 196 | CW87: 185 | CX87: 177 | CY87: 539 | CZ87: 1371 | DA87: 1432 | DB87: 1510 | DC87: 1484 | DD87: 1536 | DE87: 1491 | DF87: 1534 | DG87: 1545 | DH87: 1562 | DI87: 1470 | DJ87: 1542 | DK87: 1426 | DL87: 1401 | DM87: 1409 | DN87: 1324 | DO87: 1338 | DP87: 1242 | DQ87: 1196 | DR87: 1214 | DS87: 994 | DT87: 1092 | DU87: 1106 | DV87: 1307 | DW87: 1352 | DX87: 1383 | DY87: 1362 | DZ87: 1351 | EA87: 1505 | EB87: 1600 | EC87: 1653 | ED87: 1475 | EE87: 1661 | EF87: 1694 | EG87: 1603 | EH87: 1548 | EI87: 1465 | EJ87: 1552 | EK87: 1451 | EL87: 1607 | EM87: 1570 | EN87: 1394 | EO87: 1323 | EP87: 1331 | EQ87: 1346 | ER87: 1415 | ES87: 1330 | ET87: 1398 | EU87: 1507 | EV87: 1530 | EW87: 1525 | EX87: 1579 | EY87: 1558 | EZ87: 1616 | FA87: 1534 | FB87: 1461 | FC87: 1465 | FD87: 1509 | FE87: 1455 | FF87: 1413 | FG87: 1383 | FH87: 1348 | FI87: 1292 | FJ87: 1280 | FK87: 1213 | FL87: 1157 | FM87: 1126 | FN87: 1115 | FO87: 1073 | FP87: 1064 | FQ87: 1065 | FR87: 1065 | FS87: 1097 | FT87: 1227 | FU87: 873 | FV87: 878 | FW87: 766 | FX87: 780 | FY87: 736 | FZ87: 676 | GA87: 659 | GB87: 601 | GC87: 550 | GD87: 529 | GE87: 509 | GF87: 482 | GG87: 396 | GH87: 394 | GI87: 366 | GJ87: 305 | GK87: 286 | GL87: 1078
A88: England – CCGs | B88: Hillingdon | C88: England – CCGs - Hillingdon | D88: 116311 | E88: 116482 | F88: 306870 | G88: 154498 | H88: 152372 | I88: 116311 | J88: 116482 | K88: 38187 | L88: 35890 | M88: 2150 | N88: 2235 | O88: 2259 | P88: 2317 | Q88: 2402 | R88: 2299 | S88: 2353 | T88: 2469 | U88: 2231 | V88: 2065 | W88: 2071 | X88: 2108 | Y88: 1977 | Z88: 1925 | AA88: 1968 | AB88: 1778 | AC88: 1806 | AD88: 1774 | AE88: 1760 | AF88: 1984 | AG88: 2027 | AH88: 2161 | AI88: 2025 | AJ88: 2125 | AK88: 2117 | AL88: 2288 | AM88: 2370 | AN88: 2353 | AO88: 2469 | AP88: 2499 | AQ88: 2471 | AR88: 2322 | AS88: 2301 | AT88: 2493 | AU88: 2465 | AV88: 2426 | AW88: 2377 | AX88: 2389 | AY88: 2440 | AZ88: 2468 | BA88: 2443 | BB88: 2318 | BC88: 2204 | BD88: 2106 | BE88: 2111 | BF88: 2021 | BG88: 2100 | BH88: 2048 | BI88: 2007 | BJ88: 2061 | BK88: 1869 | BL88: 1930 | BM88: 1995 | BN88: 1901 | BO88: 1915 | BP88: 1833 | BQ88: 1834 | BR88: 1752 | BS88: 1719 | BT88: 1685 | BU88: 1509 | BV88: 1434 | BW88: 1378 | BX88: 1372 | BY88: 1357 | BZ88: 1211 | CA88: 1202 | CB88: 1057 | CC88: 1002 | CD88: 1058 | CE88: 1040 | CF88: 1048 | CG88: 1127 | CH88: 888 | CI88: 788 | CJ88: 854 | CK88: 730 | CL88: 678 | CM88: 580 | CN88: 677 | CO88: 612 | CP88: 589 | CQ88: 555 | CR88: 513 | CS88: 457 | CT88: 389 | CU88: 338 | CV88: 352 | CW88: 252 | CX88: 225 | CY88: 857 | CZ88: 1983 | DA88: 2189 | DB88: 2174 | DC88: 2172 | DD88: 2221 | DE88: 2244 | DF88: 2217 | DG88: 2122 | DH88: 2033 | DI88: 2093 | DJ88: 1994 | DK88: 1997 | DL88: 1899 | DM88: 1813 | DN88: 1732 | DO88: 1736 | DP88: 1625 | DQ88: 1646 | DR88: 1726 | DS88: 1770 | DT88: 1704 | DU88: 1711 | DV88: 1821 | DW88: 1907 | DX88: 1853 | DY88: 2042 | DZ88: 2063 | EA88: 2160 | EB88: 2277 | EC88: 2191 | ED88: 2207 | EE88: 2426 | EF88: 2392 | EG88: 2453 | EH88: 2307 | EI88: 2440 | EJ88: 2544 | EK88: 2417 | EL88: 2495 | EM88: 2442 | EN88: 2549 | EO88: 2294 | EP88: 2069 | EQ88: 2119 | ER88: 2094 | ES88: 2002 | ET88: 1879 | EU88: 1946 | EV88: 1957 | EW88: 1973 | EX88: 1949 | EY88: 2048 | EZ88: 1925 | FA88: 1924 | FB88: 1928 | FC88: 1964 | FD88: 1845 | FE88: 1883 | FF88: 1659 | FG88: 1589 | FH88: 1613 | FI88: 1544 | FJ88: 1407 | FK88: 1386 | FL88: 1272 | FM88: 1241 | FN88: 1193 | FO88: 1106 | FP88: 1094 | FQ88: 1120 | FR88: 1113 | FS88: 1155 | FT88: 1308 | FU88: 1031 | FV88: 951 | FW88: 895 | FX88: 852 | FY88: 819 | FZ88: 727 | GA88: 710 | GB88: 714 | GC88: 739 | GD88: 721 | GE88: 692 | GF88: 622 | GG88: 540 | GH88: 503 | GI88: 430 | GJ88: 412 | GK88: 354 | GL88: 1274
A89: England – CCGs | B89: Hounslow | C89: England – CCGs - Hounslow | D89: 104885 | E89: 101406 | F89: 271523 | G89: 138238 | H89: 133285 | I89: 104885 | J89: 101406 | K89: 33353 | L89: 31879 | M89: 1939 | N89: 2009 | O89: 2048 | P89: 2108 | Q89: 2061 | R89: 2047 | S89: 2121 | T89: 2224 | U89: 1975 | V89: 1853 | W89: 1819 | X89: 1800 | Y89: 1743 | Z89: 1673 | AA89: 1521 | AB89: 1442 | AC89: 1513 | AD89: 1457 | AE89: 1515 | AF89: 1326 | AG89: 1529 | AH89: 1398 | AI89: 1644 | AJ89: 1717 | AK89: 1863 | AL89: 1882 | AM89: 1923 | AN89: 1959 | AO89: 2159 | AP89: 2341 | AQ89: 2178 | AR89: 2442 | AS89: 2435 | AT89: 2504 | AU89: 2651 | AV89: 2431 | AW89: 2466 | AX89: 2473 | AY89: 2589 | AZ89: 2417 | BA89: 2383 | BB89: 2336 | BC89: 2239 | BD89: 2191 | BE89: 2162 | BF89: 2058 | BG89: 2066 | BH89: 2013 | BI89: 1762 | BJ89: 1795 | BK89: 1758 | BL89: 1774 | BM89: 1714 | BN89: 1733 | BO89: 1801 | BP89: 1688 | BQ89: 1509 | BR89: 1557 | BS89: 1513 | BT89: 1392 | BU89: 1341 | BV89: 1254 | BW89: 1280 | BX89: 1185 | BY89: 1155 | BZ89: 1087 | CA89: 1032 | CB89: 1057 | CC89: 924 | CD89: 971 | CE89: 908 | CF89: 886 | CG89: 899 | CH89: 680 | CI89: 669 | CJ89: 617 | CK89: 562 | CL89: 555 | CM89: 448 | CN89: 515 | CO89: 501 | CP89: 430 | CQ89: 392 | CR89: 363 | CS89: 326 | CT89: 317 | CU89: 255 | CV89: 232 | CW89: 177 | CX89: 136 | CY89: 445 | CZ89: 1900 | DA89: 1921 | DB89: 1933 | DC89: 2073 | DD89: 1930 | DE89: 1869 | DF89: 2024 | DG89: 2084 | DH89: 1868 | DI89: 1830 | DJ89: 1815 | DK89: 1763 | DL89: 1590 | DM89: 1579 | DN89: 1539 | DO89: 1432 | DP89: 1423 | DQ89: 1306 | DR89: 1376 | DS89: 1194 | DT89: 1150 | DU89: 1327 | DV89: 1373 | DW89: 1626 | DX89: 1726 | DY89: 1785 | DZ89: 1815 | EA89: 1864 | EB89: 2006 | EC89: 2117 | ED89: 2144 | EE89: 2173 | EF89: 2100 | EG89: 2103 | EH89: 2263 | EI89: 2338 | EJ89: 2330 | EK89: 2487 | EL89: 2340 | EM89: 2361 | EN89: 2087 | EO89: 2029 | EP89: 1944 | EQ89: 1966 | ER89: 2057 | ES89: 1836 | ET89: 1819 | EU89: 1746 | EV89: 1847 | EW89: 1850 | EX89: 1672 | EY89: 1731 | EZ89: 1670 | FA89: 1677 | FB89: 1711 | FC89: 1599 | FD89: 1542 | FE89: 1476 | FF89: 1380 | FG89: 1406 | FH89: 1381 | FI89: 1339 | FJ89: 1277 | FK89: 1166 | FL89: 1153 | FM89: 1127 | FN89: 1152 | FO89: 1041 | FP89: 985 | FQ89: 992 | FR89: 979 | FS89: 1022 | FT89: 932 | FU89: 777 | FV89: 786 | FW89: 738 | FX89: 703 | FY89: 672 | FZ89: 563 | GA89: 556 | GB89: 561 | GC89: 584 | GD89: 493 | GE89: 482 | GF89: 417 | GG89: 354 | GH89: 345 | GI89: 294 | GJ89: 290 | GK89: 268 | GL89: 934
A90: England – CCGs | B90: Hull | C90: England – CCGs - Hull | D90: 101439 | E90: 100969 | F90: 259778 | G90: 131062 | H90: 128716 | I90: 101439 | J90: 100969 | K90: 29623 | L90: 27747 | M90: 1669 | N90: 1664 | O90: 1837 | P90: 1838 | Q90: 1716 | R90: 1738 | S90: 1826 | T90: 1838 | U90: 1781 | V90: 1640 | W90: 1730 | X90: 1696 | Y90: 1622 | Z90: 1520 | AA90: 1401 | AB90: 1455 | AC90: 1262 | AD90: 1390 | AE90: 1428 | AF90: 1802 | AG90: 2232 | AH90: 2459 | AI90: 2312 | AJ90: 2032 | AK90: 1795 | AL90: 2153 | AM90: 2163 | AN90: 2167 | AO90: 2682 | AP90: 2421 | AQ90: 2238 | AR90: 2127 | AS90: 1986 | AT90: 2031 | AU90: 2031 | AV90: 1784 | AW90: 1706 | AX90: 1724 | AY90: 1699 | AZ90: 1633 | BA90: 1620 | BB90: 1415 | BC90: 1492 | BD90: 1516 | BE90: 1480 | BF90: 1488 | BG90: 1639 | BH90: 1687 | BI90: 1648 | BJ90: 1558 | BK90: 1567 | BL90: 1607 | BM90: 1750 | BN90: 1687 | BO90: 1704 | BP90: 1646 | BQ90: 1682 | BR90: 1628 | BS90: 1610 | BT90: 1496 | BU90: 1440 | BV90: 1400 | BW90: 1352 | BX90: 1279 | BY90: 1229 | BZ90: 1218 | CA90: 1215 | CB90: 1130 | CC90: 1151 | CD90: 1056 | CE90: 1088 | CF90: 1242 | CG90: 1232 | CH90: 878 | CI90: 806 | CJ90: 735 | CK90: 708 | CL90: 576 | CM90: 515 | CN90: 564 | CO90: 567 | CP90: 517 | CQ90: 518 | CR90: 423 | CS90: 370 | CT90: 341 | CU90: 271 | CV90: 223 | CW90: 203 | CX90: 160 | CY90: 507 | CZ90: 1567 | DA90: 1609 | DB90: 1635 | DC90: 1654 | DD90: 1694 | DE90: 1706 | DF90: 1723 | DG90: 1752 | DH90: 1579 | DI90: 1673 | DJ90: 1559 | DK90: 1536 | DL90: 1431 | DM90: 1485 | DN90: 1295 | DO90: 1370 | DP90: 1219 | DQ90: 1260 | DR90: 1313 | DS90: 1556 | DT90: 1936 | DU90: 2083 | DV90: 2144 | DW90: 2020 | DX90: 1819 | DY90: 1989 | DZ90: 2088 | EA90: 2216 | EB90: 2418 | EC90: 2142 | ED90: 2006 | EE90: 2134 | EF90: 1944 | EG90: 1944 | EH90: 1935 | EI90: 1744 | EJ90: 1749 | EK90: 1726 | EL90: 1654 | EM90: 1567 | EN90: 1405 | EO90: 1328 | EP90: 1252 | EQ90: 1388 | ER90: 1414 | ES90: 1498 | ET90: 1568 | EU90: 1567 | EV90: 1583 | EW90: 1516 | EX90: 1651 | EY90: 1631 | EZ90: 1640 | FA90: 1613 | FB90: 1665 | FC90: 1689 | FD90: 1659 | FE90: 1720 | FF90: 1571 | FG90: 1566 | FH90: 1406 | FI90: 1505 | FJ90: 1419 | FK90: 1306 | FL90: 1173 | FM90: 1239 | FN90: 1206 | FO90: 1179 | FP90: 1141 | FQ90: 1092 | FR90: 1162 | FS90: 1207 | FT90: 1313 | FU90: 962 | FV90: 823 | FW90: 830 | FX90: 834 | FY90: 709 | FZ90: 687 | GA90: 706 | GB90: 700 | GC90: 632 | GD90: 614 | GE90: 599 | GF90: 529 | GG90: 444 | GH90: 425 | GI90: 410 | GJ90: 332 | GK90: 316 | GL90: 1018
A91: England – CCGs | B91: Ipswich and East Suffolk | C91: England – CCGs - Ipswich and East Suffolk | D91: 160958 | E91: 167336 | F91: 411211 | G91: 203434 | H91: 207777 | I91: 160958 | J91: 167336 | K91: 42476 | L91: 40441 | M91: 1965 | N91: 2082 | O91: 2169 | P91: 2281 | Q91: 2325 | R91: 2337 | S91: 2318 | T91: 2423 | U91: 2557 | V91: 2508 | W91: 2510 | X91: 2546 | Y91: 2553 | Z91: 2460 | AA91: 2402 | AB91: 2539 | AC91: 2247 | AD91: 2254 | AE91: 2282 | AF91: 1967 | AG91: 1887 | AH91: 1919 | AI91: 2153 | AJ91: 2265 | AK91: 2219 | AL91: 2276 | AM91: 2262 | AN91: 2349 | AO91: 2334 | AP91: 2262 | AQ91: 2217 | AR91: 2390 | AS91: 2393 | AT91: 2331 | AU91: 2414 | AV91: 2267 | AW91: 2347 | AX91: 2512 | AY91: 2401 | AZ91: 2374 | BA91: 2250 | BB91: 2131 | BC91: 2201 | BD91: 2228 | BE91: 2403 | BF91: 2414 | BG91: 2728 | BH91: 2667 | BI91: 2828 | BJ91: 2939 | BK91: 2876 | BL91: 2861 | BM91: 3048 | BN91: 2995 | BO91: 3075 | BP91: 2958 | BQ91: 2927 | BR91: 2901 | BS91: 2848 | BT91: 2693 | BU91: 2680 | BV91: 2705 | BW91: 2666 | BX91: 2399 | BY91: 2408 | BZ91: 2545 | CA91: 2480 | CB91: 2326 | CC91: 2386 | CD91: 2482 | CE91: 2570 | CF91: 2731 | CG91: 2931 | CH91: 2186 | CI91: 2144 | CJ91: 2083 | CK91: 1816 | CL91: 1683 | CM91: 1378 | CN91: 1467 | CO91: 1377 | CP91: 1309 | CQ91: 1166 | CR91: 1078 | CS91: 1053 | CT91: 846 | CU91: 783 | CV91: 641 | CW91: 565 | CX91: 548 | CY91: 1734 | CZ91: 1866 | DA91: 2077 | DB91: 2010 | DC91: 2232 | DD91: 2141 | DE91: 2245 | DF91: 2236 | DG91: 2323 | DH91: 2378 | DI91: 2546 | DJ91: 2348 | DK91: 2404 | DL91: 2318 | DM91: 2408 | DN91: 2317 | DO91: 2303 | DP91: 2196 | DQ91: 2093 | DR91: 2096 | DS91: 1780 | DT91: 1506 | DU91: 1619 | DV91: 1894 | DW91: 1872 | DX91: 2141 | DY91: 2056 | DZ91: 2081 | EA91: 2260 | EB91: 2280 | EC91: 2354 | ED91: 2421 | EE91: 2378 | EF91: 2419 | EG91: 2328 | EH91: 2326 | EI91: 2234 | EJ91: 2284 | EK91: 2404 | EL91: 2444 | EM91: 2585 | EN91: 2417 | EO91: 2263 | EP91: 2190 | EQ91: 2231 | ER91: 2414 | ES91: 2575 | ET91: 2602 | EU91: 2835 | EV91: 2961 | EW91: 2853 | EX91: 3047 | EY91: 2953 | EZ91: 2955 | FA91: 3078 | FB91: 3145 | FC91: 3199 | FD91: 3038 | FE91: 2818 | FF91: 2990 | FG91: 2736 | FH91: 2808 | FI91: 2716 | FJ91: 2785 | FK91: 2640 | FL91: 2623 | FM91: 2607 | FN91: 2490 | FO91: 2606 | FP91: 2617 | FQ91: 2716 | FR91: 2637 | FS91: 2741 | FT91: 3239 | FU91: 2357 | FV91: 2216 | FW91: 2167 | FX91: 1960 | FY91: 1811 | FZ91: 1560 | GA91: 1550 | GB91: 1626 | GC91: 1510 | GD91: 1403 | GE91: 1314 | GF91: 1284 | GG91: 1143 | GH91: 1034 | GI91: 969 | GJ91: 918 | GK91: 811 | GL91: 3416
A92: England – CCGs | B92: Isle of Wight | C92: England – CCGs - Isle of Wight | D92: 56669 | E92: 60364 | F92: 141771 | G92: 69471 | H92: 72300 | I92: 56669 | J92: 60364 | K92: 12802 | L92: 11936 | M92: 609 | N92: 582 | O92: 611 | P92: 696 | Q92: 710 | R92: 718 | S92: 728 | T92: 777 | U92: 739 | V92: 718 | W92: 716 | X92: 765 | Y92: 759 | Z92: 797 | AA92: 747 | AB92: 742 | AC92: 733 | AD92: 655 | AE92: 766 | AF92: 641 | AG92: 615 | AH92: 643 | AI92: 738 | AJ92: 715 | AK92: 713 | AL92: 820 | AM92: 671 | AN92: 651 | AO92: 763 | AP92: 615 | AQ92: 640 | AR92: 739 | AS92: 663 | AT92: 707 | AU92: 664 | AV92: 684 | AW92: 654 | AX92: 597 | AY92: 699 | AZ92: 708 | BA92: 724 | BB92: 628 | BC92: 634 | BD92: 682 | BE92: 721 | BF92: 769 | BG92: 802 | BH92: 765 | BI92: 919 | BJ92: 893 | BK92: 938 | BL92: 967 | BM92: 1025 | BN92: 1051 | BO92: 1138 | BP92: 1059 | BQ92: 1060 | BR92: 1020 | BS92: 1017 | BT92: 1004 | BU92: 1059 | BV92: 1044 | BW92: 950 | BX92: 1009 | BY92: 1008 | BZ92: 1040 | CA92: 945 | CB92: 985 | CC92: 999 | CD92: 1041 | CE92: 1103 | CF92: 1181 | CG92: 1320 | CH92: 1009 | CI92: 957 | CJ92: 904 | CK92: 834 | CL92: 779 | CM92: 587 | CN92: 637 | CO92: 544 | CP92: 529 | CQ92: 445 | CR92: 442 | CS92: 386 | CT92: 368 | CU92: 291 | CV92: 264 | CW92: 220 | CX92: 191 | CY92: 676 | CZ92: 513 | DA92: 579 | DB92: 616 | DC92: 594 | DD92: 710 | DE92: 711 | DF92: 681 | DG92: 696 | DH92: 681 | DI92: 723 | DJ92: 669 | DK92: 651 | DL92: 702 | DM92: 708 | DN92: 694 | DO92: 679 | DP92: 651 | DQ92: 678 | DR92: 654 | DS92: 594 | DT92: 558 | DU92: 522 | DV92: 632 | DW92: 640 | DX92: 678 | DY92: 645 | DZ92: 603 | EA92: 657 | EB92: 666 | EC92: 649 | ED92: 656 | EE92: 628 | EF92: 678 | EG92: 635 | EH92: 702 | EI92: 696 | EJ92: 624 | EK92: 708 | EL92: 666 | EM92: 708 | EN92: 695 | EO92: 666 | EP92: 639 | EQ92: 676 | ER92: 785 | ES92: 819 | ET92: 874 | EU92: 946 | EV92: 1015 | EW92: 1055 | EX92: 1066 | EY92: 1115 | EZ92: 1136 | FA92: 1135 | FB92: 1128 | FC92: 1091 | FD92: 1136 | FE92: 1101 | FF92: 1106 | FG92: 1108 | FH92: 1108 | FI92: 1016 | FJ92: 1100 | FK92: 1117 | FL92: 1023 | FM92: 1133 | FN92: 1114 | FO92: 1087 | FP92: 1052 | FQ92: 1071 | FR92: 1143 | FS92: 1238 | FT92: 1345 | FU92: 1060 | FV92: 986 | FW92: 1018 | FX92: 918 | FY92: 828 | FZ92: 623 | GA92: 676 | GB92: 675 | GC92: 601 | GD92: 562 | GE92: 528 | GF92: 517 | GG92: 427 | GH92: 423 | GI92: 430 | GJ92: 346 | GK92: 313 | GL92: 1395
A93: England – CCGs | B93: Kent and Medway | C93: England – CCGs - Kent and Medway | D93: 704728 | E93: 746565 | F93: 1860111 | G93: 914755 | H93: 945356 | I93: 704728 | J93: 746565 | K93: 210027 | L93: 198791 | M93: 10489 | N93: 11052 | O93: 11296 | P93: 11539 | Q93: 11724 | R93: 11877 | S93: 12100 | T93: 12656 | U93: 12555 | V93: 12298 | W93: 12153 | X93: 12206 | Y93: 12122 | Z93: 11852 | AA93: 11295 | AB93: 11188 | AC93: 10832 | AD93: 10793 | AE93: 10717 | AF93: 10026 | AG93: 10347 | AH93: 10521 | AI93: 10742 | AJ93: 10926 | AK93: 10685 | AL93: 11434 | AM93: 11008 | AN93: 11691 | AO93: 11368 | AP93: 11242 | AQ93: 11227 | AR93: 11281 | AS93: 11158 | AT93: 11371 | AU93: 11197 | AV93: 10776 | AW93: 10803 | AX93: 11062 | AY93: 11337 | AZ93: 11535 | BA93: 11395 | BB93: 10473 | BC93: 10552 | BD93: 10530 | BE93: 11125 | BF93: 11364 | BG93: 11878 | BH93: 12501 | BI93: 12995 | BJ93: 12598 | BK93: 13117 | BL93: 13134 | BM93: 13514 | BN93: 13513 | BO93: 13423 | BP93: 13157 | BQ93: 12718 | BR93: 12591 | BS93: 11915 | BT93: 11165 | BU93: 11234 | BV93: 10764 | BW93: 10483 | BX93: 9894 | BY93: 9652 | BZ93: 9642 | CA93: 9451 | CB93: 9017 | CC93: 9140 | CD93: 9383 | CE93: 9734 | CF93: 10565 | CG93: 11522 | CH93: 8564 | CI93: 8098 | CJ93: 7928 | CK93: 7009 | CL93: 6166 | CM93: 5350 | CN93: 5452 | CO93: 5253 | CP93: 4708 | CQ93: 4327 | CR93: 3982 | CS93: 3547 | CT93: 3063 | CU93: 2743 | CV93: 2420 | CW93: 2080 | CX93: 1641 | CY93: 5804 | CZ93: 9809 | DA93: 10357 | DB93: 10806 | DC93: 10877 | DD93: 11256 | DE93: 11349 | DF93: 11378 | DG93: 11836 | DH93: 11659 | DI93: 11831 | DJ93: 11504 | DK93: 11709 | DL93: 11386 | DM93: 11176 | DN93: 10727 | DO93: 10591 | DP93: 10340 | DQ93: 10200 | DR93: 10156 | DS93: 9463 | DT93: 9731 | DU93: 10114 | DV93: 10345 | DW93: 9778 | DX93: 10248 | DY93: 10868 | DZ93: 10729 | EA93: 11552 | EB93: 11582 | EC93: 11419 | ED93: 11581 | EE93: 11567 | EF93: 11641 | EG93: 11817 | EH93: 11722 | EI93: 11879 | EJ93: 11953 | EK93: 12011 | EL93: 12316 | EM93: 12454 | EN93: 11818 | EO93: 10994 | EP93: 10949 | EQ93: 11075 | ER93: 11528 | ES93: 11789 | ET93: 12401 | EU93: 12716 | EV93: 13211 | EW93: 13202 | EX93: 13607 | EY93: 13285 | EZ93: 13599 | FA93: 13562 | FB93: 13732 | FC93: 13292 | FD93: 13033 | FE93: 12578 | FF93: 12032 | FG93: 11700 | FH93: 11454 | FI93: 11180 | FJ93: 10797 | FK93: 10417 | FL93: 10022 | FM93: 9994 | FN93: 9903 | FO93: 9707 | FP93: 9898 | FQ93: 10190 | FR93: 10659 | FS93: 11262 | FT93: 12576 | FU93: 9650 | FV93: 8764 | FW93: 8836 | FX93: 8183 | FY93: 7099 | FZ93: 6170 | GA93: 6407 | GB93: 6289 | GC93: 5871 | GD93: 5593 | GE93: 5155 | GF93: 4678 | GG93: 4300 | GH93: 3956 | GI93: 3707 | GJ93: 3400 | GK93: 3014 | GL93: 12405
A94: England – CCGs | B94: Kernow | C94: England – CCGs - Kernow | D94: 221822 | E94: 241128 | F94: 571802 | G94: 277820 | H94: 293982 | I94: 221822 | J94: 241128 | K94: 55998 | L94: 52854 | M94: 2573 | N94: 2831 | O94: 2890 | P94: 3023 | Q94: 3086 | R94: 3065 | S94: 3333 | T94: 3450 | U94: 3466 | V94: 3229 | W94: 3286 | X94: 3194 | Y94: 3308 | Z94: 3171 | AA94: 3077 | AB94: 3022 | AC94: 2976 | AD94: 3018 | AE94: 3155 | AF94: 3099 | AG94: 3120 | AH94: 3215 | AI94: 3178 | AJ94: 3118 | AK94: 2947 | AL94: 2807 | AM94: 2777 | AN94: 2906 | AO94: 2862 | AP94: 2789 | AQ94: 2672 | AR94: 2797 | AS94: 2653 | AT94: 2828 | AU94: 2710 | AV94: 2685 | AW94: 2766 | AX94: 2793 | AY94: 3157 | AZ94: 3121 | BA94: 2866 | BB94: 2781 | BC94: 2870 | BD94: 2905 | BE94: 2982 | BF94: 3130 | BG94: 3442 | BH94: 3621 | BI94: 3734 | BJ94: 3664 | BK94: 3809 | BL94: 3813 | BM94: 4125 | BN94: 4141 | BO94: 4138 | BP94: 4224 | BQ94: 4175 | BR94: 4068 | BS94: 4080 | BT94: 3920 | BU94: 3966 | BV94: 3926 | BW94: 3853 | BX94: 3727 | BY94: 3650 | BZ94: 3694 | CA94: 3689 | CB94: 3612 | CC94: 3679 | CD94: 3827 | CE94: 4017 | CF94: 4154 | CG94: 4649 | CH94: 3570 | CI94: 3371 | CJ94: 3191 | CK94: 2943 | CL94: 2369 | CM94: 2078 | CN94: 2161 | CO94: 2019 | CP94: 1812 | CQ94: 1688 | CR94: 1460 | CS94: 1444 | CT94: 1118 | CU94: 1069 | CV94: 895 | CW94: 796 | CX94: 643 | CY94: 2109 | CZ94: 2436 | DA94: 2546 | DB94: 2624 | DC94: 2834 | DD94: 2932 | DE94: 3060 | DF94: 3146 | DG94: 3263 | DH94: 3169 | DI94: 3090 | DJ94: 3074 | DK94: 3094 | DL94: 3101 | DM94: 3066 | DN94: 2917 | DO94: 2915 | DP94: 2728 | DQ94: 2859 | DR94: 2806 | DS94: 2959 | DT94: 3003 | DU94: 3055 | DV94: 3008 | DW94: 2856 | DX94: 2619 | DY94: 2722 | DZ94: 2807 | EA94: 2784 | EB94: 2704 | EC94: 2716 | ED94: 2767 | EE94: 3076 | EF94: 2860 | EG94: 2806 | EH94: 3071 | EI94: 3146 | EJ94: 3023 | EK94: 3093 | EL94: 3277 | EM94: 3233 | EN94: 3235 | EO94: 3029 | EP94: 2984 | EQ94: 3177 | ER94: 3300 | ES94: 3547 | ET94: 3825 | EU94: 3969 | EV94: 4262 | EW94: 4135 | EX94: 4237 | EY94: 4229 | EZ94: 4469 | FA94: 4557 | FB94: 4329 | FC94: 4617 | FD94: 4468 | FE94: 4379 | FF94: 4230 | FG94: 4219 | FH94: 4241 | FI94: 4226 | FJ94: 4210 | FK94: 4051 | FL94: 3823 | FM94: 4023 | FN94: 4016 | FO94: 3914 | FP94: 4021 | FQ94: 4114 | FR94: 4305 | FS94: 4453 | FT94: 4915 | FU94: 3781 | FV94: 3642 | FW94: 3585 | FX94: 3175 | FY94: 2808 | FZ94: 2395 | GA94: 2324 | GB94: 2238 | GC94: 2128 | GD94: 2146 | GE94: 1942 | GF94: 1801 | GG94: 1542 | GH94: 1492 | GI94: 1374 | GJ94: 1253 | GK94: 1096 | GL94: 4506
A95: England – CCGs | B95: Knowsley | C95: England – CCGs - Knowsley | D95: 54367 | E95: 62693 | F95: 150862 | G95: 71717 | H95: 79145 | I95: 54367 | J95: 62693 | K95: 17350 | L95: 16452 | M95: 1017 | N95: 1024 | O95: 1057 | P95: 1071 | Q95: 1106 | R95: 978 | S95: 1007 | T95: 1030 | U95: 1051 | V95: 993 | W95: 942 | X95: 890 | Y95: 911 | Z95: 942 | AA95: 903 | AB95: 782 | AC95: 832 | AD95: 814 | AE95: 885 | AF95: 818 | AG95: 822 | AH95: 898 | AI95: 854 | AJ95: 943 | AK95: 958 | AL95: 997 | AM95: 940 | AN95: 1055 | AO95: 1048 | AP95: 1082 | AQ95: 1026 | AR95: 912 | AS95: 965 | AT95: 959 | AU95: 956 | AV95: 873 | AW95: 892 | AX95: 854 | AY95: 777 | AZ95: 758 | BA95: 778 | BB95: 698 | BC95: 628 | BD95: 693 | BE95: 697 | BF95: 799 | BG95: 765 | BH95: 874 | BI95: 908 | BJ95: 902 | BK95: 904 | BL95: 898 | BM95: 951 | BN95: 958 | BO95: 1028 | BP95: 1072 | BQ95: 1057 | BR95: 1068 | BS95: 1085 | BT95: 1061 | BU95: 951 | BV95: 982 | BW95: 1040 | BX95: 864 | BY95: 854 | BZ95: 826 | CA95: 809 | CB95: 691 | CC95: 727 | CD95: 671 | CE95: 739 | CF95: 653 | CG95: 750 | CH95: 520 | CI95: 468 | CJ95: 472 | CK95: 425 | CL95: 402 | CM95: 365 | CN95: 370 | CO95: 359 | CP95: 345 | CQ95: 314 | CR95: 276 | CS95: 251 | CT95: 197 | CU95: 162 | CV95: 145 | CW95: 161 | CX95: 107 | CY95: 375 | CZ95: 942 | DA95: 991 | DB95: 1019 | DC95: 970 | DD95: 1038 | DE95: 920 | DF95: 881 | DG95: 955 | DH95: 990 | DI95: 901 | DJ95: 874 | DK95: 909 | DL95: 847 | DM95: 905 | DN95: 888 | DO95: 784 | DP95: 832 | DQ95: 806 | DR95: 805 | DS95: 744 | DT95: 826 | DU95: 792 | DV95: 1010 | DW95: 994 | DX95: 930 | DY95: 1009 | DZ95: 1074 | EA95: 1215 | EB95: 1188 | EC95: 1150 | ED95: 1096 | EE95: 1177 | EF95: 1208 | EG95: 1106 | EH95: 1072 | EI95: 1016 | EJ95: 978 | EK95: 970 | EL95: 961 | EM95: 977 | EN95: 946 | EO95: 839 | EP95: 745 | EQ95: 819 | ER95: 869 | ES95: 871 | ET95: 855 | EU95: 1043 | EV95: 1095 | EW95: 1101 | EX95: 1093 | EY95: 1067 | EZ95: 1146 | FA95: 1138 | FB95: 1243 | FC95: 1193 | FD95: 1204 | FE95: 1308 | FF95: 1162 | FG95: 1093 | FH95: 1084 | FI95: 1079 | FJ95: 1075 | FK95: 925 | FL95: 949 | FM95: 896 | FN95: 892 | FO95: 776 | FP95: 814 | FQ95: 800 | FR95: 710 | FS95: 783 | FT95: 746 | FU95: 618 | FV95: 557 | FW95: 573 | FX95: 512 | FY95: 461 | FZ95: 442 | GA95: 489 | GB95: 461 | GC95: 474 | GD95: 445 | GE95: 431 | GF95: 383 | GG95: 337 | GH95: 311 | GI95: 322 | GJ95: 248 | GK95: 205 | GL95: 767
A96: England – CCGs | B96: Leeds | C96: England – CCGs - Leeds | D96: 302256 | E96: 321461 | F96: 793139 | G96: 389345 | H96: 403794 | I96: 302256 | J96: 321461 | K96: 87089 | L96: 82333 | M96: 4961 | N96: 5042 | O96: 5205 | P96: 5273 | Q96: 5198 | R96: 5152 | S96: 5358 | T96: 5296 | U96: 5023 | V96: 5098 | W96: 4899 | X96: 4709 | Y96: 4686 | Z96: 4587 | AA96: 4159 | AB96: 4196 | AC96: 4105 | AD96: 4142 | AE96: 4494 | AF96: 6963 | AG96: 7641 | AH96: 7694 | AI96: 7746 | AJ96: 7834 | AK96: 7148 | AL96: 7134 | AM96: 7422 | AN96: 7065 | AO96: 6859 | AP96: 5783 | AQ96: 5651 | AR96: 5858 | AS96: 5270 | AT96: 5363 | AU96: 5154 | AV96: 5380 | AW96: 4953 | AX96: 5186 | AY96: 5018 | AZ96: 5109 | BA96: 4710 | BB96: 4363 | BC96: 4465 | BD96: 4477 | BE96: 4344 | BF96: 4403 | BG96: 4755 | BH96: 4722 | BI96: 5117 | BJ96: 4788 | BK96: 4650 | BL96: 4710 | BM96: 4898 | BN96: 4837 | BO96: 4922 | BP96: 4781 | BQ96: 4598 | BR96: 4436 | BS96: 4174 | BT96: 3950 | BU96: 3907 | BV96: 3776 | BW96: 3640 | BX96: 3510 | BY96: 3233 | BZ96: 3439 | CA96: 3297 | CB96: 3108 | CC96: 3186 | CD96: 3140 | CE96: 3315 | CF96: 3393 | CG96: 3644 | CH96: 2607 | CI96: 2514 | CJ96: 2486 | CK96: 2290 | CL96: 1973 | CM96: 1683 | CN96: 1809 | CO96: 1716 | CP96: 1696 | CQ96: 1553 | CR96: 1406 | CS96: 1263 | CT96: 1092 | CU96: 942 | CV96: 838 | CW96: 695 | CX96: 571 | CY96: 1709 | CZ96: 4659 | DA96: 4797 | DB96: 4840 | DC96: 4923 | DD96: 5016 | DE96: 4880 | DF96: 4868 | DG96: 5021 | DH96: 4844 | DI96: 4903 | DJ96: 4739 | DK96: 4462 | DL96: 4329 | DM96: 4355 | DN96: 4132 | DO96: 3959 | DP96: 3770 | DQ96: 3836 | DR96: 4591 | DS96: 8073 | DT96: 9141 | DU96: 8523 | DV96: 8309 | DW96: 7416 | DX96: 7065 | DY96: 7009 | DZ96: 7301 | EA96: 6975 | EB96: 6133 | EC96: 5423 | ED96: 5403 | EE96: 5357 | EF96: 5240 | EG96: 5658 | EH96: 5408 | EI96: 5339 | EJ96: 5439 | EK96: 5422 | EL96: 5429 | EM96: 5254 | EN96: 4824 | EO96: 4455 | EP96: 4402 | EQ96: 4588 | ER96: 4451 | ES96: 4506 | ET96: 4640 | EU96: 4866 | EV96: 5085 | EW96: 4850 | EX96: 4993 | EY96: 4998 | EZ96: 4913 | FA96: 4781 | FB96: 4854 | FC96: 4792 | FD96: 4742 | FE96: 4648 | FF96: 4422 | FG96: 4182 | FH96: 4151 | FI96: 4072 | FJ96: 4030 | FK96: 3748 | FL96: 3409 | FM96: 3546 | FN96: 3504 | FO96: 3456 | FP96: 3500 | FQ96: 3507 | FR96: 3540 | FS96: 3807 | FT96: 4172 | FU96: 3033 | FV96: 2921 | FW96: 2829 | FX96: 2690 | FY96: 2368 | FZ96: 2199 | GA96: 2376 | GB96: 2224 | GC96: 2196 | GD96: 2089 | GE96: 2021 | GF96: 1895 | GG96: 1539 | GH96: 1413 | GI96: 1351 | GJ96: 1189 | GK96: 1030 | GL96: 3756
A97: England – CCGs | B97: Leicester City | C97: England – CCGs - Leicester City | D97: 134796 | E97: 135346 | F97: 354224 | G97: 177763 | H97: 176461 | I97: 134796 | J97: 135346 | K97: 42967 | L97: 41115 | M97: 2460 | N97: 2428 | O97: 2567 | P97: 2554 | Q97: 2635 | R97: 2594 | S97: 2498 | T97: 2646 | U97: 2463 | V97: 2272 | W97: 2457 | X97: 2381 | Y97: 2347 | Z97: 2345 | AA97: 2133 | AB97: 2081 | AC97: 2058 | AD97: 2048 | AE97: 2387 | AF97: 3606 | AG97: 4744 | AH97: 4920 | AI97: 4201 | AJ97: 3341 | AK97: 3234 | AL97: 3504 | AM97: 3423 | AN97: 3397 | AO97: 3628 | AP97: 3084 | AQ97: 2760 | AR97: 2634 | AS97: 2464 | AT97: 2381 | AU97: 2477 | AV97: 2668 | AW97: 2474 | AX97: 2349 | AY97: 2354 | AZ97: 2445 | BA97: 2319 | BB97: 2080 | BC97: 2012 | BD97: 2083 | BE97: 2006 | BF97: 1890 | BG97: 1994 | BH97: 1986 | BI97: 1976 | BJ97: 1867 | BK97: 1868 | BL97: 1941 | BM97: 1801 | BN97: 1855 | BO97: 1942 | BP97: 1837 | BQ97: 1923 | BR97: 1818 | BS97: 1886 | BT97: 1738 | BU97: 1712 | BV97: 1621 | BW97: 1532 | BX97: 1527 | BY97: 1480 | BZ97: 1529 | CA97: 1369 | CB97: 1349 | CC97: 1269 | CD97: 1206 | CE97: 1199 | CF97: 1126 | CG97: 1140 | CH97: 867 | CI97: 789 | CJ97: 791 | CK97: 776 | CL97: 597 | CM97: 536 | CN97: 601 | CO97: 562 | CP97: 525 | CQ97: 480 | CR97: 432 | CS97: 415 | CT97: 360 | CU97: 321 | CV97: 290 | CW97: 233 | CX97: 204 | CY97: 661 | CZ97: 2195 | DA97: 2303 | DB97: 2423 | DC97: 2467 | DD97: 2415 | DE97: 2433 | DF97: 2548 | DG97: 2550 | DH97: 2369 | DI97: 2330 | DJ97: 2377 | DK97: 2323 | DL97: 2162 | DM97: 2165 | DN97: 2081 | DO97: 2051 | DP97: 1953 | DQ97: 1970 | DR97: 2174 | DS97: 3928 | DT97: 4888 | DU97: 4544 | DV97: 3682 | DW97: 3006 | DX97: 3014 | DY97: 3152 | DZ97: 3092 | EA97: 3164 | EB97: 3083 | EC97: 3067 | ED97: 2635 | EE97: 2668 | EF97: 2502 | EG97: 2422 | EH97: 2513 | EI97: 2501 | EJ97: 2409 | EK97: 2217 | EL97: 2337 | EM97: 2255 | EN97: 2114 | EO97: 1941 | EP97: 1967 | EQ97: 1990 | ER97: 1882 | ES97: 1839 | ET97: 1946 | EU97: 2034 | EV97: 2044 | EW97: 1916 | EX97: 2054 | EY97: 1907 | EZ97: 1969 | FA97: 1802 | FB97: 1909 | FC97: 1858 | FD97: 1831 | FE97: 1847 | FF97: 1899 | FG97: 1839 | FH97: 1727 | FI97: 1660 | FJ97: 1583 | FK97: 1567 | FL97: 1474 | FM97: 1433 | FN97: 1410 | FO97: 1368 | FP97: 1261 | FQ97: 1293 | FR97: 1205 | FS97: 1285 | FT97: 1124 | FU97: 967 | FV97: 876 | FW97: 873 | FX97: 908 | FY97: 721 | FZ97: 741 | GA97: 770 | GB97: 724 | GC97: 692 | GD97: 722 | GE97: 618 | GF97: 578 | GG97: 534 | GH97: 525 | GI97: 427 | GJ97: 416 | GK97: 432 | GL97: 1591
A98: England – CCGs | B98: Lincolnshire | C98: England – CCGs - Lincolnshire | D98: =I98 -> 298479 | E98: 316333 | F98: 761224 | G98: 373152 | H98: 388072 | I98: 298479 | J98: 316333 | K98: 74673 | L98: 71739 | M98: 3627 | N98: 3854 | O98: 4006 | P98: 4319 | Q98: 4311 | R98: 4311 | S98: 4325 | T98: 4551 | U98: 4477 | V98: 4418 | W98: 4257 | X98: 4465 | Y98: 4139 | Z98: 4072 | AA98: 3906 | AB98: 3943 | AC98: 3904 | AD98: 3788 | AE98: 3933 | AF98: 4537 | AG98: 4512 | AH98: 4308 | AI98: 4468 | AJ98: 4535 | AK98: 4212 | AL98: 4277 | AM98: 4282 | AN98: 4290 | AO98: 4312 | AP98: 4492 | AQ98: 4247 | AR98: 4345 | AS98: 4226 | AT98: 4097 | AU98: 4181 | AV98: 4049 | AW98: 4123 | AX98: 4098 | AY98: 4014 | AZ98: 4184 | BA98: 3990 | BB98: 3671 | BC98: 3709 | BD98: 3799 | BE98: 3945 | BF98: 4150 | BG98: 4586 | BH98: 5029 | BI98: 5090 | BJ98: 4805 | BK98: 5108 | BL98: 5176 | BM98: 5424 | BN98: 5315 | BO98: 5526 | BP98: 5620 | BQ98: 5441 | BR98: 5503 | BS98: 5312 | BT98: 5102 | BU98: 4870 | BV98: 4847 | BW98: 4755 | BX98: 4654 | BY98: 4580 | BZ98: 4578 | CA98: 4658 | CB98: 4600 | CC98: 4715 | CD98: 4862 | CE98: 4837 | CF98: 5312 | CG98: 5805 | CH98: 4521 | CI98: 4245 | CJ98: 4219 | CK98: 3764 | CL98: 3356 | CM98: 2735 | CN98: 2787 | CO98: 2695 | CP98: 2371 | CQ98: 2327 | CR98: 1987 | CS98: 1778 | CT98: 1515 | CU98: 1357 | CV98: 1188 | CW98: 1021 | CX98: 889 | CY98: 2628 | CZ98: 3337 | DA98: 3630 | DB98: 3670 | DC98: 4074 | DD98: 4157 | DE98: 4170 | DF98: 4183 | DG98: 4418 | DH98: 4381 | DI98: 4129 | DJ98: 4129 | DK98: 4152 | DL98: 4096 | DM98: 4065 | DN98: 3886 | DO98: 3840 | DP98: 3753 | DQ98: 3669 | DR98: 4093 | DS98: 4575 | DT98: 4682 | DU98: 4249 | DV98: 3969 | DW98: 3904 | DX98: 3660 | DY98: 3848 | DZ98: 4091 | EA98: 4117 | EB98: 4237 | EC98: 4185 | ED98: 4214 | EE98: 4383 | EF98: 4216 | EG98: 4467 | EH98: 4377 | EI98: 4251 | EJ98: 4386 | EK98: 4351 | EL98: 4362 | EM98: 4509 | EN98: 4232 | EO98: 3922 | EP98: 3953 | EQ98: 4024 | ER98: 4253 | ES98: 4519 | ET98: 4788 | EU98: 5075 | EV98: 5529 | EW98: 5519 | EX98: 5483 | EY98: 5237 | EZ98: 5618 | FA98: 5830 | FB98: 6013 | FC98: 5849 | FD98: 5793 | FE98: 5717 | FF98: 5730 | FG98: 5378 | FH98: 5327 | FI98: 5343 | FJ98: 5171 | FK98: 4964 | FL98: 4885 | FM98: 4983 | FN98: 5003 | FO98: 4810 | FP98: 4885 | FQ98: 5097 | FR98: 5133 | FS98: 5529 | FT98: 5806 | FU98: 4551 | FV98: 4454 | FW98: 4376 | FX98: 3948 | FY98: 3522 | FZ98: 3101 | GA98: 3111 | GB98: 3059 | GC98: 2825 | GD98: 2582 | GE98: 2375 | GF98: 2216 | GG98: 1905 | GH98: 1813 | GI98: 1718 | GJ98: 1593 | GK98: 1292 | GL98: 5368
A99: England – CCGs | B99: Liverpool | C99: England – CCGs - Liverpool | D99: 199390 | E99: 202600 | F99: 498042 | G99: 248708 | H99: 249334 | I99: 199390 | J99: 202600 | K99: 49318 | L99: 46734 | M99: 2964 | N99: 3022 | O99: 3100 | P99: 3099 | Q99: 3071 | R99: 2993 | S99: 2844 | T99: 2996 | U99: 2842 | V99: 2666 | W99: 2657 | X99: 2614 | Y99: 2627 | Z99: 2548 | AA99: 2319 | AB99: 2303 | AC99: 2318 | AD99: 2335 | AE99: 2834 | AF99: 4801 | AG99: 5753 | AH99: 5645 | AI99: 5365 | AJ99: 4736 | AK99: 4509 | AL99: 4394 | AM99: 4648 | AN99: 4767 | AO99: 5135 | AP99: 5036 | AQ99: 4658 | AR99: 4131 | AS99: 3873 | AT99: 4182 | AU99: 4216 | AV99: 3922 | AW99: 3601 | AX99: 3619 | AY99: 3518 | AZ99: 3417 | BA99: 3298 | BB99: 3036 | BC99: 2766 | BD99: 2632 | BE99: 2510 | BF99: 2462 | BG99: 2643 | BH99: 2816 | BI99: 2980 | BJ99: 2939 | BK99: 3045 | BL99: 2819 | BM99: 2939 | BN99: 2640 | BO99: 2785 | BP99: 2868 | BQ99: 2985 | BR99: 2928 | BS99: 2741 | BT99: 2732 | BU99: 2599 | BV99: 2655 | BW99: 2470 | BX99: 2458 | BY99: 2244 | BZ99: 2214 | CA99: 2157 | CB99: 2161 | CC99: 2129 | CD99: 1994 | CE99: 1955 | CF99: 2019 | CG99: 2167 | CH99: 1639 | CI99: 1360 | CJ99: 1410 | CK99: 1299 | CL99: 1100 | CM99: 1051 | CN99: 1079 | CO99: 1092 | CP99: 976 | CQ99: 862 | CR99: 858 | CS99: 722 | CT99: 642 | CU99: 549 | CV99: 485 | CW99: 377 | CX99: 310 | CY99: 1033 | CZ99: 2800 | DA99: 2848 | DB99: 2912 | DC99: 2836 | DD99: 2857 | DE99: 2856 | DF99: 2791 | DG99: 2967 | DH99: 2655 | DI99: 2489 | DJ99: 2583 | DK99: 2546 | DL99: 2431 | DM99: 2291 | DN99: 2192 | DO99: 2235 | DP99: 2242 | DQ99: 2203 | DR99: 2828 | DS99: 5755 | DT99: 6920 | DU99: 6083 | DV99: 5171 | DW99: 4224 | DX99: 4233 | DY99: 4411 | DZ99: 4539 | EA99: 4675 | EB99: 4768 | EC99: 4303 | ED99: 4001 | EE99: 3674 | EF99: 3476 | EG99: 3598 | EH99: 3570 | EI99: 3159 | EJ99: 3417 | EK99: 3079 | EL99: 3058 | EM99: 3143 | EN99: 2757 | EO99: 2552 | EP99: 2475 | EQ99: 2600 | ER99: 2545 | ES99: 2517 | ET99: 2605 | EU99: 2796 | EV99: 2919 | EW99: 2910 | EX99: 2905 | EY99: 2907 | EZ99: 3013 | FA99: 3159 | FB99: 3238 | FC99: 3196 | FD99: 3227 | FE99: 3190 | FF99: 3046 | FG99: 2892 | FH99: 2848 | FI99: 2725 | FJ99: 2725 | FK99: 2529 | FL99: 2365 | FM99: 2389 | FN99: 2250 | FO99: 2240 | FP99: 2084 | FQ99: 2154 | FR99: 2058 | FS99: 2157 | FT99: 2249 | FU99: 1699 | FV99: 1514 | FW99: 1574 | FX99: 1529 | FY99: 1321 | FZ99: 1343 | GA99: 1307 | GB99: 1355 | GC99: 1250 | GD99: 1190 | GE99: 1187 | GF99: 1076 | GG99: 905 | GH99: 854 | GI99: 803 | GJ99: 702 | GK99: 563 | GL99: 2121
A100: England – CCGs | B100: Luton | C100: =CONCATENATE(A100," - ",B100) -> England – CCGs - Luton | D100: 78683 | E100: 76882 | F100: 213052 | G100: 108305 | H100: 104747 | I100: 78683 | J100: 76882 | K100: 29622 | L100: 27865 | M100: 1669 | N100: 1653 | O100: 1846 | P100: 1767 | Q100: 1837 | R100: 1899 | S100: 1812 | T100: 1794 | U100: 1712 | V100: 1623 | W100: 1601 | X100: 1672 | Y100: 1591 | Z100: 1458 | AA100: 1513 | AB100: 1362 | AC100: 1409 | AD100: 1404 | AE100: 1234 | AF100: 1102 | AG100: 1188 | AH100: 1208 | AI100: 1304 | AJ100: 1292 | AK100: 1352 | AL100: 1520 | AM100: 1557 | AN100: 1499 | AO100: 1733 | AP100: 1817 | AQ100: 1860 | AR100: 1849 | AS100: 1942 | AT100: 2051 | AU100: 1923 | AV100: 1947 | AW100: 1887 | AX100: 1720 | AY100: 1708 | AZ100: 1667 | BA100: 1679 | BB100: 1475 | BC100: 1405 | BD100: 1440 | BE100: 1503 | BF100: 1237 | BG100: 1370 | BH100: 1363 | BI100: 1301 | BJ100: 1358 | BK100: 1208 | BL100: 1303 | BM100: 1304 | BN100: 1160 | BO100: 1287 | BP100: 1237 | BQ100: 1279 | BR100: 1205 | BS100: 1095 | BT100: 1114 | BU100: 1032 | BV100: 956 | BW100: 910 | BX100: 919 | BY100: 808 | BZ100: 781 | CA100: 778 | CB100: 742 | CC100: 712 | CD100: 663 | CE100: 678 | CF100: 654 | CG100: 690 | CH100: 532 | CI100: 543 | CJ100: 453 | CK100: 469 | CL100: 422 | CM100: 408 | CN100: 429 | CO100: 412 | CP100: 440 | CQ100: 414 | CR100: 350 | CS100: 345 | CT100: 287 | CU100: 233 | CV100: 181 | CW100: 155 | CX100: 131 | CY100: 473 | CZ100: 1640 | DA100: 1640 | DB100: 1676 | DC100: 1782 | DD100: 1698 | DE100: 1672 | DF100: 1697 | DG100: 1743 | DH100: 1672 | DI100: 1566 | DJ100: 1564 | DK100: 1503 | DL100: 1377 | DM100: 1425 | DN100: 1396 | DO100: 1274 | DP100: 1297 | DQ100: 1243 | DR100: 1289 | DS100: 1108 | DT100: 1141 | DU100: 1227 | DV100: 1208 | DW100: 1254 | DX100: 1230 | DY100: 1338 | DZ100: 1424 | EA100: 1396 | EB100: 1518 | EC100: 1560 | ED100: 1541 | EE100: 1731 | EF100: 1653 | EG100: 1655 | EH100: 1769 | EI100: 1748 | EJ100: 1793 | EK100: 1702 | EL100: 1554 | EM100: 1564 | EN100: 1458 | EO100: 1347 | EP100: 1370 | EQ100: 1310 | ER100: 1283 | ES100: 1229 | ET100: 1222 | EU100: 1304 | EV100: 1242 | EW100: 1235 | EX100: 1268 | EY100: 1324 | EZ100: 1202 | FA100: 1305 | FB100: 1246 | FC100: 1342 | FD100: 1222 | FE100: 1242 | FF100: 1073 | FG100: 1055 | FH100: 1015 | FI100: 969 | FJ100: 926 | FK100: 904 | FL100: 820 | FM100: 832 | FN100: 785 | FO100: 788 | FP100: 719 | FQ100: 720 | FR100: 696 | FS100: 721 | FT100: 743 | FU100: 602 | FV100: 611 | FW100: 580 | FX100: 540 | FY100: 531 | FZ100: 445 | GA100: 538 | GB100: 496 | GC100: 486 | GD100: 490 | GE100: 476 | GF100: 403 | GG100: 349 | GH100: 305 | GI100: 332 | GJ100: 278 | GK100: 201 | GL100: 899
A101: England – CCGs | B101: Manchester | C101: England – CCGs - Manchester | D101: 217677 | E101: 212267 | F101: 552858 | G101: 280396 | H101: 272462 | I101: 217677 | J101: 212267 | K101: 62719 | L101: 60195 | M101: 3748 | N101: 3664 | O101: 3698 | P101: 3906 | Q101: 3914 | R101: 3834 | S101: 3877 | T101: 3846 | U101: 3562 | V101: 3570 | W101: 3498 | X101: 3432 | Y101: 3353 | Z101: 3199 | AA101: 3017 | AB101: 2912 | AC101: 2849 | AD101: 2840 | AE101: 3255 | AF101: 5622 | AG101: 6715 | AH101: 6823 | AI101: 6988 | AJ101: 6779 | AK101: 6502 | AL101: 6466 | AM101: 6910 | AN101: 6454 | AO101: 7397 | AP101: 6961 | AQ101: 6247 | AR101: 5858 | AS101: 5290 | AT101: 5347 | AU101: 5191 | AV101: 4637 | AW101: 4696 | AX101: 4414 | AY101: 4323 | AZ101: 4195 | BA101: 3781 | BB101: 3389 | BC101: 3205 | BD101: 3011 | BE101: 2900 | BF101: 2937 | BG101: 2981 | BH101: 2983 | BI101: 2954 | BJ101: 2917 | BK101: 3082 | BL101: 2821 | BM101: 3058 | BN101: 2762 | BO101: 2677 | BP101: 2611 | BQ101: 2462 | BR101: 2437 | BS101: 2256 | BT101: 2136 | BU101: 2118 | BV101: 2083 | BW101: 2053 | BX101: 1832 | BY101: 1832 | BZ101: 1681 | CA101: 1680 | CB101: 1584 | CC101: 1470 | CD101: 1534 | CE101: 1470 | CF101: 1512 | CG101: 1473 | CH101: 973 | CI101: 989 | CJ101: 904 | CK101: 803 | CL101: 756 | CM101: 774 | CN101: 724 | CO101: 654 | CP101: 627 | CQ101: 551 | CR101: 493 | CS101: 452 | CT101: 431 | CU101: 312 | CV101: 317 | CW101: 233 | CX101: 213 | CY101: 719 | CZ101: 3458 | DA101: 3602 | DB101: 3712 | DC101: 3676 | DD101: 3734 | DE101: 3634 | DF101: 3528 | DG101: 3776 | DH101: 3533 | DI101: 3533 | DJ101: 3188 | DK101: 3291 | DL101: 3240 | DM101: 3225 | DN101: 2983 | DO101: 2628 | DP101: 2819 | DQ101: 2635 | DR101: 3191 | DS101: 5936 | DT101: 7222 | DU101: 7169 | DV101: 6968 | DW101: 6508 | DX101: 6374 | DY101: 6366 | DZ101: 6579 | EA101: 6496 | EB101: 6276 | EC101: 6145 | ED101: 5414 | EE101: 4891 | EF101: 4483 | EG101: 4476 | EH101: 4550 | EI101: 4174 | EJ101: 4171 | EK101: 3965 | EL101: 3499 | EM101: 3742 | EN101: 3239 | EO101: 3094 | EP101: 2952 | EQ101: 2852 | ER101: 2727 | ES101: 2759 | ET101: 2815 | EU101: 2807 | EV101: 2846 | EW101: 2833 | EX101: 2931 | EY101: 2849 | EZ101: 2939 | FA101: 2737 | FB101: 2944 | FC101: 2725 | FD101: 2559 | FE101: 2583 | FF101: 2370 | FG101: 2188 | FH101: 2117 | FI101: 2008 | FJ101: 2042 | FK101: 1902 | FL101: 1742 | FM101: 1616 | FN101: 1603 | FO101: 1609 | FP101: 1594 | FQ101: 1448 | FR101: 1443 | FS101: 1495 | FT101: 1467 | FU101: 1193 | FV101: 1111 | FW101: 1209 | FX101: 1032 | FY101: 997 | FZ101: 1017 | GA101: 920 | GB101: 872 | GC101: 893 | GD101: 853 | GE101: 794 | GF101: 718 | GG101: 577 | GH101: 568 | GI101: 542 | GJ101: 427 | GK101: 368 | GL101: 1746
A102: England – CCGs | B102: Mid Essex | C102: England – CCGs - Mid Essex | D102: 152143 | E102: 161092 | F102: =G102+H102 -> 395918 | G102: =SUM(M102:CY102) -> 194821 | H102: =SUM(CZ102:GL102) -> 201097 | I102: =SUM(AE102:CY102) -> 152143 | J102: =SUM(DR102:GL102) -> 161092 | K102: =SUM(M102:AD102) -> 42678 | L102: =SUM(CZ102:DQ102) -> 40005 | M102: 2002 | N102: 2205 | O102: 2254 | P102: 2402 | Q102: 2346 | R102: 2400 | S102: 2366 | T102: 2505 | U102: 2546 | V102: 2555 | W102: 2548 | X102: 2514 | Y102: 2421 | Z102: 2471 | AA102: 2388 | AB102: 2233 | AC102: 2311 | AD102: 2211 | AE102: 2218 | AF102: 1771 | AG102: 1840 | AH102: 1802 | AI102: 2060 | AJ102: 2118 | AK102: 2092 | AL102: 2274 | AM102: 2095 | AN102: 2313 | AO102: 2287 | AP102: 2258 | AQ102: 2303 | AR102: 2281 | AS102: 2391 | AT102: 2317 | AU102: 2325 | AV102: 2408 | AW102: 2149 | AX102: 2559 | AY102: 2393 | AZ102: 2364 | BA102: 2408 | BB102: 2287 | BC102: 2277 | BD102: 2443 | BE102: 2523 | BF102: 2625 | BG102: 2606 | BH102: 2930 | BI102: 2997 | BJ102: 2884 | BK102: 2891 | BL102: 2875 | BM102: 3060 | BN102: 2955 | BO102: 2936 | BP102: 2837 | BQ102: 2723 | BR102: 2825 | BS102: 2610 | BT102: 2498 | BU102: 2458 | BV102: 2414 | BW102: 2273 | BX102: 2327 | BY102: 2104 | BZ102: 2220 | CA102: 2179 | CB102: 2050 | CC102: 2035 | CD102: 2032 | CE102: 2193 | CF102: 2383 | CG102: 2571 | CH102: 1957 | CI102: 1812 | CJ102: 1815 | CK102: 1673 | CL102: 1381 | CM102: 1157 | CN102: 1131 | CO102: 1178 | CP102: 1069 | CQ102: 1066 | CR102: 905 | CS102: 874 | CT102: 689 | CU102: 635 | CV102: 565 | CW102: 484 | CX102: 416 | CY102: 1289 | CZ102: 1954 | DA102: 2138 | DB102: 2065 | DC102: 2134 | DD102: 2149 | DE102: 2170 | DF102: 2251 | DG102: 2322 | DH102: 2347 | DI102: 2462 | DJ102: 2361 | DK102: 2431 | DL102: 2305 | DM102: 2339 | DN102: 2281 | DO102: 2154 | DP102: 2118 | DQ102: 2024 | DR102: 2098 | DS102: 1574 | DT102: 1538 | DU102: 1685 | DV102: 1939 | DW102: 2038 | DX102: 2090 | DY102: 2146 | DZ102: 2166 | EA102: 2153 | EB102: 2292 | EC102: 2369 | ED102: 2372 | EE102: 2514 | EF102: 2486 | EG102: 2452 | EH102: 2516 | EI102: 2475 | EJ102: 2454 | EK102: 2467 | EL102: 2686 | EM102: 2612 | EN102: 2527 | EO102: 2417 | EP102: 2402 | EQ102: 2469 | ER102: 2656 | ES102: 2732 | ET102: 2745 | EU102: 2842 | EV102: 2979 | EW102: 2957 | EX102: 2936 | EY102: 3166 | EZ102: 3168 | FA102: 3101 | FB102: 2935 | FC102: 2974 | FD102: 2880 | FE102: 2781 | FF102: 2691 | FG102: 2473 | FH102: 2419 | FI102: 2552 | FJ102: 2365 | FK102: 2416 | FL102: 2291 | FM102: 2227 | FN102: 2203 | FO102: 2165 | FP102: 2298 | FQ102: 2198 | FR102: 2454 | FS102: 2631 | FT102: 3042 | FU102: 2183 | FV102: 2022 | FW102: 2024 | FX102: 1712 | FY102: 1530 | FZ102: 1343 | GA102: 1409 | GB102: 1374 | GC102: 1248 | GD102: 1191 | GE102: 1217 | GF102: 1001 | GG102: 889 | GH102: 803 | GI102: 843 | GJ102: 756 | GK102: 631 | GL102: 2702
A103: England – CCGs | B103: Milton Keynes | C103: England – CCGs - Milton Keynes | D103: 100652 | E103: 105108 | F103: 275882 | G103: 136509 | H103: 139373 | I103: 100652 | J103: 105108 | K103: 35857 | L103: 34265 | M103: 1772 | N103: 1863 | O103: 1915 | P103: 1991 | Q103: 2119 | R103: 2074 | S103: 2194 | T103: 2301 | U103: 2307 | V103: 2180 | W103: 2118 | X103: 2188 | Y103: 2064 | Z103: 1971 | AA103: 1745 | AB103: 1707 | AC103: 1658 | AD103: 1690 | AE103: 1584 | AF103: 1248 | AG103: 1100 | AH103: 1232 | AI103: 1294 | AJ103: 1586 | AK103: 1609 | AL103: 1635 | AM103: 1581 | AN103: 1527 | AO103: 1557 | AP103: 1650 | AQ103: 1594 | AR103: 1869 | AS103: 1720 | AT103: 1995 | AU103: 2155 | AV103: 2150 | AW103: 2070 | AX103: 2235 | AY103: 2310 | AZ103: 2288 | BA103: 2295 | BB103: 2290 | BC103: 2055 | BD103: 1941 | BE103: 2065 | BF103: 2129 | BG103: 1998 | BH103: 1912 | BI103: 1908 | BJ103: 1863 | BK103: 1932 | BL103: 1746 | BM103: 1925 | BN103: 1769 | BO103: 1793 | BP103: 1775 | BQ103: 1663 | BR103: 1538 | BS103: 1581 | BT103: 1597 | BU103: 1548 | BV103: 1440 | BW103: 1372 | BX103: 1362 | BY103: 1254 | BZ103: 1276 | CA103: 1232 | CB103: 1197 | CC103: 1169 | CD103: 1123 | CE103: 1119 | CF103: 1095 | CG103: 1146 | CH103: 901 | CI103: 758 | CJ103: 848 | CK103: 710 | CL103: 620 | CM103: 528 | CN103: 509 | CO103: 562 | CP103: 413 | CQ103: 410 | CR103: 389 | CS103: 285 | CT103: 273 | CU103: 264 | CV103: 191 | CW103: 199 | CX103: 161 | CY103: 534 | CZ103: 1687 | DA103: 1779 | DB103: 1853 | DC103: 2022 | DD103: 1974 | DE103: 1999 | DF103: 2056 | DG103: 2129 | DH103: 2167 | DI103: 2132 | DJ103: 2122 | DK103: 2069 | DL103: 1923 | DM103: 1850 | DN103: 1696 | DO103: 1716 | DP103: 1598 | DQ103: 1493 | DR103: 1460 | DS103: 971 | DT103: 884 | DU103: 1019 | DV103: 1220 | DW103: 1406 | DX103: 1473 | DY103: 1541 | DZ103: 1444 | EA103: 1615 | EB103: 1753 | EC103: 1793 | ED103: 1824 | EE103: 1951 | EF103: 1976 | EG103: 2284 | EH103: 2271 | EI103: 2192 | EJ103: 2218 | EK103: 2316 | EL103: 2397 | EM103: 2305 | EN103: 2260 | EO103: 2006 | EP103: 2135 | EQ103: 2024 | ER103: 1989 | ES103: 1895 | ET103: 1976 | EU103: 1970 | EV103: 1932 | EW103: 1917 | EX103: 1862 | EY103: 1932 | EZ103: 1893 | FA103: 1859 | FB103: 1729 | FC103: 1810 | FD103: 1731 | FE103: 1668 | FF103: 1613 | FG103: 1548 | FH103: 1584 | FI103: 1484 | FJ103: 1435 | FK103: 1411 | FL103: 1412 | FM103: 1337 | FN103: 1334 | FO103: 1310 | FP103: 1256 | FQ103: 1283 | FR103: 1258 | FS103: 1214 | FT103: 1335 | FU103: 1006 | FV103: 877 | FW103: 878 | FX103: 808 | FY103: 736 | FZ103: 666 | GA103: 665 | GB103: 644 | GC103: 598 | GD103: 581 | GE103: 518 | GF103: 433 | GG103: 388 | GH103: 403 | GI103: 359 | GJ103: 353 | GK103: 301 | GL103: 1179
A104: England – CCGs | B104: Morecambe Bay | C104: England – CCGs - Morecambe Bay | D104: 132791 | E104: 139043 | F104: 332696 | G104: 164216 | H104: 168480 | I104: 132791 | J104: 139043 | K104: 31425 | L104: 29437 | M104: 1557 | N104: 1492 | O104: 1595 | P104: 1721 | Q104: 1641 | R104: 1773 | S104: 1809 | T104: 1809 | U104: 1825 | V104: 1746 | W104: 1829 | X104: 1852 | Y104: 1871 | Z104: 1807 | AA104: 1847 | AB104: 1780 | AC104: 1673 | AD104: 1798 | AE104: 2036 | AF104: 2631 | AG104: 2941 | AH104: 2677 | AI104: 2452 | AJ104: 2249 | AK104: 2197 | AL104: 2375 | AM104: 2129 | AN104: 2365 | AO104: 2058 | AP104: 1936 | AQ104: 1758 | AR104: 1581 | AS104: 1654 | AT104: 1577 | AU104: 1628 | AV104: 1741 | AW104: 1625 | AX104: 1647 | AY104: 1706 | AZ104: 1681 | BA104: 1621 | BB104: 1555 | BC104: 1515 | BD104: 1574 | BE104: 1662 | BF104: 1839 | BG104: 1838 | BH104: 1976 | BI104: 2143 | BJ104: 2199 | BK104: 2307 | BL104: 2261 | BM104: 2372 | BN104: 2347 | BO104: 2433 | BP104: 2447 | BQ104: 2307 | BR104: 2460 | BS104: 2323 | BT104: 2282 | BU104: 2232 | BV104: 2155 | BW104: 2119 | BX104: 1982 | BY104: 2057 | BZ104: 2018 | CA104: 1994 | CB104: 1894 | CC104: 1908 | CD104: 1991 | CE104: 2227 | CF104: 2201 | CG104: 2514 | CH104: 1882 | CI104: 1740 | CJ104: 1686 | CK104: 1624 | CL104: 1404 | CM104: 1251 | CN104: 1232 | CO104: 1172 | CP104: 1137 | CQ104: 965 | CR104: 879 | CS104: 708 | CT104: 659 | CU104: 579 | CV104: 497 | CW104: 438 | CX104: 366 | CY104: 1175 | CZ104: 1502 | DA104: 1475 | DB104: 1545 | DC104: 1627 | DD104: 1648 | DE104: 1616 | DF104: 1633 | DG104: 1768 | DH104: 1738 | DI104: 1621 | DJ104: 1614 | DK104: 1700 | DL104: 1708 | DM104: 1664 | DN104: 1672 | DO104: 1638 | DP104: 1662 | DQ104: 1606 | DR104: 1860 | DS104: 2439 | DT104: 2616 | DU104: 2456 | DV104: 2148 | DW104: 1900 | DX104: 1852 | DY104: 1951 | DZ104: 2000 | EA104: 2006 | EB104: 1948 | EC104: 1727 | ED104: 1733 | EE104: 1707 | EF104: 1662 | EG104: 1721 | EH104: 1778 | EI104: 1699 | EJ104: 1812 | EK104: 1775 | EL104: 1751 | EM104: 1805 | EN104: 1717 | EO104: 1616 | EP104: 1668 | EQ104: 1817 | ER104: 1761 | ES104: 1883 | ET104: 1934 | EU104: 2214 | EV104: 2407 | EW104: 2333 | EX104: 2424 | EY104: 2358 | EZ104: 2545 | FA104: 2504 | FB104: 2589 | FC104: 2596 | FD104: 2528 | FE104: 2574 | FF104: 2338 | FG104: 2412 | FH104: 2448 | FI104: 2253 | FJ104: 2245 | FK104: 2130 | FL104: 2048 | FM104: 2082 | FN104: 2072 | FO104: 2021 | FP104: 2053 | FQ104: 2183 | FR104: 2166 | FS104: 2317 | FT104: 2488 | FU104: 1957 | FV104: 1847 | FW104: 1885 | FX104: 1670 | FY104: 1508 | FZ104: 1318 | GA104: 1378 | GB104: 1343 | GC104: 1289 | GD104: 1179 | GE104: 1125 | GF104: 982 | GG104: 924 | GH104: 865 | GI104: 727 | GJ104: 736 | GK104: 599 | GL104: 2641
A105: England – CCGs | B105: Newcastle Gateshead | C105: England – CCGs - Newcastle Gateshead | D105: 202592 | E105: 204445 | F105: 504875 | G105: 252711 | H105: 252164 | I105: 202592 | J105: 204445 | K105: 50119 | L105: 47719 | M105: 2655 | N105: 2679 | O105: 2743 | P105: 2880 | Q105: 2917 | R105: 2796 | S105: 2864 | T105: 3087 | U105: 3038 | V105: 2970 | W105: 2946 | X105: 2870 | Y105: 2804 | Z105: 2737 | AA105: 2413 | AB105: 2392 | AC105: 2634 | AD105: 2694 | AE105: 3171 | AF105: 5308 | AG105: 6092 | AH105: 6093 | AI105: 5283 | AJ105: 4721 | AK105: 4620 | AL105: 4587 | AM105: 4630 | AN105: 4523 | AO105: 4785 | AP105: 4455 | AQ105: 4026 | AR105: 3715 | AS105: 3641 | AT105: 3779 | AU105: 3429 | AV105: 3306 | AW105: 3373 | AX105: 3153 | AY105: 3067 | AZ105: 3107 | BA105: 2843 | BB105: 2646 | BC105: 2677 | BD105: 2764 | BE105: 2608 | BF105: 2559 | BG105: 2718 | BH105: 3101 | BI105: 3164 | BJ105: 2862 | BK105: 2962 | BL105: 3060 | BM105: 3059 | BN105: 3050 | BO105: 3064 | BP105: 2972 | BQ105: 3023 | BR105: 3134 | BS105: 2909 | BT105: 2883 | BU105: 2833 | BV105: 2921 | BW105: 2704 | BX105: 2528 | BY105: 2405 | BZ105: 2361 | CA105: 2256 | CB105: 2082 | CC105: 2144 | CD105: 2277 | CE105: 2220 | CF105: 2313 | CG105: 2582 | CH105: 1797 | CI105: 1731 | CJ105: 1610 | CK105: 1463 | CL105: 1293 | CM105: 1233 | CN105: 1238 | CO105: 1291 | CP105: 1138 | CQ105: 1060 | CR105: 937 | CS105: 880 | CT105: 789 | CU105: 645 | CV105: 646 | CW105: 522 | CX105: 410 | CY105: 1361 | CZ105: 2594 | DA105: 2522 | DB105: 2700 | DC105: 2770 | DD105: 2574 | DE105: 2864 | DF105: 2819 | DG105: 2796 | DH105: 2930 | DI105: 2800 | DJ105: 2762 | DK105: 2649 | DL105: 2647 | DM105: 2564 | DN105: 2498 | DO105: 2410 | DP105: 2318 | DQ105: 2502 | DR105: 3014 | DS105: 5199 | DT105: 5994 | DU105: 5708 | DV105: 5004 | DW105: 4534 | DX105: 4071 | DY105: 4281 | DZ105: 4150 | EA105: 4244 | EB105: 4147 | EC105: 3789 | ED105: 3530 | EE105: 3607 | EF105: 3381 | EG105: 3435 | EH105: 3190 | EI105: 3177 | EJ105: 3349 | EK105: 3114 | EL105: 2992 | EM105: 3033 | EN105: 2939 | EO105: 2598 | EP105: 2451 | EQ105: 2684 | ER105: 2641 | ES105: 2656 | ET105: 2751 | EU105: 2983 | EV105: 3081 | EW105: 2988 | EX105: 2963 | EY105: 2963 | EZ105: 3135 | FA105: 3156 | FB105: 3249 | FC105: 3155 | FD105: 3315 | FE105: 3140 | FF105: 2971 | FG105: 2887 | FH105: 2921 | FI105: 2873 | FJ105: 2669 | FK105: 2608 | FL105: 2460 | FM105: 2368 | FN105: 2297 | FO105: 2241 | FP105: 2211 | FQ105: 2388 | FR105: 2348 | FS105: 2485 | FT105: 2661 | FU105: 1913 | FV105: 1927 | FW105: 1861 | FX105: 1625 | FY105: 1535 | FZ105: 1496 | GA105: 1578 | GB105: 1556 | GC105: 1551 | GD105: 1450 | GE105: 1232 | GF105: 1242 | GG105: 1082 | GH105: 1021 | GI105: 860 | GJ105: 864 | GK105: 699 | GL105: 2774
A106: England – CCGs | B106: Newham | C106: England – CCGs - Newham | D106: 143115 | E106: 123951 | F106: 353134 | G106: 187059 | H106: 166075 | I106: 143115 | J106: 123951 | K106: 43944 | L106: 42124 | M106: 2726 | N106: 2724 | O106: 2812 | P106: 2825 | Q106: 2812 | R106: 2942 | S106: 2742 | T106: 2722 | U106: 2425 | V106: 2225 | W106: 2319 | X106: 2312 | Y106: 2133 | Z106: 2161 | AA106: 2083 | AB106: 2019 | AC106: 1988 | AD106: 1974 | AE106: 2097 | AF106: 2160 | AG106: 2319 | AH106: 2478 | AI106: 2714 | AJ106: 3162 | AK106: 3241 | AL106: 3679 | AM106: 3680 | AN106: 3736 | AO106: 4504 | AP106: 4743 | AQ106: 4946 | AR106: 4794 | AS106: 4745 | AT106: 4965 | AU106: 4820 | AV106: 4556 | AW106: 4406 | AX106: 3856 | AY106: 3488 | AZ106: 3274 | BA106: 3074 | BB106: 2711 | BC106: 2529 | BD106: 2601 | BE106: 2411 | BF106: 2304 | BG106: 2129 | BH106: 2260 | BI106: 2301 | BJ106: 2257 | BK106: 2205 | BL106: 2022 | BM106: 1941 | BN106: 1840 | BO106: 1771 | BP106: 1797 | BQ106: 1619 | BR106: 1581 | BS106: 1528 | BT106: 1459 | BU106: 1312 | BV106: 1301 | BW106: 1299 | BX106: 1160 | BY106: 1031 | BZ106: 936 | CA106: 873 | CB106: 859 | CC106: 786 | CD106: 814 | CE106: 642 | CF106: 652 | CG106: 649 | CH106: 537 | CI106: 497 | CJ106: 456 | CK106: 417 | CL106: 430 | CM106: 367 | CN106: 419 | CO106: 382 | CP106: 374 | CQ106: 337 | CR106: 273 | CS106: 251 | CT106: 237 | CU106: 176 | CV106: 204 | CW106: 147 | CX106: 150 | CY106: 444 | CZ106: 2656 | DA106: 2775 | DB106: 2686 | DC106: 2698 | DD106: 2503 | DE106: 2619 | DF106: 2746 | DG106: 2684 | DH106: 2324 | DI106: 2066 | DJ106: 2072 | DK106: 2176 | DL106: 2106 | DM106: 2062 | DN106: 2055 | DO106: 1929 | DP106: 2077 | DQ106: 1890 | DR106: 2001 | DS106: 1885 | DT106: 2037 | DU106: 2157 | DV106: 2570 | DW106: 2863 | DX106: 3110 | DY106: 3133 | DZ106: 3298 | EA106: 3321 | EB106: 3289 | EC106: 3385 | ED106: 3332 | EE106: 3398 | EF106: 3213 | EG106: 3150 | EH106: 3248 | EI106: 3229 | EJ106: 3134 | EK106: 3029 | EL106: 2744 | EM106: 2601 | EN106: 2424 | EO106: 2251 | EP106: 2301 | EQ106: 2130 | ER106: 1918 | ES106: 1950 | ET106: 1999 | EU106: 1924 | EV106: 1982 | EW106: 2017 | EX106: 1951 | EY106: 1985 | EZ106: 1862 | FA106: 1849 | FB106: 1745 | FC106: 1715 | FD106: 1737 | FE106: 1562 | FF106: 1641 | FG106: 1503 | FH106: 1455 | FI106: 1360 | FJ106: 1301 | FK106: 1271 | FL106: 1072 | FM106: 1062 | FN106: 1004 | FO106: 1045 | FP106: 929 | FQ106: 900 | FR106: 752 | FS106: 800 | FT106: 768 | FU106: 638 | FV106: 572 | FW106: 605 | FX106: 552 | FY106: 541 | FZ106: 476 | GA106: 470 | GB106: 441 | GC106: 428 | GD106: 409 | GE106: 369 | GF106: 314 | GG106: 315 | GH106: 242 | GI106: 241 | GJ106: 200 | GK106: 162 | GL106: 684
A107: England – CCGs | B107: Norfolk and Waveney | C107: England – CCGs - Norfolk and Waveney | D107: 403527 | E107: 428394 | F107: 1026193 | G107: 503153 | H107: 523040 | I107: 403527 | J107: 428394 | K107: 99626 | L107: 94646 | M107: 4772 | N107: 5100 | O107: 5419 | P107: 5490 | Q107: 5637 | R107: 5544 | S107: 5877 | T107: 5879 | U107: 5994 | V107: 5845 | W107: 5818 | X107: 6029 | Y107: 5794 | Z107: 5501 | AA107: 5399 | AB107: 5246 | AC107: 5201 | AD107: 5081 | AE107: 5245 | AF107: 5693 | AG107: 5587 | AH107: 5818 | AI107: 5731 | AJ107: 5847 | AK107: 5907 | AL107: 6183 | AM107: 5849 | AN107: 5778 | AO107: 5804 | AP107: 5836 | AQ107: 5816 | AR107: 5862 | AS107: 5730 | AT107: 5713 | AU107: 5785 | AV107: 5698 | AW107: 5534 | AX107: 5563 | AY107: 5696 | AZ107: 5709 | BA107: 5540 | BB107: 5091 | BC107: 4982 | BD107: 5209 | BE107: 5407 | BF107: 5691 | BG107: 6086 | BH107: 6430 | BI107: 6633 | BJ107: 6657 | BK107: 6968 | BL107: 6814 | BM107: 6975 | BN107: 7178 | BO107: 7180 | BP107: 7200 | BQ107: 7096 | BR107: 6929 | BS107: 6935 | BT107: 6634 | BU107: 6457 | BV107: 6378 | BW107: 6296 | BX107: 6173 | BY107: 5900 | BZ107: 6280 | CA107: 6090 | CB107: 6081 | CC107: 6278 | CD107: 6440 | CE107: 6632 | CF107: 7225 | CG107: 8065 | CH107: 6205 | CI107: 5858 | CJ107: 5708 | CK107: 5215 | CL107: 4660 | CM107: 3842 | CN107: 3915 | CO107: 3788 | CP107: 3710 | CQ107: 3355 | CR107: 2896 | CS107: 2660 | CT107: 2302 | CU107: 2068 | CV107: 1920 | CW107: 1534 | CX107: 1323 | CY107: 4254 | CZ107: 4522 | DA107: 4744 | DB107: 5042 | DC107: 5268 | DD107: 5237 | DE107: 5409 | DF107: 5638 | DG107: 5819 | DH107: 5671 | DI107: 5687 | DJ107: 5586 | DK107: 5620 | DL107: 5442 | DM107: 5205 | DN107: 4990 | DO107: 5021 | DP107: 4863 | DQ107: 4882 | DR107: 5223 | DS107: 5392 | DT107: 5613 | DU107: 5562 | DV107: 5878 | DW107: 5829 | DX107: 5627 | DY107: 5745 | DZ107: 5345 | EA107: 5609 | EB107: 5751 | EC107: 5581 | ED107: 5884 | EE107: 5946 | EF107: 5977 | EG107: 6001 | EH107: 5806 | EI107: 5661 | EJ107: 5807 | EK107: 5974 | EL107: 5843 | EM107: 5610 | EN107: 5509 | EO107: 5208 | EP107: 5204 | EQ107: 5377 | ER107: 5610 | ES107: 6060 | ET107: 6178 | EU107: 6595 | EV107: 6979 | EW107: 6857 | EX107: 7084 | EY107: 7282 | EZ107: 7232 | FA107: 7446 | FB107: 7576 | FC107: 7501 | FD107: 7246 | FE107: 7290 | FF107: 7187 | FG107: 6931 | FH107: 6869 | FI107: 6829 | FJ107: 6753 | FK107: 6707 | FL107: 6508 | FM107: 6614 | FN107: 6778 | FO107: 6728 | FP107: 6606 | FQ107: 6859 | FR107: 7066 | FS107: 7738 | FT107: 8810 | FU107: 6468 | FV107: 6091 | FW107: 6118 | FX107: 5656 | FY107: 4877 | FZ107: 4403 | GA107: 4395 | GB107: 4233 | GC107: 4191 | GD107: 3912 | GE107: 3659 | GF107: 3355 | GG107: 3070 | GH107: 2840 | GI107: 2656 | GJ107: 2438 | GK107: 2195 | GL107: 8956
A108: England – CCGs | B108: North Central London | C108: England – CCGs - North Central London | D108: 583372 | E108: 594775 | F108: 1510806 | G108: 753795 | H108: 757011 | I108: 583372 | J108: 594775 | K108: 170423 | L108: 162236 | M108: 9265 | N108: 9743 | O108: 9865 | P108: 9945 | Q108: 9908 | R108: 9935 | S108: 10136 | T108: 10340 | U108: 9982 | V108: 9841 | W108: 9547 | X108: 9656 | Y108: 9416 | Z108: 9193 | AA108: 8789 | AB108: 8428 | AC108: 8239 | AD108: 8195 | AE108: 8331 | AF108: 8384 | AG108: 8750 | AH108: 9279 | AI108: 10659 | AJ108: 12089 | AK108: 12539 | AL108: 13280 | AM108: 13232 | AN108: 14267 | AO108: 14321 | AP108: 14754 | AQ108: 14410 | AR108: 14845 | AS108: 14226 | AT108: 14143 | AU108: 14019 | AV108: 13436 | AW108: 13467 | AX108: 13135 | AY108: 13170 | AZ108: 12859 | BA108: 12340 | BB108: 11350 | BC108: 10753 | BD108: 10555 | BE108: 10046 | BF108: 10146 | BG108: 10113 | BH108: 9988 | BI108: 10243 | BJ108: 9711 | BK108: 9604 | BL108: 9620 | BM108: 9636 | BN108: 9542 | BO108: 8912 | BP108: 8700 | BQ108: 8468 | BR108: 7925 | BS108: 7547 | BT108: 7193 | BU108: 6887 | BV108: 6574 | BW108: 6241 | BX108: 5995 | BY108: 5660 | BZ108: 5197 | CA108: 5191 | CB108: 4836 | CC108: 4667 | CD108: 4714 | CE108: 4660 | CF108: 4656 | CG108: 4758 | CH108: 3857 | CI108: 3693 | CJ108: 3750 | CK108: 3225 | CL108: 2827 | CM108: 2510 | CN108: 2671 | CO108: 2546 | CP108: 2376 | CQ108: 2192 | CR108: 1989 | CS108: 1787 | CT108: 1674 | CU108: 1443 | CV108: 1237 | CW108: 1155 | CX108: 910 | CY108: 3507 | CZ108: 8851 | DA108: 9211 | DB108: 9379 | DC108: 9508 | DD108: 9455 | DE108: 9341 | DF108: 9500 | DG108: 9982 | DH108: 9603 | DI108: 9369 | DJ108: 9172 | DK108: 9211 | DL108: 8752 | DM108: 8636 | DN108: 8110 | DO108: 8230 | DP108: 8127 | DQ108: 7799 | DR108: 7941 | DS108: 7833 | DT108: 8571 | DU108: 9548 | DV108: 10677 | DW108: 12333 | DX108: 12795 | DY108: 13332 | DZ108: 13509 | EA108: 14149 | EB108: 14168 | EC108: 14006 | ED108: 14006 | EE108: 14080 | EF108: 13084 | EG108: 13188 | EH108: 13185 | EI108: 12439 | EJ108: 12039 | EK108: 12290 | EL108: 11817 | EM108: 11579 | EN108: 11260 | EO108: 10696 | EP108: 10358 | EQ108: 10494 | ER108: 10012 | ES108: 10056 | ET108: 9916 | EU108: 9879 | EV108: 10117 | EW108: 9896 | EX108: 10085 | EY108: 9918 | EZ108: 9396 | FA108: 9727 | FB108: 9489 | FC108: 9182 | FD108: 8804 | FE108: 8364 | FF108: 8013 | FG108: 7786 | FH108: 7201 | FI108: 6953 | FJ108: 6475 | FK108: 6370 | FL108: 5979 | FM108: 5909 | FN108: 5569 | FO108: 5602 | FP108: 5289 | FQ108: 5480 | FR108: 5342 | FS108: 5191 | FT108: 5366 | FU108: 4777 | FV108: 4439 | FW108: 4294 | FX108: 3983 | FY108: 3622 | FZ108: 3202 | GA108: 3305 | GB108: 3337 | GC108: 3078 | GD108: 2792 | GE108: 2737 | GF108: 2521 | GG108: 2202 | GH108: 2157 | GI108: 1908 | GJ108: 1738 | GK108: 1558 | GL108: 6382
A109: England – CCGs | B109: North Cumbria | C109: England – CCGs - North Cumbria | D109: 126557 | E109: 132818 | F109: 319371 | G109: 157421 | H109: 161950 | I109: 126557 | J109: 132818 | K109: 30864 | L109: 29132 | M109: 1440 | N109: 1519 | O109: 1606 | P109: 1654 | Q109: 1693 | R109: 1675 | S109: 1799 | T109: 1828 | U109: 1790 | V109: 1810 | W109: 1887 | X109: 1861 | Y109: 1749 | Z109: 1836 | AA109: 1688 | AB109: 1743 | AC109: 1720 | AD109: 1566 | AE109: 1543 | AF109: 1432 | AG109: 1394 | AH109: 1499 | AI109: 1627 | AJ109: 1622 | AK109: 1707 | AL109: 1747 | AM109: 1836 | AN109: 1982 | AO109: 1777 | AP109: 1639 | AQ109: 1750 | AR109: 1711 | AS109: 1573 | AT109: 1723 | AU109: 1696 | AV109: 1622 | AW109: 1718 | AX109: 1736 | AY109: 1689 | AZ109: 1757 | BA109: 1683 | BB109: 1631 | BC109: 1514 | BD109: 1564 | BE109: 1713 | BF109: 1769 | BG109: 1967 | BH109: 2103 | BI109: 2283 | BJ109: 2214 | BK109: 2412 | BL109: 2360 | BM109: 2475 | BN109: 2436 | BO109: 2605 | BP109: 2468 | BQ109: 2544 | BR109: 2478 | BS109: 2403 | BT109: 2460 | BU109: 2391 | BV109: 2351 | BW109: 2222 | BX109: 2091 | BY109: 2057 | BZ109: 2121 | CA109: 2022 | CB109: 2019 | CC109: 2121 | CD109: 2029 | CE109: 2196 | CF109: 2198 | CG109: 2373 | CH109: 1742 | CI109: 1589 | CJ109: 1673 | CK109: 1507 | CL109: 1365 | CM109: 1233 | CN109: 1220 | CO109: 1105 | CP109: 1070 | CQ109: 959 | CR109: 859 | CS109: 675 | CT109: 587 | CU109: 582 | CV109: 573 | CW109: 386 | CX109: 331 | CY109: 1048 | CZ109: 1361 | DA109: 1416 | DB109: 1529 | DC109: 1614 | DD109: 1585 | DE109: 1726 | DF109: 1611 | DG109: 1753 | DH109: 1784 | DI109: 1747 | DJ109: 1607 | DK109: 1725 | DL109: 1655 | DM109: 1669 | DN109: 1591 | DO109: 1626 | DP109: 1542 | DQ109: 1591 | DR109: 1581 | DS109: 1291 | DT109: 1382 | DU109: 1369 | DV109: 1613 | DW109: 1562 | DX109: 1472 | DY109: 1640 | DZ109: 1647 | EA109: 1828 | EB109: 1851 | EC109: 1762 | ED109: 1648 | EE109: 1702 | EF109: 1628 | EG109: 1733 | EH109: 1770 | EI109: 1714 | EJ109: 1908 | EK109: 1772 | EL109: 1862 | EM109: 1896 | EN109: 1702 | EO109: 1590 | EP109: 1597 | EQ109: 1766 | ER109: 1778 | ES109: 1993 | ET109: 2085 | EU109: 2167 | EV109: 2439 | EW109: 2401 | EX109: 2529 | EY109: 2489 | EZ109: 2554 | FA109: 2575 | FB109: 2513 | FC109: 2660 | FD109: 2533 | FE109: 2565 | FF109: 2450 | FG109: 2323 | FH109: 2447 | FI109: 2420 | FJ109: 2224 | FK109: 2247 | FL109: 2044 | FM109: 2003 | FN109: 2178 | FO109: 2007 | FP109: 2195 | FQ109: 2140 | FR109: 2141 | FS109: 2328 | FT109: 2306 | FU109: 1709 | FV109: 1666 | FW109: 1759 | FX109: 1547 | FY109: 1475 | FZ109: 1291 | GA109: 1287 | GB109: 1274 | GC109: 1297 | GD109: 1178 | GE109: 1027 | GF109: 993 | GG109: 839 | GH109: 807 | GI109: 796 | GJ109: 666 | GK109: 589 | GL109: 2598
A110: England – CCGs | B110: North East Essex | C110: England – CCGs - North East Essex | D110: 133073 | E110: 140908 | F110: 341267 | G110: 167601 | H110: 173666 | I110: 133073 | J110: 140908 | K110: 34528 | L110: 32758 | M110: 1706 | N110: 1868 | O110: 1887 | P110: 1863 | Q110: 2057 | R110: 2057 | S110: 2022 | T110: 2084 | U110: 2116 | V110: 2073 | W110: 1979 | X110: 1971 | Y110: 1861 | Z110: 1908 | AA110: 1831 | AB110: 1831 | AC110: 1723 | AD110: 1691 | AE110: 1959 | AF110: 2372 | AG110: 2595 | AH110: 2604 | AI110: 2390 | AJ110: 2329 | AK110: 2114 | AL110: 2183 | AM110: 2221 | AN110: 2316 | AO110: 2455 | AP110: 2169 | AQ110: 2067 | AR110: 2068 | AS110: 1934 | AT110: 1858 | AU110: 1917 | AV110: 1802 | AW110: 1888 | AX110: 1844 | AY110: 1845 | AZ110: 1918 | BA110: 1841 | BB110: 1749 | BC110: 1841 | BD110: 1779 | BE110: 1878 | BF110: 1882 | BG110: 1995 | BH110: 2164 | BI110: 2172 | BJ110: 2109 | BK110: 2301 | BL110: 2277 | BM110: 2282 | BN110: 2277 | BO110: 2204 | BP110: 2222 | BQ110: 2105 | BR110: 2232 | BS110: 2202 | BT110: 2006 | BU110: 1998 | BV110: 1979 | BW110: 1904 | BX110: 1804 | BY110: 1794 | BZ110: 1763 | CA110: 1932 | CB110: 1863 | CC110: 1808 | CD110: 1838 | CE110: 2017 | CF110: 2189 | CG110: 2471 | CH110: 1807 | CI110: 1749 | CJ110: 1764 | CK110: 1595 | CL110: 1343 | CM110: 1119 | CN110: 1195 | CO110: 1146 | CP110: 1116 | CQ110: 983 | CR110: 859 | CS110: 839 | CT110: 672 | CU110: 629 | CV110: 519 | CW110: 432 | CX110: 369 | CY110: 1211 | CZ110: 1611 | DA110: 1771 | DB110: 1820 | DC110: 1866 | DD110: 1872 | DE110: 1943 | DF110: 1994 | DG110: 2098 | DH110: 1855 | DI110: 1899 | DJ110: 1918 | DK110: 1899 | DL110: 1842 | DM110: 1758 | DN110: 1729 | DO110: 1718 | DP110: 1622 | DQ110: 1543 | DR110: 1788 | DS110: 2066 | DT110: 2284 | DU110: 2076 | DV110: 2028 | DW110: 1951 | DX110: 1819 | DY110: 2165 | DZ110: 2100 | EA110: 2236 | EB110: 2305 | EC110: 2262 | ED110: 2211 | EE110: 2133 | EF110: 1969 | EG110: 2035 | EH110: 1975 | EI110: 1887 | EJ110: 2009 | EK110: 1911 | EL110: 2027 | EM110: 1964 | EN110: 1914 | EO110: 1890 | EP110: 1797 | EQ110: 1879 | ER110: 2001 | ES110: 1970 | ET110: 2063 | EU110: 2110 | EV110: 2272 | EW110: 2195 | EX110: 2329 | EY110: 2345 | EZ110: 2334 | FA110: 2482 | FB110: 2354 | FC110: 2422 | FD110: 2341 | FE110: 2351 | FF110: 2150 | FG110: 2172 | FH110: 2118 | FI110: 2162 | FJ110: 2008 | FK110: 1986 | FL110: 1970 | FM110: 2047 | FN110: 2091 | FO110: 1989 | FP110: 2041 | FQ110: 2234 | FR110: 2366 | FS110: 2535 | FT110: 2814 | FU110: 2053 | FV110: 1906 | FW110: 1971 | FX110: 1726 | FY110: 1545 | FZ110: 1327 | GA110: 1380 | GB110: 1339 | GC110: 1210 | GD110: 1139 | GE110: 1058 | GF110: 1016 | GG110: 903 | GH110: 848 | GI110: 752 | GJ110: 689 | GK110: 674 | GL110: 2439
A111: England – CCGs | B111: North East Hampshire and Farnham | C111: England – CCGs - North East Hampshire and Farnham | D111: 81086 | E111: 83381 | F111: 211709 | G111: 105421 | H111: 106288 | I111: 81086 | J111: 83381 | K111: 24335 | L111: 22907 | M111: 1238 | N111: 1237 | O111: 1260 | P111: 1347 | Q111: 1454 | R111: 1365 | S111: 1449 | T111: 1469 | U111: 1417 | V111: 1403 | W111: 1386 | X111: 1428 | Y111: 1402 | Z111: 1388 | AA111: 1414 | AB111: 1247 | AC111: 1182 | AD111: 1249 | AE111: 1277 | AF111: 946 | AG111: 996 | AH111: 1090 | AI111: 1148 | AJ111: 1244 | AK111: 1298 | AL111: 1122 | AM111: 1105 | AN111: 1114 | AO111: 1250 | AP111: 1297 | AQ111: 1282 | AR111: 1378 | AS111: 1483 | AT111: 1297 | AU111: 1341 | AV111: 1323 | AW111: 1336 | AX111: 1363 | AY111: 1430 | AZ111: 1498 | BA111: 1482 | BB111: 1315 | BC111: 1374 | BD111: 1534 | BE111: 1574 | BF111: 1588 | BG111: 1607 | BH111: 1651 | BI111: 1653 | BJ111: 1553 | BK111: 1633 | BL111: 1648 | BM111: 1611 | BN111: 1631 | BO111: 1632 | BP111: 1531 | BQ111: 1584 | BR111: 1476 | BS111: 1400 | BT111: 1317 | BU111: 1190 | BV111: 1158 | BW111: 1129 | BX111: 1042 | BY111: 963 | BZ111: 965 | CA111: 899 | CB111: 809 | CC111: 941 | CD111: 876 | CE111: 1029 | CF111: 1034 | CG111: 1144 | CH111: 853 | CI111: 814 | CJ111: 859 | CK111: 762 | CL111: 628 | CM111: 586 | CN111: 590 | CO111: 578 | CP111: 529 | CQ111: 520 | CR111: 417 | CS111: 390 | CT111: 353 | CU111: 282 | CV111: 284 | CW111: 224 | CX111: 204 | CY111: 622 | CZ111: 1129 | DA111: 1222 | DB111: 1193 | DC111: 1330 | DD111: 1402 | DE111: 1279 | DF111: 1304 | DG111: 1396 | DH111: 1326 | DI111: 1432 | DJ111: 1304 | DK111: 1369 | DL111: 1335 | DM111: 1270 | DN111: 1237 | DO111: 1220 | DP111: 1107 | DQ111: 1052 | DR111: 1087 | DS111: 814 | DT111: 871 | DU111: 864 | DV111: 1039 | DW111: 1018 | DX111: 1082 | DY111: 1096 | DZ111: 1046 | EA111: 1133 | EB111: 1149 | EC111: 1251 | ED111: 1207 | EE111: 1300 | EF111: 1392 | EG111: 1354 | EH111: 1388 | EI111: 1346 | EJ111: 1413 | EK111: 1406 | EL111: 1555 | EM111: 1549 | EN111: 1531 | EO111: 1486 | EP111: 1513 | EQ111: 1598 | ER111: 1543 | ES111: 1671 | ET111: 1641 | EU111: 1672 | EV111: 1659 | EW111: 1536 | EX111: 1608 | EY111: 1595 | EZ111: 1572 | FA111: 1556 | FB111: 1655 | FC111: 1557 | FD111: 1484 | FE111: 1367 | FF111: 1298 | FG111: 1184 | FH111: 1212 | FI111: 1117 | FJ111: 1073 | FK111: 1064 | FL111: 1049 | FM111: 1062 | FN111: 1014 | FO111: 1009 | FP111: 993 | FQ111: 1004 | FR111: 1065 | FS111: 1134 | FT111: 1254 | FU111: 952 | FV111: 965 | FW111: 872 | FX111: 902 | FY111: 788 | FZ111: 712 | GA111: 668 | GB111: 703 | GC111: 676 | GD111: 609 | GE111: 544 | GF111: 517 | GG111: 474 | GH111: 438 | GI111: 337 | GJ111: 342 | GK111: 298 | GL111: 1448
A112: England – CCGs | B112: North East Lincolnshire | C112: England – CCGs - North East Lincolnshire | D112: 60768 | E112: 64277 | F112: 159563 | G112: 78256 | H112: 81307 | I112: 60768 | J112: 64277 | K112: 17488 | L112: 17030 | M112: 806 | N112: 910 | O112: 960 | P112: 972 | Q112: 1016 | R112: 977 | S112: 1014 | T112: 1025 | U112: 1063 | V112: 1045 | W112: 1018 | X112: 1015 | Y112: 1040 | Z112: 1061 | AA112: 974 | AB112: 881 | AC112: 833 | AD112: 878 | AE112: 826 | AF112: 775 | AG112: 794 | AH112: 752 | AI112: 836 | AJ112: 907 | AK112: 882 | AL112: 941 | AM112: 971 | AN112: 1063 | AO112: 1066 | AP112: 1013 | AQ112: 1075 | AR112: 1147 | AS112: 1020 | AT112: 1055 | AU112: 939 | AV112: 862 | AW112: 867 | AX112: 928 | AY112: 911 | AZ112: 860 | BA112: 915 | BB112: 794 | BC112: 754 | BD112: 871 | BE112: 889 | BF112: 899 | BG112: 996 | BH112: 1043 | BI112: 1115 | BJ112: 1055 | BK112: 1053 | BL112: 1038 | BM112: 1121 | BN112: 1103 | BO112: 1134 | BP112: 1182 | BQ112: 1137 | BR112: 1171 | BS112: 1134 | BT112: 1074 | BU112: 969 | BV112: 1014 | BW112: 955 | BX112: 949 | BY112: 912 | BZ112: 907 | CA112: 882 | CB112: 845 | CC112: 846 | CD112: 825 | CE112: 864 | CF112: 904 | CG112: 1036 | CH112: 721 | CI112: 690 | CJ112: 654 | CK112: 608 | CL112: 568 | CM112: 516 | CN112: 467 | CO112: 435 | CP112: 433 | CQ112: 447 | CR112: 335 | CS112: 393 | CT112: 313 | CU112: 275 | CV112: 212 | CW112: 184 | CX112: 149 | CY112: 492 | CZ112: 816 | DA112: 854 | DB112: 923 | DC112: 926 | DD112: 983 | DE112: 993 | DF112: 1005 | DG112: 1090 | DH112: 991 | DI112: 1057 | DJ112: 1025 | DK112: 932 | DL112: 915 | DM112: 916 | DN112: 982 | DO112: 850 | DP112: 903 | DQ112: 869 | DR112: 838 | DS112: 657 | DT112: 647 | DU112: 680 | DV112: 831 | DW112: 832 | DX112: 787 | DY112: 967 | DZ112: 918 | EA112: 1031 | EB112: 1025 | EC112: 1040 | ED112: 1093 | EE112: 1139 | EF112: 1051 | EG112: 1053 | EH112: 997 | EI112: 1034 | EJ112: 980 | EK112: 960 | EL112: 977 | EM112: 910 | EN112: 855 | EO112: 805 | EP112: 808 | EQ112: 825 | ER112: 874 | ES112: 923 | ET112: 955 | EU112: 1134 | EV112: 1152 | EW112: 1043 | EX112: 1220 | EY112: 1158 | EZ112: 1133 | FA112: 1227 | FB112: 1173 | FC112: 1150 | FD112: 1237 | FE112: 1154 | FF112: 1122 | FG112: 1039 | FH112: 1094 | FI112: 1050 | FJ112: 945 | FK112: 980 | FL112: 904 | FM112: 940 | FN112: 889 | FO112: 902 | FP112: 888 | FQ112: 900 | FR112: 897 | FS112: 969 | FT112: 1088 | FU112: 830 | FV112: 760 | FW112: 744 | FX112: 687 | FY112: 590 | FZ112: 607 | GA112: 651 | GB112: 623 | GC112: 591 | GD112: 550 | GE112: 503 | GF112: 457 | GG112: 420 | GH112: 372 | GI112: 341 | GJ112: 314 | GK112: 250 | GL112: 1107
A113: England – CCGs | B113: North Hampshire | C113: England – CCGs - North Hampshire | D113: 85887 | E113: 90182 | F113: 225387 | G113: 111221 | H113: 114166 | I113: 85887 | J113: 90182 | K113: 25334 | L113: 23984 | M113: 1250 | N113: 1286 | O113: 1375 | P113: 1360 | Q113: 1474 | R113: 1508 | S113: 1528 | T113: 1583 | U113: 1596 | V113: 1531 | W113: 1413 | X113: 1457 | Y113: 1467 | Z113: 1502 | AA113: 1241 | AB113: 1267 | AC113: 1256 | AD113: 1240 | AE113: 1226 | AF113: 1055 | AG113: 1060 | AH113: 989 | AI113: 1123 | AJ113: 1328 | AK113: 1345 | AL113: 1200 | AM113: 1151 | AN113: 1106 | AO113: 1231 | AP113: 1369 | AQ113: 1395 | AR113: 1361 | AS113: 1385 | AT113: 1358 | AU113: 1431 | AV113: 1394 | AW113: 1506 | AX113: 1433 | AY113: 1431 | AZ113: 1492 | BA113: 1472 | BB113: 1387 | BC113: 1410 | BD113: 1436 | BE113: 1554 | BF113: 1499 | BG113: 1664 | BH113: 1610 | BI113: 1735 | BJ113: 1614 | BK113: 1790 | BL113: 1616 | BM113: 1778 | BN113: 1705 | BO113: 1743 | BP113: 1717 | BQ113: 1608 | BR113: 1660 | BS113: 1529 | BT113: 1552 | BU113: 1345 | BV113: 1304 | BW113: 1304 | BX113: 1247 | BY113: 1060 | BZ113: 1134 | CA113: 1075 | CB113: 1035 | CC113: 1069 | CD113: 1113 | CE113: 1139 | CF113: 1124 | CG113: 1290 | CH113: 1012 | CI113: 913 | CJ113: 935 | CK113: 832 | CL113: 687 | CM113: 605 | CN113: 640 | CO113: 562 | CP113: 555 | CQ113: 499 | CR113: 481 | CS113: 376 | CT113: 377 | CU113: 287 | CV113: 296 | CW113: 245 | CX113: 204 | CY113: 694 | CZ113: 1157 | DA113: 1187 | DB113: 1335 | DC113: 1395 | DD113: 1217 | DE113: 1376 | DF113: 1374 | DG113: 1499 | DH113: 1511 | DI113: 1438 | DJ113: 1383 | DK113: 1442 | DL113: 1364 | DM113: 1313 | DN113: 1261 | DO113: 1230 | DP113: 1219 | DQ113: 1283 | DR113: 1187 | DS113: 842 | DT113: 875 | DU113: 862 | DV113: 1120 | DW113: 1135 | DX113: 1178 | DY113: 1156 | DZ113: 1112 | EA113: 1227 | EB113: 1244 | EC113: 1340 | ED113: 1361 | EE113: 1450 | EF113: 1456 | EG113: 1503 | EH113: 1443 | EI113: 1505 | EJ113: 1599 | EK113: 1547 | EL113: 1634 | EM113: 1567 | EN113: 1581 | EO113: 1486 | EP113: 1450 | EQ113: 1495 | ER113: 1649 | ES113: 1514 | ET113: 1668 | EU113: 1707 | EV113: 1812 | EW113: 1666 | EX113: 1742 | EY113: 1815 | EZ113: 1705 | FA113: 1716 | FB113: 1765 | FC113: 1738 | FD113: 1717 | FE113: 1580 | FF113: 1525 | FG113: 1417 | FH113: 1425 | FI113: 1343 | FJ113: 1339 | FK113: 1139 | FL113: 1169 | FM113: 1196 | FN113: 1195 | FO113: 1130 | FP113: 1145 | FQ113: 1123 | FR113: 1272 | FS113: 1357 | FT113: 1487 | FU113: 1127 | FV113: 1052 | FW113: 989 | FX113: 897 | FY113: 814 | FZ113: 718 | GA113: 744 | GB113: 775 | GC113: 688 | GD113: 617 | GE113: 595 | GF113: 493 | GG113: 450 | GH113: 448 | GI113: 401 | GJ113: 338 | GK113: 330 | GL113: 1295
A114: England – CCGs | B114: North Kirklees | C114: England – CCGs - North Kirklees | D114: 71740 | E114: 74161 | F114: 193183 | G114: 95989 | H114: 97194 | I114: 71740 | J114: 74161 | K114: 24249 | L114: 23033 | M114: 1206 | N114: 1312 | O114: 1347 | P114: 1338 | Q114: 1382 | R114: 1428 | S114: 1438 | T114: 1368 | U114: 1468 | V114: 1405 | W114: 1395 | X114: 1427 | Y114: 1296 | Z114: 1369 | AA114: 1331 | AB114: 1324 | AC114: 1229 | AD114: 1186 | AE114: 1196 | AF114: 1052 | AG114: 1060 | AH114: 1022 | AI114: 1054 | AJ114: 1057 | AK114: 1013 | AL114: 1144 | AM114: 1194 | AN114: 1244 | AO114: 1338 | AP114: 1353 | AQ114: 1189 | AR114: 1258 | AS114: 1225 | AT114: 1371 | AU114: 1287 | AV114: 1288 | AW114: 1265 | AX114: 1301 | AY114: 1303 | AZ114: 1307 | BA114: 1305 | BB114: 1196 | BC114: 1197 | BD114: 1174 | BE114: 1210 | BF114: 1165 | BG114: 1340 | BH114: 1369 | BI114: 1413 | BJ114: 1390 | BK114: 1395 | BL114: 1393 | BM114: 1368 | BN114: 1265 | BO114: 1237 | BP114: 1281 | BQ114: 1170 | BR114: 1213 | BS114: 1124 | BT114: 1060 | BU114: 1035 | BV114: 1092 | BW114: 1041 | BX114: 993 | BY114: 913 | BZ114: 938 | CA114: 942 | CB114: 834 | CC114: 891 | CD114: 873 | CE114: 907 | CF114: 962 | CG114: 994 | CH114: 745 | CI114: 695 | CJ114: 621 | CK114: 609 | CL114: 563 | CM114: 485 | CN114: 457 | CO114: 466 | CP114: 440 | CQ114: 400 | CR114: 343 | CS114: 297 | CT114: 256 | CU114: 242 | CV114: 204 | CW114: 133 | CX114: 144 | CY114: 439 | CZ114: 1108 | DA114: 1230 | DB114: 1246 | DC114: 1246 | DD114: 1316 | DE114: 1300 | DF114: 1361 | DG114: 1385 | DH114: 1395 | DI114: 1308 | DJ114: 1297 | DK114: 1360 | DL114: 1297 | DM114: 1247 | DN114: 1278 | DO114: 1191 | DP114: 1242 | DQ114: 1226 | DR114: 1212 | DS114: 1056 | DT114: 1008 | DU114: 1023 | DV114: 995 | DW114: 983 | DX114: 909 | DY114: 1152 | DZ114: 1100 | EA114: 1263 | EB114: 1342 | EC114: 1350 | ED114: 1348 | EE114: 1362 | EF114: 1387 | EG114: 1295 | EH114: 1408 | EI114: 1342 | EJ114: 1397 | EK114: 1283 | EL114: 1381 | EM114: 1319 | EN114: 1276 | EO114: 1158 | EP114: 1137 | EQ114: 1176 | ER114: 1104 | ES114: 1228 | ET114: 1261 | EU114: 1330 | EV114: 1393 | EW114: 1346 | EX114: 1323 | EY114: 1316 | EZ114: 1257 | FA114: 1252 | FB114: 1220 | FC114: 1227 | FD114: 1186 | FE114: 1213 | FF114: 1117 | FG114: 1110 | FH114: 1097 | FI114: 1013 | FJ114: 993 | FK114: 974 | FL114: 894 | FM114: 889 | FN114: 902 | FO114: 875 | FP114: 983 | FQ114: 900 | FR114: 930 | FS114: 1034 | FT114: 1105 | FU114: 773 | FV114: 798 | FW114: 722 | FX114: 771 | FY114: 645 | FZ114: 551 | GA114: 597 | GB114: 562 | GC114: 576 | GD114: 536 | GE114: 445 | GF114: 420 | GG114: 384 | GH114: 351 | GI114: 310 | GJ114: 291 | GK114: 288 | GL114: 1007
A115: England – CCGs | B115: North Lincolnshire | C115: England – CCGs - North Lincolnshire | D115: 67098 | E115: 69556 | F115: 172292 | G115: 85242 | H115: 87050 | I115: 67098 | J115: 69556 | K115: 18144 | L115: 17494 | M115: 775 | N115: 877 | O115: 925 | P115: 924 | Q115: 962 | R115: 1009 | S115: 1017 | T115: 1068 | U115: 1030 | V115: 1154 | W115: 1170 | X115: 1100 | Y115: 1073 | Z115: 1112 | AA115: 1018 | AB115: 985 | AC115: 955 | AD115: 990 | AE115: 920 | AF115: 776 | AG115: 755 | AH115: 806 | AI115: 841 | AJ115: 955 | AK115: 973 | AL115: 944 | AM115: 1014 | AN115: 1017 | AO115: 1048 | AP115: 972 | AQ115: 998 | AR115: 1040 | AS115: 1026 | AT115: 1077 | AU115: 1087 | AV115: 1080 | AW115: 1031 | AX115: 971 | AY115: 1039 | AZ115: 1015 | BA115: 965 | BB115: 907 | BC115: 908 | BD115: 888 | BE115: 981 | BF115: 1001 | BG115: 1069 | BH115: 1167 | BI115: 1127 | BJ115: 1176 | BK115: 1291 | BL115: 1204 | BM115: 1316 | BN115: 1261 | BO115: 1297 | BP115: 1367 | BQ115: 1358 | BR115: 1290 | BS115: 1233 | BT115: 1210 | BU115: 1161 | BV115: 1174 | BW115: 1115 | BX115: 1138 | BY115: 1053 | BZ115: 976 | CA115: 1054 | CB115: 1028 | CC115: 1035 | CD115: 1039 | CE115: 1028 | CF115: 1077 | CG115: 1160 | CH115: 828 | CI115: 841 | CJ115: 760 | CK115: 702 | CL115: 628 | CM115: 545 | CN115: 543 | CO115: 514 | CP115: 504 | CQ115: 431 | CR115: 428 | CS115: 369 | CT115: 301 | CU115: 265 | CV115: 186 | CW115: 216 | CX115: 130 | CY115: 468 | CZ115: 821 | DA115: 876 | DB115: 924 | DC115: 967 | DD115: 922 | DE115: 939 | DF115: 1060 | DG115: 1005 | DH115: 1083 | DI115: 1027 | DJ115: 1044 | DK115: 1079 | DL115: 1028 | DM115: 1021 | DN115: 981 | DO115: 976 | DP115: 892 | DQ115: 849 | DR115: 919 | DS115: 721 | DT115: 617 | DU115: 748 | DV115: 739 | DW115: 824 | DX115: 883 | DY115: 955 | DZ115: 944 | EA115: 943 | EB115: 1014 | EC115: 1042 | ED115: 1033 | EE115: 1078 | EF115: 1122 | EG115: 1139 | EH115: 1055 | EI115: 1093 | EJ115: 1092 | EK115: 1026 | EL115: 1050 | EM115: 1030 | EN115: 1036 | EO115: 865 | EP115: 835 | EQ115: 979 | ER115: 1001 | ES115: 1049 | ET115: 1046 | EU115: 1098 | EV115: 1201 | EW115: 1294 | EX115: 1317 | EY115: 1250 | EZ115: 1286 | FA115: 1325 | FB115: 1330 | FC115: 1328 | FD115: 1285 | FE115: 1272 | FF115: 1256 | FG115: 1190 | FH115: 1193 | FI115: 1135 | FJ115: 1106 | FK115: 1114 | FL115: 1098 | FM115: 1078 | FN115: 1092 | FO115: 1022 | FP115: 1017 | FQ115: 1099 | FR115: 1078 | FS115: 1080 | FT115: 1136 | FU115: 875 | FV115: 891 | FW115: 855 | FX115: 777 | FY115: 737 | FZ115: 629 | GA115: 641 | GB115: 613 | GC115: 547 | GD115: 519 | GE115: 510 | GF115: 468 | GG115: 392 | GH115: 385 | GI115: 371 | GJ115: 315 | GK115: 266 | GL115: 1207
A116: England – CCGs | B116: North Staffordshire | C116: England – CCGs - North Staffordshire | D116: 88254 | E116: 91358 | F116: 219600 | G116: 108890 | H116: 110710 | I116: 88254 | J116: 91358 | K116: 20636 | L116: 19352 | M116: 855 | N116: 979 | O116: 1072 | P116: 1019 | Q116: 1137 | R116: 1166 | S116: 1142 | T116: 1135 | U116: 1262 | V116: 1238 | W116: 1292 | X116: 1258 | Y116: 1154 | Z116: 1154 | AA116: 1254 | AB116: 1179 | AC116: 1169 | AD116: 1171 | AE116: 1171 | AF116: 1586 | AG116: 1551 | AH116: 1636 | AI116: 1529 | AJ116: 1378 | AK116: 1349 | AL116: 1301 | AM116: 1341 | AN116: 1438 | AO116: 1604 | AP116: 1546 | AQ116: 1427 | AR116: 1213 | AS116: 1165 | AT116: 1239 | AU116: 1175 | AV116: 1163 | AW116: 1155 | AX116: 1223 | AY116: 1135 | AZ116: 1267 | BA116: 1013 | BB116: 1143 | BC116: 1172 | BD116: 1141 | BE116: 1281 | BF116: 1309 | BG116: 1393 | BH116: 1477 | BI116: 1606 | BJ116: 1633 | BK116: 1594 | BL116: 1612 | BM116: 1685 | BN116: 1646 | BO116: 1531 | BP116: 1604 | BQ116: 1633 | BR116: 1607 | BS116: 1524 | BT116: 1385 | BU116: 1458 | BV116: 1467 | BW116: 1311 | BX116: 1296 | BY116: 1250 | BZ116: 1292 | CA116: 1297 | CB116: 1231 | CC116: 1242 | CD116: 1318 | CE116: 1379 | CF116: 1502 | CG116: 1519 | CH116: 1122 | CI116: 1127 | CJ116: 1148 | CK116: 1021 | CL116: 926 | CM116: 780 | CN116: 716 | CO116: 734 | CP116: 666 | CQ116: 650 | CR116: 512 | CS116: 457 | CT116: 420 | CU116: 340 | CV116: 340 | CW116: 266 | CX116: 230 | CY116: 656 | CZ116: 882 | DA116: 936 | DB116: 950 | DC116: 1044 | DD116: 974 | DE116: 1025 | DF116: 1055 | DG116: 1104 | DH116: 1178 | DI116: 1116 | DJ116: 1123 | DK116: 1201 | DL116: 1148 | DM116: 1161 | DN116: 1194 | DO116: 1129 | DP116: 1090 | DQ116: 1042 | DR116: 1145 | DS116: 1542 | DT116: 1530 | DU116: 1477 | DV116: 1400 | DW116: 1286 | DX116: 1222 | DY116: 1302 | DZ116: 1234 | EA116: 1363 | EB116: 1451 | EC116: 1344 | ED116: 1224 | EE116: 1247 | EF116: 1229 | EG116: 1244 | EH116: 1267 | EI116: 1133 | EJ116: 1224 | EK116: 1316 | EL116: 1226 | EM116: 1274 | EN116: 1212 | EO116: 1148 | EP116: 1131 | EQ116: 1229 | ER116: 1309 | ES116: 1353 | ET116: 1334 | EU116: 1519 | EV116: 1594 | EW116: 1577 | EX116: 1612 | EY116: 1623 | EZ116: 1652 | FA116: 1656 | FB116: 1646 | FC116: 1642 | FD116: 1596 | FE116: 1574 | FF116: 1631 | FG116: 1472 | FH116: 1407 | FI116: 1457 | FJ116: 1360 | FK116: 1373 | FL116: 1270 | FM116: 1374 | FN116: 1343 | FO116: 1275 | FP116: 1349 | FQ116: 1458 | FR116: 1393 | FS116: 1605 | FT116: 1593 | FU116: 1204 | FV116: 1218 | FW116: 1177 | FX116: 1034 | FY116: 937 | FZ116: 939 | GA116: 826 | GB116: 815 | GC116: 821 | GD116: 776 | GE116: 691 | GF116: 633 | GG116: 612 | GH116: 509 | GI116: 492 | GJ116: 409 | GK116: 353 | GL116: 1465
A117: England – CCGs | B117: North Tyneside | C117: England – CCGs - North Tyneside | D117: 79040 | E117: 87022 | F117: 207913 | G117: 100649 | H117: 107264 | I117: 79040 | J117: 87022 | K117: 21609 | L117: 20242 | M117: 1148 | N117: 1130 | O117: 1154 | P117: 1213 | Q117: 1216 | R117: 1281 | S117: 1214 | T117: 1157 | U117: 1265 | V117: 1289 | W117: 1312 | X117: 1273 | Y117: 1188 | Z117: 1280 | AA117: 1204 | AB117: 1108 | AC117: 1105 | AD117: 1072 | AE117: 1065 | AF117: 858 | AG117: 886 | AH117: 1002 | AI117: 1079 | AJ117: 1085 | AK117: 1046 | AL117: 1178 | AM117: 1206 | AN117: 1147 | AO117: 1209 | AP117: 1123 | AQ117: 1205 | AR117: 1244 | AS117: 1281 | AT117: 1349 | AU117: 1308 | AV117: 1288 | AW117: 1313 | AX117: 1318 | AY117: 1460 | AZ117: 1440 | BA117: 1510 | BB117: 1246 | BC117: 1197 | BD117: 1249 | BE117: 1260 | BF117: 1215 | BG117: 1326 | BH117: 1514 | BI117: 1451 | BJ117: 1438 | BK117: 1357 | BL117: 1405 | BM117: 1413 | BN117: 1502 | BO117: 1564 | BP117: 1559 | BQ117: 1587 | BR117: 1401 | BS117: 1369 | BT117: 1291 | BU117: 1327 | BV117: 1374 | BW117: 1258 | BX117: 1200 | BY117: 1188 | BZ117: 1254 | CA117: 1185 | CB117: 1140 | CC117: 1090 | CD117: 1079 | CE117: 1109 | CF117: 1206 | CG117: 1265 | CH117: 969 | CI117: 857 | CJ117: 856 | CK117: 723 | CL117: 634 | CM117: 522 | CN117: 604 | CO117: 565 | CP117: 538 | CQ117: 442 | CR117: 432 | CS117: 420 | CT117: 350 | CU117: 301 | CV117: 264 | CW117: 217 | CX117: 198 | CY117: 529 | CZ117: 1085 | DA117: 1129 | DB117: 1090 | DC117: 1173 | DD117: 1077 | DE117: 1158 | DF117: 1147 | DG117: 1191 | DH117: 1183 | DI117: 1192 | DJ117: 1119 | DK117: 1190 | DL117: 1072 | DM117: 1179 | DN117: 1091 | DO117: 1085 | DP117: 1036 | DQ117: 1045 | DR117: 998 | DS117: 847 | DT117: 734 | DU117: 898 | DV117: 1002 | DW117: 1105 | DX117: 1022 | DY117: 1082 | DZ117: 1158 | EA117: 1282 | EB117: 1312 | EC117: 1214 | ED117: 1374 | EE117: 1407 | EF117: 1509 | EG117: 1422 | EH117: 1506 | EI117: 1455 | EJ117: 1443 | EK117: 1441 | EL117: 1560 | EM117: 1550 | EN117: 1441 | EO117: 1174 | EP117: 1268 | EQ117: 1315 | ER117: 1326 | ES117: 1415 | ET117: 1415 | EU117: 1561 | EV117: 1527 | EW117: 1509 | EX117: 1564 | EY117: 1501 | EZ117: 1547 | FA117: 1526 | FB117: 1637 | FC117: 1606 | FD117: 1600 | FE117: 1581 | FF117: 1469 | FG117: 1459 | FH117: 1420 | FI117: 1470 | FJ117: 1377 | FK117: 1341 | FL117: 1298 | FM117: 1287 | FN117: 1298 | FO117: 1160 | FP117: 1238 | FQ117: 1253 | FR117: 1233 | FS117: 1349 | FT117: 1401 | FU117: 1079 | FV117: 996 | FW117: 995 | FX117: 850 | FY117: 752 | FZ117: 687 | GA117: 807 | GB117: 721 | GC117: 762 | GD117: 690 | GE117: 630 | GF117: 559 | GG117: 514 | GH117: 498 | GI117: 449 | GJ117: 395 | GK117: 394 | GL117: 1357
A118: England – CCGs | B118: North Yorkshire | C118: England – CCGs - North Yorkshire | D118: 170106 | E118: 176867 | F118: 428231 | G118: 212046 | H118: 216185 | I118: 170106 | J118: 176867 | K118: 41940 | L118: 39318 | M118: 1858 | N118: 1901 | O118: 2074 | P118: 2255 | Q118: 2230 | R118: 2270 | S118: 2267 | T118: 2328 | U118: 2486 | V118: 2559 | W118: 2404 | X118: 2462 | Y118: 2483 | Z118: 2416 | AA118: 2362 | AB118: 2305 | AC118: 2449 | AD118: 2831 | AE118: 2556 | AF118: 2065 | AG118: 1834 | AH118: 1743 | AI118: 2109 | AJ118: 2035 | AK118: 1981 | AL118: 1798 | AM118: 2207 | AN118: 2461 | AO118: 2695 | AP118: 2570 | AQ118: 2416 | AR118: 2506 | AS118: 2275 | AT118: 2442 | AU118: 2155 | AV118: 2211 | AW118: 2159 | AX118: 2333 | AY118: 2366 | AZ118: 2328 | BA118: 2142 | BB118: 2106 | BC118: 2057 | BD118: 2231 | BE118: 2287 | BF118: 2442 | BG118: 2631 | BH118: 2886 | BI118: 3010 | BJ118: 2954 | BK118: 3024 | BL118: 3138 | BM118: 3334 | BN118: 3186 | BO118: 3366 | BP118: 3429 | BQ118: 3430 | BR118: 3344 | BS118: 3310 | BT118: 3174 | BU118: 3031 | BV118: 2938 | BW118: 2970 | BX118: 2857 | BY118: 2734 | BZ118: 2842 | CA118: 2766 | CB118: 2655 | CC118: 2615 | CD118: 2663 | CE118: 2872 | CF118: 3053 | CG118: 3328 | CH118: 2468 | CI118: 2365 | CJ118: 2396 | CK118: 2109 | CL118: 1694 | CM118: 1512 | CN118: 1615 | CO118: 1578 | CP118: 1525 | CQ118: 1206 | CR118: 1246 | CS118: 1059 | CT118: 941 | CU118: 811 | CV118: 736 | CW118: 638 | CX118: 503 | CY118: 1654 | CZ118: 1692 | DA118: 1892 | DB118: 1987 | DC118: 2012 | DD118: 2138 | DE118: 2087 | DF118: 2267 | DG118: 2357 | DH118: 2293 | DI118: 2339 | DJ118: 2345 | DK118: 2332 | DL118: 2366 | DM118: 2297 | DN118: 2265 | DO118: 2192 | DP118: 2258 | DQ118: 2199 | DR118: 2018 | DS118: 1402 | DT118: 1208 | DU118: 1326 | DV118: 1710 | DW118: 1863 | DX118: 1851 | DY118: 1856 | DZ118: 2002 | EA118: 2000 | EB118: 2066 | EC118: 2155 | ED118: 2048 | EE118: 2237 | EF118: 2139 | EG118: 2190 | EH118: 2279 | EI118: 2181 | EJ118: 2186 | EK118: 2205 | EL118: 2382 | EM118: 2208 | EN118: 2397 | EO118: 2108 | EP118: 2238 | EQ118: 2421 | ER118: 2426 | ES118: 2610 | ET118: 2804 | EU118: 2978 | EV118: 3187 | EW118: 3036 | EX118: 3304 | EY118: 3318 | EZ118: 3439 | FA118: 3377 | FB118: 3649 | FC118: 3530 | FD118: 3515 | FE118: 3348 | FF118: 3397 | FG118: 3290 | FH118: 3232 | FI118: 3177 | FJ118: 2950 | FK118: 3036 | FL118: 2850 | FM118: 2896 | FN118: 2826 | FO118: 2810 | FP118: 3008 | FQ118: 2888 | FR118: 2999 | FS118: 3123 | FT118: 3475 | FU118: 2675 | FV118: 2729 | FW118: 2479 | FX118: 2253 | FY118: 2114 | FZ118: 1961 | GA118: 1925 | GB118: 1949 | GC118: 1799 | GD118: 1657 | GE118: 1585 | GF118: 1459 | GG118: 1327 | GH118: 1179 | GI118: 1014 | GJ118: 1033 | GK118: 867 | GL118: 3708
A119: England – CCGs | B119: Northamptonshire | C119: England – CCGs - Northamptonshire | D119: 278763 | E119: 289592 | F119: 736219 | G119: 364156 | H119: 372063 | I119: 278763 | J119: 289592 | K119: 85393 | L119: 82471 | M119: 4330 | N119: 4496 | O119: 4690 | P119: 4936 | Q119: 4982 | R119: 5006 | S119: 5059 | T119: 5250 | U119: 5165 | V119: 5117 | W119: 5017 | X119: 5035 | Y119: 4797 | Z119: 4575 | AA119: 4249 | AB119: 4348 | AC119: 4251 | AD119: 4090 | AE119: 4167 | AF119: 3712 | AG119: 3564 | AH119: 3594 | AI119: 4039 | AJ119: 4115 | AK119: 4294 | AL119: 4173 | AM119: 4395 | AN119: 4387 | AO119: 4579 | AP119: 4460 | AQ119: 4287 | AR119: 4737 | AS119: 4407 | AT119: 4667 | AU119: 4676 | AV119: 4619 | AW119: 4852 | AX119: 4797 | AY119: 4937 | AZ119: 5032 | BA119: 4912 | BB119: 4464 | BC119: 4482 | BD119: 4555 | BE119: 4679 | BF119: 4974 | BG119: 5087 | BH119: 5224 | BI119: 5423 | BJ119: 5178 | BK119: 5390 | BL119: 5322 | BM119: 5438 | BN119: 5414 | BO119: 5551 | BP119: 5277 | BQ119: 5153 | BR119: 4922 | BS119: 4632 | BT119: 4470 | BU119: 4292 | BV119: 4202 | BW119: 4075 | BX119: 3815 | BY119: 3803 | BZ119: 3847 | CA119: 3621 | CB119: 3570 | CC119: 3564 | CD119: 3615 | CE119: 3667 | CF119: 3907 | CG119: 4164 | CH119: 3215 | CI119: 3068 | CJ119: 2933 | CK119: 2478 | CL119: 2360 | CM119: 1971 | CN119: 1860 | CO119: 1838 | CP119: 1680 | CQ119: 1443 | CR119: 1416 | CS119: 1253 | CT119: 1013 | CU119: 973 | CV119: 871 | CW119: 717 | CX119: 582 | CY119: 1913 | CZ119: 4155 | DA119: 4475 | DB119: 4551 | DC119: 4717 | DD119: 4658 | DE119: 4861 | DF119: 4936 | DG119: 4989 | DH119: 4826 | DI119: 4822 | DJ119: 4803 | DK119: 4859 | DL119: 4777 | DM119: 4619 | DN119: 4302 | DO119: 4182 | DP119: 3972 | DQ119: 3967 | DR119: 3970 | DS119: 3301 | DT119: 3370 | DU119: 3453 | DV119: 3705 | DW119: 3732 | DX119: 3599 | DY119: 4011 | DZ119: 4030 | EA119: 4246 | EB119: 4363 | EC119: 4456 | ED119: 4726 | EE119: 4967 | EF119: 4817 | EG119: 4985 | EH119: 5152 | EI119: 4985 | EJ119: 5255 | EK119: 5025 | EL119: 5007 | EM119: 5207 | EN119: 4802 | EO119: 4462 | EP119: 4375 | EQ119: 4672 | ER119: 4844 | ES119: 5049 | ET119: 5109 | EU119: 5348 | EV119: 5565 | EW119: 5077 | EX119: 5525 | EY119: 5513 | EZ119: 5494 | FA119: 5346 | FB119: 5396 | FC119: 5347 | FD119: 5190 | FE119: 5047 | FF119: 4816 | FG119: 4605 | FH119: 4396 | FI119: 4346 | FJ119: 4077 | FK119: 4025 | FL119: 3846 | FM119: 3866 | FN119: 3864 | FO119: 3855 | FP119: 3958 | FQ119: 3995 | FR119: 4149 | FS119: 4362 | FT119: 4612 | FU119: 3371 | FV119: 3201 | FW119: 3223 | FX119: 2775 | FY119: 2446 | FZ119: 2134 | GA119: 2122 | GB119: 2110 | GC119: 2008 | GD119: 1800 | GE119: 1661 | GF119: 1451 | GG119: 1505 | GH119: 1236 | GI119: 1198 | GJ119: 1034 | GK119: 984 | GL119: 4038
A120: England – CCGs | B120: Northumberland | C120: England – CCGs - Northumberland | D120: 126982 | E120: 136402 | F120: 322434 | G120: 157462 | H120: 164972 | I120: 126982 | J120: 136402 | K120: 30480 | L120: 28570 | M120: 1338 | N120: 1566 | O120: 1472 | P120: 1628 | Q120: 1596 | R120: 1622 | S120: 1693 | T120: 1749 | U120: 1785 | V120: 1817 | W120: 1763 | X120: 1900 | Y120: 1751 | Z120: 1839 | AA120: 1806 | AB120: 1789 | AC120: 1697 | AD120: 1669 | AE120: 1682 | AF120: 1423 | AG120: 1417 | AH120: 1394 | AI120: 1578 | AJ120: 1702 | AK120: 1618 | AL120: 1579 | AM120: 1665 | AN120: 1723 | AO120: 1700 | AP120: 1598 | AQ120: 1610 | AR120: 1720 | AS120: 1636 | AT120: 1634 | AU120: 1687 | AV120: 1596 | AW120: 1585 | AX120: 1561 | AY120: 1730 | AZ120: 1814 | BA120: 1902 | BB120: 1587 | BC120: 1623 | BD120: 1672 | BE120: 1756 | BF120: 1815 | BG120: 1898 | BH120: 1962 | BI120: 2218 | BJ120: 2054 | BK120: 2163 | BL120: 2202 | BM120: 2372 | BN120: 2374 | BO120: 2537 | BP120: 2592 | BQ120: 2458 | BR120: 2470 | BS120: 2441 | BT120: 2482 | BU120: 2495 | BV120: 2408 | BW120: 2297 | BX120: 2293 | BY120: 2176 | BZ120: 2266 | CA120: 2142 | CB120: 2133 | CC120: 2170 | CD120: 2103 | CE120: 2274 | CF120: 2359 | CG120: 2494 | CH120: 1825 | CI120: 1843 | CJ120: 1769 | CK120: 1544 | CL120: 1321 | CM120: 1245 | CN120: 1138 | CO120: 1093 | CP120: 1059 | CQ120: 966 | CR120: 823 | CS120: 792 | CT120: 645 | CU120: 610 | CV120: 480 | CW120: 422 | CX120: 355 | CY120: 1212 | CZ120: 1327 | DA120: 1386 | DB120: 1524 | DC120: 1518 | DD120: 1410 | DE120: 1507 | DF120: 1653 | DG120: 1657 | DH120: 1695 | DI120: 1712 | DJ120: 1694 | DK120: 1747 | DL120: 1592 | DM120: 1676 | DN120: 1576 | DO120: 1655 | DP120: 1587 | DQ120: 1654 | DR120: 1538 | DS120: 1218 | DT120: 1115 | DU120: 1223 | DV120: 1360 | DW120: 1510 | DX120: 1536 | DY120: 1405 | DZ120: 1560 | EA120: 1686 | EB120: 1703 | EC120: 1707 | ED120: 1691 | EE120: 1785 | EF120: 1718 | EG120: 1738 | EH120: 1843 | EI120: 1788 | EJ120: 1780 | EK120: 1967 | EL120: 1808 | EM120: 1952 | EN120: 1859 | EO120: 1707 | EP120: 1672 | EQ120: 1754 | ER120: 1817 | ES120: 1812 | ET120: 2011 | EU120: 2208 | EV120: 2414 | EW120: 2293 | EX120: 2366 | EY120: 2406 | EZ120: 2477 | FA120: 2516 | FB120: 2744 | FC120: 2699 | FD120: 2741 | FE120: 2678 | FF120: 2683 | FG120: 2670 | FH120: 2661 | FI120: 2622 | FJ120: 2515 | FK120: 2421 | FL120: 2325 | FM120: 2311 | FN120: 2286 | FO120: 2318 | FP120: 2350 | FQ120: 2424 | FR120: 2356 | FS120: 2586 | FT120: 2657 | FU120: 2002 | FV120: 1932 | FW120: 1822 | FX120: 1669 | FY120: 1453 | FZ120: 1364 | GA120: 1396 | GB120: 1339 | GC120: 1167 | GD120: 1207 | GE120: 1072 | GF120: 1013 | GG120: 874 | GH120: 769 | GI120: 768 | GJ120: 653 | GK120: 600 | GL120: 2312
A121: England – CCGs | B121: Nottingham and Nottinghamshire | C121: England – CCGs - Nottingham and Nottinghamshire | D121: 409433 | E121: 421114 | F121: 1043665 | G121: 518876 | H121: 524789 | I121: 409433 | J121: 421114 | K121: 109443 | L121: 103675 | M121: 5470 | N121: 5825 | O121: 6091 | P121: 6189 | Q121: 6315 | R121: 6272 | S121: 6347 | T121: 6758 | U121: 6637 | V121: 6482 | W121: 6325 | X121: 6315 | Y121: 6147 | Z121: 6086 | AA121: 5640 | AB121: 5676 | AC121: 5528 | AD121: 5340 | AE121: 6125 | AF121: 9324 | AG121: 10109 | AH121: 9492 | AI121: 8704 | AJ121: 7851 | AK121: 7498 | AL121: 8369 | AM121: 8026 | AN121: 7854 | AO121: 7923 | AP121: 7961 | AQ121: 7046 | AR121: 6795 | AS121: 6427 | AT121: 6786 | AU121: 6497 | AV121: 6442 | AW121: 6213 | AX121: 6298 | AY121: 6390 | AZ121: 6663 | BA121: 6254 | BB121: 5800 | BC121: 5701 | BD121: 5914 | BE121: 5847 | BF121: 5983 | BG121: 6469 | BH121: 6839 | BI121: 6936 | BJ121: 6849 | BK121: 7054 | BL121: 7041 | BM121: 6956 | BN121: 7065 | BO121: 7011 | BP121: 6884 | BQ121: 7024 | BR121: 6661 | BS121: 6393 | BT121: 6220 | BU121: 6078 | BV121: 5826 | BW121: 5539 | BX121: 5235 | BY121: 5117 | BZ121: 5138 | CA121: 5071 | CB121: 4975 | CC121: 5099 | CD121: 5086 | CE121: 5029 | CF121: 5175 | CG121: 5777 | CH121: 4238 | CI121: 3955 | CJ121: 4095 | CK121: 3656 | CL121: 3013 | CM121: 2749 | CN121: 2700 | CO121: 2671 | CP121: 2539 | CQ121: 2284 | CR121: 1993 | CS121: 1894 | CT121: 1520 | CU121: 1392 | CV121: 1279 | CW121: 1088 | CX121: 821 | CY121: 2707 | CZ121: 5263 | DA121: 5289 | DB121: 5844 | DC121: 6001 | DD121: 5913 | DE121: 6028 | DF121: 6187 | DG121: 6257 | DH121: 6198 | DI121: 6101 | DJ121: 6035 | DK121: 6114 | DL121: 5866 | DM121: 5729 | DN121: 5459 | DO121: 5190 | DP121: 5045 | DQ121: 5156 | DR121: 5917 | DS121: 9735 | DT121: 10012 | DU121: 9108 | DV121: 8360 | DW121: 7277 | DX121: 6963 | DY121: 7358 | DZ121: 7398 | EA121: 7792 | EB121: 7618 | EC121: 7240 | ED121: 6910 | EE121: 6628 | EF121: 6804 | EG121: 6527 | EH121: 6463 | EI121: 6387 | EJ121: 6588 | EK121: 6247 | EL121: 6368 | EM121: 6506 | EN121: 6108 | EO121: 5883 | EP121: 5564 | EQ121: 5798 | ER121: 6038 | ES121: 6148 | ET121: 6553 | EU121: 6651 | EV121: 7060 | EW121: 6846 | EX121: 7218 | EY121: 7021 | EZ121: 7134 | FA121: 7167 | FB121: 7283 | FC121: 7129 | FD121: 7021 | FE121: 6739 | FF121: 6543 | FG121: 6489 | FH121: 6121 | FI121: 5884 | FJ121: 5541 | FK121: 5448 | FL121: 5410 | FM121: 5501 | FN121: 5170 | FO121: 5130 | FP121: 4994 | FQ121: 5202 | FR121: 5234 | FS121: 5539 | FT121: 5906 | FU121: 4521 | FV121: 4620 | FW121: 4505 | FX121: 4084 | FY121: 3635 | FZ121: 3186 | GA121: 3310 | GB121: 3306 | GC121: 3055 | GD121: 2867 | GE121: 2683 | GF121: 2456 | GG121: 2276 | GH121: 1969 | GI121: 1892 | GJ121: 1597 | GK121: 1492 | GL121: 5981
A122: England – CCGs | B122: Oldham | C122: England – CCGs - Oldham | D122: 86626 | E122: 90892 | F122: 237110 | G122: 116994 | H122: 120116 | I122: 86626 | J122: 90892 | K122: 30368 | L122: 29224 | M122: 1565 | N122: 1669 | O122: 1734 | P122: 1708 | Q122: 1758 | R122: 1694 | S122: 1783 | T122: 1689 | U122: 1658 | V122: 1699 | W122: 1706 | X122: 1799 | Y122: 1670 | Z122: 1617 | AA122: 1669 | AB122: 1624 | AC122: 1685 | AD122: 1641 | AE122: 1541 | AF122: 1443 | AG122: 1441 | AH122: 1441 | AI122: 1522 | AJ122: 1488 | AK122: 1553 | AL122: 1589 | AM122: 1588 | AN122: 1622 | AO122: 1657 | AP122: 1619 | AQ122: 1635 | AR122: 1647 | AS122: 1535 | AT122: 1522 | AU122: 1674 | AV122: 1516 | AW122: 1526 | AX122: 1473 | AY122: 1511 | AZ122: 1520 | BA122: 1409 | BB122: 1277 | BC122: 1313 | BD122: 1382 | BE122: 1422 | BF122: 1398 | BG122: 1452 | BH122: 1588 | BI122: 1592 | BJ122: 1625 | BK122: 1663 | BL122: 1624 | BM122: 1624 | BN122: 1511 | BO122: 1489 | BP122: 1497 | BQ122: 1385 | BR122: 1331 | BS122: 1429 | BT122: 1305 | BU122: 1364 | BV122: 1204 | BW122: 1149 | BX122: 1115 | BY122: 1080 | BZ122: 1121 | CA122: 1073 | CB122: 1067 | CC122: 948 | CD122: 988 | CE122: 1022 | CF122: 1118 | CG122: 1163 | CH122: 781 | CI122: 805 | CJ122: 807 | CK122: 721 | CL122: 638 | CM122: 575 | CN122: 609 | CO122: 561 | CP122: 497 | CQ122: 455 | CR122: 363 | CS122: 346 | CT122: 279 | CU122: 234 | CV122: 197 | CW122: 210 | CX122: 160 | CY122: 597 | CZ122: 1605 | DA122: 1586 | DB122: 1589 | DC122: 1631 | DD122: 1690 | DE122: 1740 | DF122: 1673 | DG122: 1714 | DH122: 1715 | DI122: 1700 | DJ122: 1662 | DK122: 1658 | DL122: 1671 | DM122: 1621 | DN122: 1582 | DO122: 1464 | DP122: 1402 | DQ122: 1521 | DR122: 1432 | DS122: 1239 | DT122: 1202 | DU122: 1205 | DV122: 1408 | DW122: 1489 | DX122: 1512 | DY122: 1457 | DZ122: 1522 | EA122: 1561 | EB122: 1621 | EC122: 1625 | ED122: 1758 | EE122: 1693 | EF122: 1677 | EG122: 1640 | EH122: 1667 | EI122: 1567 | EJ122: 1688 | EK122: 1618 | EL122: 1491 | EM122: 1639 | EN122: 1528 | EO122: 1379 | EP122: 1312 | EQ122: 1301 | ER122: 1377 | ES122: 1334 | ET122: 1520 | EU122: 1513 | EV122: 1661 | EW122: 1672 | EX122: 1535 | EY122: 1547 | EZ122: 1541 | FA122: 1588 | FB122: 1692 | FC122: 1649 | FD122: 1462 | FE122: 1544 | FF122: 1437 | FG122: 1459 | FH122: 1293 | FI122: 1264 | FJ122: 1198 | FK122: 1256 | FL122: 1142 | FM122: 1127 | FN122: 1153 | FO122: 1066 | FP122: 1068 | FQ122: 1154 | FR122: 1061 | FS122: 1243 | FT122: 1320 | FU122: 964 | FV122: 918 | FW122: 987 | FX122: 910 | FY122: 801 | FZ122: 700 | GA122: 695 | GB122: 671 | GC122: 656 | GD122: 614 | GE122: 523 | GF122: 466 | GG122: 453 | GH122: 407 | GI122: 361 | GJ122: 333 | GK122: 247 | GL122: 1079
A123: England – CCGs | B123: Oxfordshire | C123: England – CCGs - Oxfordshire | D123: 263042 | E123: 270470 | F123: 676171 | G123: 336359 | H123: 339812 | I123: 263042 | J123: 270470 | K123: 73317 | L123: 69342 | M123: 3810 | N123: 3888 | O123: 3940 | P123: 4220 | Q123: 4076 | R123: 4139 | S123: 4259 | T123: 4334 | U123: 4554 | V123: 4271 | W123: 4159 | X123: 4255 | Y123: 4176 | Z123: 4038 | AA123: 3861 | AB123: 3974 | AC123: 3746 | AD123: 3617 | AE123: 3834 | AF123: 4820 | AG123: 4985 | AH123: 5386 | AI123: 5131 | AJ123: 5038 | AK123: 5010 | AL123: 5009 | AM123: 4945 | AN123: 4794 | AO123: 4805 | AP123: 4523 | AQ123: 4204 | AR123: 4150 | AS123: 4171 | AT123: 4269 | AU123: 4359 | AV123: 4232 | AW123: 4498 | AX123: 4214 | AY123: 4394 | AZ123: 4365 | BA123: 4285 | BB123: 4108 | BC123: 4055 | BD123: 3910 | BE123: 3864 | BF123: 4138 | BG123: 4213 | BH123: 4421 | BI123: 4551 | BJ123: 4416 | BK123: 4502 | BL123: 4696 | BM123: 4584 | BN123: 4681 | BO123: 4671 | BP123: 4722 | BQ123: 4538 | BR123: 4345 | BS123: 4169 | BT123: 4026 | BU123: 3785 | BV123: 3705 | BW123: 3587 | BX123: 3425 | BY123: 3320 | BZ123: 3132 | CA123: 3147 | CB123: 2903 | CC123: 3148 | CD123: 3160 | CE123: 3240 | CF123: 3415 | CG123: 3579 | CH123: 2733 | CI123: 2770 | CJ123: 2655 | CK123: 2393 | CL123: 2146 | CM123: 1832 | CN123: 1892 | CO123: 1875 | CP123: 1695 | CQ123: 1585 | CR123: 1544 | CS123: 1371 | CT123: 1147 | CU123: 1047 | CV123: 949 | CW123: 786 | CX123: 682 | CY123: 2363 | CZ123: 3428 | DA123: 3648 | DB123: 3736 | DC123: 3802 | DD123: 3912 | DE123: 3777 | DF123: 3904 | DG123: 4236 | DH123: 4301 | DI123: 4070 | DJ123: 3909 | DK123: 4112 | DL123: 4014 | DM123: 3883 | DN123: 3838 | DO123: 3705 | DP123: 3679 | DQ123: 3388 | DR123: 3883 | DS123: 4726 | DT123: 5022 | DU123: 4694 | DV123: 4660 | DW123: 4282 | DX123: 4485 | DY123: 4242 | DZ123: 4205 | EA123: 4074 | EB123: 4065 | EC123: 3895 | ED123: 3698 | EE123: 3780 | EF123: 4038 | EG123: 4228 | EH123: 4377 | EI123: 4441 | EJ123: 4536 | EK123: 4457 | EL123: 4551 | EM123: 4336 | EN123: 4390 | EO123: 4018 | EP123: 4101 | EQ123: 3932 | ER123: 4331 | ES123: 4328 | ET123: 4504 | EU123: 4576 | EV123: 4662 | EW123: 4727 | EX123: 4644 | EY123: 4653 | EZ123: 4759 | FA123: 4901 | FB123: 4778 | FC123: 4695 | FD123: 4630 | FE123: 4481 | FF123: 4197 | FG123: 4154 | FH123: 3988 | FI123: 3881 | FJ123: 3715 | FK123: 3551 | FL123: 3391 | FM123: 3479 | FN123: 3356 | FO123: 3222 | FP123: 3350 | FQ123: 3446 | FR123: 3484 | FS123: 3676 | FT123: 3826 | FU123: 3057 | FV123: 3091 | FW123: 3051 | FX123: 2884 | FY123: 2445 | FZ123: 2216 | GA123: 2255 | GB123: 2266 | GC123: 2083 | GD123: 1964 | GE123: 1830 | GF123: 1715 | GG123: 1525 | GH123: 1432 | GI123: 1337 | GJ123: 1209 | GK123: 1007 | GL123: 4602
A124: England – CCGs | B124: Portsmouth | C124: England – CCGs - Portsmouth | D124: 87236 | E124: 83913 | F124: 214905 | G124: 109599 | H124: 105306 | I124: 87236 | J124: 83913 | K124: 22363 | L124: 21393 | M124: 1098 | N124: 1178 | O124: 1229 | P124: 1317 | Q124: 1344 | R124: 1357 | S124: 1336 | T124: 1312 | U124: 1305 | V124: 1333 | W124: 1330 | X124: 1277 | Y124: 1285 | Z124: 1281 | AA124: 1116 | AB124: 1078 | AC124: 1100 | AD124: 1087 | AE124: 1353 | AF124: 2754 | AG124: 3138 | AH124: 3275 | AI124: 2640 | AJ124: 2259 | AK124: 1939 | AL124: 2130 | AM124: 2126 | AN124: 2288 | AO124: 2079 | AP124: 1947 | AQ124: 1719 | AR124: 1518 | AS124: 1495 | AT124: 1601 | AU124: 1677 | AV124: 1623 | AW124: 1407 | AX124: 1358 | AY124: 1389 | AZ124: 1440 | BA124: 1282 | BB124: 1150 | BC124: 1173 | BD124: 1212 | BE124: 1182 | BF124: 1258 | BG124: 1296 | BH124: 1382 | BI124: 1300 | BJ124: 1346 | BK124: 1272 | BL124: 1260 | BM124: 1331 | BN124: 1297 | BO124: 1280 | BP124: 1345 | BQ124: 1331 | BR124: 1216 | BS124: 1228 | BT124: 1172 | BU124: 1152 | BV124: 1074 | BW124: 1009 | BX124: 896 | BY124: 842 | BZ124: 774 | CA124: 816 | CB124: 782 | CC124: 728 | CD124: 791 | CE124: 796 | CF124: 831 | CG124: 946 | CH124: 728 | CI124: 650 | CJ124: 626 | CK124: 574 | CL124: 482 | CM124: 450 | CN124: 440 | CO124: 421 | CP124: 409 | CQ124: 324 | CR124: 361 | CS124: 305 | CT124: 280 | CU124: 196 | CV124: 222 | CW124: 196 | CX124: 131 | CY124: 536 | CZ124: 1185 | DA124: 1172 | DB124: 1185 | DC124: 1248 | DD124: 1256 | DE124: 1240 | DF124: 1276 | DG124: 1285 | DH124: 1293 | DI124: 1259 | DJ124: 1240 | DK124: 1233 | DL124: 1191 | DM124: 1085 | DN124: 1076 | DO124: 1211 | DP124: 980 | DQ124: 978 | DR124: 1254 | DS124: 2378 | DT124: 2537 | DU124: 2544 | DV124: 2251 | DW124: 1720 | DX124: 1692 | DY124: 1833 | DZ124: 1838 | EA124: 1765 | EB124: 1642 | EC124: 1632 | ED124: 1565 | EE124: 1429 | EF124: 1483 | EG124: 1600 | EH124: 1422 | EI124: 1508 | EJ124: 1432 | EK124: 1357 | EL124: 1315 | EM124: 1258 | EN124: 1173 | EO124: 1094 | EP124: 1103 | EQ124: 1165 | ER124: 1193 | ES124: 1120 | ET124: 1241 | EU124: 1263 | EV124: 1332 | EW124: 1341 | EX124: 1287 | EY124: 1311 | EZ124: 1328 | FA124: 1356 | FB124: 1394 | FC124: 1273 | FD124: 1309 | FE124: 1244 | FF124: 1195 | FG124: 1146 | FH124: 1082 | FI124: 1038 | FJ124: 983 | FK124: 929 | FL124: 920 | FM124: 860 | FN124: 848 | FO124: 801 | FP124: 762 | FQ124: 845 | FR124: 881 | FS124: 930 | FT124: 1047 | FU124: 776 | FV124: 734 | FW124: 639 | FX124: 648 | FY124: 649 | FZ124: 499 | GA124: 550 | GB124: 539 | GC124: 534 | GD124: 505 | GE124: 464 | GF124: 426 | GG124: 394 | GH124: 326 | GI124: 346 | GJ124: 277 | GK124: 282 | GL124: 1076
A125: England – CCGs | B125: Redbridge | C125: England – CCGs - Redbridge | D125: 115314 | E125: 113661 | F125: 305222 | G125: 154796 | H125: 150426 | I125: 115314 | J125: 113661 | K125: 39482 | L125: 36765 | M125: 2263 | N125: 2381 | O125: 2353 | P125: 2326 | Q125: 2251 | R125: 2215 | S125: 2217 | T125: 2308 | U125: 2226 | V125: 2146 | W125: 2007 | X125: 2247 | Y125: 2206 | Z125: 2075 | AA125: 2077 | AB125: 2003 | AC125: 2087 | AD125: 2094 | AE125: 1984 | AF125: 1608 | AG125: 1536 | AH125: 1730 | AI125: 1917 | AJ125: 2058 | AK125: 2201 | AL125: 2158 | AM125: 2303 | AN125: 2427 | AO125: 2494 | AP125: 2660 | AQ125: 2408 | AR125: 2772 | AS125: 2561 | AT125: 2554 | AU125: 2620 | AV125: 2719 | AW125: 2727 | AX125: 2567 | AY125: 2626 | AZ125: 2535 | BA125: 2341 | BB125: 2337 | BC125: 2466 | BD125: 2226 | BE125: 2178 | BF125: 2266 | BG125: 2094 | BH125: 2067 | BI125: 1943 | BJ125: 1909 | BK125: 1946 | BL125: 1996 | BM125: 1844 | BN125: 1776 | BO125: 1800 | BP125: 1714 | BQ125: 1720 | BR125: 1580 | BS125: 1625 | BT125: 1600 | BU125: 1467 | BV125: 1493 | BW125: 1371 | BX125: 1299 | BY125: 1295 | BZ125: 1247 | CA125: 1144 | CB125: 1136 | CC125: 1058 | CD125: 1040 | CE125: 979 | CF125: 985 | CG125: 976 | CH125: 838 | CI125: 772 | CJ125: 653 | CK125: 690 | CL125: 594 | CM125: 556 | CN125: 636 | CO125: 551 | CP125: 521 | CQ125: 422 | CR125: 451 | CS125: 373 | CT125: 389 | CU125: 326 | CV125: 272 | CW125: 241 | CX125: 185 | CY125: 761 | CZ125: 2147 | DA125: 2166 | DB125: 2267 | DC125: 2183 | DD125: 2170 | DE125: 2057 | DF125: 2157 | DG125: 2142 | DH125: 2043 | DI125: 2080 | DJ125: 2158 | DK125: 2104 | DL125: 1931 | DM125: 1903 | DN125: 1793 | DO125: 1896 | DP125: 1791 | DQ125: 1777 | DR125: 1738 | DS125: 1397 | DT125: 1346 | DU125: 1605 | DV125: 1748 | DW125: 1870 | DX125: 2044 | DY125: 2006 | DZ125: 2082 | EA125: 2196 | EB125: 2253 | EC125: 2261 | ED125: 2232 | EE125: 2385 | EF125: 2253 | EG125: 2348 | EH125: 2394 | EI125: 2387 | EJ125: 2499 | EK125: 2333 | EL125: 2579 | EM125: 2442 | EN125: 2477 | EO125: 2287 | EP125: 2082 | EQ125: 2249 | ER125: 2152 | ES125: 1990 | ET125: 1994 | EU125: 2050 | EV125: 1993 | EW125: 1902 | EX125: 1959 | EY125: 1853 | EZ125: 1893 | FA125: 1852 | FB125: 1864 | FC125: 1896 | FD125: 1770 | FE125: 1725 | FF125: 1579 | FG125: 1651 | FH125: 1478 | FI125: 1427 | FJ125: 1467 | FK125: 1324 | FL125: 1293 | FM125: 1289 | FN125: 1207 | FO125: 1118 | FP125: 1131 | FQ125: 1135 | FR125: 1043 | FS125: 1091 | FT125: 1095 | FU125: 917 | FV125: 830 | FW125: 848 | FX125: 861 | FY125: 702 | FZ125: 613 | GA125: 661 | GB125: 709 | GC125: 684 | GD125: 567 | GE125: 537 | GF125: 512 | GG125: 503 | GH125: 400 | GI125: 398 | GJ125: 383 | GK125: 333 | GL125: 1489
... 156 more rows

Sheet Assumptions input
A1: Nivolumab for previously treated unresectable advanced or recurrent oesophageal cancer | E1: - | F1: - | G1: - | H1: - | I1: - | J1: - | K1: - | L1: -
A2: Assumptions input | B2: - | C2: - | D2: - | E2: - | F2: - | G2: - | H2: - | I2: - | J2: - | K2: - | L2: -
B3: - | C3: - | D3: - | E3: - | F3: - | G3: - | H3: - | I3: - | J3: - | K3: - | L3: -
A4: Proportion of population | B4: 1 | C4: - | D4: - | E4: - | F4: - | G4: - | H4: - | I4: - | J4: - | K4: - | L4: -
A5: Organisation type | B5: National | C5: - | D5: - | E5: - | F5: - | G5: - | H5: - | I5: - | J5: - | K5: - | L5: -
A6: Organisation | B6: England | C6: - | D6: - | E6: - | F6: - | G6: - | H6: - | I6: - | J6: - | K6: - | L6: -
A7: Manual input (total population, all ages) | C7: - | D7: - | E7: - | F7: - | G7: - | H7: - | I7: - | J7: - | K7: - | L7: -
A8: - | B8: - | C8: - | D8: - | E8: - | F8: - | G8: - | H8: - | I8: - | J8: - | K8: - | L8: -
B9: Local assumption current practice (local input) | C9: Local assumption current practice (local input) | D9: Local assumption future practice (year 5) (local input) | E9: Local assumption future practice (year 5) (local input) | G9: NICE assumptions current practice | H9: NICE assumptions current practice | I9: NICE assumptions future practice (year 5) | J9: NICE assumptions future practice (year 5) | K9: - | L9: References and data sources
B10: % of people | C10: Number of people | D10: % of people | E10: Number of people | G10: % of people | H10: Number of people | I10: % of people | J10: Number of people | K10: - | L10: -
A11: Total population for area selected (all ages) | C11: =IFERROR(IF('Population selection'!C14="",'Population selection'!C13,'Population selection'!C14),0) -> 56286961 | E11: =C11 -> 56286961 | H11: =C11 -> 56286961 | J11: =C11 -> 56286961 | K11: - | L11: Office for National Statistics, see population data below
A12: Specific population (from hidden population selection worksheet e.g. adults) | C12: =IF('Population selection'!J14="",'Population selection'!J23,'Population selection'!J14) -> 44263393 | E12: =C12 -> 44263393 | H12: =C12 -> 44263393 | J12: =C12 -> 44263393 | K12: - | L12: Office for National Statistics, see population data below
K13: - | L13: -
A14: Incidence of oesaphageal cancer | B14: 0.0001709990917 | C14: =C12*B14 -> 7569 | D14: 0.0001709990917 | E14: =D14*E12 -> 7569 | G14: 0.0001709990917 | H14: =H12*G14 -> 7569 | I14: 0.0001709990917 | J14: =I14*J12 -> 7569 | K14: - | L14: C15 Malignant neoplasm of oesophagus, Cancer registration statistics, England: final release, 2018
A15: Proportion of people with resectable disease stage I to IV(a) | B15: 0.62 | C15: =C14*B15 -> 4692.78 | D15: 0.62 | E15: =E14*D15 -> 4692.78 | G15: 0.62 | H15: =H14*G15 -> 4692.78 | I15: 0.62 | J15: =J14*I15 -> 4692.78 | K15: - | L15: Company submission
A16: Proportion of people with unresectable advanced disease stage I-IV(a) | B16: 0.03 | C16: =C14*B16 -> 227.07 | D16: 0.03 | E16: =E14*D16 -> 227.07 | G16: 0.03 | H16: =H14*G16 -> 227.07 | I16: 0.03 | J16: =J14*I16 -> 227.07 | K16: - | L16: Company submission
A17: Proportion of people with disease stage IV(b) | B17: 0.35 | C17: =C14*B17 -> 2649.15 | D17: 0.35 | E17: =E14*D17 -> 2649.15 | G17: 0.35 | H17: =H14*G17 -> 2649.15 | I17: 0.35 | J17: =J14*I17 -> 2649.15 | K17: - | L17: Company submission
A18: Total people with unresectable disease on diagnosis | B18: row 16 + row 17 | C18: =C17+C16 -> 2876.22 | D18: row 16 + row 17 | E18: =+E17+E16 -> 2876.22 | G18: row 16 + row 17 | H18: =+H17+H16 -> 2876.22 | I18: row 16 + row 17 | J18: =+J17+J16 -> 2876.22 | K18: -
A19: Proportion of people with resectable disease stage I to IV(a) who have a disease recurrence to unresectable disease | B19: 0.44 | C19: =C15*B19 -> 2064.8232 | D19: 0.44 | E19: =E15*D19 -> 2064.8232 | G19: 0.44 | H19: =H15*G19 -> 2064.8232 | I19: 0.44 | J19: =J15*I19 -> 2064.8232 | K19: - | L19: Company submission
A20: Total people with recurrent and unresectable adanced disease | B20: row 18 + row 19 | C20: =+C19+C18 -> 4941.0432 | D20: row 18 + row 19 | E20: =+E19+E18 -> 4941.0432 | G20: row 18 + row 19 | H20: =+H19+H18 -> 4941.0432 | I20: row 18 + row 19 | J20: =+J19+J18 -> 4941.0432 | K20: -
A21: Proportion of people with oesophageal squamous cell disease | B21: 0.315 | C21: =C20*B21 -> 1556.428608 | D21: 0.315 | E21: =E20*D21 -> 1556.428608 | G21: 0.315 | H21: =H20*G21 -> 1556.428608 | I21: 0.315 | J21: =I21*J20 -> 1556.428608 | K21: - | L21: Company submission
A22: Proportion of people who choose first line chemotherapy | B22: 0.699 | C22: =C21*B22 -> 1087.943597 | D22: 0.699 | E22: =E21*D22 -> 1087.943597 | G22: 0.699 | H22: =H21*G22 -> 1087.943597 | I22: 0.699 | J22: =I22*J21 -> 1087.943597 | K22: - | L22: Company submission
A23: Proportion of people who chose to have a second line chemotherapy | B23: 0.415 | C23: =C22*B23 -> 451.4965928 | D23: 0.415 | E23: =E22*D23 -> 451.4965928 | G23: 0.415 | H23: =H22*G23 -> 451.4965928 | I23: 0.415 | J23: =I23*J22 -> 451.4965928 | K23: - | L23: Company submission
A25: Proportion of people choosing nivolumab | B25: 0 | C25: =C23*B25 -> 0 | D25: 0.75 | E25: =E23*D25 -> 338.6224446 | G25: 0 | H25: =H23*G25 -> 0 | I25: 0.75 | J25: =J23*I25 -> 338.6224446 | K25: - | L25: Clinical expert opinion
A26: Proportion of people choosing docetaxel | B26: 0.385 | C26: =B26*C23 -> 173.8261882 | D26: 0.095 | E26: =D26*E23 -> 42.89217631 | G26: 0.385 | H26: =G26*H23 -> 173.8261882 | I26: 0.095 | J26: =I26*J23 -> 42.89217631 | L26: NICE assumption based on taxanes having equal uptake
A27: Proportion of people choosing paclitaxel | B27: 0.385 | C27: =B27*C23 -> 173.8261882 | D27: 0.095 | E27: =D27*E23 -> 42.89217631 | G27: 0.385 | H27: =G27*H23 -> 173.8261882 | I27: 0.095 | J27: =I27*J23 -> 42.89217631 | L27: NICE assumption based on taxanes having equal uptake
A28: Proportion of people choosing best supportive care only | B28: 0.23 | C28: =B28*C23 -> 103.8442163 | D28: 0.06 | E28: =D28*E23 -> 27.08979557 | G28: 0.23 | H28: =G28*H23 -> 103.8442163 | I28: 0.06 | J28: =I28*J23 -> 27.08979557 | K28: - | L28: -
C29: =SUM(C25:C28) -> 451.4965928 | E29: =SUM(E25:E28) -> 451.4965928 | H29: =SUM(H25:H28) -> 451.4965928 | J29: =SUM(J25:J28) -> 451.4965928 | K29: - | L29: -
A30: - | B30: - | C30: - | D30: - | E30: - | F30: - | G30: - | H30: - | I30: - | J30: - | K30: - | L30: -
A31: - | B31: - | C31: - | D31: - | E31: - | F31: - | G31: - | H31: - | I31: - | J31: - | K31: - | L31: Population data
A32: - | B32: - | C32: - | D32: - | E32: - | F32: - | G32: - | H32: - | I32: - | J32: - | K32: - | L32: The populations shown are:
A33: - | B33: - | C33: - | D33: - | E33: - | F33: - | G33: - | H33: - | I33: - | J33: - | K33: - | L33: 1. Mid-2019 Population Estimates for Clinical Commissioning Groups and NHS area teams in England by single year of age and sex (experimental statistics) and NHS area teams. Data obtained from:
A34: - | B34: - | C34: - | D34: - | E34: - | F34: - | G34: - | H34: - | I34: - | J34: - | K34: - | L34: Clinical Commissioning Group Mid-Year Population Estimates - Office for National Statistics
A35: - | B35: - | C35: - | D35: - | E35: - | F35: - | G35: - | H35: - | I35: - | J35: - | K35: -
A36: - | B36: - | C36: - | D36: - | E36: - | F36: - | G36: - | H36: - | I36: - | J36: - | K36: - | L36: 2. Mid-2019 Population Estimates for local health boards in Wales by single year of age. Data obtained from:
A37: - | B37: - | C37: - | D37: - | E37: - | F37: - | G37: - | H37: - | I37: - | J37: - | K37: - | L37: https://statswales.gov.wales/Catalogue/Population-and-Migration/Population/Estimates/Local-Health-Boards
A38: - | B38: - | C38: - | D38: - | E38: - | F38: - | G38: - | H38: - | I38: - | J38: - | K38: -
A39: - | B39: - | C39: - | D39: - | E39: - | F39: - | G39: - | H39: - | I39: - | J39: - | K39: - | L39: 3. Mid-2019 Population Estimates in Northern Ireland by Health and Social Care Trust (HSCTs) by single year of age. Data obtained from:
A40: - | B40: - | C40: - | D40: - | E40: - | F40: - | G40: - | H40: - | I40: - | J40: - | K40: - | L40: Mid Year Population Estimates | Northern Ireland Statistics and Research Agency
A41: - | B41: - | C41: - | D41: - | E41: - | F41: - | G41: - | H41: - | I41: - | J41: - | K41: -
A42: - | B42: - | C42: - | D42: - | E42: - | F42: - | G42: - | H42: - | I42: - | J42: - | K42: - | L42: 4. Population Estimates by single year of age and sex for local authorities in the UK, mid-2019. Data obtained from:
A43: - | B43: - | C43: - | D43: - | E43: - | F43: - | G43: - | H43: - | I43: - | J43: - | K43: - | L43: Population Estimates for UK, England and Wales, Scotland and Northern Ireland - Office for National Statistics
A44: - | B44: - | C44: - | D44: - | E44: - | F44: - | G44: - | H44: - | I44: - | J44: - | K44: -
A45: - | B45: - | C45: - | D45: - | E45: - | F45: - | G45: - | H45: - | I45: - | J45: - | K45: -

Sheet Unit costs
A1: ='Assumptions input'!A1 -> Nivolumab for previously treated unresectable advanced or recurrent oesophageal cancer | C1: - | D1: - | E1: - | F1: - | G1: - | H1: - | I1: - | J1: - | K1: -
A2: Unit costs | C2: - | D2: - | E2: - | F2: - | G2: - | H2: - | I2: - | J2: - | K2: -
A3: - | B3: - | C3: - | D3: - | E3: - | F3: - | G3: - | H3: - | I3: - | J3: - | K3: -
A4: Nivolumab intravenous infusion | K4: -
C5: Dose mg/kg (local input) | D5: Average body weight kg (local input) | E5: Dosage required per cycle (mg) | F5: Number of 100 mg vials required per cycle | G5: Number of cycles (local input) | H5: Number of vials for cycles | I5: Cost per vial (local input) | J5: Total cost of treatment | K5: -
A6: Every 2 weeks | C6: 3 | D6: 78.4 | E6: =D6*C6 -> 235.2 | F6: =ROUNDUP(E6/100,1) -> 2.4 | H6: =F6*G6 -> 0 | J6: =I6*H6 -> 0 | K6: -
A7: - | B7: - | C7: - | D7: - | E7: - | F7: - | G7: - | H7: - | I7: drug | J7: =SUM(J6:J6) -> 0 | K7: -
A8: Administration costs | K8: -
A9: SB13Z Deliver more complex parenteral chemotherapy at first Attendance | H9: =G6 -> 0 | I9: 324 | J9: =I9*H9 -> 0 | K9: -
A10: - | B10: - | C10: - | D10: - | E10: - | F10: - | G10: - | I10: administration | J10: =SUM(J9:J9) -> 0 | K10: -
A11: - | B11: - | C11: - | D11: - | E11: - | F11: - | I11: Total - drug and administration | J11: =J10+J7 -> 0 | K11: -
A12: Body weight is based on the Health Survey for England 2018: Adult and child overweight and obesity. | K12: -
A13: https://digital.nhs.uk/data-and-information/publications/statistical/health-survey-for-england/2018/health-survey-for-england-2018-data-tables | K13: -
A14: Administration costs based on 2021/22 National Tariff Payment System (consultation). | K14: -
A15: https://www.england.nhs.uk/publication/2021-22-tariff-consultation/ | K15: -
A16: Nivolumab is available with a discount to the list price that is commercial in confidence, please enter the discounted price of nivolumab into the blue cells above | K16: -
A17: - | B17: - | C17: - | D17: - | E17: - | F17: - | G17: - | H17: - | I17: - | J17: - | K17: -
A18: Docetaxel, intravenous infusion | K18: -
C19: Dose mg/m2 (local input) | D19: Average body surface area m2 (local input) | E19: Dosage required per cycle (mg) | F19: Number of 160 mg vials required per cycle | G19: Number of cycles (local input) | H19: Number of vials for cycles | I19: Cost per vial (local input) | J19: Total cost of treatment | K19: -
A20: Every 3 weeks | C20: 75 | D20: 1.79 | E20: =D20*C20 -> 134.25 | F20: =ROUNDUP(E20/160,0) -> 1 | G20: 4.85 | H20: =F20*G20 -> 4.85 | J20: =I20*H20 -> 0 | K20: -
A21: - | B21: - | C21: - | D21: - | E21: - | F21: - | G21: - | H21: - | I21: drug | J21: =SUM(J20:J20) -> 0 | K21: -
A22: Administration costs | K22: -
A23: SB13Z Deliver more complex parenteral chemotherapy at first Attendance | H23: =G20 -> 4.85 | I23: 324 | J23: =I23*H23 -> 1571.4 | K23: -
A24: - | B24: - | C24: - | D24: - | E24: - | F24: - | G24: - | I24: administration | J24: =SUM(J23:J23) -> 1571.4 | K24: -
A25: - | B25: - | C25: - | D25: - | E25: - | F25: - | I25: Total - drug and administration | J25: =J24+J21 -> 1571.4 | K25: -
A26: Body surface area based on Sacco et al 'The Average Body Surface Area of Adult Cancer Patients in the UK: A Multicentre Retrospective Study' | K26: -
A27: https://www.ncbi.nlm.nih.gov/pmc/articles/PMC2812484/ | K27: -
A28: Administration costs based on 2021/22 National Tariff Payment System (consultation). | K28: -
A29: https://www.england.nhs.uk/publication/2021-22-tariff-consultation/ | K29: -
A30: Drug prices based on eMIT, online; accessed 12.05.2021 | K30: -
A31: https://www.gov.uk/government/publications/drugs-and-pharmaceutical-electronic-market-information-emit | K31: -
A32: - | B32: - | C32: - | D32: - | E32: - | F32: - | G32: - | H32: - | I32: - | J32: - | K32: -
A33: Paclitaxel | K33: -
C34: Dose mg/kg (local input) | D34: Average body surface area m2 (local input) | E34: Dosage required per cycle (mg) | F34: Number of 30 mg vials required per cycle | G34: Number of cycles (local input) | H34: Number of vials for cycles | I34: Cost per vial (local input) | J34: Total cost of treatment | K34: -
A35: 3 weeks on 1 week off | C35: 100 | D35: 1.79 | E35: =D35*C35 -> 179 | F35: =ROUNDUP(E35/30,0) -> 6 | G35: 10 | H35: =F35*G35 -> 60 | J35: =I35*H35 -> 0 | K35: -
A36: - | B36: - | C36: - | D36: - | E36: - | F36: - | G36: - | H36: - | I36: drug | J36: =SUM(J35:J35) -> 0 | K36: -
A37: Administration costs | K37: -
A38: SB13Z Deliver more complex parenteral chemotherapy at first Attendance | H38: =G35 -> 10 | I38: 324 | J38: =I38*H38 -> 3240 | K38: -
A39: - | B39: - | C39: - | D39: - | E39: - | F39: - | G39: - | I39: administration | J39: =SUM(J38:J38) -> 3240 | K39: -
A40: - | B40: - | C40: - | D40: - | E40: - | F40: - | I40: Total - drug and administration | J40: =J39+J36 -> 3240 | K40: -
A41: Body surface area based on Sacco et al 'The Average Body Surface Area of Adult Cancer Patients in the UK: A Multicentre Retrospective Study' | K41: -
A42: https://www.ncbi.nlm.nih.gov/pmc/articles/PMC2812484/ | K42: -
A43: Administration costs based on 2021/22 National Tariff Payment System (consultation). | K43: -
A44: https://www.england.nhs.uk/publication/2021-22-tariff-consultation/ | K44: -
A45: Drug prices based on eMIT, online; accessed 12.05.2021 | K45: -
A46: https://www.gov.uk/government/publications/drugs-and-pharmaceutical-electronic-market-information-emit | K46: -
A47: - | B47: - | C47: - | D47: - | E47: - | F47: - | G47: - | H47: - | I47: - | J47: - | K47: -

Sheet Resource impact template
A1: ='Assumptions input'!A1 -> Nivolumab for previously treated unresectable advanced or recurrent oesophageal cancer | B1: - | C1: - | D1: - | E1: - | F1: - | G1: - | H1: - | I1: -
A2: Resource impact template | B2: - | C2: - | D2: - | E2: - | F2: -
A3: - | B3: - | C3: - | D3: - | E3: - | F3: -
A4: Drug costs | B4: Unit cost (local input) | C4: Activity current practice | D4: Activity future practice | E4: Activity change | G4: Cost of current practice | H4: Cost of future practice | I4: Impact of change on cost
A5: People treated with nivolumab | B5: ='Unit costs'!J7 -> 0 | C5: ='Assumptions input'!C25 -> 0 | D5: ='Assumptions input'!E25 -> 338.6224446 | E5: =D5-C5 -> 338.6224446 | G5: =B5*C5 -> 0 | H5: =B5*D5 -> 0 | I5: =H5-G5 -> 0
A6: People treated with docetaxel | B6: ='Unit costs'!J21 -> 0 | C6: ='Assumptions input'!C27 -> 173.8261882 | D6: ='Assumptions input'!E26 -> 42.89217631 | E6: -130.9340119 | G6: 0 | H6: 0 | I6: 0
A7: People treated with paclitaxel | B7: ='Unit costs'!J35 -> 0 | C7: ='Assumptions input'!C27 -> 173.8261882 | D7: ='Assumptions input'!E27 -> 42.89217631 | E7: =D7-C7 -> -130.9340119 | G7: =B7*C7 -> 0 | H7: =B7*D7 -> 0 | I7: =H7-G7 -> 0
A8: Drugs - Total costs | G8: =SUM(G5:G7) -> 0 | H8: =SUM(H5:H7) -> 0 | I8: =SUM(I5:I7) -> 0
A9: - | B9: - | C9: - | D9: - | E9: - | F9: - | G9: - | H9: - | I9: -
A10: Administration costs | B10: Unit Cost (local input) | C10: Activity current practice | D10: Activity future practice | E10: Activity change | G10: Cost of current practice | H10: Cost of future practice | I10: Impact of change on cost
A11: Nivolumab infusions | B11: ='Unit costs'!I9 -> 324 | C11: ='Assumptions input'!C25*'Unit costs'!H9 -> 0 | D11: ='Assumptions input'!E25*'Unit costs'!H9 -> 0 | E11: =D11-C11 -> 0 | G11: =C11*B11 -> 0 | H11: =D11*B11 -> 0 | I11: =H11-G11 -> 0
A12: Docetaxel infusions | B12: ='Unit costs'!I23 -> 324 | C12: ='Assumptions input'!C26*'Unit costs'!H23 -> 843.0570128 | D12: ='Assumptions input'!E26*'Unit costs'!H23 -> 208.0270551 | E12: =D12-C12 -> -635.0299577 | G12: =C12*B12 -> 273150.4722 | H12: =D12*B12 -> 67400.76586 | I12: =H12-G12 -> -205749.7063
A13: Paclitaxel infusions | B13: ='Unit costs'!I38 -> 324 | C13: ='Assumptions input'!C27*'Unit costs'!H38 -> 1738.261882 | D13: ='Assumptions input'!E27*'Unit costs'!H38 -> 428.9217631 | E13: =D13-C13 -> -1309.340119 | G13: =C13*B13 -> 563196.8498 | H13: =D13*B13 -> 138970.6512 | I13: =H13-G13 -> -424226.1985
A14: Total administration costs | C14: =SUM(C11:C13) -> 2581.318895 | D14: =SUM(D11:D13) -> 636.9488182 | E14: =SUM(E11:E13) -> -1944.370077 | G14: =SUM(G11:G13) -> 836347.322 | H14: =SUM(H11:H13) -> 206371.4171 | I14: =SUM(I11:I13) -> -629975.9048
A15: - | B15: - | C15: - | D15: - | E15: - | F15: - | G15: - | H15: - | I15: -
A16: - | B16: - | C16: - | D16: - | E16: - | F16: - | G16: - | H16: - | I16: -
A17: Total impact drugs and administration | B17: - | C17: - | D17: - | E17: - | G17: =+G19+G21 -> 836347.322 | H17: =+H19+H21 -> 206371.4171 | I17: =+I19+I21 -> -629975.9048
A18: - | B18: - | C18: - | D18: - | E18: - | F18: - | G18: - | H18: - | I18: -
A19: Drugs impact | B19: - | C19: - | D19: - | E19: - | G19: =+G8 -> 0 | H19: =+H8 -> 0 | I19: =+I8 -> 0
A20: - | B20: - | C20: - | D20: - | E20: - | F20: - | G20: - | H20: - | I20: -
A21: Administration impact | B21: - | C21: - | D21: - | E21: - | G21: =+G14 -> 836347.322 | H21: =+H14 -> 206371.4171 | I21: =+I14 -> -629975.9048
A22: - | B22: - | C22: - | D22: - | E22: - | F22: - | G22: - | H22: - | I22: -

Sheet Resource impact over time
A1: ='Assumptions input'!A1 -> Nivolumab for previously treated unresectable advanced or recurrent oesophageal cancer | B1: - | C1: - | D1: - | E1: - | F1: - | G1: - | H1: - | I1: - | J1: - | K1: - | L1: - | M1: - | N1: - | O1: - | P1: - | Q1: - | R1: - | S1: - | T1: - | U1: - | V1: - | W1: -
A2: Resource impact over 5 years | B2: - | C2: - | D2: - | E2: - | F2: - | G2: - | H2: - | I2: Analyst new note jan 20201 | J2: - | K2: - | L2: - | M2: - | N2: - | O2: - | P2: - | Q2: - | R2: - | S2: - | T2: - | U2: - | V2: - | W2: -
A3: - | B3: - | C3: - | D3: - | E3: - | F3: - | G3: - | H3: - | I3: - | J3: - | K3: - | L3: - | M3: - | N3: - | O3: - | P3: - | Q3: - | R3: - | S3: - | T3: - | U3: - | V3: - | W3: -
A4: Resource impact over time is presented for illustrative purposes only. Progression towards implementation | E4: - | F4: - | G4: - | H4: - | I4: - | J4: - | K4: - | L4: - | M4: - | N4: - | O4: - | P4: - | Q4: - | R4: - | S4: - | T4: - | U4: - | V4: - | W4: -
A5: will vary according to baseline position and degree of change needed. | B5: - | C5: - | D5: - | E5: - | F5: - | G5: - | H5: - | I5: - | J5: - | K5: - | L5: - | M5: - | N5: - | O5: - | P5: - | Q5: - | R5: - | S5: - | T5: - | U5: - | V5: - | W5: -
A6: - | B6: - | C6: - | D6: - | E6: - | F6: - | G6: - | H6: - | I6: - | J6: - | K6: - | L6: - | M6: - | N6: - | O6: - | P6: - | Q6: - | R6: - | S6: - | T6: - | U6: - | V6: - | W6: -
A7: Drug costs | B7: Unit Cost | C7: Local assumption current practice - activity year 1 | D7: Local assumption current practice - activity year 2 | E7: Local assumption current practice - activity year 3 | F7: Local assumption current practice - activity year 4 | G7: Local assumption current practice - activity year 5 | H7: Local assumption future practice - activity year 1 | I7: Local assumption future practice - activity year 2 | J7: Local assumption future practice - activity year 3 | K7: Local assumption future practice - activity year 4 | L7: Local assumption future practice - activity year 5 | N7: Change in activity year 1 | O7: Change in activity year 2 | P7: Change in activity year 3 | Q7: Change in activity year 4 | R7: Change in activity year 5 | S7: Change in costs £'000 year 1 | T7: Change in costs £'000 year 2 | U7: Change in costs £'000 year 3 | V7: Change in costs £'000 year 4 | W7: Change in costs £'000 year 5
A8: Uptake rate
A9: Nivolumab | H9: 0.5 | I9: 0.65 | J9: 0.75 | K9: 0.75 | L9: 0.75
A10: Docetaxel infusions | C10: ='Assumptions input'!B26 -> 0.385 | D10: =C10 -> 0.385 | E10: =D10 -> 0.385 | F10: 0.385 | G10: 0.385 | H10: =C10+(C10/C13*-50%) -> 0.1925 | I10: =D10+(D10/D13*-65%) -> 0.13475 | J10: =L10 -> 0.095 | K10: =L10 -> 0.095 | L10: ='Assumptions input'!D26 -> 0.095
A11: Paclitaxel | C11: ='Assumptions input'!B27 -> 0.385 | D11: =C11 -> 0.385 | E11: 0.385 | F11: 0.385 | G11: 0.385 | H11: =C11+(C11/C13*-50%) -> 0.1925 | I11: =D11+(D11/D13*-65%) -> 0.13475 | J11: =L11 -> 0.095 | K11: =L11 -> 0.095 | L11: ='Assumptions input'!D27 -> 0.095
A12: Best Supportive care | C12: ='Assumptions input'!B28 -> 0.23 | D12: 0.23 | E12: 0.23 | F12: 0.23 | G12: 0.23 | H12: =C12+(C12/C13*-50%) -> 0.115 | I12: =D12+(D12/D13*-65%) -> 0.0805 | J12: 0.06 | K12: =L12 -> 0.06 | L12: ='Assumptions input'!D28 -> 0.06
C13: =SUM(C10:C12) -> 1 | D13: =SUM(D10:D12) -> 1 | E13: 1 | F13: 1 | G13: 1 | H13: =SUM(H9:H12) -> 1 | I13: =SUM(I9:I12) -> 1 | J13: 1 | K13: 1 | L13: 1
A14: ='Resource impact template'!A5 -> People treated with nivolumab | B14: ='Resource impact template'!B5 -> 0 | C14: ='Resource impact template'!C5 -> 0 | D14: =C14 -> 0 | E14: =D14 -> 0 | F14: =E14 -> 0 | G14: =F14 -> 0 | H14: ='Assumptions input'!$E$23*'Resource impact over time'!H9 -> 225.7482964 | I14: ='Assumptions input'!$E$23*'Resource impact over time'!I9 -> 293.4727853 | J14: ='Assumptions input'!$E$23*'Resource impact over time'!J9 -> 338.6224446 | K14: ='Assumptions input'!$E$23*'Resource impact over time'!K9 -> 338.6224446 | L14: ='Assumptions input'!$E$23*'Resource impact over time'!L9 -> 338.6224446 | N14: =H14-C14 -> 225.7482964 | O14: 293.4727853 | P14: 338.6224446 | Q14: 338.6224446 | R14: 338.6224446 | S14: =N14*$B14/1000 -> 0 | T14: 0 | U14: 0 | V14: 0 | W14: 0 | Y14: =C14 -> 0 | Z14: =C14+N14 -> 225.7482964 | AA14: 293.4727853 | AB14: 338.6224446 | AC14: 338.6224446 | AD14: 338.6224446 | AF14: =(C14*B14)/1000 -> 0 | AG14: =$AF14+S14 -> 0 | AH14: =$AF14+T14 -> 0 | AI14: 0 | AJ14: 0 | AK14: 0
A15: ='Resource impact template'!A6 -> People treated with docetaxel | B15: ='Resource impact template'!B6 -> 0 | C15: ='Resource impact template'!C6 -> 173.8261882 | D15: =C15 -> 173.8261882 | E15: 173.8261882 | F15: 173.8261882 | G15: 173.8261882 | H15: ='Assumptions input'!$E$23*'Resource impact over time'!H10 -> 86.9130941 | I15: ='Assumptions input'!$E$23*'Resource impact over time'!I10 -> 60.83916587 | J15: ='Assumptions input'!$E$23*'Resource impact over time'!J10 -> 42.89217631 | K15: ='Assumptions input'!$E$23*'Resource impact over time'!K10 -> 42.89217631 | L15: ='Assumptions input'!$E$23*'Resource impact over time'!L10 -> 42.89217631 | N15: -86.9130941 | O15: -112.9870223 | P15: -130.9340119 | Q15: -130.9340119 | R15: -130.9340119 | S15: 0 | T15: 0 | U15: 0 | V15: 0 | W15: 0 | Y15: =C15 -> 173.8261882 | Z15: 86.9130941 | AA15: 60.83916587 | AB15: 42.89217631 | AC15: 42.89217631 | AD15: 42.89217631 | AF15: =(C15*B15)/1000 -> 0 | AG15: =$AF15+S15 -> 0 | AH15: 0 | AI15: 0 | AJ15: 0 | AK15: 0
A16: ='Resource impact template'!A7 -> People treated with paclitaxel | B16: ='Resource impact template'!B7 -> 0 | C16: ='Resource impact template'!C7 -> 173.8261882 | D16: 173.8261882 | E16: 173.8261882 | F16: 173.8261882 | G16: 173.8261882 | H16: ='Assumptions input'!$E$23*'Resource impact over time'!H11 -> 86.9130941 | I16: ='Assumptions input'!$E$23*'Resource impact over time'!I11 -> 60.83916587 | J16: ='Assumptions input'!$E$23*'Resource impact over time'!J11 -> 42.89217631 | K16: ='Assumptions input'!$E$23*'Resource impact over time'!K11 -> 42.89217631 | L16: ='Assumptions input'!$E$23*'Resource impact over time'!L11 -> 42.89217631 | N16: -86.9130941 | O16: -112.9870223 | P16: -130.9340119 | Q16: -130.9340119 | R16: -130.9340119 | S16: 0 | T16: 0 | U16: 0 | V16: 0 | W16: 0 | Y16: =C16 -> 173.8261882 | Z16: 86.9130941 | AA16: 60.83916587 | AB16: 42.89217631 | AC16: 42.89217631 | AD16: 42.89217631 | AF16: =(C16*B16)/1000 -> 0 | AG16: =$AF16+S16 -> 0 | AH16: 0 | AI16: 0 | AJ16: 0 | AK16: 0
A17: Best Supportive care | C17: ='Assumptions input'!C28 -> 103.8442163 | D17: =C17 -> 103.8442163 | E17: 103.8442163 | F17: 103.8442163 | G17: 103.8442163 | H17: ='Assumptions input'!$E$23*'Resource impact over time'!H12 -> 51.92210817 | I17: ='Assumptions input'!$E$23*'Resource impact over time'!I12 -> 36.34547572 | J17: ='Assumptions input'!$E$23*'Resource impact over time'!J12 -> 27.08979557 | K17: ='Assumptions input'!$E$23*'Resource impact over time'!K12 -> 27.08979557 | L17: ='Assumptions input'!$E$23*'Resource impact over time'!L12 -> 27.08979557 | N17: =H17-C17 -> -51.92210817 | O17: =I17-D17 -> -67.49874062 | P17: =J17-E17 -> -76.75442077 | Q17: =K17-F17 -> -76.75442077 | R17: =L17-G17 -> -76.75442077 | S17: =N17*$B17/1000 -> 0 | T17: =O17*$B17/1000 -> 0 | U17: =P17*$B17/1000 -> 0 | V17: =Q17*$B17/1000 -> 0 | W17: =R17*$B17/1000 -> 0
A18: Total drug costs | C18: =SUM(C14:C17) -> 451.4965928 | D18: =SUM(D14:D17) -> 451.4965928 | E18: 451.4965928 | F18: 451.4965928 | G18: 451.4965928 | H18: =SUM(H14:H17) -> 451.4965928 | I18: =SUM(I14:I17) -> 451.4965928 | J18: 451.4965928 | K18: 451.4965928 | L18: 451.4965928 | N18: =SUM(N14:N17) -> 0 | O18: =SUM(O14:O17) -> 0 | P18: 0 | Q18: 0 | R18: 0 | S18: 0 | T18: 0 | U18: 0 | V18: 0 | W18: 0 | Y18: =SUM(Y14:Y16) -> 347.6523764 | Z18: 399.5744846 | AA18: 415.151117 | AB18: 424.4067972 | AC18: 424.4067972 | AD18: 424.4067972 | AF18: =SUM(AF14:AF16) -> 0 | AG18: 0 | AH18: 0 | AI18: 0 | AJ18: 0 | AK18: 0
A19: - | B19: - | C19: - | D19: - | E19: - | F19: - | G19: - | H19: - | I19: - | J19: - | K19: - | L19: - | M19: - | N19: - | O19: - | P19: - | Q19: - | R19: - | S19: - | T19: - | U19: - | V19: - | W19: - | AG19: =AG18-$AF18 -> 0 | AH19: =AH18-$AF18 -> 0 | AI19: =AI18-$AF18 -> 0 | AJ19: =AJ18-$AF18 -> 0 | AK19: =AK18-$AF18 -> 0
A20: Administration costs | B20: Unit Cost | C20: Local assumption current practice - activity year 1 | D20: Local assumption current practice - activity year 2 | E20: Local assumption current practice - activity year 3 | F20: Local assumption current practice - activity year 4 | G20: Local assumption current practice - activity year 5 | H20: Local assumption future practice - activity year 1 | I20: Local assumption future practice - activity year 2 | J20: Local assumption future practice - activity year 3 | K20: Local assumption future practice - activity year 4 | L20: Local assumption future practice - activity year 5 | N20: Change in activity year 1 | O20: Change in activity year 2 | P20: Change in activity year 3 | Q20: Change in activity year 4 | R20: Change in activity year 5 | S20: Change in costs £'000 year 1 | T20: Change in costs £'000 year 2 | U20: Change in costs £'000 year 3 | V20: Change in costs £'000 year 4 | W20: Change in costs £'000 year 5
A21: ='Resource impact template'!A11 -> Nivolumab infusions | B21: ='Resource impact template'!B11 -> 324 | C21: =C14*'Unit costs'!$H$9 -> 0 | D21: =D14*'Unit costs'!$H$9 -> 0 | E21: =E14*'Unit costs'!$H$9 -> 0 | F21: =F14*'Unit costs'!$H$9 -> 0 | G21: =G14*'Unit costs'!$H$9 -> 0 | H21: =H14*'Unit costs'!$H$9 -> 0 | I21: =I14*'Unit costs'!$H$9 -> 0 | J21: =J14*'Unit costs'!$H$9 -> 0 | K21: =K14*'Unit costs'!$H$9 -> 0 | L21: =L14*'Unit costs'!$H$9 -> 0 | N21: =H21-C21 -> 0 | O21: 0 | P21: 0 | Q21: 0 | R21: 0 | S21: =N21*$B21/1000 -> 0 | T21: 0 | U21: 0 | V21: 0 | W21: 0 | Y21: =C21 -> 0 | Z21: =C21+N21 -> 0 | AA21: 0 | AB21: 0 | AC21: 0 | AD21: 0 | AF21: =(C21*B21)/1000 -> 0 | AG21: =$AF21+S21 -> 0 | AH21: =$AF21+T21 -> 0 | AI21: 0 | AJ21: 0 | AK21: 0
A22: ='Resource impact template'!A12 -> Docetaxel infusions | B22: ='Resource impact template'!B12 -> 324 | C22: =C15*'Unit costs'!$H$23 -> 843.0570128 | D22: =D15*'Unit costs'!$H$23 -> 843.0570128 | E22: =E15*'Unit costs'!$H$23 -> 843.0570128 | F22: =F15*'Unit costs'!$H$23 -> 843.0570128 | G22: =G15*'Unit costs'!$H$23 -> 843.0570128 | H22: =H15*'Unit costs'!$H$23 -> 421.5285064 | I22: =I15*'Unit costs'!$H$23 -> 295.0699545 | J22: =J15*'Unit costs'!$H$23 -> 208.0270551 | K22: =K15*'Unit costs'!$H$23 -> 208.0270551 | L22: =L15*'Unit costs'!$H$23 -> 208.0270551 | N22: -421.5285064 | O22: -547.9870583 | P22: -635.0299577 | Q22: -635.0299577 | R22: -635.0299577 | S22: -136.5752361 | T22: -177.5478069 | U22: -205.7497063 | V22: -205.7497063 | W22: -205.7497063 | Y22: =C22 -> 843.0570128 | Z22: 421.5285064 | AA22: 295.0699545 | AB22: 208.0270551 | AC22: 208.0270551 | AD22: 208.0270551 | AF22: =(C22*B22)/1000 -> 273.1504722 | AG22: =$AF22+S22 -> 136.5752361 | AH22: 95.60266525 | AI22: 67.40076586 | AJ22: 67.40076586 | AK22: 67.40076586
A23: ='Resource impact template'!A13 -> Paclitaxel infusions | B23: ='Resource impact template'!B13 -> 324 | C23: =C16*'Unit costs'!$H$38 -> 1738.261882 | D23: =D16*'Unit costs'!$H$38 -> 1738.261882 | E23: =E16*'Unit costs'!$H$38 -> 1738.261882 | F23: =F16*'Unit costs'!$H$38 -> 1738.261882 | G23: =G16*'Unit costs'!$H$38 -> 1738.261882 | H23: =H16*'Unit costs'!$H$38 -> 869.130941 | I23: =I16*'Unit costs'!$H$38 -> 608.3916587 | J23: =J16*'Unit costs'!$H$38 -> 428.9217631 | K23: =K16*'Unit costs'!$H$38 -> 428.9217631 | L23: =L16*'Unit costs'!$H$38 -> 428.9217631 | N23: -869.130941 | O23: -1129.870223 | P23: -1309.340119 | Q23: -1309.340119 | R23: -1309.340119 | S23: -281.5984249 | T23: -366.0779524 | U23: -424.2261985 | V23: -424.2261985 | W23: -424.2261985 | Y23: =C23 -> 1738.261882 | Z23: 869.130941 | AA23: 608.3916587 | AB23: 428.9217631 | AC23: 428.9217631 | AD23: 428.9217631 | AF23: =(C23*B23)/1000 -> 563.1968498 | AG23: =$AF23+S23 -> 281.5984249 | AH23: 197.1188974 | AI23: 138.9706512 | AJ23: 138.9706512 | AK23: 138.9706512
A24: Total administration costs | C24: =SUM(C21:C23) -> 2581.318895 | D24: 2581.318895 | E24: 2581.318895 | F24: 2581.318895 | G24: 2581.318895 | H24: 1290.659447 | I24: 903.4616132 | J24: 636.9488182 | K24: 636.9488182 | L24: 636.9488182 | N24: =SUM(N21:N23) -> -1290.659447 | O24: -1677.857282 | P24: -1944.370077 | Q24: -1944.370077 | R24: -1944.370077 | S24: -418.173661 | T24: -543.6257593 | U24: -629.9759048 | V24: -629.9759048 | W24: -629.9759048 | Y24: =SUM(Y21:Y23) -> 2581.318895 | Z24: 1290.659447 | AA24: 903.4616132 | AB24: 636.9488182 | AC24: 636.9488182 | AD24: 636.9488182 | AF24: =SUM(AF21:AF23) -> 836.347322 | AG24: 418.173661 | AH24: 292.7215627 | AI24: 206.3714171 | AJ24: 206.3714171 | AK24: 206.3714171
A25: - | B25: - | C25: - | D25: - | E25: - | F25: - | G25: - | H25: - | I25: - | J25: - | K25: - | L25: - | M25: - | N25: - | O25: - | P25: - | Q25: - | R25: - | S25: - | T25: - | U25: - | V25: - | W25: - | AG25: =AG24-$AF24 -> -418.173661 | AH25: =AH24-$AF24 -> -543.6257593 | AI25: =AI24-$AF24 -> -629.9759048 | AJ25: =AJ24-$AF24 -> -629.9759048 | AK25: =AK24-$AF24 -> -629.9759048
A26: - | B26: - | C26: - | D26: - | E26: - | F26: - | G26: - | H26: - | I26: - | J26: - | K26: - | L26: - | M26: - | N26: - | O26: - | P26: - | Q26: - | R26: - | S26: - | T26: - | U26: - | V26: - | W26: -
A27: Total all recommendations (£'000) | S27: =+S24+S18 -> -418.173661 | T27: =+T24+T18 -> -543.6257593 | U27: =+U24+U18 -> -629.9759048 | V27: =+V24+V18 -> -629.9759048 | W27: =+W24+W18 -> -629.9759048

Sheet RI phasing over years (hidden)
A1: Scenario - uptake across years | O1: Analysts delete this worksheet before publication
A3: Uptake is 40%, 60%, 80%, 80%, 80%.
A4: TA publishes in October. First people use new drug from February.
A5: The year 1 uptake is thus February to January cutting across financial years
L7: 1st patients commence
H8: Publishes 25th Oct | L8: 1st Feb
C15: Financial year April to March | O15: Financial year April to March | AA15: Financial year April to March | AM15: Financial year April to March
B16: uptake | C16: 1 | D16: 2 | E16: 3 | F16: 4 | G16: 5 | H16: 6 | I16: 7 | J16: 8 | K16: 9 | L16: 10 | M16: 11 | N16: 12 | O16: 1 | P16: 2 | Q16: 3 | R16: 4 | S16: 5 | T16: 6 | U16: 7 | V16: 8 | W16: 9 | X16: 10 | Y16: 11 | Z16: 12 | AA16: 1 | AB16: 2 | AC16: 3 | AD16: 4 | AE16: 5 | AF16: 6 | AG16: 7 | AH16: 8 | AI16: 9 | AJ16: 10 | AK16: 11 | AL16: 12 | AM16: 1 | AN16: 2 | AO16: 3 | AP16: 4 | AQ16: 5 | AR16: 6 | AS16: 7 | AT16: 8 | AU16: 9 | AV16: 10 | AW16: 11 | AX16: 12
B17: 1
B18: 0.9
B19: 0.8 | K19: 3 month
B20: 0.7 | K20: funding
B21: 0.6 | K21: mandate
B22: 0.5 | K22: grace
B23: 0.4 | K23: period
B24: 0.3 | R24: 40% uptake in year 1 after publication | AD24: 60% uptake in year 2 after publication | AP24: 80% uptake in year 3 after publication, then
B25: 0.2 | AP25: 80% in year 4 and 5 at steady maximum uptake
B26: 0.1
M27: year 1 after publication | Y27: year 2 after publication | AK27: year 2 after publication | AW27: year 4 etc
M32: 2 months in financial year | R32: 10 months in financial year | X32: 2 months in financial year | AD32: 10 months in financial year | AJ32: 2 months in financial year | AP32: 10 months in financial year | AV32: 2 months in financial year
I35: Financial year 1 | U35: Financial year 2 | AG35: Financial year 3 | AS35: Financial year 4
N36: 2/12ths | W36: 10/12ths | Z36: 2/12ths | AI36: 10/12ths | AL36: 2/12ths | AU36: 10/12ths | AX36: 2/12ths
N37: at | W37: at | X37: plus | Z37: at | AI37: at | AJ37: plus | AL37: at | AU37: at | AV37: plus | AX37: at
N38: 0.4 | W38: 0.4 | Z38: 0.6 | AI38: 0.6 | AL38: 0.8 | AU38: 0.8 | AX38: 0.8
N39: = | Z39: = | AL39: = | AX39: =
N40: =(2/12)*40% -> 0.06666666667 | Z40: =((10/12)*40%)+((2/12)*60%) -> 0.4333333333 | AL40: =((10/12)*60%)+((2/12)*80%) -> 0.6333333333 | AX40: =((10/12)*80%)+((2/12)*80%) -> 0.8
N41: and therefore | Z41: and therefore | AL41: and therefore | AX41: and therefore
N42: =100%-N40 -> 0.9333333333 | Z42: =100%-Z40 -> 0.5666666667 | AL42: =100%-AL40 -> 0.3666666667 | AX42: =100%-AX40 -> 0.2
N43: for comparator | Z43: for comparator | AL43: for comparator | AX43: for comparator
N45: year 1 | Z45: year 2 | AL45: year 3 | AX45: year 4
N46: financial year for RI over time | Z46: financial year for RI over time | AL46: financial year for RI over time | AX46: financial year for RI over time
A52: Scenario - cancer drug with full uptake (90%) with immediate effect
C54: 1200 | D54: new diagnoses of neck cancer per year.
C55: The current drug is called old-mab. A 12month treatment cost is £10,000. There is 90% uptake currently.
C56: The new drug is called new-nib. A 36month treatment cost is £8,000. It is a MUCH better drug. There will be a 90% switch immediately.
C57: 90% uptake is deemed 'full uptake' as it's assumed 10% people will always choose no treatment
C59: Year 1 - people choosing new drug per month (incidence)
C60: 1 | D60: 2 | E60: 3 | F60: 4 | G60: 5 | H60: 6 | I60: 7 | J60: 8 | K60: 9 | L60: 10 | M60: 11 | N60: 12
N61: 90
M62: 90 | N62: 90
L63: 90 | M63: 90 | N63: 90
K64: 90 | L64: 90 | M64: 90 | N64: 90
J65: 90 | K65: 90 | L65: 90 | M65: 90 | N65: 90
I66: 90 | J66: 90 | K66: 90 | L66: 90 | M66: 90 | N66: 90
H67: 90 | I67: 90 | J67: 90 | K67: 90 | L67: 90 | M67: 90 | N67: 90
G68: 90 | H68: 90 | I68: 90 | J68: 90 | K68: 90 | L68: 90 | M68: 90 | N68: 90
F69: 90 | G69: 90 | H69: 90 | I69: 90 | J69: 90 | K69: 90 | L69: 90 | M69: 90 | N69: 90
E70: 90 | F70: 90 | G70: 90 | H70: 90 | I70: 90 | J70: 90 | K70: 90 | L70: 90 | M70: 90 | N70: 90
D71: 90 | E71: 90 | F71: 90 | G71: 90 | H71: 90 | I71: 90 | J71: 90 | K71: 90 | L71: 90 | M71: 90 | N71: 90
C72: 90 | D72: 90 | E72: 90 | F72: 90 | G72: 90 | H72: 90 | I72: 90 | J72: 90 | K72: 90 | L72: 90 | M72: 90 | N72: 90
C73: =SUM(C61:C72) -> 90 | D73: =SUM(D61:D72) -> 180 | E73: 270 | F73: 360 | G73: 450 | H73: 540 | I73: 630 | J73: 720 | K73: 810 | L73: 900 | M73: 990 | N73: 1080 | O73: Totals
N74: 1080 (90%) in m12 now using new drug - achieved 90% uptake
C75: =C73/#REF! ->  | D75: =D73/#REF! ->  | E75: =E73/#REF! ->  | F75: =F73/#REF! ->  | G75: =G73/#REF! ->  | H75: =H73/#REF! ->  | I75: =I73/#REF! ->  | J75: =J73/#REF! ->  | K75: =K73/#REF! ->  | L75: =L73/#REF! ->  | M75: =M73/#REF! ->  | N75: =N73/#REF! ->  | O75: %
N76: =SUM(C75:N75) -> 
N77: out of 1200% in the year
N78: =N76/(12*100%) ->  | O78: overall in year 1
N79: Conclusion: starting at a 90% switch immediate switch in month 1,
N80: results in overall 49% of all people using the new drug in year due to roll out.

Sheet RI uptake year 1 (hidden)
A1: Scenario - cancer drug with full uptake (90%) with immediate effect | M1: Analysts delete this worksheet before publication
A3: 1200 | B3: new diagnoses of neck cancer per year.
A4: The current drug has 90% uptake currently.
A5: The new drug is MUCH better. There will be a 90% switch immediately.
